Workbook

Sheet Introduction

Sheet Summary
G2: Interest Rate on Tranche A | J2: =Scenarios!$F$14 -> 0.085 | L2: No Working Capital Changes | O2: =Scenarios!$F$24 -> TRUE
B3: Passenger Sensitivity Factor | C3: =Scenarios!$F$58 -> 0.66
C6: ='Annual Analysis'!J1 -> 2016 | D6: ='Annual Analysis'!K1 -> 2017 | E6: ='Annual Analysis'!L1 -> 2018 | F6: ='Annual Analysis'!M1 -> 2019 | G6: ='Annual Analysis'!N1 -> 2020 | H6: ='Annual Analysis'!O1 -> 2021 | I6: ='Annual Analysis'!P1 -> 2022 | J6: ='Annual Analysis'!Q1 -> 2023
B7: Debt to EBITDA | C7: ='Annual Analysis'!J152 -> 3.512665273 | D7: ='Annual Analysis'!K152 -> 12.27607236 | E7: ='Annual Analysis'!L152 -> 11.51145943 | F7: ='Annual Analysis'!M152 -> 10.70703001 | G7: ='Annual Analysis'!N152 -> 9.863097634 | H7: ='Annual Analysis'!O152 -> 8.980532592 | I7: ='Annual Analysis'!P152 -> 8.060884211 | J7: ='Annual Analysis'!Q152 -> 8.803413789
B8: Collections Coverage | C8: ='Annual Analysis'!J147 -> 0 | D8: ='Annual Analysis'!K147 -> 0 | E8: ='Annual Analysis'!L147 -> 0 | F8: ='Annual Analysis'!M147 -> 0 | G8: ='Annual Analysis'!N147 -> 0 | H8: ='Annual Analysis'!O147 -> 0 | I8: ='Annual Analysis'!P147 -> 0 | J8: ='Annual Analysis'!Q147 -> 0
B9: Senior Unadjusted DSCR | C9: ='Annual Analysis'!J157 -> 1.717637686 | D9: ='Annual Analysis'!K157 -> 0.50704756 | E9: ='Annual Analysis'!L157 -> 0.50704756 | F9: ='Annual Analysis'!M157 -> 0.50704756 | G9: ='Annual Analysis'!N157 -> 0.50704756 | H9: ='Annual Analysis'!O157 -> 0.50704756 | I9: ='Annual Analysis'!P157 -> 0.50704756 | J9: ='Annual Analysis'!Q157 -> 3.04228536
B10: Simulated 25 Senior Year DSCR | C10: ='Annual Analysis'!J164 -> 0 | D10: ='Annual Analysis'!K164 -> 0 | E10: ='Annual Analysis'!L164 -> 0 | F10: ='Annual Analysis'!M164 -> 0 | G10: ='Annual Analysis'!N164 -> 0 | H10: ='Annual Analysis'!O164 -> 0 | I10: ='Annual Analysis'!P164 -> 0 | J10: ='Annual Analysis'!Q164 -> 0
B11: Simulated 25 Total Year DSCR | C11: ='Annual Analysis'!J175 -> 0 | D11: ='Annual Analysis'!K175 -> 0 | E11: ='Annual Analysis'!L175 -> 0 | F11: ='Annual Analysis'!M175 -> 0 | G11: ='Annual Analysis'!N175 -> 0 | H11: ='Annual Analysis'!O175 -> 0 | I11: ='Annual Analysis'!P175 -> 0 | J11: ='Annual Analysis'!Q175 -> 0
B12: Loan Life Coverage Ratio - Senior | C12: ='Annual Analysis'!J182 -> 0 | D12: ='Annual Analysis'!K182 -> 0 | E12: ='Annual Analysis'!L182 -> 0 | F12: ='Annual Analysis'!M182 -> 0 | G12: ='Annual Analysis'!N182 -> 0 | H12: ='Annual Analysis'!O182 -> 0 | I12: ='Annual Analysis'!P182 -> 0 | J12: ='Annual Analysis'!Q182 -> 0
B13: Loan Life Coverage Ratio - Total | C13: ='Annual Analysis'!J189 -> 0 | D13: ='Annual Analysis'!K189 -> 0 | E13: ='Annual Analysis'!L189 -> 0 | F13: ='Annual Analysis'!M189 -> 0 | G13: ='Annual Analysis'!N189 -> 0 | H13: ='Annual Analysis'!O189 -> 0 | I13: ='Annual Analysis'!P189 -> 0 | J13: ='Annual Analysis'!Q189 -> 0
B14: Interest Coverage Ratio - Senior | C14: ='Annual Analysis'!J194 -> 0 | D14: ='Annual Analysis'!K194 -> 0 | E14: ='Annual Analysis'!L194 -> 0 | F14: ='Annual Analysis'!M194 -> 0 | G14: ='Annual Analysis'!N194 -> 0 | H14: ='Annual Analysis'!O194 -> 0 | I14: ='Annual Analysis'!P194 -> 0 | J14: ='Annual Analysis'!Q194 -> 0
B15: Interest Coverage Ratio - Total | C15: ='Annual Analysis'!J199 -> 0 | D15: ='Annual Analysis'!K199 -> 0 | E15: ='Annual Analysis'!L199 -> 0 | F15: ='Annual Analysis'!M199 -> 0 | G15: ='Annual Analysis'!N199 -> 0 | H15: ='Annual Analysis'!O199 -> 0 | I15: ='Annual Analysis'!P199 -> 0 | J15: ='Annual Analysis'!Q199 -> 0

Sheet Periodic Analysis
A1: Summary financials
B2: Period ended in | H2: 2012-12-31 | I2: 2013-12-31 | J2: 2014-12-31 | K2: 2015-12-31 | L2: 2016-03-31 | M2: =EOMONTH(L2,1) -> 2016-04-30 | N2: =EOMONTH(M2,1) -> 2016-05-31 | O2: 2016-06-30 | P2: 2016-07-31 | Q2: 2016-08-31 | R2: 2016-09-30 | S2: 2016-10-31 | T2: 2016-11-30 | U2: 2016-12-31 | V2: 2017-01-31 | W2: 2017-02-28 | X2: 2017-03-31 | Y2: 2017-04-30 | Z2: 2017-05-31 | AA2: 2017-06-30 | AB2: 2017-07-31 | AC2: 2017-08-31 | AD2: 2017-09-30 | AE2: 2017-10-31 | AF2: 2017-11-30 | AG2: 2017-12-31 | AH2: 2018-01-31 | AI2: 2018-02-28 | AJ2: 2018-03-31 | AK2: 2018-04-30 | AL2: 2018-05-31 | AM2: 2018-06-30 | AN2: 2018-07-31 | AO2: 2018-08-31 | AP2: 2018-09-30 | AQ2: 2018-10-31 | AR2: 2018-11-30 | AS2: 2018-12-31 | AT2: 2019-01-31 | AU2: 2019-02-28 | AV2: 2019-03-31 | AW2: 2019-04-30 | AX2: 2019-05-31 | AY2: 2019-06-30 | AZ2: 2019-07-31 | BA2: 2019-08-31 | BB2: 2019-09-30 | BC2: 2019-10-31 | BD2: 2019-11-30 | BE2: 2019-12-31 | BF2: 2020-01-31 | BG2: 2020-02-29 | BH2: 2020-03-31 | BI2: 2020-04-30 | BJ2: 2020-05-31 | BK2: 2020-06-30 | BL2: 2020-07-31 | BM2: 2020-08-31 | BN2: 2020-09-30 | BO2: 2020-10-31 | BP2: 2020-11-30 | BQ2: 2020-12-31 | BR2: 2021-01-31 | BS2: 2021-02-28 | BT2: 2021-03-31 | BU2: 2021-04-30 | BV2: 2021-05-31 | BW2: 2021-06-30 | BX2: 2021-07-31 | BY2: 2021-08-31 | BZ2: =EOMONTH(BY2,1) -> 2021-09-30 | CA2: 2021-10-31 | CB2: 2021-11-30 | CC2: 2021-12-31 | CD2: 2022-01-31 | CE2: 2022-02-28 | CF2: 2022-03-31 | CG2: 2022-04-30 | CH2: 2022-05-31 | CI2: 2022-06-30 | CJ2: 2022-07-31 | CK2: 2022-08-31 | CL2: 2022-09-30 | CM2: 2022-10-31 | CN2: 2022-11-30 | CO2: 2022-12-31 | CP2: 2023-01-31 | CQ2: 2023-02-28 | CR2: 2023-03-31 | CS2: 2023-04-30 | CT2: 2023-05-31 | CU2: 2023-06-30 | CV2: 2023-07-31 | CW2: 2023-08-31 | CX2: 2023-09-30 | CY2: 2023-10-31 | CZ2: 2023-11-30 | DA2: 2023-12-31 | DB2: 2024-01-31 | DC2: 2024-02-29 | DD2: 2024-03-31 | DE2: 2024-04-30 | DF2: 2024-05-31 | DG2: 2024-06-30 | DH2: 2024-07-31 | DI2: 2024-08-31 | DJ2: 2024-09-30 | DK2: 2024-10-31 | DL2: 2024-11-30 | DM2: 2024-12-31 | DN2: 2025-01-31 | DO2: 2025-02-28 | DP2: 2025-03-31 | DQ2: 2025-04-30 | DR2: 2025-05-31 | DS2: 2025-06-30 | DT2: 2025-07-31 | DU2: 2025-08-31 | DV2: 2025-09-30 | DW2: 2025-10-31 | DX2: 2025-11-30 | DY2: 2025-12-31 | DZ2: 2026-01-31 | EA2: 2026-02-28 | EB2: 2026-03-31 | EC2: 2026-04-30 | ED2: 2026-05-31 | EE2: 2026-06-30 | EF2: 2026-07-31 | EG2: 2026-08-31 | EH2: 2026-09-30 | EI2: 2026-10-31 | EJ2: 2026-11-30 | EK2: 2026-12-31 | EL2: =EOMONTH(EK2,1) -> 2027-01-31 | EM2: 2027-02-28 | EN2: 2027-03-31 | EO2: 2027-04-30 | EP2: 2027-05-31 | EQ2: 2027-06-30 | ER2: 2027-07-31 | ES2: 2027-08-31 | ET2: 2027-09-30 | EU2: 2027-10-31 | EV2: 2027-11-30 | EW2: 2027-12-31 | EX2: 2028-01-31 | EY2: 2028-02-29 | EZ2: 2028-03-31 | FA2: 2028-04-30 | FB2: 2028-05-31 | FC2: 2028-06-30 | FD2: 2028-07-31 | FE2: 2028-08-31 | FF2: 2028-09-30 | FG2: 2028-10-31 | FH2: 2028-11-30 | FI2: 2028-12-31
B3: Historic Switch | E3: 2016-03-31 | H3: =(H2<=$E$3)*1 -> 1 | I3: =(I2<=$E$3)*1 -> 1 | J3: 1 | K3: 1 | L3: 1 | M3: 0 | N3: 0 | O3: 0 | P3: 0 | Q3: 0 | R3: 0 | S3: 0 | T3: 0 | U3: 0 | V3: 0 | W3: 0 | X3: 0 | Y3: 0 | Z3: 0 | AA3: 0 | AB3: 0 | AC3: 0 | AD3: 0 | AE3: 0 | AF3: 0 | AG3: 0 | AH3: 0 | AI3: 0 | AJ3: 0 | AK3: 0 | AL3: 0 | AM3: 0 | AN3: 0 | AO3: 0 | AP3: 0 | AQ3: 0 | AR3: 0 | AS3: 0 | AT3: 0 | AU3: 0 | AV3: 0 | AW3: 0 | AX3: 0 | AY3: 0 | AZ3: 0 | BA3: 0 | BB3: 0 | BC3: 0 | BD3: 0 | BE3: 0 | BF3: 0 | BG3: 0 | BH3: 0 | BI3: 0 | BJ3: 0 | BK3: 0 | BL3: 0 | BM3: 0 | BN3: 0 | BO3: 0 | BP3: 0 | BQ3: 0 | BR3: 0 | BS3: 0 | BT3: 0 | BU3: =(BU2<=$E$3)*1 -> 0 | BV3: 0 | BW3: 0 | BX3: 0 | BY3: 0 | BZ3: 0 | CA3: 0 | CB3: 0 | CC3: 0 | CD3: 0 | CE3: 0 | CF3: 0 | CG3: 0 | CH3: 0 | CI3: 0 | CJ3: 0 | CK3: 0 | CL3: 0 | CM3: 0 | CN3: 0 | CO3: 0 | CP3: 0 | CQ3: 0 | CR3: 0 | CS3: 0 | CT3: 0 | CU3: 0 | CV3: 0 | CW3: 0 | CX3: 0 | CY3: 0 | CZ3: 0 | DA3: 0 | DB3: 0 | DC3: 0 | DD3: 0 | DE3: 0 | DF3: 0 | DG3: 0 | DH3: 0 | DI3: 0 | DJ3: 0 | DK3: 0 | DL3: 0 | DM3: 0 | DN3: 0 | DO3: 0 | DP3: 0 | DQ3: 0 | DR3: 0 | DS3: 0 | DT3: 0 | DU3: 0 | DV3: 0 | DW3: 0 | DX3: 0 | DY3: 0 | DZ3: 0 | EA3: 0 | EB3: 0 | EC3: 0 | ED3: 0 | EE3: 0 | EF3: 0 | EG3: =(EG2<=$E$3)*1 -> 0 | EH3: 0 | EI3: 0 | EJ3: 0 | EK3: 0 | EL3: 0 | EM3: 0 | EN3: 0 | EO3: 0 | EP3: 0 | EQ3: 0 | ER3: 0 | ES3: 0 | ET3: 0 | EU3: 0 | EV3: 0 | EW3: 0 | EX3: 0 | EY3: 0 | EZ3: 0 | FA3: 0 | FB3: 0 | FC3: 0 | FD3: 0 | FE3: 0 | FF3: 0 | FG3: 0 | FH3: 0 | FI3: 0
B4: Forecast Switch | H4: =AND(NOT(H3),NOT(H6))*1 -> 0 | I4: =AND(NOT(I3),NOT(I6))*1 -> 0 | J4: 0 | K4: 0 | L4: 0 | M4: 0 | N4: 0 | O4: 0 | P4: 0 | Q4: 0 | R4: 0 | S4: 0 | T4: 0 | U4: 0 | V4: 1 | W4: 1 | X4: 1 | Y4: 1 | Z4: 1 | AA4: 1 | AB4: 1 | AC4: 1 | AD4: 1 | AE4: 1 | AF4: 1 | AG4: 1 | AH4: 1 | AI4: 1 | AJ4: 1 | AK4: 1 | AL4: 1 | AM4: 1 | AN4: 1 | AO4: 1 | AP4: 1 | AQ4: 1 | AR4: 1 | AS4: 1 | AT4: 1 | AU4: 1 | AV4: 1 | AW4: 1 | AX4: 1 | AY4: 1 | AZ4: 1 | BA4: 1 | BB4: 1 | BC4: 1 | BD4: 1 | BE4: 1 | BF4: 1 | BG4: 1 | BH4: 1 | BI4: 1 | BJ4: 1 | BK4: 1 | BL4: 1 | BM4: 1 | BN4: 1 | BO4: 1 | BP4: 1 | BQ4: 1 | BR4: 1 | BS4: 1 | BT4: 1 | BU4: =AND(NOT(BU3),NOT(BU6))*1 -> 1 | BV4: 1 | BW4: 1 | BX4: 1 | BY4: 1 | BZ4: 1 | CA4: 1 | CB4: 1 | CC4: 1 | CD4: 1 | CE4: 1 | CF4: 1 | CG4: 1 | CH4: 1 | CI4: 1 | CJ4: 1 | CK4: 1 | CL4: 1 | CM4: 1 | CN4: 1 | CO4: 1 | CP4: 1 | CQ4: 1 | CR4: 1 | CS4: 1 | CT4: 1 | CU4: 1 | CV4: 1 | CW4: 1 | CX4: 1 | CY4: 1 | CZ4: 1 | DA4: 1 | DB4: 1 | DC4: 1 | DD4: 1 | DE4: 1 | DF4: 1 | DG4: 1 | DH4: 1 | DI4: 1 | DJ4: 1 | DK4: 1 | DL4: 1 | DM4: 1 | DN4: 1 | DO4: 1 | DP4: 1 | DQ4: 1 | DR4: 1 | DS4: 1 | DT4: 1 | DU4: 1 | DV4: 1 | DW4: 1 | DX4: 1 | DY4: 1 | DZ4: 1 | EA4: 1 | EB4: 1 | EC4: 1 | ED4: 1 | EE4: 1 | EF4: 1 | EG4: =AND(NOT(EG3),NOT(EG6))*1 -> 1 | EH4: 1 | EI4: 1 | EJ4: 1 | EK4: 1 | EL4: 1 | EM4: 1 | EN4: 1 | EO4: 1 | EP4: 1 | EQ4: 1 | ER4: 1 | ES4: 1 | ET4: 1 | EU4: 1 | EV4: 1 | EW4: 1 | EX4: 1 | EY4: 1 | EZ4: 1 | FA4: 1 | FB4: 1 | FC4: 1 | FD4: 1 | FE4: 1 | FF4: 1 | FG4: 1 | FH4: 1 | FI4: 1
B5: Historic Balance Sheet | E5: 2015-12-31 | H5: =(H2<=$E$5)*1 -> 1 | I5: =(I2<=$E$5)*1 -> 1 | J5: 1 | K5: 1 | L5: 0 | M5: 0 | N5: 0 | O5: 0 | P5: 0 | Q5: 0 | R5: 0 | S5: 0 | T5: 0 | U5: 0 | V5: 0 | W5: 0 | X5: 0 | Y5: 0 | Z5: 0 | AA5: 0 | AB5: 0 | AC5: 0 | AD5: 0 | AE5: 0 | AF5: 0 | AG5: 0 | AH5: 0 | AI5: 0 | AJ5: 0 | AK5: 0 | AL5: 0 | AM5: 0 | AN5: 0 | AO5: 0 | AP5: 0 | AQ5: 0 | AR5: 0 | AS5: 0 | AT5: 0 | AU5: 0 | AV5: 0 | AW5: 0 | AX5: 0 | AY5: 0 | AZ5: 0 | BA5: 0 | BB5: 0 | BC5: 0 | BD5: 0 | BE5: 0 | BF5: 0 | BG5: 0 | BH5: 0 | BI5: 0 | BJ5: 0 | BK5: 0 | BL5: 0 | BM5: 0 | BN5: 0 | BO5: 0 | BP5: 0 | BQ5: 0 | BR5: 0 | BS5: 0 | BT5: 0 | BU5: =(BU2<=$E$5)*1 -> 0 | BV5: 0 | BW5: 0 | BX5: 0 | BY5: 0 | BZ5: 0 | CA5: 0 | CB5: 0 | CC5: 0 | CD5: 0 | CE5: 0 | CF5: 0 | CG5: 0 | CH5: 0 | CI5: 0 | CJ5: 0 | CK5: 0 | CL5: 0 | CM5: 0 | CN5: 0 | CO5: 0 | CP5: 0 | CQ5: 0 | CR5: 0 | CS5: 0 | CT5: 0 | CU5: 0 | CV5: 0 | CW5: 0 | CX5: 0 | CY5: 0 | CZ5: 0 | DA5: 0 | DB5: 0 | DC5: 0 | DD5: 0 | DE5: 0 | DF5: 0 | DG5: 0 | DH5: 0 | DI5: 0 | DJ5: 0 | DK5: 0 | DL5: 0 | DM5: 0 | DN5: 0 | DO5: 0 | DP5: 0 | DQ5: 0 | DR5: 0 | DS5: 0 | DT5: 0 | DU5: 0 | DV5: 0 | DW5: 0 | DX5: 0 | DY5: 0 | DZ5: 0 | EA5: 0 | EB5: 0 | EC5: 0 | ED5: 0 | EE5: 0 | EF5: 0 | EG5: =(EG2<=$E$5)*1 -> 0 | EH5: 0 | EI5: 0 | EJ5: 0 | EK5: 0 | EL5: 0 | EM5: 0 | EN5: 0 | EO5: 0 | EP5: 0 | EQ5: 0 | ER5: 0 | ES5: 0 | ET5: 0 | EU5: 0 | EV5: 0 | EW5: 0 | EX5: 0 | EY5: 0 | EZ5: 0 | FA5: 0 | FB5: 0 | FC5: 0 | FD5: 0 | FE5: 0 | FF5: 0 | FG5: 0 | FH5: 0 | FI5: 0
B6: Budget Switch | E6: =EOMONTH(E3,1) -> 2016-04-30 | F6: 2016-12-31 | H6: =AND(H2>=$E$6,H2<=$F$6)*1 -> 0 | I6: =AND(I2>=$E$6,I2<=$F$6)*1 -> 0 | J6: 0 | K6: 0 | L6: 0 | M6: 1 | N6: 1 | O6: 1 | P6: 1 | Q6: 1 | R6: 1 | S6: 1 | T6: 1 | U6: 1 | V6: 0 | W6: 0 | X6: 0 | Y6: 0 | Z6: 0 | AA6: 0 | AB6: 0 | AC6: 0 | AD6: 0 | AE6: 0 | AF6: 0 | AG6: 0 | AH6: 0 | AI6: 0 | AJ6: 0 | AK6: 0 | AL6: 0 | AM6: 0 | AN6: 0 | AO6: 0 | AP6: 0 | AQ6: 0 | AR6: 0 | AS6: 0 | AT6: 0 | AU6: 0 | AV6: 0 | AW6: 0 | AX6: 0 | AY6: 0 | AZ6: 0 | BA6: 0 | BB6: 0 | BC6: 0 | BD6: 0 | BE6: 0 | BF6: 0 | BG6: 0 | BH6: 0 | BI6: 0 | BJ6: 0 | BK6: 0 | BL6: 0 | BM6: 0 | BN6: 0 | BO6: 0 | BP6: 0 | BQ6: 0 | BR6: 0 | BS6: 0 | BT6: 0 | BU6: =AND(BU2>=$E$6,BU2<=$F$6)*1 -> 0 | BV6: 0 | BW6: 0 | BX6: 0 | BY6: 0 | BZ6: 0 | CA6: 0 | CB6: 0 | CC6: 0 | CD6: 0 | CE6: 0 | CF6: 0 | CG6: 0 | CH6: 0 | CI6: 0 | CJ6: 0 | CK6: 0 | CL6: 0 | CM6: 0 | CN6: 0 | CO6: 0 | CP6: 0 | CQ6: 0 | CR6: 0 | CS6: 0 | CT6: 0 | CU6: 0 | CV6: 0 | CW6: 0 | CX6: 0 | CY6: 0 | CZ6: 0 | DA6: 0 | DB6: 0 | DC6: 0 | DD6: 0 | DE6: 0 | DF6: 0 | DG6: 0 | DH6: 0 | DI6: 0 | DJ6: 0 | DK6: 0 | DL6: 0 | DM6: 0 | DN6: 0 | DO6: 0 | DP6: 0 | DQ6: 0 | DR6: 0 | DS6: 0 | DT6: 0 | DU6: 0 | DV6: 0 | DW6: 0 | DX6: 0 | DY6: 0 | DZ6: 0 | EA6: 0 | EB6: 0 | EC6: 0 | ED6: 0 | EE6: 0 | EF6: 0 | EG6: =AND(EG2>=$E$6,EG2<=$F$6)*1 -> 0 | EH6: 0 | EI6: 0 | EJ6: 0 | EK6: 0 | EL6: 0 | EM6: 0 | EN6: 0 | EO6: 0 | EP6: 0 | EQ6: 0 | ER6: 0 | ES6: 0 | ET6: 0 | EU6: 0 | EV6: 0 | EW6: 0 | EX6: 0 | EY6: 0 | EZ6: 0 | FA6: 0 | FB6: 0 | FC6: 0 | FD6: 0 | FE6: 0 | FF6: 0 | FG6: 0 | FH6: 0 | FI6: 0
B7: Months in Period | H7: 12 | I7: =ROUND(DAYS360(H2,I2)/30,0) -> 12 | J7: =ROUND(DAYS360(I2,J2)/30,0) -> 12 | K7: 12 | L7: 3 | M7: 1 | N7: 1 | O7: 1 | P7: 1 | Q7: 1 | R7: 1 | S7: 1 | T7: 1 | U7: 1 | V7: 1 | W7: 1 | X7: 1 | Y7: 1 | Z7: 1 | AA7: 1 | AB7: 1 | AC7: 1 | AD7: 1 | AE7: 1 | AF7: 1 | AG7: 1 | AH7: 1 | AI7: 1 | AJ7: 1 | AK7: 1 | AL7: 1 | AM7: 1 | AN7: 1 | AO7: 1 | AP7: 1 | AQ7: 1 | AR7: 1 | AS7: 1 | AT7: 1 | AU7: 1 | AV7: 1 | AW7: 1 | AX7: 1 | AY7: 1 | AZ7: 1 | BA7: 1 | BB7: 1 | BC7: 1 | BD7: 1 | BE7: 1 | BF7: 1 | BG7: 1 | BH7: 1 | BI7: 1 | BJ7: 1 | BK7: 1 | BL7: 1 | BM7: 1 | BN7: 1 | BO7: 1 | BP7: 1 | BQ7: 1 | BR7: 1 | BS7: 1 | BT7: 1 | BU7: 1 | BV7: =ROUND(DAYS360(BU2,BV2)/30,0) -> 1 | BW7: 1 | BX7: 1 | BY7: 1 | BZ7: 1 | CA7: 1 | CB7: 1 | CC7: 1 | CD7: 1 | CE7: 1 | CF7: 1 | CG7: 1 | CH7: 1 | CI7: 1 | CJ7: 1 | CK7: 1 | CL7: 1 | CM7: 1 | CN7: 1 | CO7: 1 | CP7: 1 | CQ7: 1 | CR7: 1 | CS7: 1 | CT7: 1 | CU7: 1 | CV7: 1 | CW7: 1 | CX7: 1 | CY7: 1 | CZ7: 1 | DA7: 1 | DB7: 1 | DC7: 1 | DD7: 1 | DE7: 1 | DF7: 1 | DG7: 1 | DH7: 1 | DI7: 1 | DJ7: 1 | DK7: 1 | DL7: 1 | DM7: 1 | DN7: 1 | DO7: 1 | DP7: 1 | DQ7: 1 | DR7: 1 | DS7: 1 | DT7: 1 | DU7: 1 | DV7: 1 | DW7: 1 | DX7: 1 | DY7: 1 | DZ7: 1 | EA7: 1 | EB7: 1 | EC7: 1 | ED7: 1 | EE7: 1 | EF7: 1 | EG7: 1 | EH7: =ROUND(DAYS360(EG2,EH2)/30,0) -> 1 | EI7: 1 | EJ7: 1 | EK7: 1 | EL7: 1 | EM7: 1 | EN7: 1 | EO7: 1 | EP7: 1 | EQ7: 1 | ER7: 1 | ES7: 1 | ET7: 1 | EU7: 1 | EV7: 1 | EW7: 1 | EX7: 1 | EY7: 1 | EZ7: 1 | FA7: 1 | FB7: 1 | FC7: 1 | FD7: 1 | FE7: 1 | FF7: 1 | FG7: 1 | FH7: 1 | FI7: 1
B8: Annualisation | E8: PAX % | F8: =Summary!C3 -> 0.66 | H8: =12/H7 -> 1 | I8: =12/I7 -> 1 | J8: 1 | K8: 1 | L8: 4 | M8: =12/M7 -> 12 | N8: =12/N7 -> 12 | O8: =12/O7 -> 12 | P8: =12/P7 -> 12 | Q8: =12/Q7 -> 12 | R8: =12/R7 -> 12 | S8: =12/S7 -> 12 | T8: =12/T7 -> 12 | U8: =12/U7 -> 12 | V8: =12/V7 -> 12 | W8: =12/W7 -> 12 | X8: =12/X7 -> 12 | Y8: =12/Y7 -> 12 | Z8: =12/Z7 -> 12 | AA8: =12/AA7 -> 12 | AB8: =12/AB7 -> 12 | AC8: =12/AC7 -> 12 | AD8: =12/AD7 -> 12 | AE8: =12/AE7 -> 12 | AF8: =12/AF7 -> 12 | AG8: =12/AG7 -> 12 | AH8: =12/AH7 -> 12 | AI8: =12/AI7 -> 12 | AJ8: =12/AJ7 -> 12 | AK8: =12/AK7 -> 12 | AL8: =12/AL7 -> 12 | AM8: =12/AM7 -> 12 | AN8: =12/AN7 -> 12 | AO8: =12/AO7 -> 12 | AP8: =12/AP7 -> 12 | AQ8: =12/AQ7 -> 12 | AR8: =12/AR7 -> 12 | AS8: =12/AS7 -> 12 | AT8: =12/AT7 -> 12 | AU8: =12/AU7 -> 12 | AV8: =12/AV7 -> 12 | AW8: =12/AW7 -> 12 | AX8: =12/AX7 -> 12 | AY8: =12/AY7 -> 12 | AZ8: =12/AZ7 -> 12 | BA8: =12/BA7 -> 12 | BB8: =12/BB7 -> 12 | BC8: =12/BC7 -> 12 | BD8: =12/BD7 -> 12 | BE8: =12/BE7 -> 12 | BF8: =12/BF7 -> 12 | BG8: =12/BG7 -> 12 | BH8: =12/BH7 -> 12 | BI8: =12/BI7 -> 12 | BJ8: =12/BJ7 -> 12 | BK8: =12/BK7 -> 12 | BL8: =12/BL7 -> 12 | BM8: =12/BM7 -> 12 | BN8: =12/BN7 -> 12 | BO8: =12/BO7 -> 12 | BP8: =12/BP7 -> 12 | BQ8: =12/BQ7 -> 12 | BR8: =12/BR7 -> 12 | BS8: =12/BS7 -> 12 | BT8: =12/BT7 -> 12 | BU8: =12/BU7 -> 12 | BV8: =12/BV7 -> 12 | BW8: =12/BW7 -> 12 | BX8: =12/BX7 -> 12 | BY8: =12/BY7 -> 12 | BZ8: =12/BZ7 -> 12 | CA8: =12/CA7 -> 12 | CB8: =12/CB7 -> 12 | CC8: =12/CC7 -> 12 | CD8: =12/CD7 -> 12 | CE8: =12/CE7 -> 12 | CF8: =12/CF7 -> 12 | CG8: =12/CG7 -> 12 | CH8: =12/CH7 -> 12 | CI8: =12/CI7 -> 12 | CJ8: =12/CJ7 -> 12 | CK8: =12/CK7 -> 12 | CL8: =12/CL7 -> 12 | CM8: =12/CM7 -> 12 | CN8: =12/CN7 -> 12 | CO8: =12/CO7 -> 12 | CP8: =12/CP7 -> 12 | CQ8: =12/CQ7 -> 12 | CR8: =12/CR7 -> 12 | CS8: =12/CS7 -> 12 | CT8: =12/CT7 -> 12 | CU8: =12/CU7 -> 12 | CV8: =12/CV7 -> 12 | CW8: =12/CW7 -> 12 | CX8: =12/CX7 -> 12 | CY8: =12/CY7 -> 12 | CZ8: =12/CZ7 -> 12 | DA8: =12/DA7 -> 12 | DB8: =12/DB7 -> 12 | DC8: =12/DC7 -> 12 | DD8: =12/DD7 -> 12 | DE8: =12/DE7 -> 12 | DF8: =12/DF7 -> 12 | DG8: =12/DG7 -> 12 | DH8: =12/DH7 -> 12 | DI8: =12/DI7 -> 12 | DJ8: =12/DJ7 -> 12 | DK8: =12/DK7 -> 12 | DL8: =12/DL7 -> 12 | DM8: =12/DM7 -> 12 | DN8: =12/DN7 -> 12 | DO8: =12/DO7 -> 12 | DP8: =12/DP7 -> 12 | DQ8: =12/DQ7 -> 12 | DR8: =12/DR7 -> 12 | DS8: =12/DS7 -> 12 | DT8: =12/DT7 -> 12 | DU8: =12/DU7 -> 12 | DV8: =12/DV7 -> 12 | DW8: =12/DW7 -> 12 | DX8: =12/DX7 -> 12 | DY8: =12/DY7 -> 12 | DZ8: =12/DZ7 -> 12 | EA8: =12/EA7 -> 12 | EB8: =12/EB7 -> 12 | EC8: =12/EC7 -> 12 | ED8: =12/ED7 -> 12 | EE8: =12/EE7 -> 12 | EF8: =12/EF7 -> 12 | EG8: =12/EG7 -> 12 | EH8: =12/EH7 -> 12 | EI8: =12/EI7 -> 12 | EJ8: =12/EJ7 -> 12 | EK8: =12/EK7 -> 12 | EL8: =12/EL7 -> 12 | EM8: =12/EM7 -> 12 | EN8: =12/EN7 -> 12 | EO8: =12/EO7 -> 12 | EP8: =12/EP7 -> 12 | EQ8: =12/EQ7 -> 12 | ER8: =12/ER7 -> 12 | ES8: =12/ES7 -> 12 | ET8: =12/ET7 -> 12 | EU8: =12/EU7 -> 12 | EV8: =12/EV7 -> 12 | EW8: =12/EW7 -> 12 | EX8: =12/EX7 -> 12 | EY8: =12/EY7 -> 12 | EZ8: =12/EZ7 -> 12 | FA8: =12/FA7 -> 12 | FB8: =12/FB7 -> 12 | FC8: =12/FC7 -> 12 | FD8: =12/FD7 -> 12 | FE8: =12/FE7 -> 12 | FF8: =12/FF7 -> 12 | FG8: =12/FG7 -> 12 | FH8: =12/FH7 -> 12 | FI8: =12/FI7 -> 12
B9: Year | H9: =YEAR(H2) -> 2012 | I9: =YEAR(I2) -> 2013 | J9: 2014 | K9: 2015 | L9: 2016 | M9: 2016 | N9: 2016 | O9: 2016 | P9: 2016 | Q9: 2016 | R9: 2016 | S9: 2016 | T9: 2016 | U9: 2016 | V9: 2017 | W9: 2017 | X9: 2017 | Y9: 2017 | Z9: 2017 | AA9: 2017 | AB9: 2017 | AC9: 2017 | AD9: 2017 | AE9: 2017 | AF9: 2017 | AG9: 2017 | AH9: 2018 | AI9: 2018 | AJ9: 2018 | AK9: 2018 | AL9: 2018 | AM9: 2018 | AN9: 2018 | AO9: 2018 | AP9: 2018 | AQ9: 2018 | AR9: 2018 | AS9: 2018 | AT9: 2019 | AU9: 2019 | AV9: 2019 | AW9: 2019 | AX9: 2019 | AY9: 2019 | AZ9: 2019 | BA9: 2019 | BB9: 2019 | BC9: 2019 | BD9: 2019 | BE9: 2019 | BF9: 2020 | BG9: 2020 | BH9: 2020 | BI9: 2020 | BJ9: 2020 | BK9: 2020 | BL9: 2020 | BM9: 2020 | BN9: 2020 | BO9: 2020 | BP9: 2020 | BQ9: 2020 | BR9: 2021 | BS9: 2021 | BT9: 2021 | BU9: =YEAR(BU2) -> 2021 | BV9: 2021 | BW9: 2021 | BX9: 2021 | BY9: 2021 | BZ9: 2021 | CA9: 2021 | CB9: 2021 | CC9: 2021 | CD9: 2022 | CE9: 2022 | CF9: 2022 | CG9: 2022 | CH9: 2022 | CI9: 2022 | CJ9: 2022 | CK9: 2022 | CL9: 2022 | CM9: 2022 | CN9: 2022 | CO9: 2022 | CP9: 2023 | CQ9: 2023 | CR9: 2023 | CS9: 2023 | CT9: 2023 | CU9: 2023 | CV9: 2023 | CW9: 2023 | CX9: 2023 | CY9: 2023 | CZ9: 2023 | DA9: 2023 | DB9: 2024 | DC9: 2024 | DD9: 2024 | DE9: 2024 | DF9: 2024 | DG9: 2024 | DH9: 2024 | DI9: 2024 | DJ9: 2024 | DK9: 2024 | DL9: 2024 | DM9: 2024 | DN9: 2025 | DO9: 2025 | DP9: 2025 | DQ9: 2025 | DR9: 2025 | DS9: 2025 | DT9: 2025 | DU9: 2025 | DV9: 2025 | DW9: 2025 | DX9: 2025 | DY9: 2025 | DZ9: 2026 | EA9: 2026 | EB9: 2026 | EC9: 2026 | ED9: 2026 | EE9: 2026 | EF9: 2026 | EG9: =YEAR(EG2) -> 2026 | EH9: 2026 | EI9: 2026 | EJ9: 2026 | EK9: 2026 | EL9: 2027 | EM9: 2027 | EN9: 2027 | EO9: 2027 | EP9: 2027 | EQ9: 2027 | ER9: 2027 | ES9: 2027 | ET9: 2027 | EU9: 2027 | EV9: 2027 | EW9: 2027 | EX9: 2028 | EY9: 2028 | EZ9: 2028 | FA9: 2028 | FB9: 2028 | FC9: 2028 | FD9: 2028 | FE9: 2028 | FF9: 2028 | FG9: 2028 | FH9: 2028 | FI9: 2028
B10: End of Fiscal Year | H10: =MONTH(H2)=12 -> TRUE | I10: =MONTH(I2)=12 -> TRUE | J10: TRUE | K10: TRUE | L10: FALSE | M10: FALSE | N10: FALSE | O10: FALSE | P10: FALSE | Q10: FALSE | R10: FALSE | S10: FALSE | T10: FALSE | U10: TRUE | V10: FALSE | W10: FALSE | X10: FALSE | Y10: FALSE | Z10: FALSE | AA10: FALSE | AB10: FALSE | AC10: FALSE | AD10: FALSE | AE10: FALSE | AF10: FALSE | AG10: TRUE | AH10: FALSE | AI10: FALSE | AJ10: FALSE | AK10: FALSE | AL10: FALSE | AM10: FALSE | AN10: FALSE | AO10: FALSE | AP10: FALSE | AQ10: FALSE | AR10: FALSE | AS10: TRUE | AT10: FALSE | AU10: FALSE | AV10: FALSE | AW10: FALSE | AX10: FALSE | AY10: FALSE | AZ10: FALSE | BA10: FALSE | BB10: FALSE | BC10: FALSE | BD10: FALSE | BE10: TRUE | BF10: FALSE | BG10: FALSE | BH10: FALSE | BI10: FALSE | BJ10: FALSE | BK10: FALSE | BL10: FALSE | BM10: FALSE | BN10: FALSE | BO10: FALSE | BP10: FALSE | BQ10: TRUE | BR10: FALSE | BS10: FALSE | BT10: FALSE | BU10: =MONTH(BU2)=12 -> FALSE | BV10: FALSE | BW10: FALSE | BX10: FALSE | BY10: FALSE | BZ10: FALSE | CA10: FALSE | CB10: FALSE | CC10: TRUE | CD10: FALSE | CE10: FALSE | CF10: FALSE | CG10: FALSE | CH10: FALSE | CI10: FALSE | CJ10: FALSE | CK10: FALSE | CL10: FALSE | CM10: FALSE | CN10: FALSE | CO10: TRUE | CP10: FALSE | CQ10: FALSE | CR10: FALSE | CS10: FALSE | CT10: FALSE | CU10: FALSE | CV10: FALSE | CW10: FALSE | CX10: FALSE | CY10: FALSE | CZ10: FALSE | DA10: TRUE | DB10: FALSE | DC10: FALSE | DD10: FALSE | DE10: FALSE | DF10: FALSE | DG10: FALSE | DH10: FALSE | DI10: FALSE | DJ10: FALSE | DK10: FALSE | DL10: FALSE | DM10: TRUE | DN10: FALSE | DO10: FALSE | DP10: FALSE | DQ10: FALSE | DR10: FALSE | DS10: FALSE | DT10: FALSE | DU10: FALSE | DV10: FALSE | DW10: FALSE | DX10: FALSE | DY10: TRUE | DZ10: FALSE | EA10: FALSE | EB10: FALSE | EC10: FALSE | ED10: FALSE | EE10: FALSE | EF10: FALSE | EG10: =MONTH(EG2)=12 -> FALSE | EH10: FALSE | EI10: FALSE | EJ10: FALSE | EK10: TRUE | EL10: FALSE | EM10: FALSE | EN10: FALSE | EO10: FALSE | EP10: FALSE | EQ10: FALSE | ER10: FALSE | ES10: FALSE | ET10: FALSE | EU10: FALSE | EV10: FALSE | EW10: TRUE | EX10: FALSE | EY10: FALSE | EZ10: FALSE | FA10: FALSE | FB10: FALSE | FC10: FALSE | FD10: FALSE | FE10: FALSE | FF10: FALSE | FG10: FALSE | FH10: FALSE | FI10: TRUE
A12: Historic Financials (USD)
B13: Volumes | H13: Historic | I13: Historic | J13: Historic | K13: Historic | L13: Budget
C14: Total Passengers | I14: ='Budget, CapExp and Passengers'!C111*1000 -> 643779.825 | J14: ='Budget, CapExp and Passengers'!D111*1000 -> 660287 | K14: ='Budget, CapExp and Passengers'!E111*1000 -> 676873 | L14: ='Budget, CapExp and Passengers'!M122 -> 217981
C15: Exempted Passengers | I15: ='Budget, CapExp and Passengers'!D118 -> 34945 | J15: ='Budget, CapExp and Passengers'!E118 -> 23613 | K15: ='Budget, CapExp and Passengers'!F118 -> 12781 | L15: ='Budget, CapExp and Passengers'!M123 -> 9752
C16: Chargeable Passengers | H16: 605751.6402 | I16: =I14-I15 -> 608834.825 | J16: =J14-J15 -> 636674 | K16: 664092 | L16: 208229
B18: Summary income statement
C19: Revenues
C20: =+'Financial Statements in EC$'!D11 -> Airport administrative charge | H20: ='Financial Statements in EC$'!H11/H$423*1000000 -> 6360392.222 | I20: ='Financial Statements in EC$'!I11/I$423*1000000-I21 -> 22127547.79 | J20: ='Financial Statements in EC$'!J11/J$423*1000000-J21 -> 24068286.59 | K20: ='Budget, CapExp and Passengers'!G11 -> 25548524.81 | L20: ='Financial Statements in EC$'!L11/2.7*1000000-L21 -> 7471191.963
C21: Less: NSWMA Fees | H21: =-H15 -> 0 | I21: =-I16 -> -608834.825 | J21: =-J16 -> -636674 | K21: ='Budget, CapExp and Passengers'!G12 -> -681294 | L21: -208229
C22: =+'Financial Statements in EC$'!D12 -> Passenger facilitation charge | H22: ='Financial Statements in EC$'!H12/H$423*1000000 -> 3025351.852 | I22: ='Financial Statements in EC$'!I12/I$423*1000000 -> 478574.4444 | J22: ='Financial Statements in EC$'!J12/J$423*1000000 -> 167440 | K22: ='Financial Statements in EC$'!K12/K$423*1000000 -> 0 | L22: ='Financial Statements in EC$'!L12/L$423*1000000 -> 0
C23: =+'Financial Statements in EC$'!D13 -> Landing fees & other | H23: ='Financial Statements in EC$'!H13/H$423*1000000 -> 0 | I23: ='Financial Statements in EC$'!I13/I$423*1000000 -> 1002962.963 | J23: ='Financial Statements in EC$'!J13/J$423*1000000 -> 930370.3704 | K23: ='Financial Statements in EC$'!K13/K$423*1000000 -> 1025060.437 | L23: =L24-L20-L21 -> 326296.2963
C24: Total Aeronautical Revenues | H24: =H20+H22+H23+H21 -> 9385744.074 | I24: =I20+I22+I23+I21 -> 23000250.37 | J24: 24529422.96 | K24: 25892291.25 | L24: ='Financial Statements in EC$'!L10/2.7*1000000 -> 7589259.259
C25: Other revenues | H25: ='Financial Statements in EC$'!H14/H$423*1000000 -> 6633080.37 | I25: ='Financial Statements in EC$'!I14/I$423*1000000 -> 1554628.148 | J25: ='Financial Statements in EC$'!J14/J$423*1000000 -> 1510045.556 | K25: ='Financial Statements in EC$'!K14/K$423*1000000 -> 2398743.278 | L25: ='Financial Statements in EC$'!L14/L$423*1000000 -> 1156296.296
C26: Revenues | H26: ='Financial Statements in EC$'!H15/H$423*1000000 -> 16018824.44 | I26: ='Financial Statements in EC$'!I15/I$423*1000000 -> 24554878.52 | J26: ='Financial Statements in EC$'!J15/J$423*1000000 -> 26039468.52 | K26: ='Financial Statements in EC$'!K15/K$423*1000000 -> 28291034.53 | L26: ='Financial Statements in EC$'!L15/L$423*1000000 -> 8745555.556 | N26: =L26-L24-L25 -> 0
C27: Operating Expenses
C28: ='Financial Statements in EC$'!D16 -> Direct costs | H28: ='Financial Statements in EC$'!H16/H$423*1000000 -> -1727126.667 | I28: ='Financial Statements in EC$'!I16/I$423*1000000 -> -2434531.481 | J28: ='Financial Statements in EC$'!J16/J$423*1000000 -> -7024663.333 | K28: ='Financial Statements in EC$'!K16/K$423*1000000 -> -8735455.6 | L28: =-2.05481481481481*1000000 -> -2054814.815
C29: SG&A | H29: ='Financial Statements in EC$'!H18/H$423*1000000 -> -6010884.444 | I29: ='Financial Statements in EC$'!I18/I$423*1000000 -> -9451543.333 | J29: ='Financial Statements in EC$'!J18/J$423*1000000 -> -9481658.519 | K29: ='Financial Statements in EC$'!K18/K$423*1000000 -> -8909674.874 | L29: ='Financial Statements in EC$'!L18/L$423*1000000 -> -2444444.444
C30: EBITDA | H30: =H26+H28+H29 -> 8280813.333 | I30: =I26+I28+I29 -> 12668803.7 | J30: =J26+J28+J29 -> 9533146.667 | K30: =K26+K28+K29 -> 10645904.06 | L30: =L26+L28+L29 -> 4246296.296
C31: Depreciation and Amortisation | H31: ='Financial Statements in EC$'!H20/H$423*1000000 -> 1564929.63 | I31: ='Financial Statements in EC$'!I20/I$423*1000000 -> 1585570.37 | J31: ='Financial Statements in EC$'!J20/J$423*1000000 -> 6998428.889 | K31: ='Financial Statements in EC$'!K20/K$423*1000000 -> 7407407.407 | L31: =1.85185185185185*1000000 -> 1851851.852
C32: EBIT | H32: =H30-H31 -> 6715883.704 | I32: =I30-I31 -> 11083233.33 | J32: 2534717.778 | K32: 3238496.648 | L32: 2394444.444
C33: Less: Insterest Expense | H33: ='Financial Statements in EC$'!H22/H$423*1000000 -> 2863248.519 | I33: ='Financial Statements in EC$'!I22/I$423*1000000 -> 7853119.63 | J33: ='Financial Statements in EC$'!J22/J$423*1000000 -> 12288734.44 | K33: ='Financial Statements in EC$'!K22/K$423*1000000 -> 6844444.444 | L33: =1.27666666666667*1000000 -> 1276666.667
C34: Plus: Other Income | H34: 1564772.222 | I34: 1584701.111 | J34: 6998428.889 | K34: 7970021.87 | L34: 1024074.074
C35: Net income | H35: =H32-H33+H34 -> 5417407.407 | I35: =I32-I33+I34 -> 4814814.815 | J35: -2755587.778 | K35: 4364074.074 | L35: 2141851.852
D37: Check | H37: ='Financial Statements in EC$'!H25/'Periodic Analysis'!H422*1000000 -> 5417407.407 | I37: ='Financial Statements in EC$'!I25/'Periodic Analysis'!I422*1000000 -> 4814814.815 | J37: ='Financial Statements in EC$'!J25/'Periodic Analysis'!J422*1000000 -> -2755587.778 | K37: ='Financial Statements in EC$'!K25/'Periodic Analysis'!K422*1000000 -> 3801111.111 | L37: ='Financial Statements in EC$'!L25/'Periodic Analysis'!L422*1000000 -> 2141851.852
B39: Summary balance sheet
C40: Assets
D41: Current Assets
D42: Cash & equivalents | H42: ='Financial Statements in EC$'!H30/H$422*1000000 -> 8180504.444 | I42: ='Financial Statements in EC$'!I30/I$422*1000000 -> 7051481.481 | J42: ='Financial Statements in EC$'!J30/J$422*1000000 -> 6688518.519 | K42: ='Financial Statements in EC$'!K30/K$422*1000000 -> 6016296.296
D43: Other Current Assets | H43: =H44-H42 -> 5960117.407 | I43: =I44-I42 -> 7939107.037 | J43: 6596296.296 | K43: 9141481.481
D44: Total current assets | H44: ='Financial Statements in EC$'!H29/H$422*1000000 -> 14140621.85 | I44: ='Financial Statements in EC$'!I29/I$422*1000000 -> 14990588.52 | J44: ='Financial Statements in EC$'!J29/J$422*1000000 -> 13284814.81 | K44: ='Financial Statements in EC$'!K29/K$422*1000000 -> 15157777.78
D45: Total non-current assets | H45: =H46+H47 -> 68928617.41 | I45: =I46+I47 -> 84548067.78 | J45: =J46+J47 -> 78046043.33 | K45: 80278148.15
D46: Construction in progress | H46: ='Financial Statements in EC$'!H32/H$422*1000000 -> 61630986.67 | I46: ='Financial Statements in EC$'!I32/I$422*1000000 -> 76508888.89 | J46: ='Financial Statements in EC$'!J32/J$422*1000000 -> 190681.1111 | K46: ='Financial Statements in EC$'!K32/K$422*1000000 -> 0
D47: Net PP&E | H47: ='Financial Statements in EC$'!H33/H$422*1000000 -> 7297630.741 | I47: ='Financial Statements in EC$'!I33/I$422*1000000 -> 8039178.889 | J47: ='Financial Statements in EC$'!J33/J$422*1000000 -> 77855362.22 | K47: ='Financial Statements in EC$'!K33/K$422*1000000 -> 80278148.15
D48: Total assets | H48: =H45+H44 -> 83069239.26 | I48: =I45+I44 -> 99538656.3 | J48: 91330858.15 | K48: 95435925.93
C50: Liabilities
D51: Short-term debt | H51: =H53-7000000 -> 65762167.78 | I51: ='Financial Statements in EC$'!I37/I$422*1000000 -> 6653665.556 | J51: ='Financial Statements in EC$'!J37/J$422*1000000 -> 7421657.407 | K51: ='Financial Statements in EC$'!K37/K$422*1000000 -> 7407407.407
D52: Other Current Liabilities | H52: =H53-H51 -> 7000000 | I52: =I53-I51 -> 7827790.741 | J52: =J53-J51 -> 4197942.222 | K52: =K53-K51 -> 4410370.37
D53: Total current liabilities | H53: ='Financial Statements in EC$'!H36/H$422*1000000+H63 -> 72762167.78 | I53: ='Financial Statements in EC$'!I36/I$422*1000000+I63 -> 14481456.3 | J53: ='Financial Statements in EC$'!J36/J$422*1000000+J63 -> 11619599.63 | K53: ='Financial Statements in EC$'!K36/K$422*1000000+K63 -> 11817777.78
D54: Long-term debt | H54: ='Financial Statements in EC$'!H39/H$422*1000000 -> 0 | I54: ='Financial Statements in EC$'!I39/I$422*1000000 -> 69934444.44 | J54: ='Financial Statements in EC$'!J39/J$422*1000000 -> 67384962.22 | K54: ='Financial Statements in EC$'!K39/K$422*1000000 -> 58827407.41
D55: Total non-current liabilities | H55: ='Financial Statements in EC$'!H38/H$422*1000000 -> 0 | I55: ='Financial Statements in EC$'!I38/I$422*1000000 -> 69934444.44 | J55: ='Financial Statements in EC$'!J38/J$422*1000000 -> 67384962.22 | K55: ='Financial Statements in EC$'!K38/K$422*1000000 -> 58990370.37
D56: Total liabilities | H56: =H55+H53 -> 72762167.78 | I56: =I55+I53 -> 84415900.74 | J56: =J55+J53 -> 79004561.85 | K56: =K55+K53 -> 70808148.15
D58: Minority interest | H58: ='Financial Statements in EC$'!H42/H$422*1000000 -> 0 | I58: ='Financial Statements in EC$'!I42/I$422*1000000 -> 0 | J58: ='Financial Statements in EC$'!J42/J$422*1000000 -> 0 | K58: ='Financial Statements in EC$'!K42/K$422*1000000 -> 0
D59: Shareholders' equity | H59: ='Financial Statements in EC$'!H43/H$422*1000000 -> 10307071.48 | I59: ='Financial Statements in EC$'!I43/I$422*1000000 -> 15122755.56 | J59: ='Financial Statements in EC$'!J43/J$422*1000000 -> 12326296.3 | K59: ='Financial Statements in EC$'!K43/K$422*1000000 -> 24790740.74
D60: Total liabilities + SHE | H60: =H51+H52+H54+H59 -> 83069239.26 | I60: =I51+I52+I54+I59 -> 99538656.3 | J60: 91330858.15 | K60: 95435925.93
D62: Difference | H62: =H48-H60 -> 0 | I62: =I48-I60 -> 0 | J62: 0 | K62: 0
D63: Initial Difference | H63: -54.44444445 | I63: -25.18518515 | J63: -176991.4815 | K63: 162962.963
A65: Revenue and Expense Projections
B67: Revenue Assumptions and Analysis
C68: Embarking Chargeable Pax per year | F68: =Scenarios!J47 -> 357500 | H68: =IF(NOT(H$3),LOOKUP(H9,Scenarios!41:41,Scenarios!47:47),H16*12/H7/2) -> 302875.8201 | I68: =IF(NOT(I$3),LOOKUP(I9,Scenarios!41:41,Scenarios!47:47),I16*12/I7/2) -> 304417.4125 | J68: =IF(NOT(J$3),LOOKUP(J9,Scenarios!41:41,Scenarios!47:47),J16*12/J7/2) -> 318337 | K68: =IF(NOT(K$3),LOOKUP(K9,Scenarios!41:41,Scenarios!47:47),K16*12/K7/2) -> 332046 | L68: =IF(NOT(L$3),LOOKUP(L9,Scenarios!41:41,Scenarios!47:47),L16*12/L7/2) -> 416458 | M68: =IF(NOT(M$3),LOOKUP(M9,Scenarios!41:41,Scenarios!47:47),M16*12/M7/2) -> 357500 | N68: =IF(NOT(N$3),LOOKUP(N9,Scenarios!41:41,Scenarios!47:47),N16*12/N7/2) -> 357500 | O68: =IF(NOT(O$3),LOOKUP(O9,Scenarios!41:41,Scenarios!47:47),O16*12/O7/2) -> 357500 | P68: =IF(NOT(P$3),LOOKUP(P9,Scenarios!41:41,Scenarios!47:47),P16*12/P7/2) -> 357500 | Q68: =IF(NOT(Q$3),LOOKUP(Q9,Scenarios!41:41,Scenarios!47:47),Q16*12/Q7/2) -> 357500 | R68: =IF(NOT(R$3),LOOKUP(R9,Scenarios!41:41,Scenarios!47:47),R16*12/R7/2) -> 357500 | S68: =IF(NOT(S$3),LOOKUP(S9,Scenarios!41:41,Scenarios!47:47),S16*12/S7/2) -> 357500 | T68: =IF(NOT(T$3),LOOKUP(T9,Scenarios!41:41,Scenarios!47:47),T16*12/T7/2) -> 357500 | U68: =IF(NOT(U$3),LOOKUP(U9,Scenarios!41:41,Scenarios!47:47),U16*12/U7/2) -> 357500 | V68: =IF(NOT(V$3),LOOKUP(V9,Scenarios!41:41,Scenarios!47:47),V16*12/V7/2) -> 330579.3713 | W68: =IF(NOT(W$3),LOOKUP(W9,Scenarios!41:41,Scenarios!47:47),W16*12/W7/2) -> 330579.3713 | X68: =IF(NOT(X$3),LOOKUP(X9,Scenarios!41:41,Scenarios!47:47),X16*12/X7/2) -> 330579.3713 | Y68: =IF(NOT(Y$3),LOOKUP(Y9,Scenarios!41:41,Scenarios!47:47),Y16*12/Y7/2) -> 330579.3713 | Z68: =IF(NOT(Z$3),LOOKUP(Z9,Scenarios!41:41,Scenarios!47:47),Z16*12/Z7/2) -> 330579.3713 | AA68: =IF(NOT(AA$3),LOOKUP(AA9,Scenarios!41:41,Scenarios!47:47),AA16*12/AA7/2) -> 330579.3713 | AB68: =IF(NOT(AB$3),LOOKUP(AB9,Scenarios!41:41,Scenarios!47:47),AB16*12/AB7/2) -> 330579.3713 | AC68: =IF(NOT(AC$3),LOOKUP(AC9,Scenarios!41:41,Scenarios!47:47),AC16*12/AC7/2) -> 330579.3713 | AD68: =IF(NOT(AD$3),LOOKUP(AD9,Scenarios!41:41,Scenarios!47:47),AD16*12/AD7/2) -> 330579.3713 | AE68: =IF(NOT(AE$3),LOOKUP(AE9,Scenarios!41:41,Scenarios!47:47),AE16*12/AE7/2) -> 330579.3713 | AF68: =IF(NOT(AF$3),LOOKUP(AF9,Scenarios!41:41,Scenarios!47:47),AF16*12/AF7/2) -> 330579.3713 | AG68: =IF(NOT(AG$3),LOOKUP(AG9,Scenarios!41:41,Scenarios!47:47),AG16*12/AG7/2) -> 330579.3713 | AH68: =IF(NOT(AH$3),LOOKUP(AH9,Scenarios!41:41,Scenarios!47:47),AH16*12/AH7/2) -> 330579.3713 | AI68: =IF(NOT(AI$3),LOOKUP(AI9,Scenarios!41:41,Scenarios!47:47),AI16*12/AI7/2) -> 330579.3713 | AJ68: =IF(NOT(AJ$3),LOOKUP(AJ9,Scenarios!41:41,Scenarios!47:47),AJ16*12/AJ7/2) -> 330579.3713 | AK68: =IF(NOT(AK$3),LOOKUP(AK9,Scenarios!41:41,Scenarios!47:47),AK16*12/AK7/2) -> 330579.3713 | AL68: =IF(NOT(AL$3),LOOKUP(AL9,Scenarios!41:41,Scenarios!47:47),AL16*12/AL7/2) -> 330579.3713 | AM68: =IF(NOT(AM$3),LOOKUP(AM9,Scenarios!41:41,Scenarios!47:47),AM16*12/AM7/2) -> 330579.3713 | AN68: =IF(NOT(AN$3),LOOKUP(AN9,Scenarios!41:41,Scenarios!47:47),AN16*12/AN7/2) -> 330579.3713 | AO68: =IF(NOT(AO$3),LOOKUP(AO9,Scenarios!41:41,Scenarios!47:47),AO16*12/AO7/2) -> 330579.3713 | AP68: =IF(NOT(AP$3),LOOKUP(AP9,Scenarios!41:41,Scenarios!47:47),AP16*12/AP7/2) -> 330579.3713 | AQ68: =IF(NOT(AQ$3),LOOKUP(AQ9,Scenarios!41:41,Scenarios!47:47),AQ16*12/AQ7/2) -> 330579.3713 | AR68: =IF(NOT(AR$3),LOOKUP(AR9,Scenarios!41:41,Scenarios!47:47),AR16*12/AR7/2) -> 330579.3713 | AS68: =IF(NOT(AS$3),LOOKUP(AS9,Scenarios!41:41,Scenarios!47:47),AS16*12/AS7/2) -> 330579.3713 | AT68: =IF(NOT(AT$3),LOOKUP(AT9,Scenarios!41:41,Scenarios!47:47),AT16*12/AT7/2) -> 330579.3713 | AU68: =IF(NOT(AU$3),LOOKUP(AU9,Scenarios!41:41,Scenarios!47:47),AU16*12/AU7/2) -> 330579.3713 | AV68: =IF(NOT(AV$3),LOOKUP(AV9,Scenarios!41:41,Scenarios!47:47),AV16*12/AV7/2) -> 330579.3713 | AW68: =IF(NOT(AW$3),LOOKUP(AW9,Scenarios!41:41,Scenarios!47:47),AW16*12/AW7/2) -> 330579.3713 | AX68: =IF(NOT(AX$3),LOOKUP(AX9,Scenarios!41:41,Scenarios!47:47),AX16*12/AX7/2) -> 330579.3713 | AY68: =IF(NOT(AY$3),LOOKUP(AY9,Scenarios!41:41,Scenarios!47:47),AY16*12/AY7/2) -> 330579.3713 | AZ68: =IF(NOT(AZ$3),LOOKUP(AZ9,Scenarios!41:41,Scenarios!47:47),AZ16*12/AZ7/2) -> 330579.3713 | BA68: =IF(NOT(BA$3),LOOKUP(BA9,Scenarios!41:41,Scenarios!47:47),BA16*12/BA7/2) -> 330579.3713 | BB68: =IF(NOT(BB$3),LOOKUP(BB9,Scenarios!41:41,Scenarios!47:47),BB16*12/BB7/2) -> 330579.3713 | BC68: =IF(NOT(BC$3),LOOKUP(BC9,Scenarios!41:41,Scenarios!47:47),BC16*12/BC7/2) -> 330579.3713 | BD68: =IF(NOT(BD$3),LOOKUP(BD9,Scenarios!41:41,Scenarios!47:47),BD16*12/BD7/2) -> 330579.3713 | BE68: =IF(NOT(BE$3),LOOKUP(BE9,Scenarios!41:41,Scenarios!47:47),BE16*12/BE7/2) -> 330579.3713 | BF68: =IF(NOT(BF$3),LOOKUP(BF9,Scenarios!41:41,Scenarios!47:47),BF16*12/BF7/2) -> 330579.3713 | BG68: =IF(NOT(BG$3),LOOKUP(BG9,Scenarios!41:41,Scenarios!47:47),BG16*12/BG7/2) -> 330579.3713 | BH68: =IF(NOT(BH$3),LOOKUP(BH9,Scenarios!41:41,Scenarios!47:47),BH16*12/BH7/2) -> 330579.3713 | BI68: =IF(NOT(BI$3),LOOKUP(BI9,Scenarios!41:41,Scenarios!47:47),BI16*12/BI7/2) -> 330579.3713 | BJ68: =IF(NOT(BJ$3),LOOKUP(BJ9,Scenarios!41:41,Scenarios!47:47),BJ16*12/BJ7/2) -> 330579.3713 | BK68: =IF(NOT(BK$3),LOOKUP(BK9,Scenarios!41:41,Scenarios!47:47),BK16*12/BK7/2) -> 330579.3713 | BL68: =IF(NOT(BL$3),LOOKUP(BL9,Scenarios!41:41,Scenarios!47:47),BL16*12/BL7/2) -> 330579.3713 | BM68: =IF(NOT(BM$3),LOOKUP(BM9,Scenarios!41:41,Scenarios!47:47),BM16*12/BM7/2) -> 330579.3713 | BN68: =IF(NOT(BN$3),LOOKUP(BN9,Scenarios!41:41,Scenarios!47:47),BN16*12/BN7/2) -> 330579.3713 | BO68: =IF(NOT(BO$3),LOOKUP(BO9,Scenarios!41:41,Scenarios!47:47),BO16*12/BO7/2) -> 330579.3713 | BP68: =IF(NOT(BP$3),LOOKUP(BP9,Scenarios!41:41,Scenarios!47:47),BP16*12/BP7/2) -> 330579.3713 | BQ68: =IF(NOT(BQ$3),LOOKUP(BQ9,Scenarios!41:41,Scenarios!47:47),BQ16*12/BQ7/2) -> 330579.3713 | BR68: =IF(NOT(BR$3),LOOKUP(BR9,Scenarios!41:41,Scenarios!47:47),BR16*12/BR7/2) -> 330579.3713 | BS68: =IF(NOT(BS$3),LOOKUP(BS9,Scenarios!41:41,Scenarios!47:47),BS16*12/BS7/2) -> 330579.3713 | BT68: =IF(NOT(BT$3),LOOKUP(BT9,Scenarios!41:41,Scenarios!47:47),BT16*12/BT7/2) -> 330579.3713 | BU68: =IF(NOT(BU$3),LOOKUP(BU9,Scenarios!41:41,Scenarios!47:47),BU16*12/BU7/2) -> 330579.3713 | BV68: =IF(NOT(BV$3),LOOKUP(BV9,Scenarios!41:41,Scenarios!47:47),BV16*12/BV7/2) -> 330579.3713 | BW68: =IF(NOT(BW$3),LOOKUP(BW9,Scenarios!41:41,Scenarios!47:47),BW16*12/BW7/2) -> 330579.3713 | BX68: =IF(NOT(BX$3),LOOKUP(BX9,Scenarios!41:41,Scenarios!47:47),BX16*12/BX7/2) -> 330579.3713 | BY68: =IF(NOT(BY$3),LOOKUP(BY9,Scenarios!41:41,Scenarios!47:47),BY16*12/BY7/2) -> 330579.3713 | BZ68: =IF(NOT(BZ$3),LOOKUP(BZ9,Scenarios!41:41,Scenarios!47:47),BZ16*12/BZ7/2) -> 330579.3713 | CA68: =IF(NOT(CA$3),LOOKUP(CA9,Scenarios!41:41,Scenarios!47:47),CA16*12/CA7/2) -> 330579.3713 | CB68: =IF(NOT(CB$3),LOOKUP(CB9,Scenarios!41:41,Scenarios!47:47),CB16*12/CB7/2) -> 330579.3713 | CC68: =IF(NOT(CC$3),LOOKUP(CC9,Scenarios!41:41,Scenarios!47:47),CC16*12/CC7/2) -> 330579.3713 | CD68: =IF(NOT(CD$3),LOOKUP(CD9,Scenarios!41:41,Scenarios!47:47),CD16*12/CD7/2) -> 330579.3713 | CE68: =IF(NOT(CE$3),LOOKUP(CE9,Scenarios!41:41,Scenarios!47:47),CE16*12/CE7/2) -> 330579.3713 | CF68: =IF(NOT(CF$3),LOOKUP(CF9,Scenarios!41:41,Scenarios!47:47),CF16*12/CF7/2) -> 330579.3713 | CG68: =IF(NOT(CG$3),LOOKUP(CG9,Scenarios!41:41,Scenarios!47:47),CG16*12/CG7/2) -> 330579.3713 | CH68: =IF(NOT(CH$3),LOOKUP(CH9,Scenarios!41:41,Scenarios!47:47),CH16*12/CH7/2) -> 330579.3713 | CI68: =IF(NOT(CI$3),LOOKUP(CI9,Scenarios!41:41,Scenarios!47:47),CI16*12/CI7/2) -> 330579.3713 | CJ68: =IF(NOT(CJ$3),LOOKUP(CJ9,Scenarios!41:41,Scenarios!47:47),CJ16*12/CJ7/2) -> 330579.3713 | CK68: =IF(NOT(CK$3),LOOKUP(CK9,Scenarios!41:41,Scenarios!47:47),CK16*12/CK7/2) -> 330579.3713 | CL68: =IF(NOT(CL$3),LOOKUP(CL9,Scenarios!41:41,Scenarios!47:47),CL16*12/CL7/2) -> 330579.3713 | CM68: =IF(NOT(CM$3),LOOKUP(CM9,Scenarios!41:41,Scenarios!47:47),CM16*12/CM7/2) -> 330579.3713 | CN68: =IF(NOT(CN$3),LOOKUP(CN9,Scenarios!41:41,Scenarios!47:47),CN16*12/CN7/2) -> 330579.3713 | CO68: =IF(NOT(CO$3),LOOKUP(CO9,Scenarios!41:41,Scenarios!47:47),CO16*12/CO7/2) -> 330579.3713 | CP68: =IF(NOT(CP$3),LOOKUP(CP9,Scenarios!41:41,Scenarios!47:47),CP16*12/CP7/2) -> 330579.3713 | CQ68: =IF(NOT(CQ$3),LOOKUP(CQ9,Scenarios!41:41,Scenarios!47:47),CQ16*12/CQ7/2) -> 330579.3713 | CR68: =IF(NOT(CR$3),LOOKUP(CR9,Scenarios!41:41,Scenarios!47:47),CR16*12/CR7/2) -> 330579.3713 | CS68: =IF(NOT(CS$3),LOOKUP(CS9,Scenarios!41:41,Scenarios!47:47),CS16*12/CS7/2) -> 330579.3713 | CT68: =IF(NOT(CT$3),LOOKUP(CT9,Scenarios!41:41,Scenarios!47:47),CT16*12/CT7/2) -> 330579.3713 | CU68: =IF(NOT(CU$3),LOOKUP(CU9,Scenarios!41:41,Scenarios!47:47),CU16*12/CU7/2) -> 330579.3713 | CV68: =IF(NOT(CV$3),LOOKUP(CV9,Scenarios!41:41,Scenarios!47:47),CV16*12/CV7/2) -> 330579.3713 | CW68: =IF(NOT(CW$3),LOOKUP(CW9,Scenarios!41:41,Scenarios!47:47),CW16*12/CW7/2) -> 330579.3713 | CX68: =IF(NOT(CX$3),LOOKUP(CX9,Scenarios!41:41,Scenarios!47:47),CX16*12/CX7/2) -> 330579.3713 | CY68: =IF(NOT(CY$3),LOOKUP(CY9,Scenarios!41:41,Scenarios!47:47),CY16*12/CY7/2) -> 330579.3713 | CZ68: =IF(NOT(CZ$3),LOOKUP(CZ9,Scenarios!41:41,Scenarios!47:47),CZ16*12/CZ7/2) -> 330579.3713 | DA68: =IF(NOT(DA$3),LOOKUP(DA9,Scenarios!41:41,Scenarios!47:47),DA16*12/DA7/2) -> 330579.3713 | DB68: =IF(NOT(DB$3),LOOKUP(DB9,Scenarios!41:41,Scenarios!47:47),DB16*12/DB7/2) -> 330579.3713 | DC68: =IF(NOT(DC$3),LOOKUP(DC9,Scenarios!41:41,Scenarios!47:47),DC16*12/DC7/2) -> 330579.3713 | DD68: =IF(NOT(DD$3),LOOKUP(DD9,Scenarios!41:41,Scenarios!47:47),DD16*12/DD7/2) -> 330579.3713 | DE68: =IF(NOT(DE$3),LOOKUP(DE9,Scenarios!41:41,Scenarios!47:47),DE16*12/DE7/2) -> 330579.3713 | DF68: =IF(NOT(DF$3),LOOKUP(DF9,Scenarios!41:41,Scenarios!47:47),DF16*12/DF7/2) -> 330579.3713 | DG68: =IF(NOT(DG$3),LOOKUP(DG9,Scenarios!41:41,Scenarios!47:47),DG16*12/DG7/2) -> 330579.3713 | DH68: =IF(NOT(DH$3),LOOKUP(DH9,Scenarios!41:41,Scenarios!47:47),DH16*12/DH7/2) -> 330579.3713 | DI68: =IF(NOT(DI$3),LOOKUP(DI9,Scenarios!41:41,Scenarios!47:47),DI16*12/DI7/2) -> 330579.3713 | DJ68: =IF(NOT(DJ$3),LOOKUP(DJ9,Scenarios!41:41,Scenarios!47:47),DJ16*12/DJ7/2) -> 330579.3713 | DK68: =IF(NOT(DK$3),LOOKUP(DK9,Scenarios!41:41,Scenarios!47:47),DK16*12/DK7/2) -> 330579.3713 | DL68: =IF(NOT(DL$3),LOOKUP(DL9,Scenarios!41:41,Scenarios!47:47),DL16*12/DL7/2) -> 330579.3713 | DM68: =IF(NOT(DM$3),LOOKUP(DM9,Scenarios!41:41,Scenarios!47:47),DM16*12/DM7/2) -> 330579.3713 | DN68: =IF(NOT(DN$3),LOOKUP(DN9,Scenarios!41:41,Scenarios!47:47),DN16*12/DN7/2) -> 330579.3713 | DO68: =IF(NOT(DO$3),LOOKUP(DO9,Scenarios!41:41,Scenarios!47:47),DO16*12/DO7/2) -> 330579.3713 | DP68: =IF(NOT(DP$3),LOOKUP(DP9,Scenarios!41:41,Scenarios!47:47),DP16*12/DP7/2) -> 330579.3713 | DQ68: =IF(NOT(DQ$3),LOOKUP(DQ9,Scenarios!41:41,Scenarios!47:47),DQ16*12/DQ7/2) -> 330579.3713 | DR68: =IF(NOT(DR$3),LOOKUP(DR9,Scenarios!41:41,Scenarios!47:47),DR16*12/DR7/2) -> 330579.3713 | DS68: =IF(NOT(DS$3),LOOKUP(DS9,Scenarios!41:41,Scenarios!47:47),DS16*12/DS7/2) -> 330579.3713 | DT68: =IF(NOT(DT$3),LOOKUP(DT9,Scenarios!41:41,Scenarios!47:47),DT16*12/DT7/2) -> 330579.3713 | DU68: =IF(NOT(DU$3),LOOKUP(DU9,Scenarios!41:41,Scenarios!47:47),DU16*12/DU7/2) -> 330579.3713 | DV68: =IF(NOT(DV$3),LOOKUP(DV9,Scenarios!41:41,Scenarios!47:47),DV16*12/DV7/2) -> 330579.3713 | DW68: =IF(NOT(DW$3),LOOKUP(DW9,Scenarios!41:41,Scenarios!47:47),DW16*12/DW7/2) -> 330579.3713 | DX68: =IF(NOT(DX$3),LOOKUP(DX9,Scenarios!41:41,Scenarios!47:47),DX16*12/DX7/2) -> 330579.3713 | DY68: =IF(NOT(DY$3),LOOKUP(DY9,Scenarios!41:41,Scenarios!47:47),DY16*12/DY7/2) -> 330579.3713 | DZ68: =IF(NOT(DZ$3),LOOKUP(DZ9,Scenarios!41:41,Scenarios!47:47),DZ16*12/DZ7/2) -> 330579.3713 | EA68: =IF(NOT(EA$3),LOOKUP(EA9,Scenarios!41:41,Scenarios!47:47),EA16*12/EA7/2) -> 330579.3713 | EB68: =IF(NOT(EB$3),LOOKUP(EB9,Scenarios!41:41,Scenarios!47:47),EB16*12/EB7/2) -> 330579.3713 | EC68: =IF(NOT(EC$3),LOOKUP(EC9,Scenarios!41:41,Scenarios!47:47),EC16*12/EC7/2) -> 330579.3713 | ED68: =IF(NOT(ED$3),LOOKUP(ED9,Scenarios!41:41,Scenarios!47:47),ED16*12/ED7/2) -> 330579.3713 | EE68: =IF(NOT(EE$3),LOOKUP(EE9,Scenarios!41:41,Scenarios!47:47),EE16*12/EE7/2) -> 330579.3713 | EF68: =IF(NOT(EF$3),LOOKUP(EF9,Scenarios!41:41,Scenarios!47:47),EF16*12/EF7/2) -> 330579.3713 | EG68: =IF(NOT(EG$3),LOOKUP(EG9,Scenarios!41:41,Scenarios!47:47),EG16*12/EG7/2) -> 330579.3713 | EH68: =IF(NOT(EH$3),LOOKUP(EH9,Scenarios!41:41,Scenarios!47:47),EH16*12/EH7/2) -> 330579.3713 | EI68: =IF(NOT(EI$3),LOOKUP(EI9,Scenarios!41:41,Scenarios!47:47),EI16*12/EI7/2) -> 330579.3713 | EJ68: =IF(NOT(EJ$3),LOOKUP(EJ9,Scenarios!41:41,Scenarios!47:47),EJ16*12/EJ7/2) -> 330579.3713 | EK68: =IF(NOT(EK$3),LOOKUP(EK9,Scenarios!41:41,Scenarios!47:47),EK16*12/EK7/2) -> 330579.3713 | EL68: =IF(NOT(EL$3),LOOKUP(EL9,Scenarios!41:41,Scenarios!47:47),EL16*12/EL7/2) -> 330579.3713 | EM68: =IF(NOT(EM$3),LOOKUP(EM9,Scenarios!41:41,Scenarios!47:47),EM16*12/EM7/2) -> 330579.3713 | EN68: =IF(NOT(EN$3),LOOKUP(EN9,Scenarios!41:41,Scenarios!47:47),EN16*12/EN7/2) -> 330579.3713 | EO68: =IF(NOT(EO$3),LOOKUP(EO9,Scenarios!41:41,Scenarios!47:47),EO16*12/EO7/2) -> 330579.3713 | EP68: =IF(NOT(EP$3),LOOKUP(EP9,Scenarios!41:41,Scenarios!47:47),EP16*12/EP7/2) -> 330579.3713 | EQ68: =IF(NOT(EQ$3),LOOKUP(EQ9,Scenarios!41:41,Scenarios!47:47),EQ16*12/EQ7/2) -> 330579.3713 | ER68: =IF(NOT(ER$3),LOOKUP(ER9,Scenarios!41:41,Scenarios!47:47),ER16*12/ER7/2) -> 330579.3713 | ES68: =IF(NOT(ES$3),LOOKUP(ES9,Scenarios!41:41,Scenarios!47:47),ES16*12/ES7/2) -> 330579.3713 | ET68: =IF(NOT(ET$3),LOOKUP(ET9,Scenarios!41:41,Scenarios!47:47),ET16*12/ET7/2) -> 330579.3713 | EU68: =IF(NOT(EU$3),LOOKUP(EU9,Scenarios!41:41,Scenarios!47:47),EU16*12/EU7/2) -> 330579.3713 | EV68: =IF(NOT(EV$3),LOOKUP(EV9,Scenarios!41:41,Scenarios!47:47),EV16*12/EV7/2) -> 330579.3713 | EW68: =IF(NOT(EW$3),LOOKUP(EW9,Scenarios!41:41,Scenarios!47:47),EW16*12/EW7/2) -> 330579.3713 | EX68: =IF(NOT(EX$3),LOOKUP(EX9,Scenarios!41:41,Scenarios!47:47),EX16*12/EX7/2) -> 330579.3713 | EY68: =IF(NOT(EY$3),LOOKUP(EY9,Scenarios!41:41,Scenarios!47:47),EY16*12/EY7/2) -> 330579.3713 | EZ68: =IF(NOT(EZ$3),LOOKUP(EZ9,Scenarios!41:41,Scenarios!47:47),EZ16*12/EZ7/2) -> 330579.3713 | FA68: =IF(NOT(FA$3),LOOKUP(FA9,Scenarios!41:41,Scenarios!47:47),FA16*12/FA7/2) -> 330579.3713 | FB68: =IF(NOT(FB$3),LOOKUP(FB9,Scenarios!41:41,Scenarios!47:47),FB16*12/FB7/2) -> 330579.3713 | FC68: =IF(NOT(FC$3),LOOKUP(FC9,Scenarios!41:41,Scenarios!47:47),FC16*12/FC7/2) -> 330579.3713 | FD68: =IF(NOT(FD$3),LOOKUP(FD9,Scenarios!41:41,Scenarios!47:47),FD16*12/FD7/2) -> 330579.3713 | FE68: =IF(NOT(FE$3),LOOKUP(FE9,Scenarios!41:41,Scenarios!47:47),FE16*12/FE7/2) -> 330579.3713 | FF68: =IF(NOT(FF$3),LOOKUP(FF9,Scenarios!41:41,Scenarios!47:47),FF16*12/FF7/2) -> 330579.3713 | FG68: =IF(NOT(FG$3),LOOKUP(FG9,Scenarios!41:41,Scenarios!47:47),FG16*12/FG7/2) -> 330579.3713 | FH68: =IF(NOT(FH$3),LOOKUP(FH9,Scenarios!41:41,Scenarios!47:47),FH16*12/FH7/2) -> 330579.3713 | FI68: =IF(NOT(FI$3),LOOKUP(FI9,Scenarios!41:41,Scenarios!47:47),FI16*12/FI7/2) -> 330579.3713
C69: Disembarking Chargeable Pax per year | F69: =+Scenarios!K42 -> 330579.3713 | H69: =H68 -> 302875.8201 | I69: =I68 -> 304417.4125 | J69: 318337 | K69: 332046 | L69: 416458 | M69: 357500 | N69: 357500 | O69: 357500 | P69: 357500 | Q69: 357500 | R69: 357500 | S69: 357500 | T69: 357500 | U69: 357500 | V69: 330579.3713 | W69: 330579.3713 | X69: 330579.3713 | Y69: 330579.3713 | Z69: 330579.3713 | AA69: 330579.3713 | AB69: 330579.3713 | AC69: 330579.3713 | AD69: 330579.3713 | AE69: 330579.3713 | AF69: 330579.3713 | AG69: 330579.3713 | AH69: 330579.3713 | AI69: 330579.3713 | AJ69: 330579.3713 | AK69: 330579.3713 | AL69: 330579.3713 | AM69: 330579.3713 | AN69: 330579.3713 | AO69: 330579.3713 | AP69: 330579.3713 | AQ69: 330579.3713 | AR69: 330579.3713 | AS69: 330579.3713 | AT69: 330579.3713 | AU69: 330579.3713 | AV69: 330579.3713 | AW69: 330579.3713 | AX69: 330579.3713 | AY69: 330579.3713 | AZ69: 330579.3713 | BA69: 330579.3713 | BB69: 330579.3713 | BC69: 330579.3713 | BD69: 330579.3713 | BE69: 330579.3713 | BF69: 330579.3713 | BG69: 330579.3713 | BH69: 330579.3713 | BI69: 330579.3713 | BJ69: 330579.3713 | BK69: 330579.3713 | BL69: 330579.3713 | BM69: 330579.3713 | BN69: 330579.3713 | BO69: 330579.3713 | BP69: 330579.3713 | BQ69: 330579.3713 | BR69: 330579.3713 | BS69: 330579.3713 | BT69: 330579.3713 | BU69: =BU68 -> 330579.3713 | BV69: 330579.3713 | BW69: 330579.3713 | BX69: 330579.3713 | BY69: 330579.3713 | BZ69: 330579.3713 | CA69: 330579.3713 | CB69: 330579.3713 | CC69: 330579.3713 | CD69: 330579.3713 | CE69: 330579.3713 | CF69: 330579.3713 | CG69: 330579.3713 | CH69: 330579.3713 | CI69: 330579.3713 | CJ69: 330579.3713 | CK69: 330579.3713 | CL69: 330579.3713 | CM69: 330579.3713 | CN69: 330579.3713 | CO69: 330579.3713 | CP69: 330579.3713 | CQ69: 330579.3713 | CR69: 330579.3713 | CS69: 330579.3713 | CT69: 330579.3713 | CU69: 330579.3713 | CV69: 330579.3713 | CW69: 330579.3713 | CX69: 330579.3713 | CY69: 330579.3713 | CZ69: 330579.3713 | DA69: 330579.3713 | DB69: 330579.3713 | DC69: 330579.3713 | DD69: 330579.3713 | DE69: 330579.3713 | DF69: 330579.3713 | DG69: 330579.3713 | DH69: 330579.3713 | DI69: 330579.3713 | DJ69: 330579.3713 | DK69: 330579.3713 | DL69: 330579.3713 | DM69: 330579.3713 | DN69: 330579.3713 | DO69: 330579.3713 | DP69: 330579.3713 | DQ69: 330579.3713 | DR69: 330579.3713 | DS69: 330579.3713 | DT69: 330579.3713 | DU69: 330579.3713 | DV69: 330579.3713 | DW69: 330579.3713 | DX69: 330579.3713 | DY69: 330579.3713 | DZ69: 330579.3713 | EA69: 330579.3713 | EB69: 330579.3713 | EC69: 330579.3713 | ED69: 330579.3713 | EE69: 330579.3713 | EF69: 330579.3713 | EG69: =EG68 -> 330579.3713 | EH69: 330579.3713 | EI69: 330579.3713 | EJ69: 330579.3713 | EK69: 330579.3713 | EL69: 330579.3713 | EM69: 330579.3713 | EN69: 330579.3713 | EO69: 330579.3713 | EP69: 330579.3713 | EQ69: 330579.3713 | ER69: 330579.3713 | ES69: 330579.3713 | ET69: 330579.3713 | EU69: 330579.3713 | EV69: 330579.3713 | EW69: 330579.3713 | EX69: 330579.3713 | EY69: 330579.3713 | EZ69: 330579.3713 | FA69: 330579.3713 | FB69: 330579.3713 | FC69: 330579.3713 | FD69: 330579.3713 | FE69: 330579.3713 | FF69: 330579.3713 | FG69: 330579.3713 | FH69: 330579.3713 | FI69: 330579.3713
C70: Total Chargeable Passengers per Year Forecast | H70: =SUM(H68:H69) -> 605751.6402 | I70: =SUM(I68:I69) -> 608834.825 | J70: 636674 | K70: 664092 | L70: 832916 | M70: 715000 | N70: 715000 | O70: 715000 | P70: 715000 | Q70: 715000 | R70: 715000 | S70: 715000 | T70: 715000 | U70: 715000 | V70: 661158.7426 | W70: 661158.7426 | X70: 661158.7426 | Y70: 661158.7426 | Z70: 661158.7426 | AA70: 661158.7426 | AB70: 661158.7426 | AC70: 661158.7426 | AD70: 661158.7426 | AE70: 661158.7426 | AF70: 661158.7426 | AG70: 661158.7426 | AH70: 661158.7426 | AI70: 661158.7426 | AJ70: 661158.7426 | AK70: 661158.7426 | AL70: 661158.7426 | AM70: 661158.7426 | AN70: 661158.7426 | AO70: 661158.7426 | AP70: 661158.7426 | AQ70: 661158.7426 | AR70: 661158.7426 | AS70: 661158.7426 | AT70: 661158.7426 | AU70: 661158.7426 | AV70: 661158.7426 | AW70: 661158.7426 | AX70: 661158.7426 | AY70: 661158.7426 | AZ70: 661158.7426 | BA70: 661158.7426 | BB70: 661158.7426 | BC70: 661158.7426 | BD70: 661158.7426 | BE70: 661158.7426 | BF70: 661158.7426 | BG70: 661158.7426 | BH70: 661158.7426 | BI70: 661158.7426 | BJ70: 661158.7426 | BK70: 661158.7426 | BL70: 661158.7426 | BM70: 661158.7426 | BN70: 661158.7426 | BO70: 661158.7426 | BP70: 661158.7426 | BQ70: 661158.7426 | BR70: 661158.7426 | BS70: 661158.7426 | BT70: 661158.7426 | BU70: =SUM(BU68:BU69) -> 661158.7426 | BV70: 661158.7426 | BW70: 661158.7426 | BX70: 661158.7426 | BY70: 661158.7426 | BZ70: 661158.7426 | CA70: 661158.7426 | CB70: 661158.7426 | CC70: 661158.7426 | CD70: 661158.7426 | CE70: 661158.7426 | CF70: 661158.7426 | CG70: 661158.7426 | CH70: 661158.7426 | CI70: 661158.7426 | CJ70: 661158.7426 | CK70: 661158.7426 | CL70: 661158.7426 | CM70: 661158.7426 | CN70: 661158.7426 | CO70: 661158.7426 | CP70: 661158.7426 | CQ70: 661158.7426 | CR70: 661158.7426 | CS70: 661158.7426 | CT70: 661158.7426 | CU70: 661158.7426 | CV70: 661158.7426 | CW70: 661158.7426 | CX70: 661158.7426 | CY70: 661158.7426 | CZ70: 661158.7426 | DA70: 661158.7426 | DB70: 661158.7426 | DC70: 661158.7426 | DD70: 661158.7426 | DE70: 661158.7426 | DF70: 661158.7426 | DG70: 661158.7426 | DH70: 661158.7426 | DI70: 661158.7426 | DJ70: 661158.7426 | DK70: 661158.7426 | DL70: 661158.7426 | DM70: 661158.7426 | DN70: 661158.7426 | DO70: 661158.7426 | DP70: 661158.7426 | DQ70: 661158.7426 | DR70: 661158.7426 | DS70: 661158.7426 | DT70: 661158.7426 | DU70: 661158.7426 | DV70: 661158.7426 | DW70: 661158.7426 | DX70: 661158.7426 | DY70: 661158.7426 | DZ70: 661158.7426 | EA70: 661158.7426 | EB70: 661158.7426 | EC70: 661158.7426 | ED70: 661158.7426 | EE70: 661158.7426 | EF70: 661158.7426 | EG70: =SUM(EG68:EG69) -> 661158.7426 | EH70: 661158.7426 | EI70: 661158.7426 | EJ70: 661158.7426 | EK70: 661158.7426 | EL70: 661158.7426 | EM70: 661158.7426 | EN70: 661158.7426 | EO70: 661158.7426 | EP70: 661158.7426 | EQ70: 661158.7426 | ER70: 661158.7426 | ES70: 661158.7426 | ET70: 661158.7426 | EU70: 661158.7426 | EV70: 661158.7426 | EW70: 661158.7426 | EX70: 661158.7426 | EY70: 661158.7426 | EZ70: 661158.7426 | FA70: 661158.7426 | FB70: 661158.7426 | FC70: 661158.7426 | FD70: 661158.7426 | FE70: 661158.7426 | FF70: 661158.7426 | FG70: 661158.7426 | FH70: 661158.7426 | FI70: 661158.7426
C71: Month Number | H71: =MONTH(H2) -> 12 | I71: =MONTH(I2) -> 12 | J71: =MONTH(J2) -> 12 | K71: =MONTH(K2) -> 12 | L71: =MONTH(L2) -> 3 | M71: =MONTH(M2) -> 4 | N71: =MONTH(N2) -> 5 | O71: =MONTH(O2) -> 6 | P71: =MONTH(P2) -> 7 | Q71: =MONTH(Q2) -> 8 | R71: =MONTH(R2) -> 9 | S71: =MONTH(S2) -> 10 | T71: =MONTH(T2) -> 11 | U71: =MONTH(U2) -> 12 | V71: =MONTH(V2) -> 1 | W71: =MONTH(W2) -> 2 | X71: =MONTH(X2) -> 3 | Y71: =MONTH(Y2) -> 4 | Z71: =MONTH(Z2) -> 5 | AA71: =MONTH(AA2) -> 6 | AB71: =MONTH(AB2) -> 7 | AC71: =MONTH(AC2) -> 8 | AD71: =MONTH(AD2) -> 9 | AE71: =MONTH(AE2) -> 10 | AF71: =MONTH(AF2) -> 11 | AG71: =MONTH(AG2) -> 12 | AH71: =MONTH(AH2) -> 1 | AI71: =MONTH(AI2) -> 2 | AJ71: =MONTH(AJ2) -> 3 | AK71: =MONTH(AK2) -> 4 | AL71: =MONTH(AL2) -> 5 | AM71: =MONTH(AM2) -> 6 | AN71: =MONTH(AN2) -> 7 | AO71: =MONTH(AO2) -> 8 | AP71: =MONTH(AP2) -> 9 | AQ71: =MONTH(AQ2) -> 10 | AR71: =MONTH(AR2) -> 11 | AS71: =MONTH(AS2) -> 12 | AT71: =MONTH(AT2) -> 1 | AU71: =MONTH(AU2) -> 2 | AV71: =MONTH(AV2) -> 3 | AW71: =MONTH(AW2) -> 4 | AX71: =MONTH(AX2) -> 5 | AY71: =MONTH(AY2) -> 6 | AZ71: =MONTH(AZ2) -> 7 | BA71: =MONTH(BA2) -> 8 | BB71: =MONTH(BB2) -> 9 | BC71: =MONTH(BC2) -> 10 | BD71: =MONTH(BD2) -> 11 | BE71: =MONTH(BE2) -> 12 | BF71: =MONTH(BF2) -> 1 | BG71: =MONTH(BG2) -> 2 | BH71: =MONTH(BH2) -> 3 | BI71: =MONTH(BI2) -> 4 | BJ71: =MONTH(BJ2) -> 5 | BK71: =MONTH(BK2) -> 6 | BL71: =MONTH(BL2) -> 7 | BM71: =MONTH(BM2) -> 8 | BN71: =MONTH(BN2) -> 9 | BO71: =MONTH(BO2) -> 10 | BP71: =MONTH(BP2) -> 11 | BQ71: =MONTH(BQ2) -> 12 | BR71: =MONTH(BR2) -> 1 | BS71: =MONTH(BS2) -> 2 | BT71: =MONTH(BT2) -> 3 | BU71: =MONTH(BU2) -> 4 | BV71: =MONTH(BV2) -> 5 | BW71: =MONTH(BW2) -> 6 | BX71: =MONTH(BX2) -> 7 | BY71: =MONTH(BY2) -> 8 | BZ71: =MONTH(BZ2) -> 9 | CA71: =MONTH(CA2) -> 10 | CB71: =MONTH(CB2) -> 11 | CC71: =MONTH(CC2) -> 12 | CD71: =MONTH(CD2) -> 1 | CE71: =MONTH(CE2) -> 2 | CF71: =MONTH(CF2) -> 3 | CG71: =MONTH(CG2) -> 4 | CH71: =MONTH(CH2) -> 5 | CI71: =MONTH(CI2) -> 6 | CJ71: =MONTH(CJ2) -> 7 | CK71: =MONTH(CK2) -> 8 | CL71: =MONTH(CL2) -> 9 | CM71: =MONTH(CM2) -> 10 | CN71: =MONTH(CN2) -> 11 | CO71: =MONTH(CO2) -> 12 | CP71: =MONTH(CP2) -> 1 | CQ71: =MONTH(CQ2) -> 2 | CR71: =MONTH(CR2) -> 3 | CS71: =MONTH(CS2) -> 4 | CT71: =MONTH(CT2) -> 5 | CU71: =MONTH(CU2) -> 6 | CV71: =MONTH(CV2) -> 7 | CW71: =MONTH(CW2) -> 8 | CX71: =MONTH(CX2) -> 9 | CY71: =MONTH(CY2) -> 10 | CZ71: =MONTH(CZ2) -> 11 | DA71: =MONTH(DA2) -> 12 | DB71: =MONTH(DB2) -> 1 | DC71: =MONTH(DC2) -> 2 | DD71: =MONTH(DD2) -> 3 | DE71: =MONTH(DE2) -> 4 | DF71: =MONTH(DF2) -> 5 | DG71: =MONTH(DG2) -> 6 | DH71: =MONTH(DH2) -> 7 | DI71: =MONTH(DI2) -> 8 | DJ71: =MONTH(DJ2) -> 9 | DK71: =MONTH(DK2) -> 10 | DL71: =MONTH(DL2) -> 11 | DM71: =MONTH(DM2) -> 12 | DN71: =MONTH(DN2) -> 1 | DO71: =MONTH(DO2) -> 2 | DP71: =MONTH(DP2) -> 3 | DQ71: =MONTH(DQ2) -> 4 | DR71: =MONTH(DR2) -> 5 | DS71: =MONTH(DS2) -> 6 | DT71: =MONTH(DT2) -> 7 | DU71: =MONTH(DU2) -> 8 | DV71: =MONTH(DV2) -> 9 | DW71: =MONTH(DW2) -> 10 | DX71: =MONTH(DX2) -> 11 | DY71: =MONTH(DY2) -> 12 | DZ71: =MONTH(DZ2) -> 1 | EA71: =MONTH(EA2) -> 2 | EB71: =MONTH(EB2) -> 3 | EC71: =MONTH(EC2) -> 4 | ED71: =MONTH(ED2) -> 5 | EE71: =MONTH(EE2) -> 6 | EF71: =MONTH(EF2) -> 7 | EG71: =MONTH(EG2) -> 8 | EH71: =MONTH(EH2) -> 9 | EI71: =MONTH(EI2) -> 10 | EJ71: =MONTH(EJ2) -> 11 | EK71: =MONTH(EK2) -> 12 | EL71: =MONTH(EL2) -> 1 | EM71: =MONTH(EM2) -> 2 | EN71: =MONTH(EN2) -> 3 | EO71: =MONTH(EO2) -> 4 | EP71: =MONTH(EP2) -> 5 | EQ71: =MONTH(EQ2) -> 6 | ER71: =MONTH(ER2) -> 7 | ES71: =MONTH(ES2) -> 8 | ET71: =MONTH(ET2) -> 9 | EU71: =MONTH(EU2) -> 10 | EV71: =MONTH(EV2) -> 11 | EW71: =MONTH(EW2) -> 12 | EX71: =MONTH(EX2) -> 1 | EY71: =MONTH(EY2) -> 2 | EZ71: =MONTH(EZ2) -> 3 | FA71: =MONTH(FA2) -> 4 | FB71: =MONTH(FB2) -> 5 | FC71: =MONTH(FC2) -> 6 | FD71: =MONTH(FD2) -> 7 | FE71: =MONTH(FE2) -> 8 | FF71: =MONTH(FF2) -> 9 | FG71: =MONTH(FG2) -> 10 | FH71: =MONTH(FH2) -> 11 | FI71: =MONTH(FI2) -> 12
C72: Seasonal Factor | H72: =IF(NOT(H3),LOOKUP(H71,Scenarios!61:61,Scenarios!62:62),H7/12) -> 1 | I72: =IF(NOT(I3),LOOKUP(I71,Scenarios!61:61,Scenarios!62:62),I7/12) -> 1 | J72: =IF(NOT(J3),LOOKUP(J71,Scenarios!61:61,Scenarios!62:62),J7/12) -> 1 | K72: =IF(NOT(K3),LOOKUP(K71,Scenarios!61:61,Scenarios!62:62),K7/12) -> 1 | L72: =IF(NOT(L3),LOOKUP(L71,Scenarios!61:61,Scenarios!62:62),L7/12) -> 0.25 | M72: =IF(NOT(M3),LOOKUP(M71,Scenarios!61:61,Scenarios!62:62),M7/12) -> 0.08942714884 | N72: =IF(NOT(N3),LOOKUP(N71,Scenarios!61:61,Scenarios!62:62),N7/12) -> 0.08338249241 | O72: =IF(NOT(O3),LOOKUP(O71,Scenarios!61:61,Scenarios!62:62),O7/12) -> 0.1119458115 | P72: =IF(NOT(P3),LOOKUP(P71,Scenarios!61:61,Scenarios!62:62),P7/12) -> 0.0809402818 | Q72: =IF(NOT(Q3),LOOKUP(Q71,Scenarios!61:61,Scenarios!62:62),Q7/12) -> 0.0745655463 | R72: =IF(NOT(R3),LOOKUP(R71,Scenarios!61:61,Scenarios!62:62),R7/12) -> 0.0880969613 | S72: =IF(NOT(S3),LOOKUP(S71,Scenarios!61:61,Scenarios!62:62),S7/12) -> 0.08460260789 | T72: =IF(NOT(T3),LOOKUP(T71,Scenarios!61:61,Scenarios!62:62),T7/12) -> 0.05565113935 | U72: =IF(NOT(U3),LOOKUP(U71,Scenarios!61:61,Scenarios!62:62),U7/12) -> 0.06534083435 | V72: =IF(NOT(V3),LOOKUP(V71,Scenarios!61:61,Scenarios!62:62),V7/12) -> 0.07567807692 | W72: =IF(NOT(W3),LOOKUP(W71,Scenarios!61:61,Scenarios!62:62),W7/12) -> 0.09532586235 | X72: =IF(NOT(X3),LOOKUP(X71,Scenarios!61:61,Scenarios!62:62),X7/12) -> 0.09504323696 | Y72: =IF(NOT(Y3),LOOKUP(Y71,Scenarios!61:61,Scenarios!62:62),Y7/12) -> 0.08942714884 | Z72: =IF(NOT(Z3),LOOKUP(Z71,Scenarios!61:61,Scenarios!62:62),Z7/12) -> 0.08338249241 | AA72: =IF(NOT(AA3),LOOKUP(AA71,Scenarios!61:61,Scenarios!62:62),AA7/12) -> 0.1119458115 | AB72: =IF(NOT(AB3),LOOKUP(AB71,Scenarios!61:61,Scenarios!62:62),AB7/12) -> 0.0809402818 | AC72: =IF(NOT(AC3),LOOKUP(AC71,Scenarios!61:61,Scenarios!62:62),AC7/12) -> 0.0745655463 | AD72: =IF(NOT(AD3),LOOKUP(AD71,Scenarios!61:61,Scenarios!62:62),AD7/12) -> 0.0880969613 | AE72: =IF(NOT(AE3),LOOKUP(AE71,Scenarios!61:61,Scenarios!62:62),AE7/12) -> 0.08460260789 | AF72: =IF(NOT(AF3),LOOKUP(AF71,Scenarios!61:61,Scenarios!62:62),AF7/12) -> 0.05565113935 | AG72: =IF(NOT(AG3),LOOKUP(AG71,Scenarios!61:61,Scenarios!62:62),AG7/12) -> 0.06534083435 | AH72: =IF(NOT(AH3),LOOKUP(AH71,Scenarios!61:61,Scenarios!62:62),AH7/12) -> 0.07567807692 | AI72: =IF(NOT(AI3),LOOKUP(AI71,Scenarios!61:61,Scenarios!62:62),AI7/12) -> 0.09532586235 | AJ72: =IF(NOT(AJ3),LOOKUP(AJ71,Scenarios!61:61,Scenarios!62:62),AJ7/12) -> 0.09504323696 | AK72: =IF(NOT(AK3),LOOKUP(AK71,Scenarios!61:61,Scenarios!62:62),AK7/12) -> 0.08942714884 | AL72: =IF(NOT(AL3),LOOKUP(AL71,Scenarios!61:61,Scenarios!62:62),AL7/12) -> 0.08338249241 | AM72: =IF(NOT(AM3),LOOKUP(AM71,Scenarios!61:61,Scenarios!62:62),AM7/12) -> 0.1119458115 | AN72: =IF(NOT(AN3),LOOKUP(AN71,Scenarios!61:61,Scenarios!62:62),AN7/12) -> 0.0809402818 | AO72: =IF(NOT(AO3),LOOKUP(AO71,Scenarios!61:61,Scenarios!62:62),AO7/12) -> 0.0745655463 | AP72: =IF(NOT(AP3),LOOKUP(AP71,Scenarios!61:61,Scenarios!62:62),AP7/12) -> 0.0880969613 | AQ72: =IF(NOT(AQ3),LOOKUP(AQ71,Scenarios!61:61,Scenarios!62:62),AQ7/12) -> 0.08460260789 | AR72: =IF(NOT(AR3),LOOKUP(AR71,Scenarios!61:61,Scenarios!62:62),AR7/12) -> 0.05565113935 | AS72: =IF(NOT(AS3),LOOKUP(AS71,Scenarios!61:61,Scenarios!62:62),AS7/12) -> 0.06534083435 | AT72: =IF(NOT(AT3),LOOKUP(AT71,Scenarios!61:61,Scenarios!62:62),AT7/12) -> 0.07567807692 | AU72: =IF(NOT(AU3),LOOKUP(AU71,Scenarios!61:61,Scenarios!62:62),AU7/12) -> 0.09532586235 | AV72: =IF(NOT(AV3),LOOKUP(AV71,Scenarios!61:61,Scenarios!62:62),AV7/12) -> 0.09504323696 | AW72: =IF(NOT(AW3),LOOKUP(AW71,Scenarios!61:61,Scenarios!62:62),AW7/12) -> 0.08942714884 | AX72: =IF(NOT(AX3),LOOKUP(AX71,Scenarios!61:61,Scenarios!62:62),AX7/12) -> 0.08338249241 | AY72: =IF(NOT(AY3),LOOKUP(AY71,Scenarios!61:61,Scenarios!62:62),AY7/12) -> 0.1119458115 | AZ72: =IF(NOT(AZ3),LOOKUP(AZ71,Scenarios!61:61,Scenarios!62:62),AZ7/12) -> 0.0809402818 | BA72: =IF(NOT(BA3),LOOKUP(BA71,Scenarios!61:61,Scenarios!62:62),BA7/12) -> 0.0745655463 | BB72: =IF(NOT(BB3),LOOKUP(BB71,Scenarios!61:61,Scenarios!62:62),BB7/12) -> 0.0880969613 | BC72: =IF(NOT(BC3),LOOKUP(BC71,Scenarios!61:61,Scenarios!62:62),BC7/12) -> 0.08460260789 | BD72: =IF(NOT(BD3),LOOKUP(BD71,Scenarios!61:61,Scenarios!62:62),BD7/12) -> 0.05565113935 | BE72: =IF(NOT(BE3),LOOKUP(BE71,Scenarios!61:61,Scenarios!62:62),BE7/12) -> 0.06534083435 | BF72: =IF(NOT(BF3),LOOKUP(BF71,Scenarios!61:61,Scenarios!62:62),BF7/12) -> 0.07567807692 | BG72: =IF(NOT(BG3),LOOKUP(BG71,Scenarios!61:61,Scenarios!62:62),BG7/12) -> 0.09532586235 | BH72: =IF(NOT(BH3),LOOKUP(BH71,Scenarios!61:61,Scenarios!62:62),BH7/12) -> 0.09504323696 | BI72: =IF(NOT(BI3),LOOKUP(BI71,Scenarios!61:61,Scenarios!62:62),BI7/12) -> 0.08942714884 | BJ72: =IF(NOT(BJ3),LOOKUP(BJ71,Scenarios!61:61,Scenarios!62:62),BJ7/12) -> 0.08338249241 | BK72: =IF(NOT(BK3),LOOKUP(BK71,Scenarios!61:61,Scenarios!62:62),BK7/12) -> 0.1119458115 | BL72: =IF(NOT(BL3),LOOKUP(BL71,Scenarios!61:61,Scenarios!62:62),BL7/12) -> 0.0809402818 | BM72: =IF(NOT(BM3),LOOKUP(BM71,Scenarios!61:61,Scenarios!62:62),BM7/12) -> 0.0745655463 | BN72: =IF(NOT(BN3),LOOKUP(BN71,Scenarios!61:61,Scenarios!62:62),BN7/12) -> 0.0880969613 | BO72: =IF(NOT(BO3),LOOKUP(BO71,Scenarios!61:61,Scenarios!62:62),BO7/12) -> 0.08460260789 | BP72: =IF(NOT(BP3),LOOKUP(BP71,Scenarios!61:61,Scenarios!62:62),BP7/12) -> 0.05565113935 | BQ72: =IF(NOT(BQ3),LOOKUP(BQ71,Scenarios!61:61,Scenarios!62:62),BQ7/12) -> 0.06534083435 | BR72: =IF(NOT(BR3),LOOKUP(BR71,Scenarios!61:61,Scenarios!62:62),BR7/12) -> 0.07567807692 | BS72: =IF(NOT(BS3),LOOKUP(BS71,Scenarios!61:61,Scenarios!62:62),BS7/12) -> 0.09532586235 | BT72: =IF(NOT(BT3),LOOKUP(BT71,Scenarios!61:61,Scenarios!62:62),BT7/12) -> 0.09504323696 | BU72: =IF(NOT(BU3),LOOKUP(BU71,Scenarios!61:61,Scenarios!62:62),BU7/12) -> 0.08942714884 | BV72: =IF(NOT(BV3),LOOKUP(BV71,Scenarios!61:61,Scenarios!62:62),BV7/12) -> 0.08338249241 | BW72: =IF(NOT(BW3),LOOKUP(BW71,Scenarios!61:61,Scenarios!62:62),BW7/12) -> 0.1119458115 | BX72: =IF(NOT(BX3),LOOKUP(BX71,Scenarios!61:61,Scenarios!62:62),BX7/12) -> 0.0809402818 | BY72: =IF(NOT(BY3),LOOKUP(BY71,Scenarios!61:61,Scenarios!62:62),BY7/12) -> 0.0745655463 | BZ72: =IF(NOT(BZ3),LOOKUP(BZ71,Scenarios!61:61,Scenarios!62:62),BZ7/12) -> 0.0880969613 | CA72: =IF(NOT(CA3),LOOKUP(CA71,Scenarios!61:61,Scenarios!62:62),CA7/12) -> 0.08460260789 | CB72: =IF(NOT(CB3),LOOKUP(CB71,Scenarios!61:61,Scenarios!62:62),CB7/12) -> 0.05565113935 | CC72: =IF(NOT(CC3),LOOKUP(CC71,Scenarios!61:61,Scenarios!62:62),CC7/12) -> 0.06534083435 | CD72: =IF(NOT(CD3),LOOKUP(CD71,Scenarios!61:61,Scenarios!62:62),CD7/12) -> 0.07567807692 | CE72: =IF(NOT(CE3),LOOKUP(CE71,Scenarios!61:61,Scenarios!62:62),CE7/12) -> 0.09532586235 | CF72: =IF(NOT(CF3),LOOKUP(CF71,Scenarios!61:61,Scenarios!62:62),CF7/12) -> 0.09504323696 | CG72: =IF(NOT(CG3),LOOKUP(CG71,Scenarios!61:61,Scenarios!62:62),CG7/12) -> 0.08942714884 | CH72: =IF(NOT(CH3),LOOKUP(CH71,Scenarios!61:61,Scenarios!62:62),CH7/12) -> 0.08338249241 | CI72: =IF(NOT(CI3),LOOKUP(CI71,Scenarios!61:61,Scenarios!62:62),CI7/12) -> 0.1119458115 | CJ72: =IF(NOT(CJ3),LOOKUP(CJ71,Scenarios!61:61,Scenarios!62:62),CJ7/12) -> 0.0809402818 | CK72: =IF(NOT(CK3),LOOKUP(CK71,Scenarios!61:61,Scenarios!62:62),CK7/12) -> 0.0745655463 | CL72: =IF(NOT(CL3),LOOKUP(CL71,Scenarios!61:61,Scenarios!62:62),CL7/12) -> 0.0880969613 | CM72: =IF(NOT(CM3),LOOKUP(CM71,Scenarios!61:61,Scenarios!62:62),CM7/12) -> 0.08460260789 | CN72: =IF(NOT(CN3),LOOKUP(CN71,Scenarios!61:61,Scenarios!62:62),CN7/12) -> 0.05565113935 | CO72: =IF(NOT(CO3),LOOKUP(CO71,Scenarios!61:61,Scenarios!62:62),CO7/12) -> 0.06534083435 | CP72: =IF(NOT(CP3),LOOKUP(CP71,Scenarios!61:61,Scenarios!62:62),CP7/12) -> 0.07567807692 | CQ72: =IF(NOT(CQ3),LOOKUP(CQ71,Scenarios!61:61,Scenarios!62:62),CQ7/12) -> 0.09532586235 | CR72: =IF(NOT(CR3),LOOKUP(CR71,Scenarios!61:61,Scenarios!62:62),CR7/12) -> 0.09504323696 | CS72: =IF(NOT(CS3),LOOKUP(CS71,Scenarios!61:61,Scenarios!62:62),CS7/12) -> 0.08942714884 | CT72: =IF(NOT(CT3),LOOKUP(CT71,Scenarios!61:61,Scenarios!62:62),CT7/12) -> 0.08338249241 | CU72: =IF(NOT(CU3),LOOKUP(CU71,Scenarios!61:61,Scenarios!62:62),CU7/12) -> 0.1119458115 | CV72: =IF(NOT(CV3),LOOKUP(CV71,Scenarios!61:61,Scenarios!62:62),CV7/12) -> 0.0809402818 | CW72: =IF(NOT(CW3),LOOKUP(CW71,Scenarios!61:61,Scenarios!62:62),CW7/12) -> 0.0745655463 | CX72: =IF(NOT(CX3),LOOKUP(CX71,Scenarios!61:61,Scenarios!62:62),CX7/12) -> 0.0880969613 | CY72: =IF(NOT(CY3),LOOKUP(CY71,Scenarios!61:61,Scenarios!62:62),CY7/12) -> 0.08460260789 | CZ72: =IF(NOT(CZ3),LOOKUP(CZ71,Scenarios!61:61,Scenarios!62:62),CZ7/12) -> 0.05565113935 | DA72: =IF(NOT(DA3),LOOKUP(DA71,Scenarios!61:61,Scenarios!62:62),DA7/12) -> 0.06534083435 | DB72: =IF(NOT(DB3),LOOKUP(DB71,Scenarios!61:61,Scenarios!62:62),DB7/12) -> 0.07567807692 | DC72: =IF(NOT(DC3),LOOKUP(DC71,Scenarios!61:61,Scenarios!62:62),DC7/12) -> 0.09532586235 | DD72: =IF(NOT(DD3),LOOKUP(DD71,Scenarios!61:61,Scenarios!62:62),DD7/12) -> 0.09504323696 | DE72: =IF(NOT(DE3),LOOKUP(DE71,Scenarios!61:61,Scenarios!62:62),DE7/12) -> 0.08942714884 | DF72: =IF(NOT(DF3),LOOKUP(DF71,Scenarios!61:61,Scenarios!62:62),DF7/12) -> 0.08338249241 | DG72: =IF(NOT(DG3),LOOKUP(DG71,Scenarios!61:61,Scenarios!62:62),DG7/12) -> 0.1119458115 | DH72: =IF(NOT(DH3),LOOKUP(DH71,Scenarios!61:61,Scenarios!62:62),DH7/12) -> 0.0809402818 | DI72: =IF(NOT(DI3),LOOKUP(DI71,Scenarios!61:61,Scenarios!62:62),DI7/12) -> 0.0745655463 | DJ72: =IF(NOT(DJ3),LOOKUP(DJ71,Scenarios!61:61,Scenarios!62:62),DJ7/12) -> 0.0880969613 | DK72: =IF(NOT(DK3),LOOKUP(DK71,Scenarios!61:61,Scenarios!62:62),DK7/12) -> 0.08460260789 | DL72: =IF(NOT(DL3),LOOKUP(DL71,Scenarios!61:61,Scenarios!62:62),DL7/12) -> 0.05565113935 | DM72: =IF(NOT(DM3),LOOKUP(DM71,Scenarios!61:61,Scenarios!62:62),DM7/12) -> 0.06534083435 | DN72: =IF(NOT(DN3),LOOKUP(DN71,Scenarios!61:61,Scenarios!62:62),DN7/12) -> 0.07567807692 | DO72: =IF(NOT(DO3),LOOKUP(DO71,Scenarios!61:61,Scenarios!62:62),DO7/12) -> 0.09532586235 | DP72: =IF(NOT(DP3),LOOKUP(DP71,Scenarios!61:61,Scenarios!62:62),DP7/12) -> 0.09504323696 | DQ72: =IF(NOT(DQ3),LOOKUP(DQ71,Scenarios!61:61,Scenarios!62:62),DQ7/12) -> 0.08942714884 | DR72: =IF(NOT(DR3),LOOKUP(DR71,Scenarios!61:61,Scenarios!62:62),DR7/12) -> 0.08338249241 | DS72: =IF(NOT(DS3),LOOKUP(DS71,Scenarios!61:61,Scenarios!62:62),DS7/12) -> 0.1119458115 | DT72: =IF(NOT(DT3),LOOKUP(DT71,Scenarios!61:61,Scenarios!62:62),DT7/12) -> 0.0809402818 | DU72: =IF(NOT(DU3),LOOKUP(DU71,Scenarios!61:61,Scenarios!62:62),DU7/12) -> 0.0745655463 | DV72: =IF(NOT(DV3),LOOKUP(DV71,Scenarios!61:61,Scenarios!62:62),DV7/12) -> 0.0880969613 | DW72: =IF(NOT(DW3),LOOKUP(DW71,Scenarios!61:61,Scenarios!62:62),DW7/12) -> 0.08460260789 | DX72: =IF(NOT(DX3),LOOKUP(DX71,Scenarios!61:61,Scenarios!62:62),DX7/12) -> 0.05565113935 | DY72: =IF(NOT(DY3),LOOKUP(DY71,Scenarios!61:61,Scenarios!62:62),DY7/12) -> 0.06534083435 | DZ72: =IF(NOT(DZ3),LOOKUP(DZ71,Scenarios!61:61,Scenarios!62:62),DZ7/12) -> 0.07567807692 | EA72: =IF(NOT(EA3),LOOKUP(EA71,Scenarios!61:61,Scenarios!62:62),EA7/12) -> 0.09532586235 | EB72: =IF(NOT(EB3),LOOKUP(EB71,Scenarios!61:61,Scenarios!62:62),EB7/12) -> 0.09504323696 | EC72: =IF(NOT(EC3),LOOKUP(EC71,Scenarios!61:61,Scenarios!62:62),EC7/12) -> 0.08942714884 | ED72: =IF(NOT(ED3),LOOKUP(ED71,Scenarios!61:61,Scenarios!62:62),ED7/12) -> 0.08338249241 | EE72: =IF(NOT(EE3),LOOKUP(EE71,Scenarios!61:61,Scenarios!62:62),EE7/12) -> 0.1119458115 | EF72: =IF(NOT(EF3),LOOKUP(EF71,Scenarios!61:61,Scenarios!62:62),EF7/12) -> 0.0809402818 | EG72: =IF(NOT(EG3),LOOKUP(EG71,Scenarios!61:61,Scenarios!62:62),EG7/12) -> 0.0745655463 | EH72: =IF(NOT(EH3),LOOKUP(EH71,Scenarios!61:61,Scenarios!62:62),EH7/12) -> 0.0880969613 | EI72: =IF(NOT(EI3),LOOKUP(EI71,Scenarios!61:61,Scenarios!62:62),EI7/12) -> 0.08460260789 | EJ72: =IF(NOT(EJ3),LOOKUP(EJ71,Scenarios!61:61,Scenarios!62:62),EJ7/12) -> 0.05565113935 | EK72: =IF(NOT(EK3),LOOKUP(EK71,Scenarios!61:61,Scenarios!62:62),EK7/12) -> 0.06534083435 | EL72: =IF(NOT(EL3),LOOKUP(EL71,Scenarios!61:61,Scenarios!62:62),EL7/12) -> 0.07567807692 | EM72: =IF(NOT(EM3),LOOKUP(EM71,Scenarios!61:61,Scenarios!62:62),EM7/12) -> 0.09532586235 | EN72: =IF(NOT(EN3),LOOKUP(EN71,Scenarios!61:61,Scenarios!62:62),EN7/12) -> 0.09504323696 | EO72: =IF(NOT(EO3),LOOKUP(EO71,Scenarios!61:61,Scenarios!62:62),EO7/12) -> 0.08942714884 | EP72: =IF(NOT(EP3),LOOKUP(EP71,Scenarios!61:61,Scenarios!62:62),EP7/12) -> 0.08338249241 | EQ72: =IF(NOT(EQ3),LOOKUP(EQ71,Scenarios!61:61,Scenarios!62:62),EQ7/12) -> 0.1119458115 | ER72: =IF(NOT(ER3),LOOKUP(ER71,Scenarios!61:61,Scenarios!62:62),ER7/12) -> 0.0809402818 | ES72: =IF(NOT(ES3),LOOKUP(ES71,Scenarios!61:61,Scenarios!62:62),ES7/12) -> 0.0745655463 | ET72: =IF(NOT(ET3),LOOKUP(ET71,Scenarios!61:61,Scenarios!62:62),ET7/12) -> 0.0880969613 | EU72: =IF(NOT(EU3),LOOKUP(EU71,Scenarios!61:61,Scenarios!62:62),EU7/12) -> 0.08460260789 | EV72: =IF(NOT(EV3),LOOKUP(EV71,Scenarios!61:61,Scenarios!62:62),EV7/12) -> 0.05565113935 | EW72: =IF(NOT(EW3),LOOKUP(EW71,Scenarios!61:61,Scenarios!62:62),EW7/12) -> 0.06534083435 | EX72: =IF(NOT(EX3),LOOKUP(EX71,Scenarios!61:61,Scenarios!62:62),EX7/12) -> 0.07567807692 | EY72: =IF(NOT(EY3),LOOKUP(EY71,Scenarios!61:61,Scenarios!62:62),EY7/12) -> 0.09532586235 | EZ72: =IF(NOT(EZ3),LOOKUP(EZ71,Scenarios!61:61,Scenarios!62:62),EZ7/12) -> 0.09504323696 | FA72: =IF(NOT(FA3),LOOKUP(FA71,Scenarios!61:61,Scenarios!62:62),FA7/12) -> 0.08942714884 | FB72: =IF(NOT(FB3),LOOKUP(FB71,Scenarios!61:61,Scenarios!62:62),FB7/12) -> 0.08338249241 | FC72: =IF(NOT(FC3),LOOKUP(FC71,Scenarios!61:61,Scenarios!62:62),FC7/12) -> 0.1119458115 | FD72: =IF(NOT(FD3),LOOKUP(FD71,Scenarios!61:61,Scenarios!62:62),FD7/12) -> 0.0809402818 | FE72: =IF(NOT(FE3),LOOKUP(FE71,Scenarios!61:61,Scenarios!62:62),FE7/12) -> 0.0745655463 | FF72: =IF(NOT(FF3),LOOKUP(FF71,Scenarios!61:61,Scenarios!62:62),FF7/12) -> 0.0880969613 | FG72: =IF(NOT(FG3),LOOKUP(FG71,Scenarios!61:61,Scenarios!62:62),FG7/12) -> 0.08460260789 | FH72: =IF(NOT(FH3),LOOKUP(FH71,Scenarios!61:61,Scenarios!62:62),FH7/12) -> 0.05565113935 | FI72: =IF(NOT(FI3),LOOKUP(FI71,Scenarios!61:61,Scenarios!62:62),FI7/12) -> 0.06534083435
C73: Passenger Sensitivity Factor | F73: =Scenarios!F58 -> 0.66 | H73: =IF(H3,1,$F$73) -> 1 | I73: =IF(I3,1,$F$73) -> 1 | J73: =IF(J3,1,$F$73) -> 1 | K73: =IF(K3,1,$F$73) -> 1 | L73: =IF(L3,1,$F$73) -> 1 | M73: =IF(M3,1,$F$73) -> 0.66 | N73: =IF(N3,1,$F$73) -> 0.66 | O73: =IF(O3,1,$F$73) -> 0.66 | P73: =IF(P3,1,$F$73) -> 0.66 | Q73: =IF(Q3,1,$F$73) -> 0.66 | R73: =IF(R3,1,$F$73) -> 0.66 | S73: =IF(S3,1,$F$73) -> 0.66 | T73: =IF(T3,1,$F$73) -> 0.66 | U73: =IF(U3,1,$F$73) -> 0.66 | V73: =IF(V3,1,$F$73) -> 0.66 | W73: =IF(W3,1,$F$73) -> 0.66 | X73: =IF(X3,1,$F$73) -> 0.66 | Y73: =IF(Y3,1,$F$73) -> 0.66 | Z73: =IF(Z3,1,$F$73) -> 0.66 | AA73: =IF(AA3,1,$F$73) -> 0.66 | AB73: =IF(AB3,1,$F$73) -> 0.66 | AC73: =IF(AC3,1,$F$73) -> 0.66 | AD73: =IF(AD3,1,$F$73) -> 0.66 | AE73: =IF(AE3,1,$F$73) -> 0.66 | AF73: =IF(AF3,1,$F$73) -> 0.66 | AG73: =IF(AG3,1,$F$73) -> 0.66 | AH73: =IF(AH3,1,$F$73) -> 0.66 | AI73: =IF(AI3,1,$F$73) -> 0.66 | AJ73: =IF(AJ3,1,$F$73) -> 0.66 | AK73: =IF(AK3,1,$F$73) -> 0.66 | AL73: =IF(AL3,1,$F$73) -> 0.66 | AM73: =IF(AM3,1,$F$73) -> 0.66 | AN73: =IF(AN3,1,$F$73) -> 0.66 | AO73: =IF(AO3,1,$F$73) -> 0.66 | AP73: =IF(AP3,1,$F$73) -> 0.66 | AQ73: =IF(AQ3,1,$F$73) -> 0.66 | AR73: =IF(AR3,1,$F$73) -> 0.66 | AS73: =IF(AS3,1,$F$73) -> 0.66 | AT73: =IF(AT3,1,$F$73) -> 0.66 | AU73: =IF(AU3,1,$F$73) -> 0.66 | AV73: =IF(AV3,1,$F$73) -> 0.66 | AW73: =IF(AW3,1,$F$73) -> 0.66 | AX73: =IF(AX3,1,$F$73) -> 0.66 | AY73: =IF(AY3,1,$F$73) -> 0.66 | AZ73: =IF(AZ3,1,$F$73) -> 0.66 | BA73: =IF(BA3,1,$F$73) -> 0.66 | BB73: =IF(BB3,1,$F$73) -> 0.66 | BC73: =IF(BC3,1,$F$73) -> 0.66 | BD73: =IF(BD3,1,$F$73) -> 0.66 | BE73: =IF(BE3,1,$F$73) -> 0.66 | BF73: =IF(BF3,1,$F$73) -> 0.66 | BG73: =IF(BG3,1,$F$73) -> 0.66 | BH73: =IF(BH3,1,$F$73) -> 0.66 | BI73: =IF(BI3,1,$F$73) -> 0.66 | BJ73: =IF(BJ3,1,$F$73) -> 0.66 | BK73: =IF(BK3,1,$F$73) -> 0.66 | BL73: =IF(BL3,1,$F$73) -> 0.66 | BM73: =IF(BM3,1,$F$73) -> 0.66 | BN73: =IF(BN3,1,$F$73) -> 0.66 | BO73: =IF(BO3,1,$F$73) -> 0.66 | BP73: =IF(BP3,1,$F$73) -> 0.66 | BQ73: =IF(BQ3,1,$F$73) -> 0.66 | BR73: =IF(BR3,1,$F$73) -> 0.66 | BS73: =IF(BS3,1,$F$73) -> 0.66 | BT73: =IF(BT3,1,$F$73) -> 0.66 | BU73: =IF(BU3,1,$F$73) -> 0.66 | BV73: =IF(BV3,1,$F$73) -> 0.66 | BW73: =IF(BW3,1,$F$73) -> 0.66 | BX73: =IF(BX3,1,$F$73) -> 0.66 | BY73: =IF(BY3,1,$F$73) -> 0.66 | BZ73: =IF(BZ3,1,$F$73) -> 0.66 | CA73: =IF(CA3,1,$F$73) -> 0.66 | CB73: =IF(CB3,1,$F$73) -> 0.66 | CC73: =IF(CC3,1,$F$73) -> 0.66 | CD73: =IF(CD3,1,$F$73) -> 0.66 | CE73: =IF(CE3,1,$F$73) -> 0.66 | CF73: =IF(CF3,1,$F$73) -> 0.66 | CG73: =IF(CG3,1,$F$73) -> 0.66 | CH73: =IF(CH3,1,$F$73) -> 0.66 | CI73: =IF(CI3,1,$F$73) -> 0.66 | CJ73: =IF(CJ3,1,$F$73) -> 0.66 | CK73: =IF(CK3,1,$F$73) -> 0.66 | CL73: =IF(CL3,1,$F$73) -> 0.66 | CM73: =IF(CM3,1,$F$73) -> 0.66 | CN73: =IF(CN3,1,$F$73) -> 0.66 | CO73: =IF(CO3,1,$F$73) -> 0.66 | CP73: =IF(CP3,1,$F$73) -> 0.66 | CQ73: =IF(CQ3,1,$F$73) -> 0.66 | CR73: =IF(CR3,1,$F$73) -> 0.66 | CS73: =IF(CS3,1,$F$73) -> 0.66 | CT73: =IF(CT3,1,$F$73) -> 0.66 | CU73: =IF(CU3,1,$F$73) -> 0.66 | CV73: =IF(CV3,1,$F$73) -> 0.66 | CW73: =IF(CW3,1,$F$73) -> 0.66 | CX73: =IF(CX3,1,$F$73) -> 0.66 | CY73: =IF(CY3,1,$F$73) -> 0.66 | CZ73: =IF(CZ3,1,$F$73) -> 0.66 | DA73: =IF(DA3,1,$F$73) -> 0.66 | DB73: =IF(DB3,1,$F$73) -> 0.66 | DC73: =IF(DC3,1,$F$73) -> 0.66 | DD73: =IF(DD3,1,$F$73) -> 0.66 | DE73: =IF(DE3,1,$F$73) -> 0.66 | DF73: =IF(DF3,1,$F$73) -> 0.66 | DG73: =IF(DG3,1,$F$73) -> 0.66 | DH73: =IF(DH3,1,$F$73) -> 0.66 | DI73: =IF(DI3,1,$F$73) -> 0.66 | DJ73: =IF(DJ3,1,$F$73) -> 0.66 | DK73: =IF(DK3,1,$F$73) -> 0.66 | DL73: =IF(DL3,1,$F$73) -> 0.66 | DM73: =IF(DM3,1,$F$73) -> 0.66 | DN73: =IF(DN3,1,$F$73) -> 0.66 | DO73: =IF(DO3,1,$F$73) -> 0.66 | DP73: =IF(DP3,1,$F$73) -> 0.66 | DQ73: =IF(DQ3,1,$F$73) -> 0.66 | DR73: =IF(DR3,1,$F$73) -> 0.66 | DS73: =IF(DS3,1,$F$73) -> 0.66 | DT73: =IF(DT3,1,$F$73) -> 0.66 | DU73: =IF(DU3,1,$F$73) -> 0.66 | DV73: =IF(DV3,1,$F$73) -> 0.66 | DW73: =IF(DW3,1,$F$73) -> 0.66 | DX73: =IF(DX3,1,$F$73) -> 0.66 | DY73: =IF(DY3,1,$F$73) -> 0.66 | DZ73: =IF(DZ3,1,$F$73) -> 0.66 | EA73: =IF(EA3,1,$F$73) -> 0.66 | EB73: =IF(EB3,1,$F$73) -> 0.66 | EC73: =IF(EC3,1,$F$73) -> 0.66 | ED73: =IF(ED3,1,$F$73) -> 0.66 | EE73: =IF(EE3,1,$F$73) -> 0.66 | EF73: =IF(EF3,1,$F$73) -> 0.66 | EG73: =IF(EG3,1,$F$73) -> 0.66 | EH73: =IF(EH3,1,$F$73) -> 0.66 | EI73: =IF(EI3,1,$F$73) -> 0.66 | EJ73: =IF(EJ3,1,$F$73) -> 0.66 | EK73: =IF(EK3,1,$F$73) -> 0.66 | EL73: =IF(EL3,1,$F$73) -> 0.66 | EM73: =IF(EM3,1,$F$73) -> 0.66 | EN73: =IF(EN3,1,$F$73) -> 0.66 | EO73: =IF(EO3,1,$F$73) -> 0.66 | EP73: =IF(EP3,1,$F$73) -> 0.66 | EQ73: =IF(EQ3,1,$F$73) -> 0.66 | ER73: =IF(ER3,1,$F$73) -> 0.66 | ES73: =IF(ES3,1,$F$73) -> 0.66 | ET73: =IF(ET3,1,$F$73) -> 0.66 | EU73: =IF(EU3,1,$F$73) -> 0.66 | EV73: =IF(EV3,1,$F$73) -> 0.66 | EW73: =IF(EW3,1,$F$73) -> 0.66 | EX73: =IF(EX3,1,$F$73) -> 0.66 | EY73: =IF(EY3,1,$F$73) -> 0.66 | EZ73: =IF(EZ3,1,$F$73) -> 0.66 | FA73: =IF(FA3,1,$F$73) -> 0.66 | FB73: =IF(FB3,1,$F$73) -> 0.66 | FC73: =IF(FC3,1,$F$73) -> 0.66 | FD73: =IF(FD3,1,$F$73) -> 0.66 | FE73: =IF(FE3,1,$F$73) -> 0.66 | FF73: =IF(FF3,1,$F$73) -> 0.66 | FG73: =IF(FG3,1,$F$73) -> 0.66 | FH73: =IF(FH3,1,$F$73) -> 0.66 | FI73: =IF(FI3,1,$F$73) -> 0.66
C74: Periodic Passengers | H74: =IF(H3,H16,H72*H70)*H73 -> 605751.6402 | I74: =IF(I3,I16,I72*I70)*I73 -> 608834.825 | J74: 636674 | K74: 664092 | L74: 208229 | M74: 42200.67154 | N74: 39348.19817 | O74: 52827.22846 | P74: 38195.71898 | Q74: 35187.4813 | R74: 41572.95604 | S74: 39923.97066 | T74: 26261.77266 | U74: 30834.33973 | V74: 33023.24664 | W74: 41596.84801 | X74: 41473.52025 | Y74: 39022.85725 | Z74: 36385.18213 | AA74: 48849.20831 | AB74: 35319.48747 | AC74: 32537.77747 | AD74: 38442.41027 | AE74: 36917.59755 | AF74: 24284.19663 | AG74: 28512.43816 | AH74: 33023.24664 | AI74: 41596.84801 | AJ74: 41473.52025 | AK74: 39022.85725 | AL74: 36385.18213 | AM74: 48849.20831 | AN74: 35319.48747 | AO74: 32537.77747 | AP74: 38442.41027 | AQ74: 36917.59755 | AR74: 24284.19663 | AS74: 28512.43816 | AT74: 33023.24664 | AU74: 41596.84801 | AV74: 41473.52025 | AW74: 39022.85725 | AX74: 36385.18213 | AY74: 48849.20831 | AZ74: 35319.48747 | BA74: 32537.77747 | BB74: 38442.41027 | BC74: 36917.59755 | BD74: 24284.19663 | BE74: 28512.43816 | BF74: 33023.24664 | BG74: 41596.84801 | BH74: 41473.52025 | BI74: 39022.85725 | BJ74: 36385.18213 | BK74: 48849.20831 | BL74: 35319.48747 | BM74: 32537.77747 | BN74: 38442.41027 | BO74: 36917.59755 | BP74: 24284.19663 | BQ74: 28512.43816 | BR74: 33023.24664 | BS74: 41596.84801 | BT74: 41473.52025 | BU74: =IF(BU3,BU16,BU72*BU70)*BU73 -> 39022.85725 | BV74: 36385.18213 | BW74: 48849.20831 | BX74: 35319.48747 | BY74: 32537.77747 | BZ74: 38442.41027 | CA74: 36917.59755 | CB74: 24284.19663 | CC74: 28512.43816 | CD74: 33023.24664 | CE74: 41596.84801 | CF74: 41473.52025 | CG74: 39022.85725 | CH74: 36385.18213 | CI74: 48849.20831 | CJ74: 35319.48747 | CK74: 32537.77747 | CL74: 38442.41027 | CM74: 36917.59755 | CN74: 24284.19663 | CO74: 28512.43816 | CP74: 33023.24664 | CQ74: 41596.84801 | CR74: 41473.52025 | CS74: 39022.85725 | CT74: 36385.18213 | CU74: 48849.20831 | CV74: 35319.48747 | CW74: 32537.77747 | CX74: 38442.41027 | CY74: 36917.59755 | CZ74: 24284.19663 | DA74: 28512.43816 | DB74: 33023.24664 | DC74: 41596.84801 | DD74: 41473.52025 | DE74: 39022.85725 | DF74: 36385.18213 | DG74: 48849.20831 | DH74: 35319.48747 | DI74: 32537.77747 | DJ74: 38442.41027 | DK74: 36917.59755 | DL74: 24284.19663 | DM74: 28512.43816 | DN74: 33023.24664 | DO74: 41596.84801 | DP74: 41473.52025 | DQ74: 39022.85725 | DR74: 36385.18213 | DS74: 48849.20831 | DT74: 35319.48747 | DU74: 32537.77747 | DV74: 38442.41027 | DW74: 36917.59755 | DX74: 24284.19663 | DY74: 28512.43816 | DZ74: 33023.24664 | EA74: 41596.84801 | EB74: 41473.52025 | EC74: 39022.85725 | ED74: 36385.18213 | EE74: 48849.20831 | EF74: 35319.48747 | EG74: =IF(EG3,EG16,EG72*EG70)*EG73 -> 32537.77747 | EH74: 38442.41027 | EI74: 36917.59755 | EJ74: 24284.19663 | EK74: 28512.43816 | EL74: 33023.24664 | EM74: 41596.84801 | EN74: 41473.52025 | EO74: 39022.85725 | EP74: 36385.18213 | EQ74: 48849.20831 | ER74: 35319.48747 | ES74: 32537.77747 | ET74: 38442.41027 | EU74: 36917.59755 | EV74: 24284.19663 | EW74: 28512.43816 | EX74: 33023.24664 | EY74: 41596.84801 | EZ74: 41473.52025 | FA74: 39022.85725 | FB74: 36385.18213 | FC74: 48849.20831 | FD74: 35319.48747 | FE74: 32537.77747 | FF74: 38442.41027 | FG74: 36917.59755 | FH74: 24284.19663 | FI74: 28512.43816
C75: Percent Change in Annual Passengers | I75: =I70/H70-1 -> 0.005089849674 | J75: =J70/I70-1 -> 0.04572533281 | K75: 0.04306442544 | L75: 0.2542177891 | M75: -0.1415700983 | N75: 0 | O75: 0 | P75: 0 | Q75: 0 | R75: 0 | S75: 0 | T75: 0 | U75: 0 | V75: -0.07530245784 | W75: 0 | X75: 0 | Y75: 0 | Z75: 0 | AA75: 0 | AB75: 0 | AC75: 0 | AD75: 0 | AE75: 0 | AF75: 0 | AG75: 0 | AH75: 0 | AI75: 0 | AJ75: 0 | AK75: 0 | AL75: 0 | AM75: 0 | AN75: 0 | AO75: 0 | AP75: 0 | AQ75: 0 | AR75: 0 | AS75: 0 | AT75: 0 | AU75: 0 | AV75: 0 | AW75: 0 | AX75: 0 | AY75: 0 | AZ75: 0 | BA75: 0 | BB75: 0 | BC75: 0 | BD75: 0 | BE75: 0 | BF75: 0 | BG75: 0 | BH75: 0 | BI75: 0 | BJ75: 0 | BK75: 0 | BL75: 0 | BM75: 0 | BN75: 0 | BO75: 0 | BP75: 0 | BQ75: 0 | BR75: 0 | BS75: 0 | BT75: 0 | BU75: 0 | BV75: =BV70/BU70-1 -> 0 | BW75: 0 | BX75: 0 | BY75: 0 | BZ75: 0 | CA75: 0 | CB75: 0 | CC75: 0 | CD75: 0 | CE75: 0 | CF75: 0 | CG75: 0 | CH75: 0 | CI75: 0 | CJ75: 0 | CK75: 0 | CL75: 0 | CM75: 0 | CN75: 0 | CO75: 0 | CP75: 0 | CQ75: 0 | CR75: 0 | CS75: 0 | CT75: 0 | CU75: 0 | CV75: 0 | CW75: 0 | CX75: 0 | CY75: 0 | CZ75: 0 | DA75: 0 | DB75: 0 | DC75: 0 | DD75: 0 | DE75: 0 | DF75: 0 | DG75: 0 | DH75: 0 | DI75: 0 | DJ75: 0 | DK75: 0 | DL75: 0 | DM75: 0 | DN75: 0 | DO75: 0 | DP75: 0 | DQ75: 0 | DR75: 0 | DS75: 0 | DT75: 0 | DU75: 0 | DV75: 0 | DW75: 0 | DX75: 0 | DY75: 0 | DZ75: 0 | EA75: 0 | EB75: 0 | EC75: 0 | ED75: 0 | EE75: 0 | EF75: 0 | EG75: 0 | EH75: =EH70/EG70-1 -> 0 | EI75: 0 | EJ75: 0 | EK75: 0 | EL75: 0 | EM75: 0 | EN75: 0 | EO75: 0 | EP75: 0 | EQ75: 0 | ER75: 0 | ES75: 0 | ET75: 0 | EU75: 0 | EV75: 0 | EW75: 0 | EX75: 0 | EY75: 0 | EZ75: 0 | FA75: 0 | FB75: 0 | FC75: 0 | FD75: 0 | FE75: 0 | FF75: 0 | FG75: 0 | FH75: 0 | FI75: 0
C77: Implied Periodic Passengers | H77: =IFERROR(H87/H80,0) -> 605751.6402 | I77: =IFERROR(I87/I80,0) -> 0 | J77: =IFERROR(J87/J80,0) -> 0 | K77: =IFERROR(K87/K80,0) -> 0 | L77: =IFERROR(L87/L80,0) -> 0 | M77: =IFERROR(M87/M80,0) -> 63940.41142 | N77: =IFERROR(N87/N80,0) -> 59618.48207 | O77: =IFERROR(O87/O80,0) -> 80041.25524 | P77: =IFERROR(P87/P80,0) -> 57872.30149 | Q77: =IFERROR(Q87/Q80,0) -> 53314.3656 | R77: =IFERROR(R87/R80,0) -> 62989.32733 | S77: =IFERROR(S87/S80,0) -> 60490.86464 | T77: =IFERROR(T87/T80,0) -> 39790.56464 | U77: =IFERROR(U87/U80,0) -> 46718.69656 | V77: =IFERROR(V87/V80,0) -> 33023.24664 | W77: =IFERROR(W87/W80,0) -> 41596.84801 | X77: =IFERROR(X87/X80,0) -> 41473.52025 | Y77: =IFERROR(Y87/Y80,0) -> 39022.85725 | Z77: =IFERROR(Z87/Z80,0) -> 36385.18213 | AA77: =IFERROR(AA87/AA80,0) -> 48849.20831 | AB77: =IFERROR(AB87/AB80,0) -> 35319.48747 | AC77: =IFERROR(AC87/AC80,0) -> 32537.77747 | AD77: =IFERROR(AD87/AD80,0) -> 38442.41027 | AE77: =IFERROR(AE87/AE80,0) -> 36917.59755 | AF77: =IFERROR(AF87/AF80,0) -> 24284.19663 | AG77: =IFERROR(AG87/AG80,0) -> 28512.43816 | AH77: =IFERROR(AH87/AH80,0) -> 33023.24664 | AI77: =IFERROR(AI87/AI80,0) -> 41596.84801 | AJ77: =IFERROR(AJ87/AJ80,0) -> 41473.52025 | AK77: =IFERROR(AK87/AK80,0) -> 39022.85725 | AL77: =IFERROR(AL87/AL80,0) -> 36385.18213 | AM77: =IFERROR(AM87/AM80,0) -> 48849.20831 | AN77: =IFERROR(AN87/AN80,0) -> 35319.48747 | AO77: =IFERROR(AO87/AO80,0) -> 32537.77747 | AP77: =IFERROR(AP87/AP80,0) -> 38442.41027 | AQ77: =IFERROR(AQ87/AQ80,0) -> 36917.59755 | AR77: =IFERROR(AR87/AR80,0) -> 24284.19663 | AS77: =IFERROR(AS87/AS80,0) -> 28512.43816 | AT77: =IFERROR(AT87/AT80,0) -> 33023.24664 | AU77: =IFERROR(AU87/AU80,0) -> 41596.84801 | AV77: =IFERROR(AV87/AV80,0) -> 41473.52025 | AW77: =IFERROR(AW87/AW80,0) -> 39022.85725 | AX77: =IFERROR(AX87/AX80,0) -> 36385.18213 | AY77: =IFERROR(AY87/AY80,0) -> 48849.20831 | AZ77: =IFERROR(AZ87/AZ80,0) -> 35319.48747 | BA77: =IFERROR(BA87/BA80,0) -> 32537.77747 | BB77: =IFERROR(BB87/BB80,0) -> 38442.41027 | BC77: =IFERROR(BC87/BC80,0) -> 36917.59755 | BD77: =IFERROR(BD87/BD80,0) -> 24284.19663 | BE77: =IFERROR(BE87/BE80,0) -> 28512.43816 | BF77: =IFERROR(BF87/BF80,0) -> 33023.24664 | BG77: =IFERROR(BG87/BG80,0) -> 41596.84801 | BH77: =IFERROR(BH87/BH80,0) -> 41473.52025 | BI77: =IFERROR(BI87/BI80,0) -> 39022.85725 | BJ77: =IFERROR(BJ87/BJ80,0) -> 36385.18213 | BK77: =IFERROR(BK87/BK80,0) -> 48849.20831 | BL77: =IFERROR(BL87/BL80,0) -> 35319.48747 | BM77: =IFERROR(BM87/BM80,0) -> 32537.77747 | BN77: =IFERROR(BN87/BN80,0) -> 38442.41027 | BO77: =IFERROR(BO87/BO80,0) -> 36917.59755 | BP77: =IFERROR(BP87/BP80,0) -> 24284.19663 | BQ77: =IFERROR(BQ87/BQ80,0) -> 28512.43816 | BR77: =IFERROR(BR87/BR80,0) -> 33023.24664 | BS77: =IFERROR(BS87/BS80,0) -> 41596.84801 | BT77: =IFERROR(BT87/BT80,0) -> 41473.52025 | BU77: =IFERROR(BU87/BU80,0) -> 39022.85725 | BV77: =IFERROR(BV87/BV80,0) -> 36385.18213 | BW77: =IFERROR(BW87/BW80,0) -> 48849.20831 | BX77: =IFERROR(BX87/BX80,0) -> 35319.48747 | BY77: =IFERROR(BY87/BY80,0) -> 32537.77747 | BZ77: =IFERROR(BZ87/BZ80,0) -> 38442.41027 | CA77: =IFERROR(CA87/CA80,0) -> 36917.59755 | CB77: =IFERROR(CB87/CB80,0) -> 24284.19663 | CC77: =IFERROR(CC87/CC80,0) -> 28512.43816 | CD77: =IFERROR(CD87/CD80,0) -> 33023.24664 | CE77: =IFERROR(CE87/CE80,0) -> 41596.84801 | CF77: =IFERROR(CF87/CF80,0) -> 41473.52025 | CG77: =IFERROR(CG87/CG80,0) -> 39022.85725 | CH77: =IFERROR(CH87/CH80,0) -> 36385.18213 | CI77: =IFERROR(CI87/CI80,0) -> 48849.20831 | CJ77: =IFERROR(CJ87/CJ80,0) -> 35319.48747 | CK77: =IFERROR(CK87/CK80,0) -> 32537.77747 | CL77: =IFERROR(CL87/CL80,0) -> 38442.41027 | CM77: =IFERROR(CM87/CM80,0) -> 36917.59755 | CN77: =IFERROR(CN87/CN80,0) -> 24284.19663 | CO77: =IFERROR(CO87/CO80,0) -> 28512.43816 | CP77: =IFERROR(CP87/CP80,0) -> 33023.24664 | CQ77: =IFERROR(CQ87/CQ80,0) -> 41596.84801 | CR77: =IFERROR(CR87/CR80,0) -> 41473.52025 | CS77: =IFERROR(CS87/CS80,0) -> 39022.85725 | CT77: =IFERROR(CT87/CT80,0) -> 36385.18213 | CU77: =IFERROR(CU87/CU80,0) -> 48849.20831 | CV77: =IFERROR(CV87/CV80,0) -> 35319.48747 | CW77: =IFERROR(CW87/CW80,0) -> 32537.77747 | CX77: =IFERROR(CX87/CX80,0) -> 38442.41027 | CY77: =IFERROR(CY87/CY80,0) -> 36917.59755 | CZ77: =IFERROR(CZ87/CZ80,0) -> 24284.19663 | DA77: =IFERROR(DA87/DA80,0) -> 28512.43816 | DB77: =IFERROR(DB87/DB80,0) -> 33023.24664 | DC77: =IFERROR(DC87/DC80,0) -> 41596.84801 | DD77: =IFERROR(DD87/DD80,0) -> 41473.52025 | DE77: =IFERROR(DE87/DE80,0) -> 39022.85725 | DF77: =IFERROR(DF87/DF80,0) -> 36385.18213 | DG77: =IFERROR(DG87/DG80,0) -> 48849.20831 | DH77: =IFERROR(DH87/DH80,0) -> 35319.48747 | DI77: =IFERROR(DI87/DI80,0) -> 32537.77747 | DJ77: =IFERROR(DJ87/DJ80,0) -> 38442.41027 | DK77: =IFERROR(DK87/DK80,0) -> 36917.59755 | DL77: =IFERROR(DL87/DL80,0) -> 24284.19663 | DM77: =IFERROR(DM87/DM80,0) -> 28512.43816 | DN77: =IFERROR(DN87/DN80,0) -> 33023.24664 | DO77: =IFERROR(DO87/DO80,0) -> 41596.84801 | DP77: =IFERROR(DP87/DP80,0) -> 41473.52025 | DQ77: =IFERROR(DQ87/DQ80,0) -> 39022.85725 | DR77: =IFERROR(DR87/DR80,0) -> 36385.18213 | DS77: =IFERROR(DS87/DS80,0) -> 48849.20831 | DT77: =IFERROR(DT87/DT80,0) -> 35319.48747 | DU77: =IFERROR(DU87/DU80,0) -> 32537.77747 | DV77: =IFERROR(DV87/DV80,0) -> 38442.41027 | DW77: =IFERROR(DW87/DW80,0) -> 36917.59755 | DX77: =IFERROR(DX87/DX80,0) -> 24284.19663 | DY77: =IFERROR(DY87/DY80,0) -> 28512.43816 | DZ77: =IFERROR(DZ87/DZ80,0) -> 33023.24664 | EA77: =IFERROR(EA87/EA80,0) -> 41596.84801 | EB77: =IFERROR(EB87/EB80,0) -> 41473.52025 | EC77: =IFERROR(EC87/EC80,0) -> 39022.85725 | ED77: =IFERROR(ED87/ED80,0) -> 36385.18213 | EE77: =IFERROR(EE87/EE80,0) -> 48849.20831 | EF77: =IFERROR(EF87/EF80,0) -> 35319.48747 | EG77: =IFERROR(EG87/EG80,0) -> 32537.77747 | EH77: =IFERROR(EH87/EH80,0) -> 38442.41027 | EI77: =IFERROR(EI87/EI80,0) -> 36917.59755 | EJ77: =IFERROR(EJ87/EJ80,0) -> 24284.19663 | EK77: =IFERROR(EK87/EK80,0) -> 28512.43816 | EL77: =IFERROR(EL87/EL80,0) -> 33023.24664 | EM77: =IFERROR(EM87/EM80,0) -> 41596.84801 | EN77: =IFERROR(EN87/EN80,0) -> 41473.52025 | EO77: =IFERROR(EO87/EO80,0) -> 39022.85725 | EP77: =IFERROR(EP87/EP80,0) -> 36385.18213 | EQ77: =IFERROR(EQ87/EQ80,0) -> 48849.20831 | ER77: =IFERROR(ER87/ER80,0) -> 35319.48747 | ES77: =IFERROR(ES87/ES80,0) -> 32537.77747 | ET77: =IFERROR(ET87/ET80,0) -> 38442.41027 | EU77: =IFERROR(EU87/EU80,0) -> 36917.59755 | EV77: =IFERROR(EV87/EV80,0) -> 24284.19663 | EW77: =IFERROR(EW87/EW80,0) -> 28512.43816 | EX77: =IFERROR(EX87/EX80,0) -> 33023.24664 | EY77: =IFERROR(EY87/EY80,0) -> 41596.84801 | EZ77: =IFERROR(EZ87/EZ80,0) -> 41473.52025 | FA77: =IFERROR(FA87/FA80,0) -> 39022.85725 | FB77: =IFERROR(FB87/FB80,0) -> 36385.18213 | FC77: =IFERROR(FC87/FC80,0) -> 48849.20831 | FD77: =IFERROR(FD87/FD80,0) -> 35319.48747 | FE77: =IFERROR(FE87/FE80,0) -> 32537.77747 | FF77: =IFERROR(FF87/FF80,0) -> 38442.41027 | FG77: =IFERROR(FG87/FG80,0) -> 36917.59755 | FH77: =IFERROR(FH87/FH80,0) -> 24284.19663 | FI77: =IFERROR(FI87/FI80,0) -> 28512.43816
C78: Implied Annual Passengers | H78: =H77/H72 -> 605751.6402 | I78: 0 | J78: 0 | K78: 0 | L78: 0 | M78: 715000 | N78: 715000 | O78: 715000 | P78: 715000 | Q78: 715000 | R78: 715000 | S78: 715000 | T78: 715000 | U78: 715000 | V78: 436364.7701 | W78: 436364.7701 | X78: 436364.7701 | Y78: 436364.7701 | Z78: 436364.7701 | AA78: 436364.7701 | AB78: 436364.7701 | AC78: 436364.7701 | AD78: 436364.7701 | AE78: 436364.7701 | AF78: 436364.7701 | AG78: 436364.7701 | AH78: 436364.7701 | AI78: 436364.7701 | AJ78: 436364.7701 | AK78: 436364.7701 | AL78: 436364.7701 | AM78: 436364.7701 | AN78: =AN77/AN72 -> 436364.7701 | AO78: 436364.7701 | AP78: 436364.7701 | AQ78: 436364.7701 | AR78: 436364.7701 | AS78: 436364.7701 | AT78: 436364.7701 | AU78: 436364.7701 | AV78: 436364.7701 | AW78: 436364.7701 | AX78: 436364.7701 | AY78: 436364.7701 | AZ78: 436364.7701 | BA78: 436364.7701 | BB78: 436364.7701 | BC78: 436364.7701 | BD78: 436364.7701 | BE78: 436364.7701 | BF78: 436364.7701 | BG78: 436364.7701 | BH78: 436364.7701 | BI78: 436364.7701 | BJ78: 436364.7701 | BK78: 436364.7701 | BL78: 436364.7701 | BM78: 436364.7701 | BN78: 436364.7701 | BO78: 436364.7701 | BP78: 436364.7701 | BQ78: 436364.7701 | BR78: 436364.7701 | BS78: 436364.7701 | BT78: =BT77/BT72 -> 436364.7701 | BU78: 436364.7701 | BV78: 436364.7701 | BW78: 436364.7701 | BX78: 436364.7701 | BY78: 436364.7701 | BZ78: 436364.7701 | CA78: 436364.7701 | CB78: 436364.7701 | CC78: 436364.7701 | CD78: 436364.7701 | CE78: 436364.7701 | CF78: 436364.7701 | CG78: 436364.7701 | CH78: 436364.7701 | CI78: 436364.7701 | CJ78: 436364.7701 | CK78: 436364.7701 | CL78: 436364.7701 | CM78: 436364.7701 | CN78: 436364.7701 | CO78: 436364.7701 | CP78: 436364.7701 | CQ78: 436364.7701 | CR78: 436364.7701 | CS78: 436364.7701 | CT78: 436364.7701 | CU78: 436364.7701 | CV78: 436364.7701 | CW78: 436364.7701 | CX78: 436364.7701 | CY78: 436364.7701 | CZ78: =CZ77/CZ72 -> 436364.7701 | DA78: 436364.7701 | DB78: 436364.7701 | DC78: 436364.7701 | DD78: 436364.7701 | DE78: 436364.7701 | DF78: 436364.7701 | DG78: 436364.7701 | DH78: 436364.7701 | DI78: 436364.7701 | DJ78: 436364.7701 | DK78: 436364.7701 | DL78: 436364.7701 | DM78: 436364.7701 | DN78: 436364.7701 | DO78: 436364.7701 | DP78: 436364.7701 | DQ78: 436364.7701 | DR78: 436364.7701 | DS78: 436364.7701 | DT78: 436364.7701 | DU78: 436364.7701 | DV78: 436364.7701 | DW78: 436364.7701 | DX78: 436364.7701 | DY78: 436364.7701 | DZ78: 436364.7701 | EA78: 436364.7701 | EB78: 436364.7701 | EC78: 436364.7701 | ED78: 436364.7701 | EE78: 436364.7701 | EF78: =EF77/EF72 -> 436364.7701 | EG78: 436364.7701 | EH78: 436364.7701 | EI78: 436364.7701 | EJ78: 436364.7701 | EK78: 436364.7701 | EL78: 436364.7701 | EM78: 436364.7701 | EN78: 436364.7701 | EO78: 436364.7701 | EP78: 436364.7701 | EQ78: 436364.7701 | ER78: 436364.7701 | ES78: 436364.7701 | ET78: 436364.7701 | EU78: 436364.7701 | EV78: 436364.7701 | EW78: 436364.7701 | EX78: 436364.7701 | EY78: 436364.7701 | EZ78: 436364.7701 | FA78: 436364.7701 | FB78: 436364.7701 | FC78: 436364.7701 | FD78: 436364.7701 | FE78: 436364.7701 | FF78: 436364.7701 | FG78: 436364.7701 | FH78: 436364.7701 | FI78: 436364.7701
C80: Airport Administration Charge per PAX | F80: 37.5 | H80: =IF(NOT(H3),$F$80,IFERROR(#REF!/H74,10.5)) -> 10.5 | I80: =IF(NOT(I3),$F$80,IFERROR(#REF!/I74,0)) -> 0 | J80: =IF(NOT(J3),$F$80,IFERROR(#REF!/J74,0)) -> 0 | K80: =IF(NOT(K3),$F$80,IFERROR(#REF!/K74,0)) -> 0 | L80: =IF(NOT(L3),$F$80,IFERROR(#REF!/L74,0)) -> 0 | M80: =IF(NOT(M3),$F$80,IFERROR(#REF!/M74,0)) -> 37.5 | N80: =IF(NOT(N3),$F$80,IFERROR(#REF!/N74,0)) -> 37.5 | O80: =IF(NOT(O3),$F$80,IFERROR(#REF!/O74,0)) -> 37.5 | P80: =IF(NOT(P3),$F$80,IFERROR(#REF!/P74,0)) -> 37.5 | Q80: =IF(NOT(Q3),$F$80,IFERROR(#REF!/Q74,0)) -> 37.5 | R80: =IF(NOT(R3),$F$80,IFERROR(#REF!/R74,0)) -> 37.5 | S80: =IF(NOT(S3),$F$80,IFERROR(#REF!/S74,0)) -> 37.5 | T80: =IF(NOT(T3),$F$80,IFERROR(#REF!/T74,0)) -> 37.5 | U80: =IF(NOT(U3),$F$80,IFERROR(#REF!/U74,0)) -> 37.5 | V80: =IF(NOT(V3),$F$80,IFERROR(#REF!/V74,0)) -> 37.5 | W80: =IF(NOT(W3),$F$80,IFERROR(#REF!/W74,0)) -> 37.5 | X80: =IF(NOT(X3),$F$80,IFERROR(#REF!/X74,0)) -> 37.5 | Y80: =IF(NOT(Y3),$F$80,IFERROR(#REF!/Y74,0)) -> 37.5 | Z80: =IF(NOT(Z3),$F$80,IFERROR(#REF!/Z74,0)) -> 37.5 | AA80: =IF(NOT(AA3),$F$80,IFERROR(#REF!/AA74,0)) -> 37.5 | AB80: =IF(NOT(AB3),$F$80,IFERROR(#REF!/AB74,0)) -> 37.5 | AC80: =IF(NOT(AC3),$F$80,IFERROR(#REF!/AC74,0)) -> 37.5 | AD80: =IF(NOT(AD3),$F$80,IFERROR(#REF!/AD74,0)) -> 37.5 | AE80: =IF(NOT(AE3),$F$80,IFERROR(#REF!/AE74,0)) -> 37.5 | AF80: =IF(NOT(AF3),$F$80,IFERROR(#REF!/AF74,0)) -> 37.5 | AG80: =IF(NOT(AG3),$F$80,IFERROR(#REF!/AG74,0)) -> 37.5 | AH80: =IF(NOT(AH3),$F$80,IFERROR(#REF!/AH74,0)) -> 37.5 | AI80: =IF(NOT(AI3),$F$80,IFERROR(#REF!/AI74,0)) -> 37.5 | AJ80: =IF(NOT(AJ3),$F$80,IFERROR(#REF!/AJ74,0)) -> 37.5 | AK80: =IF(NOT(AK3),$F$80,IFERROR(#REF!/AK74,0)) -> 37.5 | AL80: =IF(NOT(AL3),$F$80,IFERROR(#REF!/AL74,0)) -> 37.5 | AM80: =IF(NOT(AM3),$F$80,IFERROR(#REF!/AM74,0)) -> 37.5 | AN80: =IF(NOT(AN3),$F$80,IFERROR(#REF!/AN74,0)) -> 37.5 | AO80: =IF(NOT(AO3),$F$80,IFERROR(#REF!/AO74,0)) -> 37.5 | AP80: =IF(NOT(AP3),$F$80,IFERROR(#REF!/AP74,0)) -> 37.5 | AQ80: =IF(NOT(AQ3),$F$80,IFERROR(#REF!/AQ74,0)) -> 37.5 | AR80: =IF(NOT(AR3),$F$80,IFERROR(#REF!/AR74,0)) -> 37.5 | AS80: =IF(NOT(AS3),$F$80,IFERROR(#REF!/AS74,0)) -> 37.5 | AT80: =IF(NOT(AT3),$F$80,IFERROR(#REF!/AT74,0)) -> 37.5 | AU80: =IF(NOT(AU3),$F$80,IFERROR(#REF!/AU74,0)) -> 37.5 | AV80: =IF(NOT(AV3),$F$80,IFERROR(#REF!/AV74,0)) -> 37.5 | AW80: =IF(NOT(AW3),$F$80,IFERROR(#REF!/AW74,0)) -> 37.5 | AX80: =IF(NOT(AX3),$F$80,IFERROR(#REF!/AX74,0)) -> 37.5 | AY80: =IF(NOT(AY3),$F$80,IFERROR(#REF!/AY74,0)) -> 37.5 | AZ80: =IF(NOT(AZ3),$F$80,IFERROR(#REF!/AZ74,0)) -> 37.5 | BA80: =IF(NOT(BA3),$F$80,IFERROR(#REF!/BA74,0)) -> 37.5 | BB80: =IF(NOT(BB3),$F$80,IFERROR(#REF!/BB74,0)) -> 37.5 | BC80: =IF(NOT(BC3),$F$80,IFERROR(#REF!/BC74,0)) -> 37.5 | BD80: =IF(NOT(BD3),$F$80,IFERROR(#REF!/BD74,0)) -> 37.5 | BE80: =IF(NOT(BE3),$F$80,IFERROR(#REF!/BE74,0)) -> 37.5 | BF80: =IF(NOT(BF3),$F$80,IFERROR(#REF!/BF74,0)) -> 37.5 | BG80: =IF(NOT(BG3),$F$80,IFERROR(#REF!/BG74,0)) -> 37.5 | BH80: =IF(NOT(BH3),$F$80,IFERROR(#REF!/BH74,0)) -> 37.5 | BI80: =IF(NOT(BI3),$F$80,IFERROR(#REF!/BI74,0)) -> 37.5 | BJ80: =IF(NOT(BJ3),$F$80,IFERROR(#REF!/BJ74,0)) -> 37.5 | BK80: =IF(NOT(BK3),$F$80,IFERROR(#REF!/BK74,0)) -> 37.5 | BL80: =IF(NOT(BL3),$F$80,IFERROR(#REF!/BL74,0)) -> 37.5 | BM80: =IF(NOT(BM3),$F$80,IFERROR(#REF!/BM74,0)) -> 37.5 | BN80: =IF(NOT(BN3),$F$80,IFERROR(#REF!/BN74,0)) -> 37.5 | BO80: =IF(NOT(BO3),$F$80,IFERROR(#REF!/BO74,0)) -> 37.5 | BP80: =IF(NOT(BP3),$F$80,IFERROR(#REF!/BP74,0)) -> 37.5 | BQ80: =IF(NOT(BQ3),$F$80,IFERROR(#REF!/BQ74,0)) -> 37.5 | BR80: =IF(NOT(BR3),$F$80,IFERROR(#REF!/BR74,0)) -> 37.5 | BS80: =IF(NOT(BS3),$F$80,IFERROR(#REF!/BS74,0)) -> 37.5 | BT80: =IF(NOT(BT3),$F$80,IFERROR(#REF!/BT74,0)) -> 37.5 | BU80: =IF(NOT(BU3),$F$80,IFERROR(#REF!/BU74,0)) -> 37.5 | BV80: =IF(NOT(BV3),$F$80,IFERROR(#REF!/BV74,0)) -> 37.5 | BW80: =IF(NOT(BW3),$F$80,IFERROR(#REF!/BW74,0)) -> 37.5 | BX80: =IF(NOT(BX3),$F$80,IFERROR(#REF!/BX74,0)) -> 37.5 | BY80: =IF(NOT(BY3),$F$80,IFERROR(#REF!/BY74,0)) -> 37.5 | BZ80: =IF(NOT(BZ3),$F$80,IFERROR(#REF!/BZ74,0)) -> 37.5 | CA80: =IF(NOT(CA3),$F$80,IFERROR(#REF!/CA74,0)) -> 37.5 | CB80: =IF(NOT(CB3),$F$80,IFERROR(#REF!/CB74,0)) -> 37.5 | CC80: =IF(NOT(CC3),$F$80,IFERROR(#REF!/CC74,0)) -> 37.5 | CD80: =IF(NOT(CD3),$F$80,IFERROR(#REF!/CD74,0)) -> 37.5 | CE80: =IF(NOT(CE3),$F$80,IFERROR(#REF!/CE74,0)) -> 37.5 | CF80: =IF(NOT(CF3),$F$80,IFERROR(#REF!/CF74,0)) -> 37.5 | CG80: =IF(NOT(CG3),$F$80,IFERROR(#REF!/CG74,0)) -> 37.5 | CH80: =IF(NOT(CH3),$F$80,IFERROR(#REF!/CH74,0)) -> 37.5 | CI80: =IF(NOT(CI3),$F$80,IFERROR(#REF!/CI74,0)) -> 37.5 | CJ80: =IF(NOT(CJ3),$F$80,IFERROR(#REF!/CJ74,0)) -> 37.5 | CK80: =IF(NOT(CK3),$F$80,IFERROR(#REF!/CK74,0)) -> 37.5 | CL80: =IF(NOT(CL3),$F$80,IFERROR(#REF!/CL74,0)) -> 37.5 | CM80: =IF(NOT(CM3),$F$80,IFERROR(#REF!/CM74,0)) -> 37.5 | CN80: =IF(NOT(CN3),$F$80,IFERROR(#REF!/CN74,0)) -> 37.5 | CO80: =IF(NOT(CO3),$F$80,IFERROR(#REF!/CO74,0)) -> 37.5 | CP80: =IF(NOT(CP3),$F$80,IFERROR(#REF!/CP74,0)) -> 37.5 | CQ80: =IF(NOT(CQ3),$F$80,IFERROR(#REF!/CQ74,0)) -> 37.5 | CR80: =IF(NOT(CR3),$F$80,IFERROR(#REF!/CR74,0)) -> 37.5 | CS80: =IF(NOT(CS3),$F$80,IFERROR(#REF!/CS74,0)) -> 37.5 | CT80: =IF(NOT(CT3),$F$80,IFERROR(#REF!/CT74,0)) -> 37.5 | CU80: =IF(NOT(CU3),$F$80,IFERROR(#REF!/CU74,0)) -> 37.5 | CV80: =IF(NOT(CV3),$F$80,IFERROR(#REF!/CV74,0)) -> 37.5 | CW80: =IF(NOT(CW3),$F$80,IFERROR(#REF!/CW74,0)) -> 37.5 | CX80: =IF(NOT(CX3),$F$80,IFERROR(#REF!/CX74,0)) -> 37.5 | CY80: =IF(NOT(CY3),$F$80,IFERROR(#REF!/CY74,0)) -> 37.5 | CZ80: =IF(NOT(CZ3),$F$80,IFERROR(#REF!/CZ74,0)) -> 37.5 | DA80: =IF(NOT(DA3),$F$80,IFERROR(#REF!/DA74,0)) -> 37.5 | DB80: =IF(NOT(DB3),$F$80,IFERROR(#REF!/DB74,0)) -> 37.5 | DC80: =IF(NOT(DC3),$F$80,IFERROR(#REF!/DC74,0)) -> 37.5 | DD80: =IF(NOT(DD3),$F$80,IFERROR(#REF!/DD74,0)) -> 37.5 | DE80: =IF(NOT(DE3),$F$80,IFERROR(#REF!/DE74,0)) -> 37.5 | DF80: =IF(NOT(DF3),$F$80,IFERROR(#REF!/DF74,0)) -> 37.5 | DG80: =IF(NOT(DG3),$F$80,IFERROR(#REF!/DG74,0)) -> 37.5 | DH80: =IF(NOT(DH3),$F$80,IFERROR(#REF!/DH74,0)) -> 37.5 | DI80: =IF(NOT(DI3),$F$80,IFERROR(#REF!/DI74,0)) -> 37.5 | DJ80: =IF(NOT(DJ3),$F$80,IFERROR(#REF!/DJ74,0)) -> 37.5 | DK80: =IF(NOT(DK3),$F$80,IFERROR(#REF!/DK74,0)) -> 37.5 | DL80: =IF(NOT(DL3),$F$80,IFERROR(#REF!/DL74,0)) -> 37.5 | DM80: =IF(NOT(DM3),$F$80,IFERROR(#REF!/DM74,0)) -> 37.5 | DN80: =IF(NOT(DN3),$F$80,IFERROR(#REF!/DN74,0)) -> 37.5 | DO80: =IF(NOT(DO3),$F$80,IFERROR(#REF!/DO74,0)) -> 37.5 | DP80: =IF(NOT(DP3),$F$80,IFERROR(#REF!/DP74,0)) -> 37.5 | DQ80: =IF(NOT(DQ3),$F$80,IFERROR(#REF!/DQ74,0)) -> 37.5 | DR80: =IF(NOT(DR3),$F$80,IFERROR(#REF!/DR74,0)) -> 37.5 | DS80: =IF(NOT(DS3),$F$80,IFERROR(#REF!/DS74,0)) -> 37.5 | DT80: =IF(NOT(DT3),$F$80,IFERROR(#REF!/DT74,0)) -> 37.5 | DU80: =IF(NOT(DU3),$F$80,IFERROR(#REF!/DU74,0)) -> 37.5 | DV80: =IF(NOT(DV3),$F$80,IFERROR(#REF!/DV74,0)) -> 37.5 | DW80: =IF(NOT(DW3),$F$80,IFERROR(#REF!/DW74,0)) -> 37.5 | DX80: =IF(NOT(DX3),$F$80,IFERROR(#REF!/DX74,0)) -> 37.5 | DY80: =IF(NOT(DY3),$F$80,IFERROR(#REF!/DY74,0)) -> 37.5 | DZ80: =IF(NOT(DZ3),$F$80,IFERROR(#REF!/DZ74,0)) -> 37.5 | EA80: =IF(NOT(EA3),$F$80,IFERROR(#REF!/EA74,0)) -> 37.5 | EB80: =IF(NOT(EB3),$F$80,IFERROR(#REF!/EB74,0)) -> 37.5 | EC80: =IF(NOT(EC3),$F$80,IFERROR(#REF!/EC74,0)) -> 37.5 | ED80: =IF(NOT(ED3),$F$80,IFERROR(#REF!/ED74,0)) -> 37.5 | EE80: =IF(NOT(EE3),$F$80,IFERROR(#REF!/EE74,0)) -> 37.5 | EF80: =IF(NOT(EF3),$F$80,IFERROR(#REF!/EF74,0)) -> 37.5 | EG80: =IF(NOT(EG3),$F$80,IFERROR(#REF!/EG74,0)) -> 37.5 | EH80: =IF(NOT(EH3),$F$80,IFERROR(#REF!/EH74,0)) -> 37.5 | EI80: =IF(NOT(EI3),$F$80,IFERROR(#REF!/EI74,0)) -> 37.5 | EJ80: =IF(NOT(EJ3),$F$80,IFERROR(#REF!/EJ74,0)) -> 37.5 | EK80: =IF(NOT(EK3),$F$80,IFERROR(#REF!/EK74,0)) -> 37.5 | EL80: =IF(NOT(EL3),$F$80,IFERROR(#REF!/EL74,0)) -> 37.5 | EM80: =IF(NOT(EM3),$F$80,IFERROR(#REF!/EM74,0)) -> 37.5 | EN80: =IF(NOT(EN3),$F$80,IFERROR(#REF!/EN74,0)) -> 37.5 | EO80: =IF(NOT(EO3),$F$80,IFERROR(#REF!/EO74,0)) -> 37.5 | EP80: =IF(NOT(EP3),$F$80,IFERROR(#REF!/EP74,0)) -> 37.5 | EQ80: =IF(NOT(EQ3),$F$80,IFERROR(#REF!/EQ74,0)) -> 37.5 | ER80: =IF(NOT(ER3),$F$80,IFERROR(#REF!/ER74,0)) -> 37.5 | ES80: =IF(NOT(ES3),$F$80,IFERROR(#REF!/ES74,0)) -> 37.5 | ET80: =IF(NOT(ET3),$F$80,IFERROR(#REF!/ET74,0)) -> 37.5 | EU80: =IF(NOT(EU3),$F$80,IFERROR(#REF!/EU74,0)) -> 37.5 | EV80: =IF(NOT(EV3),$F$80,IFERROR(#REF!/EV74,0)) -> 37.5 | EW80: =IF(NOT(EW3),$F$80,IFERROR(#REF!/EW74,0)) -> 37.5 | EX80: =IF(NOT(EX3),$F$80,IFERROR(#REF!/EX74,0)) -> 37.5 | EY80: =IF(NOT(EY3),$F$80,IFERROR(#REF!/EY74,0)) -> 37.5 | EZ80: =IF(NOT(EZ3),$F$80,IFERROR(#REF!/EZ74,0)) -> 37.5 | FA80: =IF(NOT(FA3),$F$80,IFERROR(#REF!/FA74,0)) -> 37.5 | FB80: =IF(NOT(FB3),$F$80,IFERROR(#REF!/FB74,0)) -> 37.5 | FC80: =IF(NOT(FC3),$F$80,IFERROR(#REF!/FC74,0)) -> 37.5 | FD80: =IF(NOT(FD3),$F$80,IFERROR(#REF!/FD74,0)) -> 37.5 | FE80: =IF(NOT(FE3),$F$80,IFERROR(#REF!/FE74,0)) -> 37.5 | FF80: =IF(NOT(FF3),$F$80,IFERROR(#REF!/FF74,0)) -> 37.5 | FG80: =IF(NOT(FG3),$F$80,IFERROR(#REF!/FG74,0)) -> 37.5 | FH80: =IF(NOT(FH3),$F$80,IFERROR(#REF!/FH74,0)) -> 37.5 | FI80: =IF(NOT(FI3),$F$80,IFERROR(#REF!/FI74,0)) -> 37.5
C81: NSWMA Charge per PAX | F81: 1 | H81: =IF(NOT(H3),$F$81,IFERROR(-H21/H16,0)) -> 0 | I81: =IF(NOT(I3),$F$81,IFERROR(-I21/I16,0)) -> 1 | J81: =IF(NOT(J3),$F$81,IFERROR(-J21/J16,0)) -> 1 | K81: =IF(NOT(K3),$F$81,IFERROR(-K21/K16,0)) -> 1.025903038 | L81: =IF(NOT(L3),$F$81,IFERROR(-L21/L16,0)) -> 1 | M81: =IF(NOT(M3),$F$81,IFERROR(-M21/M16,0)) -> 1 | N81: =IF(NOT(N3),$F$81,IFERROR(-N21/N16,0)) -> 1 | O81: =IF(NOT(O3),$F$81,IFERROR(-O21/O16,0)) -> 1 | P81: =IF(NOT(P3),$F$81,IFERROR(-P21/P16,0)) -> 1 | Q81: =IF(NOT(Q3),$F$81,IFERROR(-Q21/Q16,0)) -> 1 | R81: =IF(NOT(R3),$F$81,IFERROR(-R21/R16,0)) -> 1 | S81: =IF(NOT(S3),$F$81,IFERROR(-S21/S16,0)) -> 1 | T81: =IF(NOT(T3),$F$81,IFERROR(-T21/T16,0)) -> 1 | U81: =IF(NOT(U3),$F$81,IFERROR(-U21/U16,0)) -> 1 | V81: =IF(NOT(V3),$F$81,IFERROR(-V21/V16,0)) -> 1 | W81: =IF(NOT(W3),$F$81,IFERROR(-W21/W16,0)) -> 1 | X81: =IF(NOT(X3),$F$81,IFERROR(-X21/X16,0)) -> 1 | Y81: =IF(NOT(Y3),$F$81,IFERROR(-Y21/Y16,0)) -> 1 | Z81: =IF(NOT(Z3),$F$81,IFERROR(-Z21/Z16,0)) -> 1 | AA81: =IF(NOT(AA3),$F$81,IFERROR(-AA21/AA16,0)) -> 1 | AB81: =IF(NOT(AB3),$F$81,IFERROR(-AB21/AB16,0)) -> 1 | AC81: =IF(NOT(AC3),$F$81,IFERROR(-AC21/AC16,0)) -> 1 | AD81: =IF(NOT(AD3),$F$81,IFERROR(-AD21/AD16,0)) -> 1 | AE81: =IF(NOT(AE3),$F$81,IFERROR(-AE21/AE16,0)) -> 1 | AF81: =IF(NOT(AF3),$F$81,IFERROR(-AF21/AF16,0)) -> 1 | AG81: =IF(NOT(AG3),$F$81,IFERROR(-AG21/AG16,0)) -> 1 | AH81: =IF(NOT(AH3),$F$81,IFERROR(-AH21/AH16,0)) -> 1 | AI81: =IF(NOT(AI3),$F$81,IFERROR(-AI21/AI16,0)) -> 1 | AJ81: =IF(NOT(AJ3),$F$81,IFERROR(-AJ21/AJ16,0)) -> 1 | AK81: =IF(NOT(AK3),$F$81,IFERROR(-AK21/AK16,0)) -> 1 | AL81: =IF(NOT(AL3),$F$81,IFERROR(-AL21/AL16,0)) -> 1 | AM81: =IF(NOT(AM3),$F$81,IFERROR(-AM21/AM16,0)) -> 1 | AN81: =IF(NOT(AN3),$F$81,IFERROR(-AN21/AN16,0)) -> 1 | AO81: =IF(NOT(AO3),$F$81,IFERROR(-AO21/AO16,0)) -> 1 | AP81: =IF(NOT(AP3),$F$81,IFERROR(-AP21/AP16,0)) -> 1 | AQ81: =IF(NOT(AQ3),$F$81,IFERROR(-AQ21/AQ16,0)) -> 1 | AR81: =IF(NOT(AR3),$F$81,IFERROR(-AR21/AR16,0)) -> 1 | AS81: =IF(NOT(AS3),$F$81,IFERROR(-AS21/AS16,0)) -> 1 | AT81: =IF(NOT(AT3),$F$81,IFERROR(-AT21/AT16,0)) -> 1 | AU81: =IF(NOT(AU3),$F$81,IFERROR(-AU21/AU16,0)) -> 1 | AV81: =IF(NOT(AV3),$F$81,IFERROR(-AV21/AV16,0)) -> 1 | AW81: =IF(NOT(AW3),$F$81,IFERROR(-AW21/AW16,0)) -> 1 | AX81: =IF(NOT(AX3),$F$81,IFERROR(-AX21/AX16,0)) -> 1 | AY81: =IF(NOT(AY3),$F$81,IFERROR(-AY21/AY16,0)) -> 1 | AZ81: =IF(NOT(AZ3),$F$81,IFERROR(-AZ21/AZ16,0)) -> 1 | BA81: =IF(NOT(BA3),$F$81,IFERROR(-BA21/BA16,0)) -> 1 | BB81: =IF(NOT(BB3),$F$81,IFERROR(-BB21/BB16,0)) -> 1 | BC81: =IF(NOT(BC3),$F$81,IFERROR(-BC21/BC16,0)) -> 1 | BD81: =IF(NOT(BD3),$F$81,IFERROR(-BD21/BD16,0)) -> 1 | BE81: =IF(NOT(BE3),$F$81,IFERROR(-BE21/BE16,0)) -> 1 | BF81: =IF(NOT(BF3),$F$81,IFERROR(-BF21/BF16,0)) -> 1 | BG81: =IF(NOT(BG3),$F$81,IFERROR(-BG21/BG16,0)) -> 1 | BH81: =IF(NOT(BH3),$F$81,IFERROR(-BH21/BH16,0)) -> 1 | BI81: =IF(NOT(BI3),$F$81,IFERROR(-BI21/BI16,0)) -> 1 | BJ81: =IF(NOT(BJ3),$F$81,IFERROR(-BJ21/BJ16,0)) -> 1 | BK81: =IF(NOT(BK3),$F$81,IFERROR(-BK21/BK16,0)) -> 1 | BL81: =IF(NOT(BL3),$F$81,IFERROR(-BL21/BL16,0)) -> 1 | BM81: =IF(NOT(BM3),$F$81,IFERROR(-BM21/BM16,0)) -> 1 | BN81: =IF(NOT(BN3),$F$81,IFERROR(-BN21/BN16,0)) -> 1 | BO81: =IF(NOT(BO3),$F$81,IFERROR(-BO21/BO16,0)) -> 1 | BP81: =IF(NOT(BP3),$F$81,IFERROR(-BP21/BP16,0)) -> 1 | BQ81: =IF(NOT(BQ3),$F$81,IFERROR(-BQ21/BQ16,0)) -> 1 | BR81: =IF(NOT(BR3),$F$81,IFERROR(-BR21/BR16,0)) -> 1 | BS81: =IF(NOT(BS3),$F$81,IFERROR(-BS21/BS16,0)) -> 1 | BT81: =IF(NOT(BT3),$F$81,IFERROR(-BT21/BT16,0)) -> 1 | BU81: =IF(NOT(BU3),$F$81,IFERROR(-BU21/BU16,0)) -> 1 | BV81: =IF(NOT(BV3),$F$81,IFERROR(-BV21/BV16,0)) -> 1 | BW81: =IF(NOT(BW3),$F$81,IFERROR(-BW21/BW16,0)) -> 1 | BX81: =IF(NOT(BX3),$F$81,IFERROR(-BX21/BX16,0)) -> 1 | BY81: =IF(NOT(BY3),$F$81,IFERROR(-BY21/BY16,0)) -> 1 | BZ81: =IF(NOT(BZ3),$F$81,IFERROR(-BZ21/BZ16,0)) -> 1 | CA81: =IF(NOT(CA3),$F$81,IFERROR(-CA21/CA16,0)) -> 1 | CB81: =IF(NOT(CB3),$F$81,IFERROR(-CB21/CB16,0)) -> 1 | CC81: =IF(NOT(CC3),$F$81,IFERROR(-CC21/CC16,0)) -> 1 | CD81: =IF(NOT(CD3),$F$81,IFERROR(-CD21/CD16,0)) -> 1 | CE81: =IF(NOT(CE3),$F$81,IFERROR(-CE21/CE16,0)) -> 1 | CF81: =IF(NOT(CF3),$F$81,IFERROR(-CF21/CF16,0)) -> 1 | CG81: =IF(NOT(CG3),$F$81,IFERROR(-CG21/CG16,0)) -> 1 | CH81: =IF(NOT(CH3),$F$81,IFERROR(-CH21/CH16,0)) -> 1 | CI81: =IF(NOT(CI3),$F$81,IFERROR(-CI21/CI16,0)) -> 1 | CJ81: =IF(NOT(CJ3),$F$81,IFERROR(-CJ21/CJ16,0)) -> 1 | CK81: =IF(NOT(CK3),$F$81,IFERROR(-CK21/CK16,0)) -> 1 | CL81: =IF(NOT(CL3),$F$81,IFERROR(-CL21/CL16,0)) -> 1 | CM81: =IF(NOT(CM3),$F$81,IFERROR(-CM21/CM16,0)) -> 1 | CN81: =IF(NOT(CN3),$F$81,IFERROR(-CN21/CN16,0)) -> 1 | CO81: =IF(NOT(CO3),$F$81,IFERROR(-CO21/CO16,0)) -> 1 | CP81: =IF(NOT(CP3),$F$81,IFERROR(-CP21/CP16,0)) -> 1 | CQ81: =IF(NOT(CQ3),$F$81,IFERROR(-CQ21/CQ16,0)) -> 1 | CR81: =IF(NOT(CR3),$F$81,IFERROR(-CR21/CR16,0)) -> 1 | CS81: =IF(NOT(CS3),$F$81,IFERROR(-CS21/CS16,0)) -> 1 | CT81: =IF(NOT(CT3),$F$81,IFERROR(-CT21/CT16,0)) -> 1 | CU81: =IF(NOT(CU3),$F$81,IFERROR(-CU21/CU16,0)) -> 1 | CV81: =IF(NOT(CV3),$F$81,IFERROR(-CV21/CV16,0)) -> 1 | CW81: =IF(NOT(CW3),$F$81,IFERROR(-CW21/CW16,0)) -> 1 | CX81: =IF(NOT(CX3),$F$81,IFERROR(-CX21/CX16,0)) -> 1 | CY81: =IF(NOT(CY3),$F$81,IFERROR(-CY21/CY16,0)) -> 1 | CZ81: =IF(NOT(CZ3),$F$81,IFERROR(-CZ21/CZ16,0)) -> 1 | DA81: =IF(NOT(DA3),$F$81,IFERROR(-DA21/DA16,0)) -> 1 | DB81: =IF(NOT(DB3),$F$81,IFERROR(-DB21/DB16,0)) -> 1 | DC81: =IF(NOT(DC3),$F$81,IFERROR(-DC21/DC16,0)) -> 1 | DD81: =IF(NOT(DD3),$F$81,IFERROR(-DD21/DD16,0)) -> 1 | DE81: =IF(NOT(DE3),$F$81,IFERROR(-DE21/DE16,0)) -> 1 | DF81: =IF(NOT(DF3),$F$81,IFERROR(-DF21/DF16,0)) -> 1 | DG81: =IF(NOT(DG3),$F$81,IFERROR(-DG21/DG16,0)) -> 1 | DH81: =IF(NOT(DH3),$F$81,IFERROR(-DH21/DH16,0)) -> 1 | DI81: =IF(NOT(DI3),$F$81,IFERROR(-DI21/DI16,0)) -> 1 | DJ81: =IF(NOT(DJ3),$F$81,IFERROR(-DJ21/DJ16,0)) -> 1 | DK81: =IF(NOT(DK3),$F$81,IFERROR(-DK21/DK16,0)) -> 1 | DL81: =IF(NOT(DL3),$F$81,IFERROR(-DL21/DL16,0)) -> 1 | DM81: =IF(NOT(DM3),$F$81,IFERROR(-DM21/DM16,0)) -> 1 | DN81: =IF(NOT(DN3),$F$81,IFERROR(-DN21/DN16,0)) -> 1 | DO81: =IF(NOT(DO3),$F$81,IFERROR(-DO21/DO16,0)) -> 1 | DP81: =IF(NOT(DP3),$F$81,IFERROR(-DP21/DP16,0)) -> 1 | DQ81: =IF(NOT(DQ3),$F$81,IFERROR(-DQ21/DQ16,0)) -> 1 | DR81: =IF(NOT(DR3),$F$81,IFERROR(-DR21/DR16,0)) -> 1 | DS81: =IF(NOT(DS3),$F$81,IFERROR(-DS21/DS16,0)) -> 1 | DT81: =IF(NOT(DT3),$F$81,IFERROR(-DT21/DT16,0)) -> 1 | DU81: =IF(NOT(DU3),$F$81,IFERROR(-DU21/DU16,0)) -> 1 | DV81: =IF(NOT(DV3),$F$81,IFERROR(-DV21/DV16,0)) -> 1 | DW81: =IF(NOT(DW3),$F$81,IFERROR(-DW21/DW16,0)) -> 1 | DX81: =IF(NOT(DX3),$F$81,IFERROR(-DX21/DX16,0)) -> 1 | DY81: =IF(NOT(DY3),$F$81,IFERROR(-DY21/DY16,0)) -> 1 | DZ81: =IF(NOT(DZ3),$F$81,IFERROR(-DZ21/DZ16,0)) -> 1 | EA81: =IF(NOT(EA3),$F$81,IFERROR(-EA21/EA16,0)) -> 1 | EB81: =IF(NOT(EB3),$F$81,IFERROR(-EB21/EB16,0)) -> 1 | EC81: =IF(NOT(EC3),$F$81,IFERROR(-EC21/EC16,0)) -> 1 | ED81: =IF(NOT(ED3),$F$81,IFERROR(-ED21/ED16,0)) -> 1 | EE81: =IF(NOT(EE3),$F$81,IFERROR(-EE21/EE16,0)) -> 1 | EF81: =IF(NOT(EF3),$F$81,IFERROR(-EF21/EF16,0)) -> 1 | EG81: =IF(NOT(EG3),$F$81,IFERROR(-EG21/EG16,0)) -> 1 | EH81: =IF(NOT(EH3),$F$81,IFERROR(-EH21/EH16,0)) -> 1 | EI81: =IF(NOT(EI3),$F$81,IFERROR(-EI21/EI16,0)) -> 1 | EJ81: =IF(NOT(EJ3),$F$81,IFERROR(-EJ21/EJ16,0)) -> 1 | EK81: =IF(NOT(EK3),$F$81,IFERROR(-EK21/EK16,0)) -> 1 | EL81: =IF(NOT(EL3),$F$81,IFERROR(-EL21/EL16,0)) -> 1 | EM81: =IF(NOT(EM3),$F$81,IFERROR(-EM21/EM16,0)) -> 1 | EN81: =IF(NOT(EN3),$F$81,IFERROR(-EN21/EN16,0)) -> 1 | EO81: =IF(NOT(EO3),$F$81,IFERROR(-EO21/EO16,0)) -> 1 | EP81: =IF(NOT(EP3),$F$81,IFERROR(-EP21/EP16,0)) -> 1 | EQ81: =IF(NOT(EQ3),$F$81,IFERROR(-EQ21/EQ16,0)) -> 1 | ER81: =IF(NOT(ER3),$F$81,IFERROR(-ER21/ER16,0)) -> 1 | ES81: =IF(NOT(ES3),$F$81,IFERROR(-ES21/ES16,0)) -> 1 | ET81: =IF(NOT(ET3),$F$81,IFERROR(-ET21/ET16,0)) -> 1 | EU81: =IF(NOT(EU3),$F$81,IFERROR(-EU21/EU16,0)) -> 1 | EV81: =IF(NOT(EV3),$F$81,IFERROR(-EV21/EV16,0)) -> 1 | EW81: =IF(NOT(EW3),$F$81,IFERROR(-EW21/EW16,0)) -> 1 | EX81: =IF(NOT(EX3),$F$81,IFERROR(-EX21/EX16,0)) -> 1 | EY81: =IF(NOT(EY3),$F$81,IFERROR(-EY21/EY16,0)) -> 1 | EZ81: =IF(NOT(EZ3),$F$81,IFERROR(-EZ21/EZ16,0)) -> 1 | FA81: =IF(NOT(FA3),$F$81,IFERROR(-FA21/FA16,0)) -> 1 | FB81: =IF(NOT(FB3),$F$81,IFERROR(-FB21/FB16,0)) -> 1 | FC81: =IF(NOT(FC3),$F$81,IFERROR(-FC21/FC16,0)) -> 1 | FD81: =IF(NOT(FD3),$F$81,IFERROR(-FD21/FD16,0)) -> 1 | FE81: =IF(NOT(FE3),$F$81,IFERROR(-FE21/FE16,0)) -> 1 | FF81: =IF(NOT(FF3),$F$81,IFERROR(-FF21/FF16,0)) -> 1 | FG81: =IF(NOT(FG3),$F$81,IFERROR(-FG21/FG16,0)) -> 1 | FH81: =IF(NOT(FH3),$F$81,IFERROR(-FH21/FH16,0)) -> 1 | FI81: =IF(NOT(FI3),$F$81,IFERROR(-FI21/FI16,0)) -> 1
C84: AAC Gross Revenues - Actual | H84: =H20 -> 6360392.222 | I84: =I20 -> 22127547.79 | J84: =J20 -> 24068286.59 | K84: =K20 -> 25548524.81 | L84: =L20 -> 7471191.963 | M84: =M19 -> 0 | N84: =N20 -> 0 | O84: =O20 -> 0 | P84: =P20 -> 0 | Q84: =Q20 -> 0 | R84: =R20 -> 0 | S84: =S20 -> 0 | T84: =T20 -> 0 | U84: =U20 -> 0 | V84: =V20 -> 0 | W84: =W20 -> 0 | X84: =X20 -> 0 | Y84: =Y20 -> 0 | Z84: =Z20 -> 0 | AA84: =AA20 -> 0 | AB84: =AB20 -> 0 | AC84: =AC20 -> 0 | AD84: =AD20 -> 0 | AE84: =AE20 -> 0 | AF84: =AF20 -> 0 | AG84: =AG20 -> 0 | AH84: =AH20 -> 0 | AI84: =AI20 -> 0 | AJ84: =AJ20 -> 0 | AK84: =AK20 -> 0 | AL84: =AL20 -> 0 | AM84: =AM20 -> 0 | AN84: =AN20 -> 0 | AO84: =AO20 -> 0 | AP84: =AP20 -> 0 | AQ84: =AQ20 -> 0 | AR84: =AR20 -> 0 | AS84: =AS20 -> 0 | AT84: =AT20 -> 0 | AU84: =AU20 -> 0 | AV84: =AV20 -> 0 | AW84: =AW20 -> 0 | AX84: =AX20 -> 0 | AY84: =AY20 -> 0 | AZ84: =AZ20 -> 0 | BA84: =BA20 -> 0 | BB84: =BB20 -> 0 | BC84: =BC20 -> 0 | BD84: =BD20 -> 0 | BE84: =BE20 -> 0 | BF84: =BF20 -> 0 | BG84: =BG20 -> 0 | BH84: =BH20 -> 0 | BI84: =BI20 -> 0 | BJ84: =BJ20 -> 0 | BK84: =BK20 -> 0 | BL84: =BL20 -> 0 | BM84: =BM20 -> 0 | BN84: =BN20 -> 0 | BO84: =BO20 -> 0 | BP84: =BP20 -> 0 | BQ84: =BQ20 -> 0 | BR84: =BR20 -> 0 | BS84: =BS20 -> 0 | BT84: =BT20 -> 0 | BU84: =BU20 -> 0 | BV84: =BV20 -> 0 | BW84: =BW20 -> 0 | BX84: =BX20 -> 0 | BY84: =BY20 -> 0 | BZ84: =BZ20 -> 0 | CA84: =CA20 -> 0 | CB84: =CB20 -> 0 | CC84: =CC20 -> 0 | CD84: =CD20 -> 0 | CE84: =CE20 -> 0 | CF84: =CF20 -> 0 | CG84: =CG20 -> 0 | CH84: =CH20 -> 0 | CI84: =CI20 -> 0 | CJ84: =CJ20 -> 0 | CK84: =CK20 -> 0 | CL84: =CL20 -> 0 | CM84: =CM20 -> 0 | CN84: =CN20 -> 0 | CO84: =CO20 -> 0 | CP84: =CP20 -> 0 | CQ84: =CQ20 -> 0 | CR84: =CR20 -> 0 | CS84: =CS20 -> 0 | CT84: =CT20 -> 0 | CU84: =CU20 -> 0 | CV84: =CV20 -> 0 | CW84: =CW20 -> 0 | CX84: =CX20 -> 0 | CY84: =CY20 -> 0 | CZ84: =CZ20 -> 0 | DA84: =DA20 -> 0 | DB84: =DB20 -> 0 | DC84: =DC20 -> 0 | DD84: =DD20 -> 0 | DE84: =DE20 -> 0 | DF84: =DF20 -> 0 | DG84: =DG20 -> 0 | DH84: =DH20 -> 0 | DI84: =DI20 -> 0 | DJ84: =DJ20 -> 0 | DK84: =DK20 -> 0 | DL84: =DL20 -> 0 | DM84: =DM20 -> 0 | DN84: =DN20 -> 0 | DO84: =DO20 -> 0 | DP84: =DP20 -> 0 | DQ84: =DQ20 -> 0 | DR84: =DR20 -> 0 | DS84: =DS20 -> 0 | DT84: =DT20 -> 0 | DU84: =DU20 -> 0 | DV84: =DV20 -> 0 | DW84: =DW20 -> 0 | DX84: =DX20 -> 0 | DY84: =DY20 -> 0 | DZ84: =DZ20 -> 0 | EA84: =EA20 -> 0 | EB84: =EB20 -> 0 | EC84: =EC20 -> 0 | ED84: =ED20 -> 0 | EE84: =EE20 -> 0 | EF84: =EF20 -> 0 | EG84: =EG20 -> 0 | EH84: =EH20 -> 0 | EI84: =EI20 -> 0 | EJ84: =EJ20 -> 0 | EK84: =EK20 -> 0 | EL84: =EL20 -> 0 | EM84: =EM20 -> 0 | EN84: =EN20 -> 0 | EO84: =EO20 -> 0 | EP84: =EP20 -> 0 | EQ84: =EQ20 -> 0 | ER84: =ER20 -> 0 | ES84: =ES20 -> 0 | ET84: =ET20 -> 0 | EU84: =EU20 -> 0 | EV84: =EV20 -> 0 | EW84: =EW20 -> 0 | EX84: =EX20 -> 0 | EY84: =EY20 -> 0 | EZ84: =EZ20 -> 0 | FA84: =FA20 -> 0 | FB84: =FB20 -> 0 | FC84: =FC20 -> 0 | FD84: =FD20 -> 0 | FE84: =FE20 -> 0 | FF84: =FF20 -> 0 | FG84: =FG20 -> 0 | FH84: =FH20 -> 0 | FI84: =FI20 -> 0
C85: AAC Gross Revenues - Budget | F85: ='Budget, CapExp and Passengers'!D11 -> 26812500 | H85: =IF(H6,$F$85)*H72 -> 0 | I85: =IF(I6,$F$85)*I72 -> 0 | J85: =IF(J6,$F$85)*J72 -> 0 | K85: =IF(K6,$F$85)*K72 -> 0 | L85: =IF(L6,$F$85)*L72 -> 0 | M85: =IF(M6,$F$85)*M72 -> 2397765.428 | N85: =IF(N6,$F$85)*N72 -> 2235693.078 | O85: =IF(O6,$F$85)*O72 -> 3001547.071 | P85: =IF(P6,$F$85)*P72 -> 2170211.306 | Q85: =IF(Q6,$F$85)*Q72 -> 1999288.71 | R85: =IF(R6,$F$85)*R72 -> 2362099.775 | S85: =IF(S6,$F$85)*S72 -> 2268407.424 | T85: =IF(T6,$F$85)*T72 -> 1492146.174 | U85: =IF(U6,$F$85)*U72 -> 1751951.121 | V85: =IF(V6,$F$85)*V72 -> 0 | W85: =IF(W6,$F$85)*W72 -> 0 | X85: =IF(X6,$F$85)*X72 -> 0 | Y85: =IF(Y6,$F$85)*Y72 -> 0 | Z85: =IF(Z6,$F$85)*Z72 -> 0 | AA85: =IF(AA6,$F$85)*AA72 -> 0 | AB85: =IF(AB6,$F$85)*AB72 -> 0 | AC85: =IF(AC6,$F$85)*AC72 -> 0 | AD85: =IF(AD6,$F$85)*AD72 -> 0 | AE85: =IF(AE6,$F$85)*AE72 -> 0 | AF85: =IF(AF6,$F$85)*AF72 -> 0 | AG85: =IF(AG6,$F$85)*AG72 -> 0 | AH85: =IF(AH6,$F$85)*AH72 -> 0 | AI85: =IF(AI6,$F$85)*AI72 -> 0 | AJ85: =IF(AJ6,$F$85)*AJ72 -> 0 | AK85: =IF(AK6,$F$85)*AK72 -> 0 | AL85: =IF(AL6,$F$85)*AL72 -> 0 | AM85: =IF(AM6,$F$85)*AM72 -> 0 | AN85: =IF(AN6,$F$85)*AN72 -> 0 | AO85: =IF(AO6,$F$85)*AO72 -> 0 | AP85: =IF(AP6,$F$85)*AP72 -> 0 | AQ85: =IF(AQ6,$F$85)*AQ72 -> 0 | AR85: =IF(AR6,$F$85)*AR72 -> 0 | AS85: =IF(AS6,$F$85)*AS72 -> 0 | AT85: =IF(AT6,$F$85)*AT72 -> 0 | AU85: =IF(AU6,$F$85)*AU72 -> 0 | AV85: =IF(AV6,$F$85)*AV72 -> 0 | AW85: =IF(AW6,$F$85)*AW72 -> 0 | AX85: =IF(AX6,$F$85)*AX72 -> 0 | AY85: =IF(AY6,$F$85)*AY72 -> 0 | AZ85: =IF(AZ6,$F$85)*AZ72 -> 0 | BA85: =IF(BA6,$F$85)*BA72 -> 0 | BB85: =IF(BB6,$F$85)*BB72 -> 0 | BC85: =IF(BC6,$F$85)*BC72 -> 0 | BD85: =IF(BD6,$F$85)*BD72 -> 0 | BE85: =IF(BE6,$F$85)*BE72 -> 0 | BF85: =IF(BF6,$F$85)*BF72 -> 0 | BG85: =IF(BG6,$F$85)*BG72 -> 0 | BH85: =IF(BH6,$F$85)*BH72 -> 0 | BI85: =IF(BI6,$F$85)*BI72 -> 0 | BJ85: =IF(BJ6,$F$85)*BJ72 -> 0 | BK85: =IF(BK6,$F$85)*BK72 -> 0 | BL85: =IF(BL6,$F$85)*BL72 -> 0 | BM85: =IF(BM6,$F$85)*BM72 -> 0 | BN85: =IF(BN6,$F$85)*BN72 -> 0 | BO85: =IF(BO6,$F$85)*BO72 -> 0 | BP85: =IF(BP6,$F$85)*BP72 -> 0 | BQ85: =IF(BQ6,$F$85)*BQ72 -> 0 | BR85: =IF(BR6,$F$85)*BR72 -> 0 | BS85: =IF(BS6,$F$85)*BS72 -> 0 | BT85: =IF(BT6,$F$85)*BT72 -> 0 | BU85: =IF(BU6,$F$85)*BU72 -> 0 | BV85: =IF(BV6,$F$85)*BV72 -> 0 | BW85: =IF(BW6,$F$85)*BW72 -> 0 | BX85: =IF(BX6,$F$85)*BX72 -> 0 | BY85: =IF(BY6,$F$85)*BY72 -> 0 | BZ85: =IF(BZ6,$F$85)*BZ72 -> 0 | CA85: =IF(CA6,$F$85)*CA72 -> 0 | CB85: =IF(CB6,$F$85)*CB72 -> 0 | CC85: =IF(CC6,$F$85)*CC72 -> 0 | CD85: =IF(CD6,$F$85)*CD72 -> 0 | CE85: =IF(CE6,$F$85)*CE72 -> 0 | CF85: =IF(CF6,$F$85)*CF72 -> 0 | CG85: =IF(CG6,$F$85)*CG72 -> 0 | CH85: =IF(CH6,$F$85)*CH72 -> 0 | CI85: =IF(CI6,$F$85)*CI72 -> 0 | CJ85: =IF(CJ6,$F$85)*CJ72 -> 0 | CK85: =IF(CK6,$F$85)*CK72 -> 0 | CL85: =IF(CL6,$F$85)*CL72 -> 0 | CM85: =IF(CM6,$F$85)*CM72 -> 0 | CN85: =IF(CN6,$F$85)*CN72 -> 0 | CO85: =IF(CO6,$F$85)*CO72 -> 0 | CP85: =IF(CP6,$F$85)*CP72 -> 0 | CQ85: =IF(CQ6,$F$85)*CQ72 -> 0 | CR85: =IF(CR6,$F$85)*CR72 -> 0 | CS85: =IF(CS6,$F$85)*CS72 -> 0 | CT85: =IF(CT6,$F$85)*CT72 -> 0 | CU85: =IF(CU6,$F$85)*CU72 -> 0 | CV85: =IF(CV6,$F$85)*CV72 -> 0 | CW85: =IF(CW6,$F$85)*CW72 -> 0 | CX85: =IF(CX6,$F$85)*CX72 -> 0 | CY85: =IF(CY6,$F$85)*CY72 -> 0 | CZ85: =IF(CZ6,$F$85)*CZ72 -> 0 | DA85: =IF(DA6,$F$85)*DA72 -> 0 | DB85: =IF(DB6,$F$85)*DB72 -> 0 | DC85: =IF(DC6,$F$85)*DC72 -> 0 | DD85: =IF(DD6,$F$85)*DD72 -> 0 | DE85: =IF(DE6,$F$85)*DE72 -> 0 | DF85: =IF(DF6,$F$85)*DF72 -> 0 | DG85: =IF(DG6,$F$85)*DG72 -> 0 | DH85: =IF(DH6,$F$85)*DH72 -> 0 | DI85: =IF(DI6,$F$85)*DI72 -> 0 | DJ85: =IF(DJ6,$F$85)*DJ72 -> 0 | DK85: =IF(DK6,$F$85)*DK72 -> 0 | DL85: =IF(DL6,$F$85)*DL72 -> 0 | DM85: =IF(DM6,$F$85)*DM72 -> 0 | DN85: =IF(DN6,$F$85)*DN72 -> 0 | DO85: =IF(DO6,$F$85)*DO72 -> 0 | DP85: =IF(DP6,$F$85)*DP72 -> 0 | DQ85: =IF(DQ6,$F$85)*DQ72 -> 0 | DR85: =IF(DR6,$F$85)*DR72 -> 0 | DS85: =IF(DS6,$F$85)*DS72 -> 0 | DT85: =IF(DT6,$F$85)*DT72 -> 0 | DU85: =IF(DU6,$F$85)*DU72 -> 0 | DV85: =IF(DV6,$F$85)*DV72 -> 0 | DW85: =IF(DW6,$F$85)*DW72 -> 0 | DX85: =IF(DX6,$F$85)*DX72 -> 0 | DY85: =IF(DY6,$F$85)*DY72 -> 0 | DZ85: =IF(DZ6,$F$85)*DZ72 -> 0 | EA85: =IF(EA6,$F$85)*EA72 -> 0 | EB85: =IF(EB6,$F$85)*EB72 -> 0 | EC85: =IF(EC6,$F$85)*EC72 -> 0 | ED85: =IF(ED6,$F$85)*ED72 -> 0 | EE85: =IF(EE6,$F$85)*EE72 -> 0 | EF85: =IF(EF6,$F$85)*EF72 -> 0 | EG85: =IF(EG6,$F$85)*EG72 -> 0 | EH85: =IF(EH6,$F$85)*EH72 -> 0 | EI85: =IF(EI6,$F$85)*EI72 -> 0 | EJ85: =IF(EJ6,$F$85)*EJ72 -> 0 | EK85: =IF(EK6,$F$85)*EK72 -> 0 | EL85: =IF(EL6,$F$85)*EL72 -> 0 | EM85: =IF(EM6,$F$85)*EM72 -> 0 | EN85: =IF(EN6,$F$85)*EN72 -> 0 | EO85: =IF(EO6,$F$85)*EO72 -> 0 | EP85: =IF(EP6,$F$85)*EP72 -> 0 | EQ85: =IF(EQ6,$F$85)*EQ72 -> 0 | ER85: =IF(ER6,$F$85)*ER72 -> 0 | ES85: =IF(ES6,$F$85)*ES72 -> 0 | ET85: =IF(ET6,$F$85)*ET72 -> 0 | EU85: =IF(EU6,$F$85)*EU72 -> 0 | EV85: =IF(EV6,$F$85)*EV72 -> 0 | EW85: =IF(EW6,$F$85)*EW72 -> 0 | EX85: =IF(EX6,$F$85)*EX72 -> 0 | EY85: =IF(EY6,$F$85)*EY72 -> 0 | EZ85: =IF(EZ6,$F$85)*EZ72 -> 0 | FA85: =IF(FA6,$F$85)*FA72 -> 0 | FB85: =IF(FB6,$F$85)*FB72 -> 0 | FC85: =IF(FC6,$F$85)*FC72 -> 0 | FD85: =IF(FD6,$F$85)*FD72 -> 0 | FE85: =IF(FE6,$F$85)*FE72 -> 0 | FF85: =IF(FF6,$F$85)*FF72 -> 0 | FG85: =IF(FG6,$F$85)*FG72 -> 0 | FH85: =IF(FH6,$F$85)*FH72 -> 0 | FI85: =IF(FI6,$F$85)*FI72 -> 0
C86: AAC Gross Revenues - Forecast | H86: =H80*H74*H4 -> 0 | I86: =I80*I74*I4 -> 0 | J86: 0 | K86: 0 | L86: 0 | M86: 0 | N86: 0 | O86: 0 | P86: 0 | Q86: 0 | R86: 0 | S86: 0 | T86: 0 | U86: 0 | V86: 1238371.749 | W86: 1559881.801 | X86: 1555257.009 | Y86: 1463357.147 | Z86: 1364444.33 | AA86: 1831845.312 | AB86: 1324480.78 | AC86: 1220166.655 | AD86: 1441590.385 | AE86: 1384409.908 | AF86: 910657.3737 | AG86: 1069216.431 | AH86: 1238371.749 | AI86: 1559881.801 | AJ86: 1555257.009 | AK86: 1463357.147 | AL86: 1364444.33 | AM86: 1831845.312 | AN86: 1324480.78 | AO86: 1220166.655 | AP86: 1441590.385 | AQ86: 1384409.908 | AR86: 910657.3737 | AS86: 1069216.431 | AT86: 1238371.749 | AU86: 1559881.801 | AV86: 1555257.009 | AW86: 1463357.147 | AX86: 1364444.33 | AY86: 1831845.312 | AZ86: 1324480.78 | BA86: 1220166.655 | BB86: 1441590.385 | BC86: 1384409.908 | BD86: 910657.3737 | BE86: 1069216.431 | BF86: 1238371.749 | BG86: 1559881.801 | BH86: 1555257.009 | BI86: 1463357.147 | BJ86: 1364444.33 | BK86: 1831845.312 | BL86: 1324480.78 | BM86: 1220166.655 | BN86: 1441590.385 | BO86: 1384409.908 | BP86: 910657.3737 | BQ86: 1069216.431 | BR86: 1238371.749 | BS86: 1559881.801 | BT86: 1555257.009 | BU86: =BU80*BU74*BU4 -> 1463357.147 | BV86: 1364444.33 | BW86: 1831845.312 | BX86: 1324480.78 | BY86: 1220166.655 | BZ86: 1441590.385 | CA86: 1384409.908 | CB86: 910657.3737 | CC86: 1069216.431 | CD86: 1238371.749 | CE86: 1559881.801 | CF86: 1555257.009 | CG86: 1463357.147 | CH86: 1364444.33 | CI86: 1831845.312 | CJ86: 1324480.78 | CK86: 1220166.655 | CL86: 1441590.385 | CM86: 1384409.908 | CN86: 910657.3737 | CO86: 1069216.431 | CP86: 1238371.749 | CQ86: 1559881.801 | CR86: 1555257.009 | CS86: 1463357.147 | CT86: 1364444.33 | CU86: 1831845.312 | CV86: 1324480.78 | CW86: 1220166.655 | CX86: 1441590.385 | CY86: 1384409.908 | CZ86: 910657.3737 | DA86: 1069216.431 | DB86: 1238371.749 | DC86: 1559881.801 | DD86: 1555257.009 | DE86: 1463357.147 | DF86: 1364444.33 | DG86: 1831845.312 | DH86: 1324480.78 | DI86: 1220166.655 | DJ86: 1441590.385 | DK86: 1384409.908 | DL86: 910657.3737 | DM86: 1069216.431 | DN86: 1238371.749 | DO86: 1559881.801 | DP86: 1555257.009 | DQ86: 1463357.147 | DR86: 1364444.33 | DS86: 1831845.312 | DT86: 1324480.78 | DU86: 1220166.655 | DV86: 1441590.385 | DW86: 1384409.908 | DX86: 910657.3737 | DY86: 1069216.431 | DZ86: 1238371.749 | EA86: 1559881.801 | EB86: 1555257.009 | EC86: 1463357.147 | ED86: 1364444.33 | EE86: 1831845.312 | EF86: 1324480.78 | EG86: =EG80*EG74*EG4 -> 1220166.655 | EH86: 1441590.385 | EI86: 1384409.908 | EJ86: 910657.3737 | EK86: 1069216.431 | EL86: 1238371.749 | EM86: 1559881.801 | EN86: 1555257.009 | EO86: 1463357.147 | EP86: 1364444.33 | EQ86: 1831845.312 | ER86: 1324480.78 | ES86: 1220166.655 | ET86: 1441590.385 | EU86: 1384409.908 | EV86: 910657.3737 | EW86: 1069216.431 | EX86: 1238371.749 | EY86: 1559881.801 | EZ86: 1555257.009 | FA86: 1463357.147 | FB86: 1364444.33 | FC86: 1831845.312 | FD86: 1324480.78 | FE86: 1220166.655 | FF86: 1441590.385 | FG86: 1384409.908 | FH86: 910657.3737 | FI86: 1069216.431
C87: Total AAC Gross Revenues | H87: =SUM(H84:H86) -> 6360392.222 | I87: =SUM(I84:I86) -> 22127547.79 | J87: 24068286.59 | K87: 25548524.81 | L87: 7471191.963 | M87: 2397765.428 | N87: 2235693.078 | O87: 3001547.071 | P87: 2170211.306 | Q87: 1999288.71 | R87: 2362099.775 | S87: 2268407.424 | T87: 1492146.174 | U87: 1751951.121 | V87: 1238371.749 | W87: 1559881.801 | X87: 1555257.009 | Y87: 1463357.147 | Z87: 1364444.33 | AA87: 1831845.312 | AB87: 1324480.78 | AC87: 1220166.655 | AD87: 1441590.385 | AE87: 1384409.908 | AF87: 910657.3737 | AG87: 1069216.431 | AH87: 1238371.749 | AI87: 1559881.801 | AJ87: 1555257.009 | AK87: 1463357.147 | AL87: 1364444.33 | AM87: 1831845.312 | AN87: 1324480.78 | AO87: 1220166.655 | AP87: 1441590.385 | AQ87: 1384409.908 | AR87: 910657.3737 | AS87: 1069216.431 | AT87: 1238371.749 | AU87: 1559881.801 | AV87: 1555257.009 | AW87: 1463357.147 | AX87: 1364444.33 | AY87: 1831845.312 | AZ87: 1324480.78 | BA87: 1220166.655 | BB87: 1441590.385 | BC87: 1384409.908 | BD87: 910657.3737 | BE87: 1069216.431 | BF87: 1238371.749 | BG87: 1559881.801 | BH87: 1555257.009 | BI87: 1463357.147 | BJ87: 1364444.33 | BK87: 1831845.312 | BL87: 1324480.78 | BM87: 1220166.655 | BN87: 1441590.385 | BO87: 1384409.908 | BP87: 910657.3737 | BQ87: 1069216.431 | BR87: 1238371.749 | BS87: 1559881.801 | BT87: 1555257.009 | BU87: =SUM(BU84:BU86) -> 1463357.147 | BV87: 1364444.33 | BW87: 1831845.312 | BX87: 1324480.78 | BY87: 1220166.655 | BZ87: 1441590.385 | CA87: 1384409.908 | CB87: 910657.3737 | CC87: 1069216.431 | CD87: 1238371.749 | CE87: 1559881.801 | CF87: 1555257.009 | CG87: 1463357.147 | CH87: 1364444.33 | CI87: 1831845.312 | CJ87: 1324480.78 | CK87: 1220166.655 | CL87: 1441590.385 | CM87: 1384409.908 | CN87: 910657.3737 | CO87: 1069216.431 | CP87: 1238371.749 | CQ87: 1559881.801 | CR87: 1555257.009 | CS87: 1463357.147 | CT87: 1364444.33 | CU87: 1831845.312 | CV87: 1324480.78 | CW87: 1220166.655 | CX87: 1441590.385 | CY87: 1384409.908 | CZ87: 910657.3737 | DA87: 1069216.431 | DB87: 1238371.749 | DC87: 1559881.801 | DD87: 1555257.009 | DE87: 1463357.147 | DF87: 1364444.33 | DG87: 1831845.312 | DH87: 1324480.78 | DI87: 1220166.655 | DJ87: 1441590.385 | DK87: 1384409.908 | DL87: 910657.3737 | DM87: 1069216.431 | DN87: 1238371.749 | DO87: 1559881.801 | DP87: 1555257.009 | DQ87: 1463357.147 | DR87: 1364444.33 | DS87: 1831845.312 | DT87: 1324480.78 | DU87: 1220166.655 | DV87: 1441590.385 | DW87: 1384409.908 | DX87: 910657.3737 | DY87: 1069216.431 | DZ87: 1238371.749 | EA87: 1559881.801 | EB87: 1555257.009 | EC87: 1463357.147 | ED87: 1364444.33 | EE87: 1831845.312 | EF87: 1324480.78 | EG87: =SUM(EG84:EG86) -> 1220166.655 | EH87: 1441590.385 | EI87: 1384409.908 | EJ87: 910657.3737 | EK87: 1069216.431 | EL87: 1238371.749 | EM87: 1559881.801 | EN87: 1555257.009 | EO87: 1463357.147 | EP87: 1364444.33 | EQ87: 1831845.312 | ER87: 1324480.78 | ES87: 1220166.655 | ET87: 1441590.385 | EU87: 1384409.908 | EV87: 910657.3737 | EW87: 1069216.431 | EX87: 1238371.749 | EY87: 1559881.801 | EZ87: 1555257.009 | FA87: 1463357.147 | FB87: 1364444.33 | FC87: 1831845.312 | FD87: 1324480.78 | FE87: 1220166.655 | FF87: 1441590.385 | FG87: 1384409.908 | FH87: 910657.3737 | FI87: 1069216.431
C89: NSWMA Fees
C90: Total Passengers | H90: =H74 -> 605751.6402 | I90: =I74 -> 608834.825 | J90: =J74 -> 636674 | K90: =K74 -> 664092 | L90: =L74 -> 208229 | M90: =M74 -> 42200.67154 | N90: =N74 -> 39348.19817 | O90: =O74 -> 52827.22846 | P90: =P74 -> 38195.71898 | Q90: =Q74 -> 35187.4813 | R90: =R74 -> 41572.95604 | S90: =S74 -> 39923.97066 | T90: =T74 -> 26261.77266 | U90: =U74 -> 30834.33973 | V90: =V74 -> 33023.24664 | W90: =W74 -> 41596.84801 | X90: =X74 -> 41473.52025 | Y90: =Y74 -> 39022.85725 | Z90: =Z74 -> 36385.18213 | AA90: =AA74 -> 48849.20831 | AB90: =AB74 -> 35319.48747 | AC90: =AC74 -> 32537.77747 | AD90: =AD74 -> 38442.41027 | AE90: =AE74 -> 36917.59755 | AF90: =AF74 -> 24284.19663 | AG90: =AG74 -> 28512.43816 | AH90: =AH74 -> 33023.24664 | AI90: =AI74 -> 41596.84801 | AJ90: =AJ74 -> 41473.52025 | AK90: =AK74 -> 39022.85725 | AL90: =AL74 -> 36385.18213 | AM90: =AM74 -> 48849.20831 | AN90: =AN74 -> 35319.48747 | AO90: =AO74 -> 32537.77747 | AP90: =AP74 -> 38442.41027 | AQ90: =AQ74 -> 36917.59755 | AR90: =AR74 -> 24284.19663 | AS90: =AS74 -> 28512.43816 | AT90: =AT74 -> 33023.24664 | AU90: =AU74 -> 41596.84801 | AV90: =AV74 -> 41473.52025 | AW90: =AW74 -> 39022.85725 | AX90: =AX74 -> 36385.18213 | AY90: =AY74 -> 48849.20831 | AZ90: =AZ74 -> 35319.48747 | BA90: =BA74 -> 32537.77747 | BB90: =BB74 -> 38442.41027 | BC90: =BC74 -> 36917.59755 | BD90: =BD74 -> 24284.19663 | BE90: =BE74 -> 28512.43816 | BF90: =BF74 -> 33023.24664 | BG90: =BG74 -> 41596.84801 | BH90: =BH74 -> 41473.52025 | BI90: =BI74 -> 39022.85725 | BJ90: =BJ74 -> 36385.18213 | BK90: =BK74 -> 48849.20831 | BL90: =BL74 -> 35319.48747 | BM90: =BM74 -> 32537.77747 | BN90: =BN74 -> 38442.41027 | BO90: =BO74 -> 36917.59755 | BP90: =BP74 -> 24284.19663 | BQ90: =BQ74 -> 28512.43816 | BR90: =BR74 -> 33023.24664 | BS90: =BS74 -> 41596.84801 | BT90: =BT74 -> 41473.52025 | BU90: =BU74 -> 39022.85725 | BV90: =BV74 -> 36385.18213 | BW90: =BW74 -> 48849.20831 | BX90: =BX74 -> 35319.48747 | BY90: =BY74 -> 32537.77747 | BZ90: =BZ74 -> 38442.41027 | CA90: =CA74 -> 36917.59755 | CB90: =CB74 -> 24284.19663 | CC90: =CC74 -> 28512.43816 | CD90: =CD74 -> 33023.24664 | CE90: =CE74 -> 41596.84801 | CF90: =CF74 -> 41473.52025 | CG90: =CG74 -> 39022.85725 | CH90: =CH74 -> 36385.18213 | CI90: =CI74 -> 48849.20831 | CJ90: =CJ74 -> 35319.48747 | CK90: =CK74 -> 32537.77747 | CL90: =CL74 -> 38442.41027 | CM90: =CM74 -> 36917.59755 | CN90: =CN74 -> 24284.19663 | CO90: =CO74 -> 28512.43816 | CP90: =CP74 -> 33023.24664 | CQ90: =CQ74 -> 41596.84801 | CR90: =CR74 -> 41473.52025 | CS90: =CS74 -> 39022.85725 | CT90: =CT74 -> 36385.18213 | CU90: =CU74 -> 48849.20831 | CV90: =CV74 -> 35319.48747 | CW90: =CW74 -> 32537.77747 | CX90: =CX74 -> 38442.41027 | CY90: =CY74 -> 36917.59755 | CZ90: =CZ74 -> 24284.19663 | DA90: =DA74 -> 28512.43816 | DB90: =DB74 -> 33023.24664 | DC90: =DC74 -> 41596.84801 | DD90: =DD74 -> 41473.52025 | DE90: =DE74 -> 39022.85725 | DF90: =DF74 -> 36385.18213 | DG90: =DG74 -> 48849.20831 | DH90: =DH74 -> 35319.48747 | DI90: =DI74 -> 32537.77747 | DJ90: =DJ74 -> 38442.41027 | DK90: =DK74 -> 36917.59755 | DL90: =DL74 -> 24284.19663 | DM90: =DM74 -> 28512.43816 | DN90: =DN74 -> 33023.24664 | DO90: =DO74 -> 41596.84801 | DP90: =DP74 -> 41473.52025 | DQ90: =DQ74 -> 39022.85725 | DR90: =DR74 -> 36385.18213 | DS90: =DS74 -> 48849.20831 | DT90: =DT74 -> 35319.48747 | DU90: =DU74 -> 32537.77747 | DV90: =DV74 -> 38442.41027 | DW90: =DW74 -> 36917.59755 | DX90: =DX74 -> 24284.19663 | DY90: =DY74 -> 28512.43816 | DZ90: =DZ74 -> 33023.24664 | EA90: =EA74 -> 41596.84801 | EB90: =EB74 -> 41473.52025 | EC90: =EC74 -> 39022.85725 | ED90: =ED74 -> 36385.18213 | EE90: =EE74 -> 48849.20831 | EF90: =EF74 -> 35319.48747 | EG90: =EG74 -> 32537.77747 | EH90: =EH74 -> 38442.41027 | EI90: =EI74 -> 36917.59755 | EJ90: =EJ74 -> 24284.19663 | EK90: =EK74 -> 28512.43816 | EL90: =EL74 -> 33023.24664 | EM90: =EM74 -> 41596.84801 | EN90: =EN74 -> 41473.52025 | EO90: =EO74 -> 39022.85725 | EP90: =EP74 -> 36385.18213 | EQ90: =EQ74 -> 48849.20831 | ER90: =ER74 -> 35319.48747 | ES90: =ES74 -> 32537.77747 | ET90: =ET74 -> 38442.41027 | EU90: =EU74 -> 36917.59755 | EV90: =EV74 -> 24284.19663 | EW90: =EW74 -> 28512.43816 | EX90: =EX74 -> 33023.24664 | EY90: =EY74 -> 41596.84801 | EZ90: =EZ74 -> 41473.52025 | FA90: =FA74 -> 39022.85725 | FB90: =FB74 -> 36385.18213 | FC90: =FC74 -> 48849.20831 | FD90: =FD74 -> 35319.48747 | FE90: =FE74 -> 32537.77747 | FF90: =FF74 -> 38442.41027 | FG90: =FG74 -> 36917.59755 | FH90: =FH74 -> 24284.19663 | FI90: =FI74 -> 28512.43816
C91: Fee Rate | H91: =H81 -> 0 | I91: =I81 -> 1 | J91: =J81 -> 1 | K91: =K81 -> 1.025903038 | L91: =L81 -> 1 | M91: =M81 -> 1 | N91: =N81 -> 1 | O91: =O81 -> 1 | P91: =P81 -> 1 | Q91: =Q81 -> 1 | R91: =R81 -> 1 | S91: =S81 -> 1 | T91: =T81 -> 1 | U91: =U81 -> 1 | V91: =V81 -> 1 | W91: =W81 -> 1 | X91: =X81 -> 1 | Y91: =Y81 -> 1 | Z91: =Z81 -> 1 | AA91: =AA81 -> 1 | AB91: =AB81 -> 1 | AC91: =AC81 -> 1 | AD91: =AD81 -> 1 | AE91: =AE81 -> 1 | AF91: =AF81 -> 1 | AG91: =AG81 -> 1 | AH91: =AH81 -> 1 | AI91: =AI81 -> 1 | AJ91: =AJ81 -> 1 | AK91: =AK81 -> 1 | AL91: =AL81 -> 1 | AM91: =AM81 -> 1 | AN91: =AN81 -> 1 | AO91: =AO81 -> 1 | AP91: =AP81 -> 1 | AQ91: =AQ81 -> 1 | AR91: =AR81 -> 1 | AS91: =AS81 -> 1 | AT91: =AT81 -> 1 | AU91: =AU81 -> 1 | AV91: =AV81 -> 1 | AW91: =AW81 -> 1 | AX91: =AX81 -> 1 | AY91: =AY81 -> 1 | AZ91: =AZ81 -> 1 | BA91: =BA81 -> 1 | BB91: =BB81 -> 1 | BC91: =BC81 -> 1 | BD91: =BD81 -> 1 | BE91: =BE81 -> 1 | BF91: =BF81 -> 1 | BG91: =BG81 -> 1 | BH91: =BH81 -> 1 | BI91: =BI81 -> 1 | BJ91: =BJ81 -> 1 | BK91: =BK81 -> 1 | BL91: =BL81 -> 1 | BM91: =BM81 -> 1 | BN91: =BN81 -> 1 | BO91: =BO81 -> 1 | BP91: =BP81 -> 1 | BQ91: =BQ81 -> 1 | BR91: =BR81 -> 1 | BS91: =BS81 -> 1 | BT91: =BT81 -> 1 | BU91: =BU81 -> 1 | BV91: =BV81 -> 1 | BW91: =BW81 -> 1 | BX91: =BX81 -> 1 | BY91: =BY81 -> 1 | BZ91: =BZ81 -> 1 | CA91: =CA81 -> 1 | CB91: =CB81 -> 1 | CC91: =CC81 -> 1 | CD91: =CD81 -> 1 | CE91: =CE81 -> 1 | CF91: =CF81 -> 1 | CG91: =CG81 -> 1 | CH91: =CH81 -> 1 | CI91: =CI81 -> 1 | CJ91: =CJ81 -> 1 | CK91: =CK81 -> 1 | CL91: =CL81 -> 1 | CM91: =CM81 -> 1 | CN91: =CN81 -> 1 | CO91: =CO81 -> 1 | CP91: =CP81 -> 1 | CQ91: =CQ81 -> 1 | CR91: =CR81 -> 1 | CS91: =CS81 -> 1 | CT91: =CT81 -> 1 | CU91: =CU81 -> 1 | CV91: =CV81 -> 1 | CW91: =CW81 -> 1 | CX91: =CX81 -> 1 | CY91: =CY81 -> 1 | CZ91: =CZ81 -> 1 | DA91: =DA81 -> 1 | DB91: =DB81 -> 1 | DC91: =DC81 -> 1 | DD91: =DD81 -> 1 | DE91: =DE81 -> 1 | DF91: =DF81 -> 1 | DG91: =DG81 -> 1 | DH91: =DH81 -> 1 | DI91: =DI81 -> 1 | DJ91: =DJ81 -> 1 | DK91: =DK81 -> 1 | DL91: =DL81 -> 1 | DM91: =DM81 -> 1 | DN91: =DN81 -> 1 | DO91: =DO81 -> 1 | DP91: =DP81 -> 1 | DQ91: =DQ81 -> 1 | DR91: =DR81 -> 1 | DS91: =DS81 -> 1 | DT91: =DT81 -> 1 | DU91: =DU81 -> 1 | DV91: =DV81 -> 1 | DW91: =DW81 -> 1 | DX91: =DX81 -> 1 | DY91: =DY81 -> 1 | DZ91: =DZ81 -> 1 | EA91: =EA81 -> 1 | EB91: =EB81 -> 1 | EC91: =EC81 -> 1 | ED91: =ED81 -> 1 | EE91: =EE81 -> 1 | EF91: =EF81 -> 1 | EG91: =EG81 -> 1 | EH91: =EH81 -> 1 | EI91: =EI81 -> 1 | EJ91: =EJ81 -> 1 | EK91: =EK81 -> 1 | EL91: =EL81 -> 1 | EM91: =EM81 -> 1 | EN91: =EN81 -> 1 | EO91: =EO81 -> 1 | EP91: =EP81 -> 1 | EQ91: =EQ81 -> 1 | ER91: =ER81 -> 1 | ES91: =ES81 -> 1 | ET91: =ET81 -> 1 | EU91: =EU81 -> 1 | EV91: =EV81 -> 1 | EW91: =EW81 -> 1 | EX91: =EX81 -> 1 | EY91: =EY81 -> 1 | EZ91: =EZ81 -> 1 | FA91: =FA81 -> 1 | FB91: =FB81 -> 1 | FC91: =FC81 -> 1 | FD91: =FD81 -> 1 | FE91: =FE81 -> 1 | FF91: =FF81 -> 1 | FG91: =FG81 -> 1 | FH91: =FH81 -> 1 | FI91: =FI81 -> 1
C92: Total NSWMA Fees | H92: =H90*H91 -> 0 | I92: =I90*I91 -> 608834.825 | J92: 636674 | K92: 681294 | L92: 208229 | M92: 42200.67154 | N92: 39348.19817 | O92: 52827.22846 | P92: 38195.71898 | Q92: 35187.4813 | R92: 41572.95604 | S92: 39923.97066 | T92: 26261.77266 | U92: 30834.33973 | V92: 33023.24664 | W92: 41596.84801 | X92: 41473.52025 | Y92: 39022.85725 | Z92: 36385.18213 | AA92: 48849.20831 | AB92: 35319.48747 | AC92: 32537.77747 | AD92: 38442.41027 | AE92: 36917.59755 | AF92: 24284.19663 | AG92: 28512.43816 | AH92: 33023.24664 | AI92: 41596.84801 | AJ92: 41473.52025 | AK92: 39022.85725 | AL92: 36385.18213 | AM92: 48849.20831 | AN92: 35319.48747 | AO92: 32537.77747 | AP92: 38442.41027 | AQ92: 36917.59755 | AR92: 24284.19663 | AS92: 28512.43816 | AT92: 33023.24664 | AU92: 41596.84801 | AV92: 41473.52025 | AW92: 39022.85725 | AX92: 36385.18213 | AY92: 48849.20831 | AZ92: 35319.48747 | BA92: 32537.77747 | BB92: 38442.41027 | BC92: 36917.59755 | BD92: 24284.19663 | BE92: 28512.43816 | BF92: 33023.24664 | BG92: 41596.84801 | BH92: 41473.52025 | BI92: 39022.85725 | BJ92: 36385.18213 | BK92: 48849.20831 | BL92: 35319.48747 | BM92: 32537.77747 | BN92: 38442.41027 | BO92: 36917.59755 | BP92: 24284.19663 | BQ92: 28512.43816 | BR92: 33023.24664 | BS92: 41596.84801 | BT92: 41473.52025 | BU92: =BU90*BU91 -> 39022.85725 | BV92: 36385.18213 | BW92: 48849.20831 | BX92: 35319.48747 | BY92: 32537.77747 | BZ92: 38442.41027 | CA92: 36917.59755 | CB92: 24284.19663 | CC92: 28512.43816 | CD92: 33023.24664 | CE92: 41596.84801 | CF92: 41473.52025 | CG92: 39022.85725 | CH92: 36385.18213 | CI92: 48849.20831 | CJ92: 35319.48747 | CK92: 32537.77747 | CL92: 38442.41027 | CM92: 36917.59755 | CN92: 24284.19663 | CO92: 28512.43816 | CP92: 33023.24664 | CQ92: 41596.84801 | CR92: 41473.52025 | CS92: 39022.85725 | CT92: 36385.18213 | CU92: 48849.20831 | CV92: 35319.48747 | CW92: 32537.77747 | CX92: 38442.41027 | CY92: 36917.59755 | CZ92: 24284.19663 | DA92: 28512.43816 | DB92: 33023.24664 | DC92: 41596.84801 | DD92: 41473.52025 | DE92: 39022.85725 | DF92: 36385.18213 | DG92: 48849.20831 | DH92: 35319.48747 | DI92: 32537.77747 | DJ92: 38442.41027 | DK92: 36917.59755 | DL92: 24284.19663 | DM92: 28512.43816 | DN92: 33023.24664 | DO92: 41596.84801 | DP92: 41473.52025 | DQ92: 39022.85725 | DR92: 36385.18213 | DS92: 48849.20831 | DT92: 35319.48747 | DU92: 32537.77747 | DV92: 38442.41027 | DW92: 36917.59755 | DX92: 24284.19663 | DY92: 28512.43816 | DZ92: 33023.24664 | EA92: 41596.84801 | EB92: 41473.52025 | EC92: 39022.85725 | ED92: 36385.18213 | EE92: 48849.20831 | EF92: 35319.48747 | EG92: =EG90*EG91 -> 32537.77747 | EH92: 38442.41027 | EI92: 36917.59755 | EJ92: 24284.19663 | EK92: 28512.43816 | EL92: 33023.24664 | EM92: 41596.84801 | EN92: 41473.52025 | EO92: 39022.85725 | EP92: 36385.18213 | EQ92: 48849.20831 | ER92: 35319.48747 | ES92: 32537.77747 | ET92: 38442.41027 | EU92: 36917.59755 | EV92: 24284.19663 | EW92: 28512.43816 | EX92: 33023.24664 | EY92: 41596.84801 | EZ92: 41473.52025 | FA92: 39022.85725 | FB92: 36385.18213 | FC92: 48849.20831 | FD92: 35319.48747 | FE92: 32537.77747 | FF92: 38442.41027 | FG92: 36917.59755 | FH92: 24284.19663 | FI92: 28512.43816
C94: Inflation in Landing Fees and Other Revenues
C95: Annual Growth Rate in Operating Expenses
C96: Periodic Growth Rate in Operating Expenses
C97: Inflation Index
C99: Landing Fees per Passenger (Budget) | F99: ='Budget, CapExp and Passengers'!D13/'Budget, CapExp and Passengers'!D7 -> 1.505333509 | H99: =IF(H3,H23/H16,$F$99) -> 0 | I99: =IF(I3,I23/I16,$F$99) -> 1.647348216 | J99: =IF(J3,J23/J16,$F$99) -> 1.461297886 | K99: =IF(K3,K23/K16,$F$99) -> 1.543551853 | L99: =IF(L3,L23/L16,$F$99) -> 1.567006979 | M99: =IF(M3,M25/M16,$F$99) -> 1.505333509 | N99: =IF(N3,N23/N16,$F$99) -> 1.505333509 | O99: =IF(O3,O23/O16,$F$99) -> 1.505333509 | P99: =IF(P3,P23/P16,$F$99) -> 1.505333509 | Q99: =IF(Q3,Q23/Q16,$F$99) -> 1.505333509 | R99: =IF(R3,R23/R16,$F$99) -> 1.505333509 | S99: =IF(S3,S23/S16,$F$99) -> 1.505333509 | T99: =IF(T3,T23/T16,$F$99) -> 1.505333509 | U99: =IF(U3,U23/U16,$F$99) -> 1.505333509 | V99: =IF(V3,V23/V16,$F$99) -> 1.505333509 | W99: =IF(W3,W23/W16,$F$99) -> 1.505333509 | X99: =IF(X3,X23/X16,$F$99) -> 1.505333509 | Y99: =IF(Y3,Y23/Y16,$F$99) -> 1.505333509 | Z99: =IF(Z3,Z23/Z16,$F$99) -> 1.505333509 | AA99: =IF(AA3,AA23/AA16,$F$99) -> 1.505333509 | AB99: =IF(AB3,AB23/AB16,$F$99) -> 1.505333509 | AC99: =IF(AC3,AC23/AC16,$F$99) -> 1.505333509 | AD99: =IF(AD3,AD23/AD16,$F$99) -> 1.505333509 | AE99: =IF(AE3,AE23/AE16,$F$99) -> 1.505333509 | AF99: =IF(AF3,AF23/AF16,$F$99) -> 1.505333509 | AG99: =IF(AG3,AG23/AG16,$F$99) -> 1.505333509 | AH99: =IF(AH3,AH23/AH16,$F$99) -> 1.505333509 | AI99: =IF(AI3,AI23/AI16,$F$99) -> 1.505333509 | AJ99: =IF(AJ3,AJ23/AJ16,$F$99) -> 1.505333509 | AK99: =IF(AK3,AK23/AK16,$F$99) -> 1.505333509 | AL99: =IF(AL3,AL23/AL16,$F$99) -> 1.505333509 | AM99: =IF(AM3,AM23/AM16,$F$99) -> 1.505333509 | AN99: =IF(AN3,AN23/AN16,$F$99) -> 1.505333509 | AO99: =IF(AO3,AO23/AO16,$F$99) -> 1.505333509 | AP99: =IF(AP3,AP23/AP16,$F$99) -> 1.505333509 | AQ99: =IF(AQ3,AQ23/AQ16,$F$99) -> 1.505333509 | AR99: =IF(AR3,AR23/AR16,$F$99) -> 1.505333509 | AS99: =IF(AS3,AS23/AS16,$F$99) -> 1.505333509 | AT99: =IF(AT3,AT23/AT16,$F$99) -> 1.505333509 | AU99: =IF(AU3,AU23/AU16,$F$99) -> 1.505333509 | AV99: =IF(AV3,AV23/AV16,$F$99) -> 1.505333509 | AW99: =IF(AW3,AW23/AW16,$F$99) -> 1.505333509 | AX99: =IF(AX3,AX23/AX16,$F$99) -> 1.505333509 | AY99: =IF(AY3,AY23/AY16,$F$99) -> 1.505333509 | AZ99: =IF(AZ3,AZ23/AZ16,$F$99) -> 1.505333509 | BA99: =IF(BA3,BA23/BA16,$F$99) -> 1.505333509 | BB99: =IF(BB3,BB23/BB16,$F$99) -> 1.505333509 | BC99: =IF(BC3,BC23/BC16,$F$99) -> 1.505333509 | BD99: =IF(BD3,BD23/BD16,$F$99) -> 1.505333509 | BE99: =IF(BE3,BE23/BE16,$F$99) -> 1.505333509 | BF99: =IF(BF3,BF23/BF16,$F$99) -> 1.505333509 | BG99: =IF(BG3,BG23/BG16,$F$99) -> 1.505333509 | BH99: =IF(BH3,BH23/BH16,$F$99) -> 1.505333509 | BI99: =IF(BI3,BI23/BI16,$F$99) -> 1.505333509 | BJ99: =IF(BJ3,BJ23/BJ16,$F$99) -> 1.505333509 | BK99: =IF(BK3,BK23/BK16,$F$99) -> 1.505333509 | BL99: =IF(BL3,BL23/BL16,$F$99) -> 1.505333509 | BM99: =IF(BM3,BM23/BM16,$F$99) -> 1.505333509 | BN99: =IF(BN3,BN23/BN16,$F$99) -> 1.505333509 | BO99: =IF(BO3,BO23/BO16,$F$99) -> 1.505333509 | BP99: =IF(BP3,BP23/BP16,$F$99) -> 1.505333509 | BQ99: =IF(BQ3,BQ23/BQ16,$F$99) -> 1.505333509 | BR99: =IF(BR3,BR23/BR16,$F$99) -> 1.505333509 | BS99: =IF(BS3,BS23/BS16,$F$99) -> 1.505333509 | BT99: =IF(BT3,BT23/BT16,$F$99) -> 1.505333509 | BU99: =IF(BU3,BU23/BU16,$F$99) -> 1.505333509 | BV99: =IF(BV3,BV23/BV16,$F$99) -> 1.505333509 | BW99: =IF(BW3,BW23/BW16,$F$99) -> 1.505333509 | BX99: =IF(BX3,BX23/BX16,$F$99) -> 1.505333509 | BY99: =IF(BY3,BY23/BY16,$F$99) -> 1.505333509 | BZ99: =IF(BZ3,BZ23/BZ16,$F$99) -> 1.505333509 | CA99: =IF(CA3,CA23/CA16,$F$99) -> 1.505333509 | CB99: =IF(CB3,CB23/CB16,$F$99) -> 1.505333509 | CC99: =IF(CC3,CC23/CC16,$F$99) -> 1.505333509 | CD99: =IF(CD3,CD23/CD16,$F$99) -> 1.505333509 | CE99: =IF(CE3,CE23/CE16,$F$99) -> 1.505333509 | CF99: =IF(CF3,CF23/CF16,$F$99) -> 1.505333509 | CG99: =IF(CG3,CG23/CG16,$F$99) -> 1.505333509 | CH99: =IF(CH3,CH23/CH16,$F$99) -> 1.505333509 | CI99: =IF(CI3,CI23/CI16,$F$99) -> 1.505333509 | CJ99: =IF(CJ3,CJ23/CJ16,$F$99) -> 1.505333509 | CK99: =IF(CK3,CK23/CK16,$F$99) -> 1.505333509 | CL99: =IF(CL3,CL23/CL16,$F$99) -> 1.505333509 | CM99: =IF(CM3,CM23/CM16,$F$99) -> 1.505333509 | CN99: =IF(CN3,CN23/CN16,$F$99) -> 1.505333509 | CO99: =IF(CO3,CO23/CO16,$F$99) -> 1.505333509 | CP99: =IF(CP3,CP23/CP16,$F$99) -> 1.505333509 | CQ99: =IF(CQ3,CQ23/CQ16,$F$99) -> 1.505333509 | CR99: =IF(CR3,CR23/CR16,$F$99) -> 1.505333509 | CS99: =IF(CS3,CS23/CS16,$F$99) -> 1.505333509 | CT99: =IF(CT3,CT23/CT16,$F$99) -> 1.505333509 | CU99: =IF(CU3,CU23/CU16,$F$99) -> 1.505333509 | CV99: =IF(CV3,CV23/CV16,$F$99) -> 1.505333509 | CW99: =IF(CW3,CW23/CW16,$F$99) -> 1.505333509 | CX99: =IF(CX3,CX23/CX16,$F$99) -> 1.505333509 | CY99: =IF(CY3,CY23/CY16,$F$99) -> 1.505333509 | CZ99: =IF(CZ3,CZ23/CZ16,$F$99) -> 1.505333509 | DA99: =IF(DA3,DA23/DA16,$F$99) -> 1.505333509 | DB99: =IF(DB3,DB23/DB16,$F$99) -> 1.505333509 | DC99: =IF(DC3,DC23/DC16,$F$99) -> 1.505333509 | DD99: =IF(DD3,DD23/DD16,$F$99) -> 1.505333509 | DE99: =IF(DE3,DE23/DE16,$F$99) -> 1.505333509 | DF99: =IF(DF3,DF23/DF16,$F$99) -> 1.505333509 | DG99: =IF(DG3,DG23/DG16,$F$99) -> 1.505333509 | DH99: =IF(DH3,DH23/DH16,$F$99) -> 1.505333509 | DI99: =IF(DI3,DI23/DI16,$F$99) -> 1.505333509 | DJ99: =IF(DJ3,DJ23/DJ16,$F$99) -> 1.505333509 | DK99: =IF(DK3,DK23/DK16,$F$99) -> 1.505333509 | DL99: =IF(DL3,DL23/DL16,$F$99) -> 1.505333509 | DM99: =IF(DM3,DM23/DM16,$F$99) -> 1.505333509 | DN99: =IF(DN3,DN23/DN16,$F$99) -> 1.505333509 | DO99: =IF(DO3,DO23/DO16,$F$99) -> 1.505333509 | DP99: =IF(DP3,DP23/DP16,$F$99) -> 1.505333509 | DQ99: =IF(DQ3,DQ23/DQ16,$F$99) -> 1.505333509 | DR99: =IF(DR3,DR23/DR16,$F$99) -> 1.505333509 | DS99: =IF(DS3,DS23/DS16,$F$99) -> 1.505333509 | DT99: =IF(DT3,DT23/DT16,$F$99) -> 1.505333509 | DU99: =IF(DU3,DU23/DU16,$F$99) -> 1.505333509 | DV99: =IF(DV3,DV23/DV16,$F$99) -> 1.505333509 | DW99: =IF(DW3,DW23/DW16,$F$99) -> 1.505333509 | DX99: =IF(DX3,DX23/DX16,$F$99) -> 1.505333509 | DY99: =IF(DY3,DY23/DY16,$F$99) -> 1.505333509 | DZ99: =IF(DZ3,DZ23/DZ16,$F$99) -> 1.505333509 | EA99: =IF(EA3,EA23/EA16,$F$99) -> 1.505333509 | EB99: =IF(EB3,EB23/EB16,$F$99) -> 1.505333509 | EC99: =IF(EC3,EC23/EC16,$F$99) -> 1.505333509 | ED99: =IF(ED3,ED23/ED16,$F$99) -> 1.505333509 | EE99: =IF(EE3,EE23/EE16,$F$99) -> 1.505333509 | EF99: =IF(EF3,EF23/EF16,$F$99) -> 1.505333509 | EG99: =IF(EG3,EG23/EG16,$F$99) -> 1.505333509 | EH99: =IF(EH3,EH23/EH16,$F$99) -> 1.505333509 | EI99: =IF(EI3,EI23/EI16,$F$99) -> 1.505333509 | EJ99: =IF(EJ3,EJ23/EJ16,$F$99) -> 1.505333509 | EK99: =IF(EK3,EK23/EK16,$F$99) -> 1.505333509 | EL99: =IF(EL3,EL23/EL16,$F$99) -> 1.505333509 | EM99: =IF(EM3,EM23/EM16,$F$99) -> 1.505333509 | EN99: =IF(EN3,EN23/EN16,$F$99) -> 1.505333509 | EO99: =IF(EO3,EO23/EO16,$F$99) -> 1.505333509 | EP99: =IF(EP3,EP23/EP16,$F$99) -> 1.505333509 | EQ99: =IF(EQ3,EQ23/EQ16,$F$99) -> 1.505333509 | ER99: =IF(ER3,ER23/ER16,$F$99) -> 1.505333509 | ES99: =IF(ES3,ES23/ES16,$F$99) -> 1.505333509 | ET99: =IF(ET3,ET23/ET16,$F$99) -> 1.505333509 | EU99: =IF(EU3,EU23/EU16,$F$99) -> 1.505333509 | EV99: =IF(EV3,EV23/EV16,$F$99) -> 1.505333509 | EW99: =IF(EW3,EW23/EW16,$F$99) -> 1.505333509 | EX99: =IF(EX3,EX23/EX16,$F$99) -> 1.505333509 | EY99: =IF(EY3,EY23/EY16,$F$99) -> 1.505333509 | EZ99: =IF(EZ3,EZ23/EZ16,$F$99) -> 1.505333509 | FA99: =IF(FA3,FA23/FA16,$F$99) -> 1.505333509 | FB99: =IF(FB3,FB23/FB16,$F$99) -> 1.505333509 | FC99: =IF(FC3,FC23/FC16,$F$99) -> 1.505333509 | FD99: =IF(FD3,FD23/FD16,$F$99) -> 1.505333509 | FE99: =IF(FE3,FE23/FE16,$F$99) -> 1.505333509 | FF99: =IF(FF3,FF23/FF16,$F$99) -> 1.505333509 | FG99: =IF(FG3,FG23/FG16,$F$99) -> 1.505333509 | FH99: =IF(FH3,FH23/FH16,$F$99) -> 1.505333509 | FI99: =IF(FI3,FI23/FI16,$F$99) -> 1.505333509
C100: Passengers per Period | H100: =H74 -> 605751.6402 | I100: =I74 -> 608834.825 | J100: =J74 -> 636674 | K100: =K74 -> 664092 | L100: =L74 -> 208229 | M100: =M74 -> 42200.67154 | N100: =N74 -> 39348.19817 | O100: =O74 -> 52827.22846 | P100: =P74 -> 38195.71898 | Q100: =Q74 -> 35187.4813 | R100: =R74 -> 41572.95604 | S100: =S74 -> 39923.97066 | T100: =T74 -> 26261.77266 | U100: =U74 -> 30834.33973 | V100: =V74 -> 33023.24664 | W100: =W74 -> 41596.84801 | X100: =X74 -> 41473.52025 | Y100: =Y74 -> 39022.85725 | Z100: =Z74 -> 36385.18213 | AA100: =AA74 -> 48849.20831 | AB100: =AB74 -> 35319.48747 | AC100: =AC74 -> 32537.77747 | AD100: =AD74 -> 38442.41027 | AE100: =AE74 -> 36917.59755 | AF100: =AF74 -> 24284.19663 | AG100: =AG74 -> 28512.43816 | AH100: =AH74 -> 33023.24664 | AI100: =AI74 -> 41596.84801 | AJ100: =AJ74 -> 41473.52025 | AK100: =AK74 -> 39022.85725 | AL100: =AL74 -> 36385.18213 | AM100: =AM74 -> 48849.20831 | AN100: =AN74 -> 35319.48747 | AO100: =AO74 -> 32537.77747 | AP100: =AP74 -> 38442.41027 | AQ100: =AQ74 -> 36917.59755 | AR100: =AR74 -> 24284.19663 | AS100: =AS74 -> 28512.43816 | AT100: =AT74 -> 33023.24664 | AU100: =AU74 -> 41596.84801 | AV100: =AV74 -> 41473.52025 | AW100: =AW74 -> 39022.85725 | AX100: =AX74 -> 36385.18213 | AY100: =AY74 -> 48849.20831 | AZ100: =AZ74 -> 35319.48747 | BA100: =BA74 -> 32537.77747 | BB100: =BB74 -> 38442.41027 | BC100: =BC74 -> 36917.59755 | BD100: =BD74 -> 24284.19663 | BE100: =BE74 -> 28512.43816 | BF100: =BF74 -> 33023.24664 | BG100: =BG74 -> 41596.84801 | BH100: =BH74 -> 41473.52025 | BI100: =BI74 -> 39022.85725 | BJ100: =BJ74 -> 36385.18213 | BK100: =BK74 -> 48849.20831 | BL100: =BL74 -> 35319.48747 | BM100: =BM74 -> 32537.77747 | BN100: =BN74 -> 38442.41027 | BO100: =BO74 -> 36917.59755 | BP100: =BP74 -> 24284.19663 | BQ100: =BQ74 -> 28512.43816 | BR100: =BR74 -> 33023.24664 | BS100: =BS74 -> 41596.84801 | BT100: =BT74 -> 41473.52025 | BU100: =BU74 -> 39022.85725 | BV100: =BV74 -> 36385.18213 | BW100: =BW74 -> 48849.20831 | BX100: =BX74 -> 35319.48747 | BY100: =BY74 -> 32537.77747 | BZ100: =BZ74 -> 38442.41027 | CA100: =CA74 -> 36917.59755 | CB100: =CB74 -> 24284.19663 | CC100: =CC74 -> 28512.43816 | CD100: =CD74 -> 33023.24664 | CE100: =CE74 -> 41596.84801 | CF100: =CF74 -> 41473.52025 | CG100: =CG74 -> 39022.85725 | CH100: =CH74 -> 36385.18213 | CI100: =CI74 -> 48849.20831 | CJ100: =CJ74 -> 35319.48747 | CK100: =CK74 -> 32537.77747 | CL100: =CL74 -> 38442.41027 | CM100: =CM74 -> 36917.59755 | CN100: =CN74 -> 24284.19663 | CO100: =CO74 -> 28512.43816 | CP100: =CP74 -> 33023.24664 | CQ100: =CQ74 -> 41596.84801 | CR100: =CR74 -> 41473.52025 | CS100: =CS74 -> 39022.85725 | CT100: =CT74 -> 36385.18213 | CU100: =CU74 -> 48849.20831 | CV100: =CV74 -> 35319.48747 | CW100: =CW74 -> 32537.77747 | CX100: =CX74 -> 38442.41027 | CY100: =CY74 -> 36917.59755 | CZ100: =CZ74 -> 24284.19663 | DA100: =DA74 -> 28512.43816 | DB100: =DB74 -> 33023.24664 | DC100: =DC74 -> 41596.84801 | DD100: =DD74 -> 41473.52025 | DE100: =DE74 -> 39022.85725 | DF100: =DF74 -> 36385.18213 | DG100: =DG74 -> 48849.20831 | DH100: =DH74 -> 35319.48747 | DI100: =DI74 -> 32537.77747 | DJ100: =DJ74 -> 38442.41027 | DK100: =DK74 -> 36917.59755 | DL100: =DL74 -> 24284.19663 | DM100: =DM74 -> 28512.43816 | DN100: =DN74 -> 33023.24664 | DO100: =DO74 -> 41596.84801 | DP100: =DP74 -> 41473.52025 | DQ100: =DQ74 -> 39022.85725 | DR100: =DR74 -> 36385.18213 | DS100: =DS74 -> 48849.20831 | DT100: =DT74 -> 35319.48747 | DU100: =DU74 -> 32537.77747 | DV100: =DV74 -> 38442.41027 | DW100: =DW74 -> 36917.59755 | DX100: =DX74 -> 24284.19663 | DY100: =DY74 -> 28512.43816 | DZ100: =DZ74 -> 33023.24664 | EA100: =EA74 -> 41596.84801 | EB100: =EB74 -> 41473.52025 | EC100: =EC74 -> 39022.85725 | ED100: =ED74 -> 36385.18213 | EE100: =EE74 -> 48849.20831 | EF100: =EF74 -> 35319.48747 | EG100: =EG74 -> 32537.77747 | EH100: =EH74 -> 38442.41027 | EI100: =EI74 -> 36917.59755 | EJ100: =EJ74 -> 24284.19663 | EK100: =EK74 -> 28512.43816 | EL100: =EL74 -> 33023.24664 | EM100: =EM74 -> 41596.84801 | EN100: =EN74 -> 41473.52025 | EO100: =EO74 -> 39022.85725 | EP100: =EP74 -> 36385.18213 | EQ100: =EQ74 -> 48849.20831 | ER100: =ER74 -> 35319.48747 | ES100: =ES74 -> 32537.77747 | ET100: =ET74 -> 38442.41027 | EU100: =EU74 -> 36917.59755 | EV100: =EV74 -> 24284.19663 | EW100: =EW74 -> 28512.43816 | EX100: =EX74 -> 33023.24664 | EY100: =EY74 -> 41596.84801 | EZ100: =EZ74 -> 41473.52025 | FA100: =FA74 -> 39022.85725 | FB100: =FB74 -> 36385.18213 | FC100: =FC74 -> 48849.20831 | FD100: =FD74 -> 35319.48747 | FE100: =FE74 -> 32537.77747 | FF100: =FF74 -> 38442.41027 | FG100: =FG74 -> 36917.59755 | FH100: =FH74 -> 24284.19663 | FI100: =FI74 -> 28512.43816
C101: Projected Landing Fees | H101: =H99*H100 -> 0 | I101: =I99*I100 -> 1002962.963 | J101: 930370.3704 | K101: 1025060.437 | L101: 326296.2963 | M101: 63526.08497 | N101: 59232.16122 | O101: 79522.59718 | P101: 57497.29568 | Q101: 52968.89469 | R101: 62581.16379 | S101: 60098.89085 | T101: 39532.72639 | U101: 46415.96482 | V101: 49710.99974 | W101: 62617.12918 | X101: 62431.47977 | Y101: 58742.41463 | Z101: 54771.83389 | AA101: 73534.35016 | AB101: 53167.608 | AC101: 48980.20673 | AD101: 57868.64834 | AE101: 55573.29666 | AF101: 36555.81493 | AG101: 42920.72859 | AH101: 49710.99974 | AI101: 62617.12918 | AJ101: 62431.47977 | AK101: 58742.41463 | AL101: 54771.83389 | AM101: 73534.35016 | AN101: 53167.608 | AO101: 48980.20673 | AP101: 57868.64834 | AQ101: 55573.29666 | AR101: 36555.81493 | AS101: 42920.72859 | AT101: 49710.99974 | AU101: 62617.12918 | AV101: 62431.47977 | AW101: 58742.41463 | AX101: 54771.83389 | AY101: 73534.35016 | AZ101: 53167.608 | BA101: 48980.20673 | BB101: 57868.64834 | BC101: 55573.29666 | BD101: 36555.81493 | BE101: 42920.72859 | BF101: 49710.99974 | BG101: 62617.12918 | BH101: 62431.47977 | BI101: 58742.41463 | BJ101: 54771.83389 | BK101: 73534.35016 | BL101: 53167.608 | BM101: 48980.20673 | BN101: 57868.64834 | BO101: 55573.29666 | BP101: 36555.81493 | BQ101: 42920.72859 | BR101: 49710.99974 | BS101: 62617.12918 | BT101: 62431.47977 | BU101: =BU99*BU100 -> 58742.41463 | BV101: 54771.83389 | BW101: 73534.35016 | BX101: 53167.608 | BY101: 48980.20673 | BZ101: 57868.64834 | CA101: 55573.29666 | CB101: 36555.81493 | CC101: 42920.72859 | CD101: 49710.99974 | CE101: 62617.12918 | CF101: 62431.47977 | CG101: 58742.41463 | CH101: 54771.83389 | CI101: 73534.35016 | CJ101: 53167.608 | CK101: 48980.20673 | CL101: 57868.64834 | CM101: 55573.29666 | CN101: 36555.81493 | CO101: 42920.72859 | CP101: 49710.99974 | CQ101: 62617.12918 | CR101: 62431.47977 | CS101: 58742.41463 | CT101: 54771.83389 | CU101: 73534.35016 | CV101: 53167.608 | CW101: 48980.20673 | CX101: 57868.64834 | CY101: 55573.29666 | CZ101: 36555.81493 | DA101: 42920.72859 | DB101: 49710.99974 | DC101: 62617.12918 | DD101: 62431.47977 | DE101: 58742.41463 | DF101: 54771.83389 | DG101: 73534.35016 | DH101: 53167.608 | DI101: 48980.20673 | DJ101: 57868.64834 | DK101: 55573.29666 | DL101: 36555.81493 | DM101: 42920.72859 | DN101: 49710.99974 | DO101: 62617.12918 | DP101: 62431.47977 | DQ101: 58742.41463 | DR101: 54771.83389 | DS101: 73534.35016 | DT101: 53167.608 | DU101: 48980.20673 | DV101: 57868.64834 | DW101: 55573.29666 | DX101: 36555.81493 | DY101: 42920.72859 | DZ101: 49710.99974 | EA101: 62617.12918 | EB101: 62431.47977 | EC101: 58742.41463 | ED101: 54771.83389 | EE101: 73534.35016 | EF101: 53167.608 | EG101: =EG99*EG100 -> 48980.20673 | EH101: 57868.64834 | EI101: 55573.29666 | EJ101: 36555.81493 | EK101: 42920.72859 | EL101: 49710.99974 | EM101: 62617.12918 | EN101: 62431.47977 | EO101: 58742.41463 | EP101: 54771.83389 | EQ101: 73534.35016 | ER101: 53167.608 | ES101: 48980.20673 | ET101: 57868.64834 | EU101: 55573.29666 | EV101: 36555.81493 | EW101: 42920.72859 | EX101: 49710.99974 | EY101: 62617.12918 | EZ101: 62431.47977 | FA101: 58742.41463 | FB101: 54771.83389 | FC101: 73534.35016 | FD101: 53167.608 | FE101: 48980.20673 | FF101: 57868.64834 | FG101: 55573.29666 | FH101: 36555.81493 | FI101: 42920.72859
C103: Period Code | H103: =H3*1+H4*3+H6*2 -> 1 | I103: =I3*1+I4*3+I6*2 -> 1 | J103: =J3*1+J4*3+J6*2 -> 1 | K103: =K3*1+K4*3+K6*2 -> 1 | L103: =L3*1+L4*3+L6*2 -> 1 | M103: =M3*1+M4*3+M6*2 -> 2 | N103: =N3*1+N4*3+N6*2 -> 2 | O103: =O3*1+O4*3+O6*2 -> 2 | P103: =P3*1+P4*3+P6*2 -> 2 | Q103: =Q3*1+Q4*3+Q6*2 -> 2 | R103: =R3*1+R4*3+R6*2 -> 2 | S103: =S3*1+S4*3+S6*2 -> 2 | T103: =T3*1+T4*3+T6*2 -> 2 | U103: =U3*1+U4*3+U6*2 -> 2 | V103: =V3*1+V4*3+V6*2 -> 3 | W103: =W3*1+W4*3+W6*2 -> 3 | X103: =X3*1+X4*3+X6*2 -> 3 | Y103: =Y3*1+Y4*3+Y6*2 -> 3 | Z103: =Z3*1+Z4*3+Z6*2 -> 3 | AA103: =AA3*1+AA4*3+AA6*2 -> 3 | AB103: =AB3*1+AB4*3+AB6*2 -> 3 | AC103: =AC3*1+AC4*3+AC6*2 -> 3 | AD103: =AD3*1+AD4*3+AD6*2 -> 3 | AE103: =AE3*1+AE4*3+AE6*2 -> 3 | AF103: =AF3*1+AF4*3+AF6*2 -> 3 | AG103: =AG3*1+AG4*3+AG6*2 -> 3 | AH103: =AH3*1+AH4*3+AH6*2 -> 3 | AI103: =AI3*1+AI4*3+AI6*2 -> 3 | AJ103: =AJ3*1+AJ4*3+AJ6*2 -> 3 | AK103: =AK3*1+AK4*3+AK6*2 -> 3 | AL103: =AL3*1+AL4*3+AL6*2 -> 3 | AM103: =AM3*1+AM4*3+AM6*2 -> 3 | AN103: =AN3*1+AN4*3+AN6*2 -> 3 | AO103: =AO3*1+AO4*3+AO6*2 -> 3 | AP103: =AP3*1+AP4*3+AP6*2 -> 3 | AQ103: =AQ3*1+AQ4*3+AQ6*2 -> 3 | AR103: =AR3*1+AR4*3+AR6*2 -> 3 | AS103: =AS3*1+AS4*3+AS6*2 -> 3 | AT103: =AT3*1+AT4*3+AT6*2 -> 3 | AU103: =AU3*1+AU4*3+AU6*2 -> 3 | AV103: =AV3*1+AV4*3+AV6*2 -> 3 | AW103: =AW3*1+AW4*3+AW6*2 -> 3 | AX103: =AX3*1+AX4*3+AX6*2 -> 3 | AY103: =AY3*1+AY4*3+AY6*2 -> 3 | AZ103: =AZ3*1+AZ4*3+AZ6*2 -> 3 | BA103: =BA3*1+BA4*3+BA6*2 -> 3 | BB103: =BB3*1+BB4*3+BB6*2 -> 3 | BC103: =BC3*1+BC4*3+BC6*2 -> 3 | BD103: =BD3*1+BD4*3+BD6*2 -> 3 | BE103: =BE3*1+BE4*3+BE6*2 -> 3 | BF103: =BF3*1+BF4*3+BF6*2 -> 3 | BG103: =BG3*1+BG4*3+BG6*2 -> 3 | BH103: =BH3*1+BH4*3+BH6*2 -> 3 | BI103: =BI3*1+BI4*3+BI6*2 -> 3 | BJ103: =BJ3*1+BJ4*3+BJ6*2 -> 3 | BK103: =BK3*1+BK4*3+BK6*2 -> 3 | BL103: =BL3*1+BL4*3+BL6*2 -> 3 | BM103: =BM3*1+BM4*3+BM6*2 -> 3 | BN103: =BN3*1+BN4*3+BN6*2 -> 3 | BO103: =BO3*1+BO4*3+BO6*2 -> 3 | BP103: =BP3*1+BP4*3+BP6*2 -> 3 | BQ103: =BQ3*1+BQ4*3+BQ6*2 -> 3 | BR103: =BR3*1+BR4*3+BR6*2 -> 3 | BS103: =BS3*1+BS4*3+BS6*2 -> 3 | BT103: =BT3*1+BT4*3+BT6*2 -> 3 | BU103: =BU3*1+BU4*3+BU6*2 -> 3 | BV103: =BV3*1+BV4*3+BV6*2 -> 3 | BW103: =BW3*1+BW4*3+BW6*2 -> 3 | BX103: =BX3*1+BX4*3+BX6*2 -> 3 | BY103: =BY3*1+BY4*3+BY6*2 -> 3 | BZ103: =BZ3*1+BZ4*3+BZ6*2 -> 3 | CA103: =CA3*1+CA4*3+CA6*2 -> 3 | CB103: =CB3*1+CB4*3+CB6*2 -> 3 | CC103: =CC3*1+CC4*3+CC6*2 -> 3 | CD103: =CD3*1+CD4*3+CD6*2 -> 3 | CE103: =CE3*1+CE4*3+CE6*2 -> 3 | CF103: =CF3*1+CF4*3+CF6*2 -> 3 | CG103: =CG3*1+CG4*3+CG6*2 -> 3 | CH103: =CH3*1+CH4*3+CH6*2 -> 3 | CI103: =CI3*1+CI4*3+CI6*2 -> 3 | CJ103: =CJ3*1+CJ4*3+CJ6*2 -> 3 | CK103: =CK3*1+CK4*3+CK6*2 -> 3 | CL103: =CL3*1+CL4*3+CL6*2 -> 3 | CM103: =CM3*1+CM4*3+CM6*2 -> 3 | CN103: =CN3*1+CN4*3+CN6*2 -> 3 | CO103: =CO3*1+CO4*3+CO6*2 -> 3 | CP103: =CP3*1+CP4*3+CP6*2 -> 3 | CQ103: =CQ3*1+CQ4*3+CQ6*2 -> 3 | CR103: =CR3*1+CR4*3+CR6*2 -> 3 | CS103: =CS3*1+CS4*3+CS6*2 -> 3 | CT103: =CT3*1+CT4*3+CT6*2 -> 3 | CU103: =CU3*1+CU4*3+CU6*2 -> 3 | CV103: =CV3*1+CV4*3+CV6*2 -> 3 | CW103: =CW3*1+CW4*3+CW6*2 -> 3 | CX103: =CX3*1+CX4*3+CX6*2 -> 3 | CY103: =CY3*1+CY4*3+CY6*2 -> 3 | CZ103: =CZ3*1+CZ4*3+CZ6*2 -> 3 | DA103: =DA3*1+DA4*3+DA6*2 -> 3 | DB103: =DB3*1+DB4*3+DB6*2 -> 3 | DC103: =DC3*1+DC4*3+DC6*2 -> 3 | DD103: =DD3*1+DD4*3+DD6*2 -> 3 | DE103: =DE3*1+DE4*3+DE6*2 -> 3 | DF103: =DF3*1+DF4*3+DF6*2 -> 3 | DG103: =DG3*1+DG4*3+DG6*2 -> 3 | DH103: =DH3*1+DH4*3+DH6*2 -> 3 | DI103: =DI3*1+DI4*3+DI6*2 -> 3 | DJ103: =DJ3*1+DJ4*3+DJ6*2 -> 3 | DK103: =DK3*1+DK4*3+DK6*2 -> 3 | DL103: =DL3*1+DL4*3+DL6*2 -> 3 | DM103: =DM3*1+DM4*3+DM6*2 -> 3 | DN103: =DN3*1+DN4*3+DN6*2 -> 3 | DO103: =DO3*1+DO4*3+DO6*2 -> 3 | DP103: =DP3*1+DP4*3+DP6*2 -> 3 | DQ103: =DQ3*1+DQ4*3+DQ6*2 -> 3 | DR103: =DR3*1+DR4*3+DR6*2 -> 3 | DS103: =DS3*1+DS4*3+DS6*2 -> 3 | DT103: =DT3*1+DT4*3+DT6*2 -> 3 | DU103: =DU3*1+DU4*3+DU6*2 -> 3 | DV103: =DV3*1+DV4*3+DV6*2 -> 3 | DW103: =DW3*1+DW4*3+DW6*2 -> 3 | DX103: =DX3*1+DX4*3+DX6*2 -> 3 | DY103: =DY3*1+DY4*3+DY6*2 -> 3 | DZ103: =DZ3*1+DZ4*3+DZ6*2 -> 3 | EA103: =EA3*1+EA4*3+EA6*2 -> 3 | EB103: =EB3*1+EB4*3+EB6*2 -> 3 | EC103: =EC3*1+EC4*3+EC6*2 -> 3 | ED103: =ED3*1+ED4*3+ED6*2 -> 3 | EE103: =EE3*1+EE4*3+EE6*2 -> 3 | EF103: =EF3*1+EF4*3+EF6*2 -> 3 | EG103: =EG3*1+EG4*3+EG6*2 -> 3 | EH103: =EH3*1+EH4*3+EH6*2 -> 3 | EI103: =EI3*1+EI4*3+EI6*2 -> 3 | EJ103: =EJ3*1+EJ4*3+EJ6*2 -> 3 | EK103: =EK3*1+EK4*3+EK6*2 -> 3 | EL103: =EL3*1+EL4*3+EL6*2 -> 3 | EM103: =EM3*1+EM4*3+EM6*2 -> 3 | EN103: =EN3*1+EN4*3+EN6*2 -> 3 | EO103: =EO3*1+EO4*3+EO6*2 -> 3 | EP103: =EP3*1+EP4*3+EP6*2 -> 3 | EQ103: =EQ3*1+EQ4*3+EQ6*2 -> 3 | ER103: =ER3*1+ER4*3+ER6*2 -> 3 | ES103: =ES3*1+ES4*3+ES6*2 -> 3 | ET103: =ET3*1+ET4*3+ET6*2 -> 3 | EU103: =EU3*1+EU4*3+EU6*2 -> 3 | EV103: =EV3*1+EV4*3+EV6*2 -> 3 | EW103: =EW3*1+EW4*3+EW6*2 -> 3 | EX103: =EX3*1+EX4*3+EX6*2 -> 3 | EY103: =EY3*1+EY4*3+EY6*2 -> 3 | EZ103: =EZ3*1+EZ4*3+EZ6*2 -> 3 | FA103: =FA3*1+FA4*3+FA6*2 -> 3 | FB103: =FB3*1+FB4*3+FB6*2 -> 3 | FC103: =FC3*1+FC4*3+FC6*2 -> 3 | FD103: =FD3*1+FD4*3+FD6*2 -> 3 | FE103: =FE3*1+FE4*3+FE6*2 -> 3 | FF103: =FF3*1+FF4*3+FF6*2 -> 3 | FG103: =FG3*1+FG4*3+FG6*2 -> 3 | FH103: =FH3*1+FH4*3+FH6*2 -> 3 | FI103: =FI3*1+FI4*3+FI6*2 -> 3
C105: Other Revenues | E105: Actual % | F105: Budget | G105: Forecast
C106: Rental income | E106: ='Budget, CapExp and Passengers'!H16 -> 0.4071920855 | F106: ='Budget, CapExp and Passengers'!D16/12 -> 126163.4484 | G106: =TRANSPOSE(Scenarios!I36:K36)*1000 -> 197100 | H106: =CHOOSE(H$103,$E106*H$25,$F106,$G106) -> 2700937.829 | I106: =CHOOSE(I$103,$E106*I$25,$F106,$G106) -> 633032.2778 | J106: =CHOOSE(J$103,$E106*J$25,$F106,$G106) -> 614878.5989 | K106: =CHOOSE(K$103,$E106*K$25,$F106,$G106) -> 976749.2778 | L106: =CHOOSE(L$103,$E106*L$25,$F106,$G106) -> 470834.7003 | M106: =CHOOSE(M$103,$E106*#REF!,$F106,$G106) -> 126163.4484 | N106: =CHOOSE(N$103,$E106*N$25,$F106,$G106) -> 126163.4484 | O106: =CHOOSE(O$103,$E106*O$25,$F106,$G106) -> 126163.4484 | P106: =CHOOSE(P$103,$E106*P$25,$F106,$G106) -> 126163.4484 | Q106: =CHOOSE(Q$103,$E106*Q$25,$F106,$G106) -> 126163.4484 | R106: =CHOOSE(R$103,$E106*R$25,$F106,$G106) -> 126163.4484 | S106: =CHOOSE(S$103,$E106*S$25,$F106,$G106) -> 126163.4484 | T106: =CHOOSE(T$103,$E106*T$25,$F106,$G106) -> 126163.4484 | U106: =CHOOSE(U$103,$E106*U$25,$F106,$G106) -> 126163.4484 | V106: =CHOOSE(V$103,$E106*V$25,$F106,$G106) -> 197100 | W106: =CHOOSE(W$103,$E106*W$25,$F106,$G106) -> 197100 | X106: =CHOOSE(X$103,$E106*X$25,$F106,$G106) -> 197100 | Y106: =CHOOSE(Y$103,$E106*Y$25,$F106,$G106) -> 197100 | Z106: =CHOOSE(Z$103,$E106*Z$25,$F106,$G106) -> 197100 | AA106: =CHOOSE(AA$103,$E106*AA$25,$F106,$G106) -> 197100 | AB106: =CHOOSE(AB$103,$E106*AB$25,$F106,$G106) -> 197100 | AC106: =CHOOSE(AC$103,$E106*AC$25,$F106,$G106) -> 197100 | AD106: =CHOOSE(AD$103,$E106*AD$25,$F106,$G106) -> 197100 | AE106: =CHOOSE(AE$103,$E106*AE$25,$F106,$G106) -> 197100 | AF106: =CHOOSE(AF$103,$E106*AF$25,$F106,$G106) -> 197100 | AG106: =CHOOSE(AG$103,$E106*AG$25,$F106,$G106) -> 197100 | AH106: =CHOOSE(AH$103,$E106*AH$25,$F106,$G106) -> 197100 | AI106: =CHOOSE(AI$103,$E106*AI$25,$F106,$G106) -> 197100 | AJ106: =CHOOSE(AJ$103,$E106*AJ$25,$F106,$G106) -> 197100 | AK106: =CHOOSE(AK$103,$E106*AK$25,$F106,$G106) -> 197100 | AL106: =CHOOSE(AL$103,$E106*AL$25,$F106,$G106) -> 197100 | AM106: =CHOOSE(AM$103,$E106*AM$25,$F106,$G106) -> 197100 | AN106: =CHOOSE(AN$103,$E106*AN$25,$F106,$G106) -> 197100 | AO106: =CHOOSE(AO$103,$E106*AO$25,$F106,$G106) -> 197100 | AP106: =CHOOSE(AP$103,$E106*AP$25,$F106,$G106) -> 197100 | AQ106: =CHOOSE(AQ$103,$E106*AQ$25,$F106,$G106) -> 197100 | AR106: =CHOOSE(AR$103,$E106*AR$25,$F106,$G106) -> 197100 | AS106: =CHOOSE(AS$103,$E106*AS$25,$F106,$G106) -> 197100 | AT106: =CHOOSE(AT$103,$E106*AT$25,$F106,$G106) -> 197100 | AU106: =CHOOSE(AU$103,$E106*AU$25,$F106,$G106) -> 197100 | AV106: =CHOOSE(AV$103,$E106*AV$25,$F106,$G106) -> 197100 | AW106: =CHOOSE(AW$103,$E106*AW$25,$F106,$G106) -> 197100 | AX106: =CHOOSE(AX$103,$E106*AX$25,$F106,$G106) -> 197100 | AY106: =CHOOSE(AY$103,$E106*AY$25,$F106,$G106) -> 197100 | AZ106: =CHOOSE(AZ$103,$E106*AZ$25,$F106,$G106) -> 197100 | BA106: =CHOOSE(BA$103,$E106*BA$25,$F106,$G106) -> 197100 | BB106: =CHOOSE(BB$103,$E106*BB$25,$F106,$G106) -> 197100 | BC106: =CHOOSE(BC$103,$E106*BC$25,$F106,$G106) -> 197100 | BD106: =CHOOSE(BD$103,$E106*BD$25,$F106,$G106) -> 197100 | BE106: =CHOOSE(BE$103,$E106*BE$25,$F106,$G106) -> 197100 | BF106: =CHOOSE(BF$103,$E106*BF$25,$F106,$G106) -> 197100 | BG106: =CHOOSE(BG$103,$E106*BG$25,$F106,$G106) -> 197100 | BH106: =CHOOSE(BH$103,$E106*BH$25,$F106,$G106) -> 197100 | BI106: =CHOOSE(BI$103,$E106*BI$25,$F106,$G106) -> 197100 | BJ106: =CHOOSE(BJ$103,$E106*BJ$25,$F106,$G106) -> 197100 | BK106: =CHOOSE(BK$103,$E106*BK$25,$F106,$G106) -> 197100 | BL106: =CHOOSE(BL$103,$E106*BL$25,$F106,$G106) -> 197100 | BM106: =CHOOSE(BM$103,$E106*BM$25,$F106,$G106) -> 197100 | BN106: =CHOOSE(BN$103,$E106*BN$25,$F106,$G106) -> 197100 | BO106: =CHOOSE(BO$103,$E106*BO$25,$F106,$G106) -> 197100 | BP106: =CHOOSE(BP$103,$E106*BP$25,$F106,$G106) -> 197100 | BQ106: =CHOOSE(BQ$103,$E106*BQ$25,$F106,$G106) -> 197100 | BR106: =CHOOSE(BR$103,$E106*BR$25,$F106,$G106) -> 197100 | BS106: =CHOOSE(BS$103,$E106*BS$25,$F106,$G106) -> 197100 | BT106: =CHOOSE(BT$103,$E106*BT$25,$F106,$G106) -> 197100 | BU106: =CHOOSE(BU$103,$E106*BU$25,$F106,$G106) -> 197100 | BV106: =CHOOSE(BV$103,$E106*BV$25,$F106,$G106) -> 197100 | BW106: =CHOOSE(BW$103,$E106*BW$25,$F106,$G106) -> 197100 | BX106: =CHOOSE(BX$103,$E106*BX$25,$F106,$G106) -> 197100 | BY106: =CHOOSE(BY$103,$E106*BY$25,$F106,$G106) -> 197100 | BZ106: =CHOOSE(BZ$103,$E106*BZ$25,$F106,$G106) -> 197100 | CA106: =CHOOSE(CA$103,$E106*CA$25,$F106,$G106) -> 197100 | CB106: =CHOOSE(CB$103,$E106*CB$25,$F106,$G106) -> 197100 | CC106: =CHOOSE(CC$103,$E106*CC$25,$F106,$G106) -> 197100 | CD106: =CHOOSE(CD$103,$E106*CD$25,$F106,$G106) -> 197100 | CE106: =CHOOSE(CE$103,$E106*CE$25,$F106,$G106) -> 197100 | CF106: =CHOOSE(CF$103,$E106*CF$25,$F106,$G106) -> 197100 | CG106: =CHOOSE(CG$103,$E106*CG$25,$F106,$G106) -> 197100 | CH106: =CHOOSE(CH$103,$E106*CH$25,$F106,$G106) -> 197100 | CI106: =CHOOSE(CI$103,$E106*CI$25,$F106,$G106) -> 197100 | CJ106: =CHOOSE(CJ$103,$E106*CJ$25,$F106,$G106) -> 197100 | CK106: =CHOOSE(CK$103,$E106*CK$25,$F106,$G106) -> 197100 | CL106: =CHOOSE(CL$103,$E106*CL$25,$F106,$G106) -> 197100 | CM106: =CHOOSE(CM$103,$E106*CM$25,$F106,$G106) -> 197100 | CN106: =CHOOSE(CN$103,$E106*CN$25,$F106,$G106) -> 197100 | CO106: =CHOOSE(CO$103,$E106*CO$25,$F106,$G106) -> 197100 | CP106: =CHOOSE(CP$103,$E106*CP$25,$F106,$G106) -> 197100 | CQ106: =CHOOSE(CQ$103,$E106*CQ$25,$F106,$G106) -> 197100 | CR106: =CHOOSE(CR$103,$E106*CR$25,$F106,$G106) -> 197100 | CS106: =CHOOSE(CS$103,$E106*CS$25,$F106,$G106) -> 197100 | CT106: =CHOOSE(CT$103,$E106*CT$25,$F106,$G106) -> 197100 | CU106: =CHOOSE(CU$103,$E106*CU$25,$F106,$G106) -> 197100 | CV106: =CHOOSE(CV$103,$E106*CV$25,$F106,$G106) -> 197100 | CW106: =CHOOSE(CW$103,$E106*CW$25,$F106,$G106) -> 197100 | CX106: =CHOOSE(CX$103,$E106*CX$25,$F106,$G106) -> 197100 | CY106: =CHOOSE(CY$103,$E106*CY$25,$F106,$G106) -> 197100 | CZ106: =CHOOSE(CZ$103,$E106*CZ$25,$F106,$G106) -> 197100 | DA106: =CHOOSE(DA$103,$E106*DA$25,$F106,$G106) -> 197100 | DB106: =CHOOSE(DB$103,$E106*DB$25,$F106,$G106) -> 197100 | DC106: =CHOOSE(DC$103,$E106*DC$25,$F106,$G106) -> 197100 | DD106: =CHOOSE(DD$103,$E106*DD$25,$F106,$G106) -> 197100 | DE106: =CHOOSE(DE$103,$E106*DE$25,$F106,$G106) -> 197100 | DF106: =CHOOSE(DF$103,$E106*DF$25,$F106,$G106) -> 197100 | DG106: =CHOOSE(DG$103,$E106*DG$25,$F106,$G106) -> 197100 | DH106: =CHOOSE(DH$103,$E106*DH$25,$F106,$G106) -> 197100 | DI106: =CHOOSE(DI$103,$E106*DI$25,$F106,$G106) -> 197100 | DJ106: =CHOOSE(DJ$103,$E106*DJ$25,$F106,$G106) -> 197100 | DK106: =CHOOSE(DK$103,$E106*DK$25,$F106,$G106) -> 197100 | DL106: =CHOOSE(DL$103,$E106*DL$25,$F106,$G106) -> 197100 | DM106: =CHOOSE(DM$103,$E106*DM$25,$F106,$G106) -> 197100 | DN106: =CHOOSE(DN$103,$E106*DN$25,$F106,$G106) -> 197100 | DO106: =CHOOSE(DO$103,$E106*DO$25,$F106,$G106) -> 197100 | DP106: =CHOOSE(DP$103,$E106*DP$25,$F106,$G106) -> 197100 | DQ106: =CHOOSE(DQ$103,$E106*DQ$25,$F106,$G106) -> 197100 | DR106: =CHOOSE(DR$103,$E106*DR$25,$F106,$G106) -> 197100 | DS106: =CHOOSE(DS$103,$E106*DS$25,$F106,$G106) -> 197100 | DT106: =CHOOSE(DT$103,$E106*DT$25,$F106,$G106) -> 197100 | DU106: =CHOOSE(DU$103,$E106*DU$25,$F106,$G106) -> 197100 | DV106: =CHOOSE(DV$103,$E106*DV$25,$F106,$G106) -> 197100 | DW106: =CHOOSE(DW$103,$E106*DW$25,$F106,$G106) -> 197100 | DX106: =CHOOSE(DX$103,$E106*DX$25,$F106,$G106) -> 197100 | DY106: =CHOOSE(DY$103,$E106*DY$25,$F106,$G106) -> 197100 | DZ106: =CHOOSE(DZ$103,$E106*DZ$25,$F106,$G106) -> 197100 | EA106: =CHOOSE(EA$103,$E106*EA$25,$F106,$G106) -> 197100 | EB106: =CHOOSE(EB$103,$E106*EB$25,$F106,$G106) -> 197100 | EC106: =CHOOSE(EC$103,$E106*EC$25,$F106,$G106) -> 197100 | ED106: =CHOOSE(ED$103,$E106*ED$25,$F106,$G106) -> 197100 | EE106: =CHOOSE(EE$103,$E106*EE$25,$F106,$G106) -> 197100 | EF106: =CHOOSE(EF$103,$E106*EF$25,$F106,$G106) -> 197100 | EG106: =CHOOSE(EG$103,$E106*EG$25,$F106,$G106) -> 197100 | EH106: =CHOOSE(EH$103,$E106*EH$25,$F106,$G106) -> 197100 | EI106: =CHOOSE(EI$103,$E106*EI$25,$F106,$G106) -> 197100 | EJ106: =CHOOSE(EJ$103,$E106*EJ$25,$F106,$G106) -> 197100 | EK106: =CHOOSE(EK$103,$E106*EK$25,$F106,$G106) -> 197100 | EL106: =CHOOSE(EL$103,$E106*EL$25,$F106,$G106) -> 197100 | EM106: =CHOOSE(EM$103,$E106*EM$25,$F106,$G106) -> 197100 | EN106: =CHOOSE(EN$103,$E106*EN$25,$F106,$G106) -> 197100 | EO106: =CHOOSE(EO$103,$E106*EO$25,$F106,$G106) -> 197100 | EP106: =CHOOSE(EP$103,$E106*EP$25,$F106,$G106) -> 197100 | EQ106: =CHOOSE(EQ$103,$E106*EQ$25,$F106,$G106) -> 197100 | ER106: =CHOOSE(ER$103,$E106*ER$25,$F106,$G106) -> 197100 | ES106: =CHOOSE(ES$103,$E106*ES$25,$F106,$G106) -> 197100 | ET106: =CHOOSE(ET$103,$E106*ET$25,$F106,$G106) -> 197100 | EU106: =CHOOSE(EU$103,$E106*EU$25,$F106,$G106) -> 197100 | EV106: =CHOOSE(EV$103,$E106*EV$25,$F106,$G106) -> 197100 | EW106: =CHOOSE(EW$103,$E106*EW$25,$F106,$G106) -> 197100 | EX106: =CHOOSE(EX$103,$E106*EX$25,$F106,$G106) -> 197100 | EY106: =CHOOSE(EY$103,$E106*EY$25,$F106,$G106) -> 197100 | EZ106: =CHOOSE(EZ$103,$E106*EZ$25,$F106,$G106) -> 197100 | FA106: =CHOOSE(FA$103,$E106*FA$25,$F106,$G106) -> 197100 | FB106: =CHOOSE(FB$103,$E106*FB$25,$F106,$G106) -> 197100 | FC106: =CHOOSE(FC$103,$E106*FC$25,$F106,$G106) -> 197100 | FD106: =CHOOSE(FD$103,$E106*FD$25,$F106,$G106) -> 197100 | FE106: =CHOOSE(FE$103,$E106*FE$25,$F106,$G106) -> 197100 | FF106: =CHOOSE(FF$103,$E106*FF$25,$F106,$G106) -> 197100 | FG106: =CHOOSE(FG$103,$E106*FG$25,$F106,$G106) -> 197100 | FH106: =CHOOSE(FH$103,$E106*FH$25,$F106,$G106) -> 197100 | FI106: =CHOOSE(FI$103,$E106*FI$25,$F106,$G106) -> 197100
C107: Fuel charge | E107: ='Budget, CapExp and Passengers'!H17 -> 0.7723511413 | F107: ='Budget, CapExp and Passengers'!D17/12 -> 131414.1148 | G107: 118272.7033 | H107: =CHOOSE(H$103,$E107*H$25,$F107,$G107) -> 5123067.195 | I107: =CHOOSE(I$103,$E107*I$25,$F107,$G107) -> 1200718.825 | J107: =CHOOSE(J$103,$E107*J$25,$F107,$G107) -> 1166285.408 | K107: =CHOOSE(K$103,$E107*K$25,$F107,$G107) -> 1852672.108 | L107: =CHOOSE(L$103,$E107*L$25,$F107,$G107) -> 893066.7642 | M107: =CHOOSE(M$103,$E107*#REF!,$F107,$G107) -> 131414.1148 | N107: =CHOOSE(N$103,$E107*N$25,$F107,$G107) -> 131414.1148 | O107: =CHOOSE(O$103,$E107*O$25,$F107,$G107) -> 131414.1148 | P107: =CHOOSE(P$103,$E107*P$25,$F107,$G107) -> 131414.1148 | Q107: =CHOOSE(Q$103,$E107*Q$25,$F107,$G107) -> 131414.1148 | R107: =CHOOSE(R$103,$E107*R$25,$F107,$G107) -> 131414.1148 | S107: =CHOOSE(S$103,$E107*S$25,$F107,$G107) -> 131414.1148 | T107: =CHOOSE(T$103,$E107*T$25,$F107,$G107) -> 131414.1148 | U107: =CHOOSE(U$103,$E107*U$25,$F107,$G107) -> 131414.1148 | V107: =CHOOSE(V$103,$E107*V$25,$F107,$G107) -> 118272.7033 | W107: =CHOOSE(W$103,$E107*W$25,$F107,$G107) -> 118272.7033 | X107: =CHOOSE(X$103,$E107*X$25,$F107,$G107) -> 118272.7033 | Y107: =CHOOSE(Y$103,$E107*Y$25,$F107,$G107) -> 118272.7033 | Z107: =CHOOSE(Z$103,$E107*Z$25,$F107,$G107) -> 118272.7033 | AA107: =CHOOSE(AA$103,$E107*AA$25,$F107,$G107) -> 118272.7033 | AB107: =CHOOSE(AB$103,$E107*AB$25,$F107,$G107) -> 118272.7033 | AC107: =CHOOSE(AC$103,$E107*AC$25,$F107,$G107) -> 118272.7033 | AD107: =CHOOSE(AD$103,$E107*AD$25,$F107,$G107) -> 118272.7033 | AE107: =CHOOSE(AE$103,$E107*AE$25,$F107,$G107) -> 118272.7033 | AF107: =CHOOSE(AF$103,$E107*AF$25,$F107,$G107) -> 118272.7033 | AG107: =CHOOSE(AG$103,$E107*AG$25,$F107,$G107) -> 118272.7033 | AH107: =CHOOSE(AH$103,$E107*AH$25,$F107,$G107) -> 118272.7033 | AI107: =CHOOSE(AI$103,$E107*AI$25,$F107,$G107) -> 118272.7033 | AJ107: =CHOOSE(AJ$103,$E107*AJ$25,$F107,$G107) -> 118272.7033 | AK107: =CHOOSE(AK$103,$E107*AK$25,$F107,$G107) -> 118272.7033 | AL107: =CHOOSE(AL$103,$E107*AL$25,$F107,$G107) -> 118272.7033 | AM107: =CHOOSE(AM$103,$E107*AM$25,$F107,$G107) -> 118272.7033 | AN107: =CHOOSE(AN$103,$E107*AN$25,$F107,$G107) -> 118272.7033 | AO107: =CHOOSE(AO$103,$E107*AO$25,$F107,$G107) -> 118272.7033 | AP107: =CHOOSE(AP$103,$E107*AP$25,$F107,$G107) -> 118272.7033 | AQ107: =CHOOSE(AQ$103,$E107*AQ$25,$F107,$G107) -> 118272.7033 | AR107: =CHOOSE(AR$103,$E107*AR$25,$F107,$G107) -> 118272.7033 | AS107: =CHOOSE(AS$103,$E107*AS$25,$F107,$G107) -> 118272.7033 | AT107: =CHOOSE(AT$103,$E107*AT$25,$F107,$G107) -> 118272.7033 | AU107: =CHOOSE(AU$103,$E107*AU$25,$F107,$G107) -> 118272.7033 | AV107: =CHOOSE(AV$103,$E107*AV$25,$F107,$G107) -> 118272.7033 | AW107: =CHOOSE(AW$103,$E107*AW$25,$F107,$G107) -> 118272.7033 | AX107: =CHOOSE(AX$103,$E107*AX$25,$F107,$G107) -> 118272.7033 | AY107: =CHOOSE(AY$103,$E107*AY$25,$F107,$G107) -> 118272.7033 | AZ107: =CHOOSE(AZ$103,$E107*AZ$25,$F107,$G107) -> 118272.7033 | BA107: =CHOOSE(BA$103,$E107*BA$25,$F107,$G107) -> 118272.7033 | BB107: =CHOOSE(BB$103,$E107*BB$25,$F107,$G107) -> 118272.7033 | BC107: =CHOOSE(BC$103,$E107*BC$25,$F107,$G107) -> 118272.7033 | BD107: =CHOOSE(BD$103,$E107*BD$25,$F107,$G107) -> 118272.7033 | BE107: =CHOOSE(BE$103,$E107*BE$25,$F107,$G107) -> 118272.7033 | BF107: =CHOOSE(BF$103,$E107*BF$25,$F107,$G107) -> 118272.7033 | BG107: =CHOOSE(BG$103,$E107*BG$25,$F107,$G107) -> 118272.7033 | BH107: =CHOOSE(BH$103,$E107*BH$25,$F107,$G107) -> 118272.7033 | BI107: =CHOOSE(BI$103,$E107*BI$25,$F107,$G107) -> 118272.7033 | BJ107: =CHOOSE(BJ$103,$E107*BJ$25,$F107,$G107) -> 118272.7033 | BK107: =CHOOSE(BK$103,$E107*BK$25,$F107,$G107) -> 118272.7033 | BL107: =CHOOSE(BL$103,$E107*BL$25,$F107,$G107) -> 118272.7033 | BM107: =CHOOSE(BM$103,$E107*BM$25,$F107,$G107) -> 118272.7033 | BN107: =CHOOSE(BN$103,$E107*BN$25,$F107,$G107) -> 118272.7033 | BO107: =CHOOSE(BO$103,$E107*BO$25,$F107,$G107) -> 118272.7033 | BP107: =CHOOSE(BP$103,$E107*BP$25,$F107,$G107) -> 118272.7033 | BQ107: =CHOOSE(BQ$103,$E107*BQ$25,$F107,$G107) -> 118272.7033 | BR107: =CHOOSE(BR$103,$E107*BR$25,$F107,$G107) -> 118272.7033 | BS107: =CHOOSE(BS$103,$E107*BS$25,$F107,$G107) -> 118272.7033 | BT107: =CHOOSE(BT$103,$E107*BT$25,$F107,$G107) -> 118272.7033 | BU107: =CHOOSE(BU$103,$E107*BU$25,$F107,$G107) -> 118272.7033 | BV107: =CHOOSE(BV$103,$E107*BV$25,$F107,$G107) -> 118272.7033 | BW107: =CHOOSE(BW$103,$E107*BW$25,$F107,$G107) -> 118272.7033 | BX107: =CHOOSE(BX$103,$E107*BX$25,$F107,$G107) -> 118272.7033 | BY107: =CHOOSE(BY$103,$E107*BY$25,$F107,$G107) -> 118272.7033 | BZ107: =CHOOSE(BZ$103,$E107*BZ$25,$F107,$G107) -> 118272.7033 | CA107: =CHOOSE(CA$103,$E107*CA$25,$F107,$G107) -> 118272.7033 | CB107: =CHOOSE(CB$103,$E107*CB$25,$F107,$G107) -> 118272.7033 | CC107: =CHOOSE(CC$103,$E107*CC$25,$F107,$G107) -> 118272.7033 | CD107: =CHOOSE(CD$103,$E107*CD$25,$F107,$G107) -> 118272.7033 | CE107: =CHOOSE(CE$103,$E107*CE$25,$F107,$G107) -> 118272.7033 | CF107: =CHOOSE(CF$103,$E107*CF$25,$F107,$G107) -> 118272.7033 | CG107: =CHOOSE(CG$103,$E107*CG$25,$F107,$G107) -> 118272.7033 | CH107: =CHOOSE(CH$103,$E107*CH$25,$F107,$G107) -> 118272.7033 | CI107: =CHOOSE(CI$103,$E107*CI$25,$F107,$G107) -> 118272.7033 | CJ107: =CHOOSE(CJ$103,$E107*CJ$25,$F107,$G107) -> 118272.7033 | CK107: =CHOOSE(CK$103,$E107*CK$25,$F107,$G107) -> 118272.7033 | CL107: =CHOOSE(CL$103,$E107*CL$25,$F107,$G107) -> 118272.7033 | CM107: =CHOOSE(CM$103,$E107*CM$25,$F107,$G107) -> 118272.7033 | CN107: =CHOOSE(CN$103,$E107*CN$25,$F107,$G107) -> 118272.7033 | CO107: =CHOOSE(CO$103,$E107*CO$25,$F107,$G107) -> 118272.7033 | CP107: =CHOOSE(CP$103,$E107*CP$25,$F107,$G107) -> 118272.7033 | CQ107: =CHOOSE(CQ$103,$E107*CQ$25,$F107,$G107) -> 118272.7033 | CR107: =CHOOSE(CR$103,$E107*CR$25,$F107,$G107) -> 118272.7033 | CS107: =CHOOSE(CS$103,$E107*CS$25,$F107,$G107) -> 118272.7033 | CT107: =CHOOSE(CT$103,$E107*CT$25,$F107,$G107) -> 118272.7033 | CU107: =CHOOSE(CU$103,$E107*CU$25,$F107,$G107) -> 118272.7033 | CV107: =CHOOSE(CV$103,$E107*CV$25,$F107,$G107) -> 118272.7033 | CW107: =CHOOSE(CW$103,$E107*CW$25,$F107,$G107) -> 118272.7033 | CX107: =CHOOSE(CX$103,$E107*CX$25,$F107,$G107) -> 118272.7033 | CY107: =CHOOSE(CY$103,$E107*CY$25,$F107,$G107) -> 118272.7033 | CZ107: =CHOOSE(CZ$103,$E107*CZ$25,$F107,$G107) -> 118272.7033 | DA107: =CHOOSE(DA$103,$E107*DA$25,$F107,$G107) -> 118272.7033 | DB107: =CHOOSE(DB$103,$E107*DB$25,$F107,$G107) -> 118272.7033 | DC107: =CHOOSE(DC$103,$E107*DC$25,$F107,$G107) -> 118272.7033 | DD107: =CHOOSE(DD$103,$E107*DD$25,$F107,$G107) -> 118272.7033 | DE107: =CHOOSE(DE$103,$E107*DE$25,$F107,$G107) -> 118272.7033 | DF107: =CHOOSE(DF$103,$E107*DF$25,$F107,$G107) -> 118272.7033 | DG107: =CHOOSE(DG$103,$E107*DG$25,$F107,$G107) -> 118272.7033 | DH107: =CHOOSE(DH$103,$E107*DH$25,$F107,$G107) -> 118272.7033 | DI107: =CHOOSE(DI$103,$E107*DI$25,$F107,$G107) -> 118272.7033 | DJ107: =CHOOSE(DJ$103,$E107*DJ$25,$F107,$G107) -> 118272.7033 | DK107: =CHOOSE(DK$103,$E107*DK$25,$F107,$G107) -> 118272.7033 | DL107: =CHOOSE(DL$103,$E107*DL$25,$F107,$G107) -> 118272.7033 | DM107: =CHOOSE(DM$103,$E107*DM$25,$F107,$G107) -> 118272.7033 | DN107: =CHOOSE(DN$103,$E107*DN$25,$F107,$G107) -> 118272.7033 | DO107: =CHOOSE(DO$103,$E107*DO$25,$F107,$G107) -> 118272.7033 | DP107: =CHOOSE(DP$103,$E107*DP$25,$F107,$G107) -> 118272.7033 | DQ107: =CHOOSE(DQ$103,$E107*DQ$25,$F107,$G107) -> 118272.7033 | DR107: =CHOOSE(DR$103,$E107*DR$25,$F107,$G107) -> 118272.7033 | DS107: =CHOOSE(DS$103,$E107*DS$25,$F107,$G107) -> 118272.7033 | DT107: =CHOOSE(DT$103,$E107*DT$25,$F107,$G107) -> 118272.7033 | DU107: =CHOOSE(DU$103,$E107*DU$25,$F107,$G107) -> 118272.7033 | DV107: =CHOOSE(DV$103,$E107*DV$25,$F107,$G107) -> 118272.7033 | DW107: =CHOOSE(DW$103,$E107*DW$25,$F107,$G107) -> 118272.7033 | DX107: =CHOOSE(DX$103,$E107*DX$25,$F107,$G107) -> 118272.7033 | DY107: =CHOOSE(DY$103,$E107*DY$25,$F107,$G107) -> 118272.7033 | DZ107: =CHOOSE(DZ$103,$E107*DZ$25,$F107,$G107) -> 118272.7033 | EA107: =CHOOSE(EA$103,$E107*EA$25,$F107,$G107) -> 118272.7033 | EB107: =CHOOSE(EB$103,$E107*EB$25,$F107,$G107) -> 118272.7033 | EC107: =CHOOSE(EC$103,$E107*EC$25,$F107,$G107) -> 118272.7033 | ED107: =CHOOSE(ED$103,$E107*ED$25,$F107,$G107) -> 118272.7033 | EE107: =CHOOSE(EE$103,$E107*EE$25,$F107,$G107) -> 118272.7033 | EF107: =CHOOSE(EF$103,$E107*EF$25,$F107,$G107) -> 118272.7033 | EG107: =CHOOSE(EG$103,$E107*EG$25,$F107,$G107) -> 118272.7033 | EH107: =CHOOSE(EH$103,$E107*EH$25,$F107,$G107) -> 118272.7033 | EI107: =CHOOSE(EI$103,$E107*EI$25,$F107,$G107) -> 118272.7033 | EJ107: =CHOOSE(EJ$103,$E107*EJ$25,$F107,$G107) -> 118272.7033 | EK107: =CHOOSE(EK$103,$E107*EK$25,$F107,$G107) -> 118272.7033 | EL107: =CHOOSE(EL$103,$E107*EL$25,$F107,$G107) -> 118272.7033 | EM107: =CHOOSE(EM$103,$E107*EM$25,$F107,$G107) -> 118272.7033 | EN107: =CHOOSE(EN$103,$E107*EN$25,$F107,$G107) -> 118272.7033 | EO107: =CHOOSE(EO$103,$E107*EO$25,$F107,$G107) -> 118272.7033 | EP107: =CHOOSE(EP$103,$E107*EP$25,$F107,$G107) -> 118272.7033 | EQ107: =CHOOSE(EQ$103,$E107*EQ$25,$F107,$G107) -> 118272.7033 | ER107: =CHOOSE(ER$103,$E107*ER$25,$F107,$G107) -> 118272.7033 | ES107: =CHOOSE(ES$103,$E107*ES$25,$F107,$G107) -> 118272.7033 | ET107: =CHOOSE(ET$103,$E107*ET$25,$F107,$G107) -> 118272.7033 | EU107: =CHOOSE(EU$103,$E107*EU$25,$F107,$G107) -> 118272.7033 | EV107: =CHOOSE(EV$103,$E107*EV$25,$F107,$G107) -> 118272.7033 | EW107: =CHOOSE(EW$103,$E107*EW$25,$F107,$G107) -> 118272.7033 | EX107: =CHOOSE(EX$103,$E107*EX$25,$F107,$G107) -> 118272.7033 | EY107: =CHOOSE(EY$103,$E107*EY$25,$F107,$G107) -> 118272.7033 | EZ107: =CHOOSE(EZ$103,$E107*EZ$25,$F107,$G107) -> 118272.7033 | FA107: =CHOOSE(FA$103,$E107*FA$25,$F107,$G107) -> 118272.7033 | FB107: =CHOOSE(FB$103,$E107*FB$25,$F107,$G107) -> 118272.7033 | FC107: =CHOOSE(FC$103,$E107*FC$25,$F107,$G107) -> 118272.7033 | FD107: =CHOOSE(FD$103,$E107*FD$25,$F107,$G107) -> 118272.7033 | FE107: =CHOOSE(FE$103,$E107*FE$25,$F107,$G107) -> 118272.7033 | FF107: =CHOOSE(FF$103,$E107*FF$25,$F107,$G107) -> 118272.7033 | FG107: =CHOOSE(FG$103,$E107*FG$25,$F107,$G107) -> 118272.7033 | FH107: =CHOOSE(FH$103,$E107*FH$25,$F107,$G107) -> 118272.7033 | FI107: =CHOOSE(FI$103,$E107*FI$25,$F107,$G107) -> 118272.7033
C108: Other revenues | E108: ='Budget, CapExp and Passengers'!H18 -> 0.01131288279 | F108: ='Budget, CapExp and Passengers'!D18/12 -> 93197.53086 | G108: 46598.76543 | H108: =CHOOSE(H$103,H25+H22,$F108,$G108) -> 9658432.222 | I108: =CHOOSE(I$103,I25+I22,$F108,$G108) -> 2033202.593 | J108: =CHOOSE(J$103,J25+J22,$F108,$G108) -> 1677485.556 | K108: =CHOOSE(K$103,K25+K22,$F108,$G108) -> 2398743.278 | L108: =CHOOSE(L$103,L25+L22,$F108,$G108) -> 1156296.296 | M108: =CHOOSE(M$103,#REF!+M23,$F108,$G108) -> 93197.53086 | N108: =CHOOSE(N$103,N25+N22,$F108,$G108) -> 93197.53086 | O108: =CHOOSE(O$103,O25+O22,$F108,$G108) -> 93197.53086 | P108: =CHOOSE(P$103,P25+P22,$F108,$G108) -> 93197.53086 | Q108: =CHOOSE(Q$103,Q25+Q22,$F108,$G108) -> 93197.53086 | R108: =CHOOSE(R$103,R25+R22,$F108,$G108) -> 93197.53086 | S108: =CHOOSE(S$103,S25+S22,$F108,$G108) -> 93197.53086 | T108: =CHOOSE(T$103,T25+T22,$F108,$G108) -> 93197.53086 | U108: =CHOOSE(U$103,U25+U22,$F108,$G108) -> 93197.53086 | V108: =CHOOSE(V$103,V25+V22,$F108,$G108) -> 46598.76543 | W108: =CHOOSE(W$103,W25+W22,$F108,$G108) -> 46598.76543 | X108: =CHOOSE(X$103,X25+X22,$F108,$G108) -> 46598.76543 | Y108: =CHOOSE(Y$103,Y25+Y22,$F108,$G108) -> 46598.76543 | Z108: =CHOOSE(Z$103,Z25+Z22,$F108,$G108) -> 46598.76543 | AA108: =CHOOSE(AA$103,AA25+AA22,$F108,$G108) -> 46598.76543 | AB108: =CHOOSE(AB$103,AB25+AB22,$F108,$G108) -> 46598.76543 | AC108: =CHOOSE(AC$103,AC25+AC22,$F108,$G108) -> 46598.76543 | AD108: =CHOOSE(AD$103,AD25+AD22,$F108,$G108) -> 46598.76543 | AE108: =CHOOSE(AE$103,AE25+AE22,$F108,$G108) -> 46598.76543 | AF108: =CHOOSE(AF$103,AF25+AF22,$F108,$G108) -> 46598.76543 | AG108: =CHOOSE(AG$103,AG25+AG22,$F108,$G108) -> 46598.76543 | AH108: =CHOOSE(AH$103,AH25+AH22,$F108,$G108) -> 46598.76543 | AI108: =CHOOSE(AI$103,AI25+AI22,$F108,$G108) -> 46598.76543 | AJ108: =CHOOSE(AJ$103,AJ25+AJ22,$F108,$G108) -> 46598.76543 | AK108: =CHOOSE(AK$103,AK25+AK22,$F108,$G108) -> 46598.76543 | AL108: =CHOOSE(AL$103,AL25+AL22,$F108,$G108) -> 46598.76543 | AM108: =CHOOSE(AM$103,AM25+AM22,$F108,$G108) -> 46598.76543 | AN108: =CHOOSE(AN$103,AN25+AN22,$F108,$G108) -> 46598.76543 | AO108: =CHOOSE(AO$103,AO25+AO22,$F108,$G108) -> 46598.76543 | AP108: =CHOOSE(AP$103,AP25+AP22,$F108,$G108) -> 46598.76543 | AQ108: =CHOOSE(AQ$103,AQ25+AQ22,$F108,$G108) -> 46598.76543 | AR108: =CHOOSE(AR$103,AR25+AR22,$F108,$G108) -> 46598.76543 | AS108: =CHOOSE(AS$103,AS25+AS22,$F108,$G108) -> 46598.76543 | AT108: =CHOOSE(AT$103,AT25+AT22,$F108,$G108) -> 46598.76543 | AU108: =CHOOSE(AU$103,AU25+AU22,$F108,$G108) -> 46598.76543 | AV108: =CHOOSE(AV$103,AV25+AV22,$F108,$G108) -> 46598.76543 | AW108: =CHOOSE(AW$103,AW25+AW22,$F108,$G108) -> 46598.76543 | AX108: =CHOOSE(AX$103,AX25+AX22,$F108,$G108) -> 46598.76543 | AY108: =CHOOSE(AY$103,AY25+AY22,$F108,$G108) -> 46598.76543 | AZ108: =CHOOSE(AZ$103,AZ25+AZ22,$F108,$G108) -> 46598.76543 | BA108: =CHOOSE(BA$103,BA25+BA22,$F108,$G108) -> 46598.76543 | BB108: =CHOOSE(BB$103,BB25+BB22,$F108,$G108) -> 46598.76543 | BC108: =CHOOSE(BC$103,BC25+BC22,$F108,$G108) -> 46598.76543 | BD108: =CHOOSE(BD$103,BD25+BD22,$F108,$G108) -> 46598.76543 | BE108: =CHOOSE(BE$103,BE25+BE22,$F108,$G108) -> 46598.76543 | BF108: =CHOOSE(BF$103,BF25+BF22,$F108,$G108) -> 46598.76543 | BG108: =CHOOSE(BG$103,BG25+BG22,$F108,$G108) -> 46598.76543 | BH108: =CHOOSE(BH$103,BH25+BH22,$F108,$G108) -> 46598.76543 | BI108: =CHOOSE(BI$103,BI25+BI22,$F108,$G108) -> 46598.76543 | BJ108: =CHOOSE(BJ$103,BJ25+BJ22,$F108,$G108) -> 46598.76543 | BK108: =CHOOSE(BK$103,BK25+BK22,$F108,$G108) -> 46598.76543 | BL108: =CHOOSE(BL$103,BL25+BL22,$F108,$G108) -> 46598.76543 | BM108: =CHOOSE(BM$103,BM25+BM22,$F108,$G108) -> 46598.76543 | BN108: =CHOOSE(BN$103,BN25+BN22,$F108,$G108) -> 46598.76543 | BO108: =CHOOSE(BO$103,BO25+BO22,$F108,$G108) -> 46598.76543 | BP108: =CHOOSE(BP$103,BP25+BP22,$F108,$G108) -> 46598.76543 | BQ108: =CHOOSE(BQ$103,BQ25+BQ22,$F108,$G108) -> 46598.76543 | BR108: =CHOOSE(BR$103,BR25+BR22,$F108,$G108) -> 46598.76543 | BS108: =CHOOSE(BS$103,BS25+BS22,$F108,$G108) -> 46598.76543 | BT108: =CHOOSE(BT$103,BT25+BT22,$F108,$G108) -> 46598.76543 | BU108: =CHOOSE(BU$103,BU25+BU22,$F108,$G108) -> 46598.76543 | BV108: =CHOOSE(BV$103,BV25+BV22,$F108,$G108) -> 46598.76543 | BW108: =CHOOSE(BW$103,BW25+BW22,$F108,$G108) -> 46598.76543 | BX108: =CHOOSE(BX$103,BX25+BX22,$F108,$G108) -> 46598.76543 | BY108: =CHOOSE(BY$103,BY25+BY22,$F108,$G108) -> 46598.76543 | BZ108: =CHOOSE(BZ$103,BZ25+BZ22,$F108,$G108) -> 46598.76543 | CA108: =CHOOSE(CA$103,CA25+CA22,$F108,$G108) -> 46598.76543 | CB108: =CHOOSE(CB$103,CB25+CB22,$F108,$G108) -> 46598.76543 | CC108: =CHOOSE(CC$103,CC25+CC22,$F108,$G108) -> 46598.76543 | CD108: =CHOOSE(CD$103,CD25+CD22,$F108,$G108) -> 46598.76543 | CE108: =CHOOSE(CE$103,CE25+CE22,$F108,$G108) -> 46598.76543 | CF108: =CHOOSE(CF$103,CF25+CF22,$F108,$G108) -> 46598.76543 | CG108: =CHOOSE(CG$103,CG25+CG22,$F108,$G108) -> 46598.76543 | CH108: =CHOOSE(CH$103,CH25+CH22,$F108,$G108) -> 46598.76543 | CI108: =CHOOSE(CI$103,CI25+CI22,$F108,$G108) -> 46598.76543 | CJ108: =CHOOSE(CJ$103,CJ25+CJ22,$F108,$G108) -> 46598.76543 | CK108: =CHOOSE(CK$103,CK25+CK22,$F108,$G108) -> 46598.76543 | CL108: =CHOOSE(CL$103,CL25+CL22,$F108,$G108) -> 46598.76543 | CM108: =CHOOSE(CM$103,CM25+CM22,$F108,$G108) -> 46598.76543 | CN108: =CHOOSE(CN$103,CN25+CN22,$F108,$G108) -> 46598.76543 | CO108: =CHOOSE(CO$103,CO25+CO22,$F108,$G108) -> 46598.76543 | CP108: =CHOOSE(CP$103,CP25+CP22,$F108,$G108) -> 46598.76543 | CQ108: =CHOOSE(CQ$103,CQ25+CQ22,$F108,$G108) -> 46598.76543 | CR108: =CHOOSE(CR$103,CR25+CR22,$F108,$G108) -> 46598.76543 | CS108: =CHOOSE(CS$103,CS25+CS22,$F108,$G108) -> 46598.76543 | CT108: =CHOOSE(CT$103,CT25+CT22,$F108,$G108) -> 46598.76543 | CU108: =CHOOSE(CU$103,CU25+CU22,$F108,$G108) -> 46598.76543 | CV108: =CHOOSE(CV$103,CV25+CV22,$F108,$G108) -> 46598.76543 | CW108: =CHOOSE(CW$103,CW25+CW22,$F108,$G108) -> 46598.76543 | CX108: =CHOOSE(CX$103,CX25+CX22,$F108,$G108) -> 46598.76543 | CY108: =CHOOSE(CY$103,CY25+CY22,$F108,$G108) -> 46598.76543 | CZ108: =CHOOSE(CZ$103,CZ25+CZ22,$F108,$G108) -> 46598.76543 | DA108: =CHOOSE(DA$103,DA25+DA22,$F108,$G108) -> 46598.76543 | DB108: =CHOOSE(DB$103,DB25+DB22,$F108,$G108) -> 46598.76543 | DC108: =CHOOSE(DC$103,DC25+DC22,$F108,$G108) -> 46598.76543 | DD108: =CHOOSE(DD$103,DD25+DD22,$F108,$G108) -> 46598.76543 | DE108: =CHOOSE(DE$103,DE25+DE22,$F108,$G108) -> 46598.76543 | DF108: =CHOOSE(DF$103,DF25+DF22,$F108,$G108) -> 46598.76543 | DG108: =CHOOSE(DG$103,DG25+DG22,$F108,$G108) -> 46598.76543 | DH108: =CHOOSE(DH$103,DH25+DH22,$F108,$G108) -> 46598.76543 | DI108: =CHOOSE(DI$103,DI25+DI22,$F108,$G108) -> 46598.76543 | DJ108: =CHOOSE(DJ$103,DJ25+DJ22,$F108,$G108) -> 46598.76543 | DK108: =CHOOSE(DK$103,DK25+DK22,$F108,$G108) -> 46598.76543 | DL108: =CHOOSE(DL$103,DL25+DL22,$F108,$G108) -> 46598.76543 | DM108: =CHOOSE(DM$103,DM25+DM22,$F108,$G108) -> 46598.76543 | DN108: =CHOOSE(DN$103,DN25+DN22,$F108,$G108) -> 46598.76543 | DO108: =CHOOSE(DO$103,DO25+DO22,$F108,$G108) -> 46598.76543 | DP108: =CHOOSE(DP$103,DP25+DP22,$F108,$G108) -> 46598.76543 | DQ108: =CHOOSE(DQ$103,DQ25+DQ22,$F108,$G108) -> 46598.76543 | DR108: =CHOOSE(DR$103,DR25+DR22,$F108,$G108) -> 46598.76543 | DS108: =CHOOSE(DS$103,DS25+DS22,$F108,$G108) -> 46598.76543 | DT108: =CHOOSE(DT$103,DT25+DT22,$F108,$G108) -> 46598.76543 | DU108: =CHOOSE(DU$103,DU25+DU22,$F108,$G108) -> 46598.76543 | DV108: =CHOOSE(DV$103,DV25+DV22,$F108,$G108) -> 46598.76543 | DW108: =CHOOSE(DW$103,DW25+DW22,$F108,$G108) -> 46598.76543 | DX108: =CHOOSE(DX$103,DX25+DX22,$F108,$G108) -> 46598.76543 | DY108: =CHOOSE(DY$103,DY25+DY22,$F108,$G108) -> 46598.76543 | DZ108: =CHOOSE(DZ$103,DZ25+DZ22,$F108,$G108) -> 46598.76543 | EA108: =CHOOSE(EA$103,EA25+EA22,$F108,$G108) -> 46598.76543 | EB108: =CHOOSE(EB$103,EB25+EB22,$F108,$G108) -> 46598.76543 | EC108: =CHOOSE(EC$103,EC25+EC22,$F108,$G108) -> 46598.76543 | ED108: =CHOOSE(ED$103,ED25+ED22,$F108,$G108) -> 46598.76543 | EE108: =CHOOSE(EE$103,EE25+EE22,$F108,$G108) -> 46598.76543 | EF108: =CHOOSE(EF$103,EF25+EF22,$F108,$G108) -> 46598.76543 | EG108: =CHOOSE(EG$103,EG25+EG22,$F108,$G108) -> 46598.76543 | EH108: =CHOOSE(EH$103,EH25+EH22,$F108,$G108) -> 46598.76543 | EI108: =CHOOSE(EI$103,EI25+EI22,$F108,$G108) -> 46598.76543 | EJ108: =CHOOSE(EJ$103,EJ25+EJ22,$F108,$G108) -> 46598.76543 | EK108: =CHOOSE(EK$103,EK25+EK22,$F108,$G108) -> 46598.76543 | EL108: =CHOOSE(EL$103,EL25+EL22,$F108,$G108) -> 46598.76543 | EM108: =CHOOSE(EM$103,EM25+EM22,$F108,$G108) -> 46598.76543 | EN108: =CHOOSE(EN$103,EN25+EN22,$F108,$G108) -> 46598.76543 | EO108: =CHOOSE(EO$103,EO25+EO22,$F108,$G108) -> 46598.76543 | EP108: =CHOOSE(EP$103,EP25+EP22,$F108,$G108) -> 46598.76543 | EQ108: =CHOOSE(EQ$103,EQ25+EQ22,$F108,$G108) -> 46598.76543 | ER108: =CHOOSE(ER$103,ER25+ER22,$F108,$G108) -> 46598.76543 | ES108: =CHOOSE(ES$103,ES25+ES22,$F108,$G108) -> 46598.76543 | ET108: =CHOOSE(ET$103,ET25+ET22,$F108,$G108) -> 46598.76543 | EU108: =CHOOSE(EU$103,EU25+EU22,$F108,$G108) -> 46598.76543 | EV108: =CHOOSE(EV$103,EV25+EV22,$F108,$G108) -> 46598.76543 | EW108: =CHOOSE(EW$103,EW25+EW22,$F108,$G108) -> 46598.76543 | EX108: =CHOOSE(EX$103,EX25+EX22,$F108,$G108) -> 46598.76543 | EY108: =CHOOSE(EY$103,EY25+EY22,$F108,$G108) -> 46598.76543 | EZ108: =CHOOSE(EZ$103,EZ25+EZ22,$F108,$G108) -> 46598.76543 | FA108: =CHOOSE(FA$103,FA25+FA22,$F108,$G108) -> 46598.76543 | FB108: =CHOOSE(FB$103,FB25+FB22,$F108,$G108) -> 46598.76543 | FC108: =CHOOSE(FC$103,FC25+FC22,$F108,$G108) -> 46598.76543 | FD108: =CHOOSE(FD$103,FD25+FD22,$F108,$G108) -> 46598.76543 | FE108: =CHOOSE(FE$103,FE25+FE22,$F108,$G108) -> 46598.76543 | FF108: =CHOOSE(FF$103,FF25+FF22,$F108,$G108) -> 46598.76543 | FG108: =CHOOSE(FG$103,FG25+FG22,$F108,$G108) -> 46598.76543 | FH108: =CHOOSE(FH$103,FH25+FH22,$F108,$G108) -> 46598.76543 | FI108: =CHOOSE(FI$103,FI25+FI22,$F108,$G108) -> 46598.76543
C109: Total other revenues | H109: =SUM(H106:H108) -> 17482437.25 | I109: =SUM(I106:I108) -> 3866953.695 | J109: 3458649.563 | K109: 5228164.664 | L109: 2520197.761 | M109: 350775.0941 | N109: 350775.0941 | O109: 350775.0941 | P109: 350775.0941 | Q109: 350775.0941 | R109: 350775.0941 | S109: 350775.0941 | T109: 350775.0941 | U109: 350775.0941 | V109: 361971.4688 | W109: 361971.4688 | X109: 361971.4688 | Y109: 361971.4688 | Z109: 361971.4688 | AA109: 361971.4688 | AB109: 361971.4688 | AC109: 361971.4688 | AD109: 361971.4688 | AE109: 361971.4688 | AF109: 361971.4688 | AG109: 361971.4688 | AH109: 361971.4688 | AI109: 361971.4688 | AJ109: 361971.4688 | AK109: 361971.4688 | AL109: 361971.4688 | AM109: 361971.4688 | AN109: 361971.4688 | AO109: 361971.4688 | AP109: 361971.4688 | AQ109: 361971.4688 | AR109: 361971.4688 | AS109: 361971.4688 | AT109: 361971.4688 | AU109: 361971.4688 | AV109: 361971.4688 | AW109: 361971.4688 | AX109: 361971.4688 | AY109: 361971.4688 | AZ109: 361971.4688 | BA109: 361971.4688 | BB109: 361971.4688 | BC109: 361971.4688 | BD109: 361971.4688 | BE109: 361971.4688 | BF109: 361971.4688 | BG109: 361971.4688 | BH109: 361971.4688 | BI109: 361971.4688 | BJ109: 361971.4688 | BK109: 361971.4688 | BL109: 361971.4688 | BM109: 361971.4688 | BN109: 361971.4688 | BO109: 361971.4688 | BP109: 361971.4688 | BQ109: 361971.4688 | BR109: 361971.4688 | BS109: 361971.4688 | BT109: 361971.4688 | BU109: =SUM(BU106:BU108) -> 361971.4688 | BV109: 361971.4688 | BW109: 361971.4688 | BX109: 361971.4688 | BY109: 361971.4688 | BZ109: 361971.4688 | CA109: 361971.4688 | CB109: 361971.4688 | CC109: 361971.4688 | CD109: 361971.4688 | CE109: 361971.4688 | CF109: 361971.4688 | CG109: 361971.4688 | CH109: 361971.4688 | CI109: 361971.4688 | CJ109: 361971.4688 | CK109: 361971.4688 | CL109: 361971.4688 | CM109: 361971.4688 | CN109: 361971.4688 | CO109: 361971.4688 | CP109: 361971.4688 | CQ109: 361971.4688 | CR109: 361971.4688 | CS109: 361971.4688 | CT109: 361971.4688 | CU109: 361971.4688 | CV109: 361971.4688 | CW109: 361971.4688 | CX109: 361971.4688 | CY109: 361971.4688 | CZ109: 361971.4688 | DA109: 361971.4688 | DB109: 361971.4688 | DC109: 361971.4688 | DD109: 361971.4688 | DE109: 361971.4688 | DF109: 361971.4688 | DG109: 361971.4688 | DH109: 361971.4688 | DI109: 361971.4688 | DJ109: 361971.4688 | DK109: 361971.4688 | DL109: 361971.4688 | DM109: 361971.4688 | DN109: 361971.4688 | DO109: 361971.4688 | DP109: 361971.4688 | DQ109: 361971.4688 | DR109: 361971.4688 | DS109: 361971.4688 | DT109: 361971.4688 | DU109: 361971.4688 | DV109: 361971.4688 | DW109: 361971.4688 | DX109: 361971.4688 | DY109: 361971.4688 | DZ109: 361971.4688 | EA109: 361971.4688 | EB109: 361971.4688 | EC109: 361971.4688 | ED109: 361971.4688 | EE109: 361971.4688 | EF109: 361971.4688 | EG109: =SUM(EG106:EG108) -> 361971.4688 | EH109: 361971.4688 | EI109: 361971.4688 | EJ109: 361971.4688 | EK109: 361971.4688 | EL109: 361971.4688 | EM109: 361971.4688 | EN109: 361971.4688 | EO109: 361971.4688 | EP109: 361971.4688 | EQ109: 361971.4688 | ER109: 361971.4688 | ES109: 361971.4688 | ET109: 361971.4688 | EU109: 361971.4688 | EV109: 361971.4688 | EW109: 361971.4688 | EX109: 361971.4688 | EY109: 361971.4688 | EZ109: 361971.4688 | FA109: 361971.4688 | FB109: 361971.4688 | FC109: 361971.4688 | FD109: 361971.4688 | FE109: 361971.4688 | FF109: 361971.4688 | FG109: 361971.4688 | FH109: 361971.4688 | FI109: 361971.4688
C111: Total Revenues | H111: =H109+H101+H87-H92+H22 -> 26868181.32 | I111: =I109+I101+I87-I92+I22 -> 26867204.07 | J111: =J109+J101+J87-J92+J22 -> 27988072.53 | K111: =K109+K101+K87-K92+K22 -> 31120455.92 | L111: =L109+L101+L87-L92+L22 -> 10109457.02 | M111: =M109+M101+M87-M92+M23 -> 2769865.936 | N111: =N109+N101+N87-N92+N22 -> 2606352.135 | O111: =O109+O101+O87-O92+O22 -> 3379017.534 | P111: =P109+P101+P87-P92+P22 -> 2540287.977 | Q111: =Q109+Q101+Q87-Q92+Q22 -> 2367845.218 | R111: =R109+R101+R87-R92+R22 -> 2733883.077 | S111: =S109+S101+S87-S92+S22 -> 2639357.438 | T111: =T109+T101+T87-T92+T22 -> 1856192.222 | U111: =U109+U101+U87-U92+U22 -> 2118307.84 | V111: =V109+V101+V87-V92+V22 -> 1617030.971 | W111: =W109+W101+W87-W92+W22 -> 1942873.55 | X111: =X109+X101+X87-X92+X22 -> 1938186.438 | Y111: =Y109+Y101+Y87-Y92+Y22 -> 1845048.173 | Z111: =Z109+Z101+Z87-Z92+Z22 -> 1744802.451 | AA111: =AA109+AA101+AA87-AA92+AA22 -> 2218501.922 | AB111: =AB109+AB101+AB87-AB92+AB22 -> 1704300.369 | AC111: =AC109+AC101+AC87-AC92+AC22 -> 1598580.553 | AD111: =AD109+AD101+AD87-AD92+AD22 -> 1822988.092 | AE111: =AE109+AE101+AE87-AE92+AE22 -> 1765037.076 | AF111: =AF109+AF101+AF87-AF92+AF22 -> 1284900.461 | AG111: =AG109+AG101+AG87-AG92+AG22 -> 1445596.19 | AH111: =AH109+AH101+AH87-AH92+AH22 -> 1617030.971 | AI111: =AI109+AI101+AI87-AI92+AI22 -> 1942873.55 | AJ111: =AJ109+AJ101+AJ87-AJ92+AJ22 -> 1938186.438 | AK111: =AK109+AK101+AK87-AK92+AK22 -> 1845048.173 | AL111: =AL109+AL101+AL87-AL92+AL22 -> 1744802.451 | AM111: =AM109+AM101+AM87-AM92+AM22 -> 2218501.922 | AN111: =AN109+AN101+AN87-AN92+AN22 -> 1704300.369 | AO111: =AO109+AO101+AO87-AO92+AO22 -> 1598580.553 | AP111: =AP109+AP101+AP87-AP92+AP22 -> 1822988.092 | AQ111: =AQ109+AQ101+AQ87-AQ92+AQ22 -> 1765037.076 | AR111: =AR109+AR101+AR87-AR92+AR22 -> 1284900.461 | AS111: =AS109+AS101+AS87-AS92+AS22 -> 1445596.19 | AT111: =AT109+AT101+AT87-AT92+AT22 -> 1617030.971 | AU111: =AU109+AU101+AU87-AU92+AU22 -> 1942873.55 | AV111: =AV109+AV101+AV87-AV92+AV22 -> 1938186.438 | AW111: =AW109+AW101+AW87-AW92+AW22 -> 1845048.173 | AX111: =AX109+AX101+AX87-AX92+AX22 -> 1744802.451 | AY111: =AY109+AY101+AY87-AY92+AY22 -> 2218501.922 | AZ111: =AZ109+AZ101+AZ87-AZ92+AZ22 -> 1704300.369 | BA111: =BA109+BA101+BA87-BA92+BA22 -> 1598580.553 | BB111: =BB109+BB101+BB87-BB92+BB22 -> 1822988.092 | BC111: =BC109+BC101+BC87-BC92+BC22 -> 1765037.076 | BD111: =BD109+BD101+BD87-BD92+BD22 -> 1284900.461 | BE111: =BE109+BE101+BE87-BE92+BE22 -> 1445596.19 | BF111: =BF109+BF101+BF87-BF92+BF22 -> 1617030.971 | BG111: =BG109+BG101+BG87-BG92+BG22 -> 1942873.55 | BH111: =BH109+BH101+BH87-BH92+BH22 -> 1938186.438 | BI111: =BI109+BI101+BI87-BI92+BI22 -> 1845048.173 | BJ111: =BJ109+BJ101+BJ87-BJ92+BJ22 -> 1744802.451 | BK111: =BK109+BK101+BK87-BK92+BK22 -> 2218501.922 | BL111: =BL109+BL101+BL87-BL92+BL22 -> 1704300.369 | BM111: =BM109+BM101+BM87-BM92+BM22 -> 1598580.553 | BN111: =BN109+BN101+BN87-BN92+BN22 -> 1822988.092 | BO111: =BO109+BO101+BO87-BO92+BO22 -> 1765037.076 | BP111: =BP109+BP101+BP87-BP92+BP22 -> 1284900.461 | BQ111: =BQ109+BQ101+BQ87-BQ92+BQ22 -> 1445596.19 | BR111: =BR109+BR101+BR87-BR92+BR22 -> 1617030.971 | BS111: =BS109+BS101+BS87-BS92+BS22 -> 1942873.55 | BT111: =BT109+BT101+BT87-BT92+BT22 -> 1938186.438 | BU111: =BU109+BU101+BU87-BU92+BU22 -> 1845048.173 | BV111: =BV109+BV101+BV87-BV92+BV22 -> 1744802.451 | BW111: =BW109+BW101+BW87-BW92+BW22 -> 2218501.922 | BX111: =BX109+BX101+BX87-BX92+BX22 -> 1704300.369 | BY111: =BY109+BY101+BY87-BY92+BY22 -> 1598580.553 | BZ111: =BZ109+BZ101+BZ87-BZ92+BZ22 -> 1822988.092 | CA111: =CA109+CA101+CA87-CA92+CA22 -> 1765037.076 | CB111: =CB109+CB101+CB87-CB92+CB22 -> 1284900.461 | CC111: =CC109+CC101+CC87-CC92+CC22 -> 1445596.19 | CD111: =CD109+CD101+CD87-CD92+CD22 -> 1617030.971 | CE111: =CE109+CE101+CE87-CE92+CE22 -> 1942873.55 | CF111: =CF109+CF101+CF87-CF92+CF22 -> 1938186.438 | CG111: =CG109+CG101+CG87-CG92+CG22 -> 1845048.173 | CH111: =CH109+CH101+CH87-CH92+CH22 -> 1744802.451 | CI111: =CI109+CI101+CI87-CI92+CI22 -> 2218501.922 | CJ111: =CJ109+CJ101+CJ87-CJ92+CJ22 -> 1704300.369 | CK111: =CK109+CK101+CK87-CK92+CK22 -> 1598580.553 | CL111: =CL109+CL101+CL87-CL92+CL22 -> 1822988.092 | CM111: =CM109+CM101+CM87-CM92+CM22 -> 1765037.076 | CN111: =CN109+CN101+CN87-CN92+CN22 -> 1284900.461 | CO111: =CO109+CO101+CO87-CO92+CO22 -> 1445596.19 | CP111: =CP109+CP101+CP87-CP92+CP22 -> 1617030.971 | CQ111: =CQ109+CQ101+CQ87-CQ92+CQ22 -> 1942873.55 | CR111: =CR109+CR101+CR87-CR92+CR22 -> 1938186.438 | CS111: =CS109+CS101+CS87-CS92+CS22 -> 1845048.173 | CT111: =CT109+CT101+CT87-CT92+CT22 -> 1744802.451 | CU111: =CU109+CU101+CU87-CU92+CU22 -> 2218501.922 | CV111: =CV109+CV101+CV87-CV92+CV22 -> 1704300.369 | CW111: =CW109+CW101+CW87-CW92+CW22 -> 1598580.553 | CX111: =CX109+CX101+CX87-CX92+CX22 -> 1822988.092 | CY111: =CY109+CY101+CY87-CY92+CY22 -> 1765037.076 | CZ111: =CZ109+CZ101+CZ87-CZ92+CZ22 -> 1284900.461 | DA111: =DA109+DA101+DA87-DA92+DA22 -> 1445596.19 | DB111: =DB109+DB101+DB87-DB92+DB22 -> 1617030.971 | DC111: =DC109+DC101+DC87-DC92+DC22 -> 1942873.55 | DD111: =DD109+DD101+DD87-DD92+DD22 -> 1938186.438 | DE111: =DE109+DE101+DE87-DE92+DE22 -> 1845048.173 | DF111: =DF109+DF101+DF87-DF92+DF22 -> 1744802.451 | DG111: =DG109+DG101+DG87-DG92+DG22 -> 2218501.922 | DH111: =DH109+DH101+DH87-DH92+DH22 -> 1704300.369 | DI111: =DI109+DI101+DI87-DI92+DI22 -> 1598580.553 | DJ111: =DJ109+DJ101+DJ87-DJ92+DJ22 -> 1822988.092 | DK111: =DK109+DK101+DK87-DK92+DK22 -> 1765037.076 | DL111: =DL109+DL101+DL87-DL92+DL22 -> 1284900.461 | DM111: =DM109+DM101+DM87-DM92+DM22 -> 1445596.19 | DN111: =DN109+DN101+DN87-DN92+DN22 -> 1617030.971 | DO111: =DO109+DO101+DO87-DO92+DO22 -> 1942873.55 | DP111: =DP109+DP101+DP87-DP92+DP22 -> 1938186.438 | DQ111: =DQ109+DQ101+DQ87-DQ92+DQ22 -> 1845048.173 | DR111: =DR109+DR101+DR87-DR92+DR22 -> 1744802.451 | DS111: =DS109+DS101+DS87-DS92+DS22 -> 2218501.922 | DT111: =DT109+DT101+DT87-DT92+DT22 -> 1704300.369 | DU111: =DU109+DU101+DU87-DU92+DU22 -> 1598580.553 | DV111: =DV109+DV101+DV87-DV92+DV22 -> 1822988.092 | DW111: =DW109+DW101+DW87-DW92+DW22 -> 1765037.076 | DX111: =DX109+DX101+DX87-DX92+DX22 -> 1284900.461 | DY111: =DY109+DY101+DY87-DY92+DY22 -> 1445596.19 | DZ111: =DZ109+DZ101+DZ87-DZ92+DZ22 -> 1617030.971 | EA111: =EA109+EA101+EA87-EA92+EA22 -> 1942873.55 | EB111: =EB109+EB101+EB87-EB92+EB22 -> 1938186.438 | EC111: =EC109+EC101+EC87-EC92+EC22 -> 1845048.173 | ED111: =ED109+ED101+ED87-ED92+ED22 -> 1744802.451 | EE111: =EE109+EE101+EE87-EE92+EE22 -> 2218501.922 | EF111: =EF109+EF101+EF87-EF92+EF22 -> 1704300.369 | EG111: =EG109+EG101+EG87-EG92+EG22 -> 1598580.553 | EH111: =EH109+EH101+EH87-EH92+EH22 -> 1822988.092 | EI111: =EI109+EI101+EI87-EI92+EI22 -> 1765037.076 | EJ111: =EJ109+EJ101+EJ87-EJ92+EJ22 -> 1284900.461 | EK111: =EK109+EK101+EK87-EK92+EK22 -> 1445596.19 | EL111: =EL109+EL101+EL87-EL92+EL22 -> 1617030.971 | EM111: =EM109+EM101+EM87-EM92+EM22 -> 1942873.55 | EN111: =EN109+EN101+EN87-EN92+EN22 -> 1938186.438 | EO111: =EO109+EO101+EO87-EO92+EO22 -> 1845048.173 | EP111: =EP109+EP101+EP87-EP92+EP22 -> 1744802.451 | EQ111: =EQ109+EQ101+EQ87-EQ92+EQ22 -> 2218501.922 | ER111: =ER109+ER101+ER87-ER92+ER22 -> 1704300.369 | ES111: =ES109+ES101+ES87-ES92+ES22 -> 1598580.553 | ET111: =ET109+ET101+ET87-ET92+ET22 -> 1822988.092 | EU111: =EU109+EU101+EU87-EU92+EU22 -> 1765037.076 | EV111: =EV109+EV101+EV87-EV92+EV22 -> 1284900.461 | EW111: =EW109+EW101+EW87-EW92+EW22 -> 1445596.19 | EX111: =EX109+EX101+EX87-EX92+EX22 -> 1617030.971 | EY111: =EY109+EY101+EY87-EY92+EY22 -> 1942873.55 | EZ111: =EZ109+EZ101+EZ87-EZ92+EZ22 -> 1938186.438 | FA111: =FA109+FA101+FA87-FA92+FA22 -> 1845048.173 | FB111: =FB109+FB101+FB87-FB92+FB22 -> 1744802.451 | FC111: =FC109+FC101+FC87-FC92+FC22 -> 2218501.922 | FD111: =FD109+FD101+FD87-FD92+FD22 -> 1704300.369 | FE111: =FE109+FE101+FE87-FE92+FE22 -> 1598580.553 | FF111: =FF109+FF101+FF87-FF92+FF22 -> 1822988.092 | FG111: =FG109+FG101+FG87-FG92+FG22 -> 1765037.076 | FH111: =FH109+FH101+FH87-FH92+FH22 -> 1284900.461 | FI111: =FI109+FI101+FI87-FI92+FI22 -> 1445596.19
A113: Operating Expenses and Capital Expenditures
B114: Inflation Rates
C115: Annual Growth Rate in Operating Expenses | H115: =LOOKUP(H9,Scenarios!51:51,Scenarios!56:56) -> 0 | I115: =LOOKUP(I9,Scenarios!51:51,Scenarios!56:56) -> 0 | J115: =LOOKUP(J9,Scenarios!51:51,Scenarios!56:56) -> 0 | K115: =LOOKUP(K9,Scenarios!51:51,Scenarios!56:56) -> 0 | L115: =LOOKUP(L9,Scenarios!51:51,Scenarios!56:56) -> 0 | M115: =LOOKUP(M9,Scenarios!51:51,Scenarios!56:56) -> 0 | N115: =LOOKUP(N9,Scenarios!51:51,Scenarios!56:56) -> 0 | O115: =LOOKUP(O9,Scenarios!51:51,Scenarios!56:56) -> 0 | P115: =LOOKUP(P9,Scenarios!51:51,Scenarios!56:56) -> 0 | Q115: =LOOKUP(Q9,Scenarios!51:51,Scenarios!56:56) -> 0 | R115: =LOOKUP(R9,Scenarios!51:51,Scenarios!56:56) -> 0 | S115: =LOOKUP(S9,Scenarios!51:51,Scenarios!56:56) -> 0 | T115: =LOOKUP(T9,Scenarios!51:51,Scenarios!56:56) -> 0 | U115: =LOOKUP(U9,Scenarios!51:51,Scenarios!56:56) -> 0 | V115: =LOOKUP(V9,Scenarios!51:51,Scenarios!56:56) -> 0 | W115: =LOOKUP(W9,Scenarios!51:51,Scenarios!56:56) -> 0 | X115: =LOOKUP(X9,Scenarios!51:51,Scenarios!56:56) -> 0 | Y115: =LOOKUP(Y9,Scenarios!51:51,Scenarios!56:56) -> 0 | Z115: =LOOKUP(Z9,Scenarios!51:51,Scenarios!56:56) -> 0 | AA115: =LOOKUP(AA9,Scenarios!51:51,Scenarios!56:56) -> 0 | AB115: =LOOKUP(AB9,Scenarios!51:51,Scenarios!56:56) -> 0 | AC115: =LOOKUP(AC9,Scenarios!51:51,Scenarios!56:56) -> 0 | AD115: =LOOKUP(AD9,Scenarios!51:51,Scenarios!56:56) -> 0 | AE115: =LOOKUP(AE9,Scenarios!51:51,Scenarios!56:56) -> 0 | AF115: =LOOKUP(AF9,Scenarios!51:51,Scenarios!56:56) -> 0 | AG115: =LOOKUP(AG9,Scenarios!51:51,Scenarios!56:56) -> 0 | AH115: =LOOKUP(AH9,Scenarios!51:51,Scenarios!56:56) -> 0 | AI115: =LOOKUP(AI9,Scenarios!51:51,Scenarios!56:56) -> 0 | AJ115: =LOOKUP(AJ9,Scenarios!51:51,Scenarios!56:56) -> 0 | AK115: =LOOKUP(AK9,Scenarios!51:51,Scenarios!56:56) -> 0 | AL115: =LOOKUP(AL9,Scenarios!51:51,Scenarios!56:56) -> 0 | AM115: =LOOKUP(AM9,Scenarios!51:51,Scenarios!56:56) -> 0 | AN115: =LOOKUP(AN9,Scenarios!51:51,Scenarios!56:56) -> 0 | AO115: =LOOKUP(AO9,Scenarios!51:51,Scenarios!56:56) -> 0 | AP115: =LOOKUP(AP9,Scenarios!51:51,Scenarios!56:56) -> 0 | AQ115: =LOOKUP(AQ9,Scenarios!51:51,Scenarios!56:56) -> 0 | AR115: =LOOKUP(AR9,Scenarios!51:51,Scenarios!56:56) -> 0 | AS115: =LOOKUP(AS9,Scenarios!51:51,Scenarios!56:56) -> 0 | AT115: =LOOKUP(AT9,Scenarios!51:51,Scenarios!56:56) -> 0 | AU115: =LOOKUP(AU9,Scenarios!51:51,Scenarios!56:56) -> 0 | AV115: =LOOKUP(AV9,Scenarios!51:51,Scenarios!56:56) -> 0 | AW115: =LOOKUP(AW9,Scenarios!51:51,Scenarios!56:56) -> 0 | AX115: =LOOKUP(AX9,Scenarios!51:51,Scenarios!56:56) -> 0 | AY115: =LOOKUP(AY9,Scenarios!51:51,Scenarios!56:56) -> 0 | AZ115: =LOOKUP(AZ9,Scenarios!51:51,Scenarios!56:56) -> 0 | BA115: =LOOKUP(BA9,Scenarios!51:51,Scenarios!56:56) -> 0 | BB115: =LOOKUP(BB9,Scenarios!51:51,Scenarios!56:56) -> 0 | BC115: =LOOKUP(BC9,Scenarios!51:51,Scenarios!56:56) -> 0 | BD115: =LOOKUP(BD9,Scenarios!51:51,Scenarios!56:56) -> 0 | BE115: =LOOKUP(BE9,Scenarios!51:51,Scenarios!56:56) -> 0 | BF115: =LOOKUP(BF9,Scenarios!51:51,Scenarios!56:56) -> 0 | BG115: =LOOKUP(BG9,Scenarios!51:51,Scenarios!56:56) -> 0 | BH115: =LOOKUP(BH9,Scenarios!51:51,Scenarios!56:56) -> 0 | BI115: =LOOKUP(BI9,Scenarios!51:51,Scenarios!56:56) -> 0 | BJ115: =LOOKUP(BJ9,Scenarios!51:51,Scenarios!56:56) -> 0 | BK115: =LOOKUP(BK9,Scenarios!51:51,Scenarios!56:56) -> 0 | BL115: =LOOKUP(BL9,Scenarios!51:51,Scenarios!56:56) -> 0 | BM115: =LOOKUP(BM9,Scenarios!51:51,Scenarios!56:56) -> 0 | BN115: =LOOKUP(BN9,Scenarios!51:51,Scenarios!56:56) -> 0 | BO115: =LOOKUP(BO9,Scenarios!51:51,Scenarios!56:56) -> 0 | BP115: =LOOKUP(BP9,Scenarios!51:51,Scenarios!56:56) -> 0 | BQ115: =LOOKUP(BQ9,Scenarios!51:51,Scenarios!56:56) -> 0 | BR115: =LOOKUP(BR9,Scenarios!51:51,Scenarios!56:56) -> 0 | BS115: =LOOKUP(BS9,Scenarios!51:51,Scenarios!56:56) -> 0 | BT115: =LOOKUP(BT9,Scenarios!51:51,Scenarios!56:56) -> 0 | BU115: =LOOKUP(BU9,Scenarios!51:51,Scenarios!56:56) -> 0 | BV115: =LOOKUP(BV9,Scenarios!51:51,Scenarios!56:56) -> 0 | BW115: =LOOKUP(BW9,Scenarios!51:51,Scenarios!56:56) -> 0 | BX115: =LOOKUP(BX9,Scenarios!51:51,Scenarios!56:56) -> 0 | BY115: =LOOKUP(BY9,Scenarios!51:51,Scenarios!56:56) -> 0 | BZ115: =LOOKUP(BZ9,Scenarios!51:51,Scenarios!56:56) -> 0 | CA115: =LOOKUP(CA9,Scenarios!51:51,Scenarios!56:56) -> 0 | CB115: =LOOKUP(CB9,Scenarios!51:51,Scenarios!56:56) -> 0 | CC115: =LOOKUP(CC9,Scenarios!51:51,Scenarios!56:56) -> 0 | CD115: =LOOKUP(CD9,Scenarios!51:51,Scenarios!56:56) -> 0 | CE115: =LOOKUP(CE9,Scenarios!51:51,Scenarios!56:56) -> 0 | CF115: =LOOKUP(CF9,Scenarios!51:51,Scenarios!56:56) -> 0 | CG115: =LOOKUP(CG9,Scenarios!51:51,Scenarios!56:56) -> 0 | CH115: =LOOKUP(CH9,Scenarios!51:51,Scenarios!56:56) -> 0 | CI115: =LOOKUP(CI9,Scenarios!51:51,Scenarios!56:56) -> 0 | CJ115: =LOOKUP(CJ9,Scenarios!51:51,Scenarios!56:56) -> 0 | CK115: =LOOKUP(CK9,Scenarios!51:51,Scenarios!56:56) -> 0 | CL115: =LOOKUP(CL9,Scenarios!51:51,Scenarios!56:56) -> 0 | CM115: =LOOKUP(CM9,Scenarios!51:51,Scenarios!56:56) -> 0 | CN115: =LOOKUP(CN9,Scenarios!51:51,Scenarios!56:56) -> 0 | CO115: =LOOKUP(CO9,Scenarios!51:51,Scenarios!56:56) -> 0 | CP115: =LOOKUP(CP9,Scenarios!51:51,Scenarios!56:56) -> 0 | CQ115: =LOOKUP(CQ9,Scenarios!51:51,Scenarios!56:56) -> 0 | CR115: =LOOKUP(CR9,Scenarios!51:51,Scenarios!56:56) -> 0 | CS115: =LOOKUP(CS9,Scenarios!51:51,Scenarios!56:56) -> 0 | CT115: =LOOKUP(CT9,Scenarios!51:51,Scenarios!56:56) -> 0 | CU115: =LOOKUP(CU9,Scenarios!51:51,Scenarios!56:56) -> 0 | CV115: =LOOKUP(CV9,Scenarios!51:51,Scenarios!56:56) -> 0 | CW115: =LOOKUP(CW9,Scenarios!51:51,Scenarios!56:56) -> 0 | CX115: =LOOKUP(CX9,Scenarios!51:51,Scenarios!56:56) -> 0 | CY115: =LOOKUP(CY9,Scenarios!51:51,Scenarios!56:56) -> 0 | CZ115: =LOOKUP(CZ9,Scenarios!51:51,Scenarios!56:56) -> 0 | DA115: =LOOKUP(DA9,Scenarios!51:51,Scenarios!56:56) -> 0 | DB115: =LOOKUP(DB9,Scenarios!51:51,Scenarios!56:56) -> 0 | DC115: =LOOKUP(DC9,Scenarios!51:51,Scenarios!56:56) -> 0 | DD115: =LOOKUP(DD9,Scenarios!51:51,Scenarios!56:56) -> 0 | DE115: =LOOKUP(DE9,Scenarios!51:51,Scenarios!56:56) -> 0 | DF115: =LOOKUP(DF9,Scenarios!51:51,Scenarios!56:56) -> 0 | DG115: =LOOKUP(DG9,Scenarios!51:51,Scenarios!56:56) -> 0 | DH115: =LOOKUP(DH9,Scenarios!51:51,Scenarios!56:56) -> 0 | DI115: =LOOKUP(DI9,Scenarios!51:51,Scenarios!56:56) -> 0 | DJ115: =LOOKUP(DJ9,Scenarios!51:51,Scenarios!56:56) -> 0 | DK115: =LOOKUP(DK9,Scenarios!51:51,Scenarios!56:56) -> 0 | DL115: =LOOKUP(DL9,Scenarios!51:51,Scenarios!56:56) -> 0 | DM115: =LOOKUP(DM9,Scenarios!51:51,Scenarios!56:56) -> 0 | DN115: =LOOKUP(DN9,Scenarios!51:51,Scenarios!56:56) -> 0 | DO115: =LOOKUP(DO9,Scenarios!51:51,Scenarios!56:56) -> 0 | DP115: =LOOKUP(DP9,Scenarios!51:51,Scenarios!56:56) -> 0 | DQ115: =LOOKUP(DQ9,Scenarios!51:51,Scenarios!56:56) -> 0 | DR115: =LOOKUP(DR9,Scenarios!51:51,Scenarios!56:56) -> 0 | DS115: =LOOKUP(DS9,Scenarios!51:51,Scenarios!56:56) -> 0 | DT115: =LOOKUP(DT9,Scenarios!51:51,Scenarios!56:56) -> 0 | DU115: =LOOKUP(DU9,Scenarios!51:51,Scenarios!56:56) -> 0 | DV115: =LOOKUP(DV9,Scenarios!51:51,Scenarios!56:56) -> 0 | DW115: =LOOKUP(DW9,Scenarios!51:51,Scenarios!56:56) -> 0 | DX115: =LOOKUP(DX9,Scenarios!51:51,Scenarios!56:56) -> 0 | DY115: =LOOKUP(DY9,Scenarios!51:51,Scenarios!56:56) -> 0 | DZ115: =LOOKUP(DZ9,Scenarios!51:51,Scenarios!56:56) -> 0 | EA115: =LOOKUP(EA9,Scenarios!51:51,Scenarios!56:56) -> 0 | EB115: =LOOKUP(EB9,Scenarios!51:51,Scenarios!56:56) -> 0 | EC115: =LOOKUP(EC9,Scenarios!51:51,Scenarios!56:56) -> 0 | ED115: =LOOKUP(ED9,Scenarios!51:51,Scenarios!56:56) -> 0 | EE115: =LOOKUP(EE9,Scenarios!51:51,Scenarios!56:56) -> 0 | EF115: =LOOKUP(EF9,Scenarios!51:51,Scenarios!56:56) -> 0 | EG115: =LOOKUP(EG9,Scenarios!51:51,Scenarios!56:56) -> 0 | EH115: =LOOKUP(EH9,Scenarios!51:51,Scenarios!56:56) -> 0 | EI115: =LOOKUP(EI9,Scenarios!51:51,Scenarios!56:56) -> 0 | EJ115: =LOOKUP(EJ9,Scenarios!51:51,Scenarios!56:56) -> 0 | EK115: =LOOKUP(EK9,Scenarios!51:51,Scenarios!56:56) -> 0 | EL115: =LOOKUP(EL9,Scenarios!51:51,Scenarios!56:56) -> 0 | EM115: =LOOKUP(EM9,Scenarios!51:51,Scenarios!56:56) -> 0 | EN115: =LOOKUP(EN9,Scenarios!51:51,Scenarios!56:56) -> 0 | EO115: =LOOKUP(EO9,Scenarios!51:51,Scenarios!56:56) -> 0 | EP115: =LOOKUP(EP9,Scenarios!51:51,Scenarios!56:56) -> 0 | EQ115: =LOOKUP(EQ9,Scenarios!51:51,Scenarios!56:56) -> 0 | ER115: =LOOKUP(ER9,Scenarios!51:51,Scenarios!56:56) -> 0 | ES115: =LOOKUP(ES9,Scenarios!51:51,Scenarios!56:56) -> 0 | ET115: =LOOKUP(ET9,Scenarios!51:51,Scenarios!56:56) -> 0 | EU115: =LOOKUP(EU9,Scenarios!51:51,Scenarios!56:56) -> 0 | EV115: =LOOKUP(EV9,Scenarios!51:51,Scenarios!56:56) -> 0 | EW115: =LOOKUP(EW9,Scenarios!51:51,Scenarios!56:56) -> 0 | EX115: =LOOKUP(EX9,Scenarios!51:51,Scenarios!56:56) -> 0 | EY115: =LOOKUP(EY9,Scenarios!51:51,Scenarios!56:56) -> 0 | EZ115: =LOOKUP(EZ9,Scenarios!51:51,Scenarios!56:56) -> 0 | FA115: =LOOKUP(FA9,Scenarios!51:51,Scenarios!56:56) -> 0 | FB115: =LOOKUP(FB9,Scenarios!51:51,Scenarios!56:56) -> 0 | FC115: =LOOKUP(FC9,Scenarios!51:51,Scenarios!56:56) -> 0 | FD115: =LOOKUP(FD9,Scenarios!51:51,Scenarios!56:56) -> 0 | FE115: =LOOKUP(FE9,Scenarios!51:51,Scenarios!56:56) -> 0 | FF115: =LOOKUP(FF9,Scenarios!51:51,Scenarios!56:56) -> 0 | FG115: =LOOKUP(FG9,Scenarios!51:51,Scenarios!56:56) -> 0 | FH115: =LOOKUP(FH9,Scenarios!51:51,Scenarios!56:56) -> 0 | FI115: =LOOKUP(FI9,Scenarios!51:51,Scenarios!56:56) -> 0
C116: Periodic Growth Rate in Operating Expenses | H116: =(1+H115)^(H7/12)-1 -> 0 | I116: =(1+I115)^(I7/12)-1 -> 0 | J116: =(1+J115)^(J7/12)-1 -> 0 | K116: =(1+K115)^(K7/12)-1 -> 0 | L116: =(1+L115)^(L7/12)-1 -> 0 | M116: =(1+M115)^(M7/12)-1 -> 0 | N116: =(1+N115)^(N7/12)-1 -> 0 | O116: =(1+O115)^(O7/12)-1 -> 0 | P116: =(1+P115)^(P7/12)-1 -> 0 | Q116: =(1+Q115)^(Q7/12)-1 -> 0 | R116: =(1+R115)^(R7/12)-1 -> 0 | S116: =(1+S115)^(S7/12)-1 -> 0 | T116: =(1+T115)^(T7/12)-1 -> 0 | U116: =(1+U115)^(U7/12)-1 -> 0 | V116: =(1+V115)^(V7/12)-1 -> 0 | W116: =(1+W115)^(W7/12)-1 -> 0 | X116: =(1+X115)^(X7/12)-1 -> 0 | Y116: =(1+Y115)^(Y7/12)-1 -> 0 | Z116: =(1+Z115)^(Z7/12)-1 -> 0 | AA116: =(1+AA115)^(AA7/12)-1 -> 0 | AB116: =(1+AB115)^(AB7/12)-1 -> 0 | AC116: =(1+AC115)^(AC7/12)-1 -> 0 | AD116: =(1+AD115)^(AD7/12)-1 -> 0 | AE116: =(1+AE115)^(AE7/12)-1 -> 0 | AF116: =(1+AF115)^(AF7/12)-1 -> 0 | AG116: =(1+AG115)^(AG7/12)-1 -> 0 | AH116: =(1+AH115)^(AH7/12)-1 -> 0 | AI116: =(1+AI115)^(AI7/12)-1 -> 0 | AJ116: =(1+AJ115)^(AJ7/12)-1 -> 0 | AK116: =(1+AK115)^(AK7/12)-1 -> 0 | AL116: =(1+AL115)^(AL7/12)-1 -> 0 | AM116: =(1+AM115)^(AM7/12)-1 -> 0 | AN116: =(1+AN115)^(AN7/12)-1 -> 0 | AO116: =(1+AO115)^(AO7/12)-1 -> 0 | AP116: =(1+AP115)^(AP7/12)-1 -> 0 | AQ116: =(1+AQ115)^(AQ7/12)-1 -> 0 | AR116: =(1+AR115)^(AR7/12)-1 -> 0 | AS116: =(1+AS115)^(AS7/12)-1 -> 0 | AT116: =(1+AT115)^(AT7/12)-1 -> 0 | AU116: =(1+AU115)^(AU7/12)-1 -> 0 | AV116: =(1+AV115)^(AV7/12)-1 -> 0 | AW116: =(1+AW115)^(AW7/12)-1 -> 0 | AX116: =(1+AX115)^(AX7/12)-1 -> 0 | AY116: =(1+AY115)^(AY7/12)-1 -> 0 | AZ116: =(1+AZ115)^(AZ7/12)-1 -> 0 | BA116: =(1+BA115)^(BA7/12)-1 -> 0 | BB116: =(1+BB115)^(BB7/12)-1 -> 0 | BC116: =(1+BC115)^(BC7/12)-1 -> 0 | BD116: =(1+BD115)^(BD7/12)-1 -> 0 | BE116: =(1+BE115)^(BE7/12)-1 -> 0 | BF116: =(1+BF115)^(BF7/12)-1 -> 0 | BG116: =(1+BG115)^(BG7/12)-1 -> 0 | BH116: =(1+BH115)^(BH7/12)-1 -> 0 | BI116: =(1+BI115)^(BI7/12)-1 -> 0 | BJ116: =(1+BJ115)^(BJ7/12)-1 -> 0 | BK116: =(1+BK115)^(BK7/12)-1 -> 0 | BL116: =(1+BL115)^(BL7/12)-1 -> 0 | BM116: =(1+BM115)^(BM7/12)-1 -> 0 | BN116: =(1+BN115)^(BN7/12)-1 -> 0 | BO116: =(1+BO115)^(BO7/12)-1 -> 0 | BP116: =(1+BP115)^(BP7/12)-1 -> 0 | BQ116: =(1+BQ115)^(BQ7/12)-1 -> 0 | BR116: =(1+BR115)^(BR7/12)-1 -> 0 | BS116: =(1+BS115)^(BS7/12)-1 -> 0 | BT116: =(1+BT115)^(BT7/12)-1 -> 0 | BU116: =(1+BU115)^(BU7/12)-1 -> 0 | BV116: =(1+BV115)^(BV7/12)-1 -> 0 | BW116: =(1+BW115)^(BW7/12)-1 -> 0 | BX116: =(1+BX115)^(BX7/12)-1 -> 0 | BY116: =(1+BY115)^(BY7/12)-1 -> 0 | BZ116: =(1+BZ115)^(BZ7/12)-1 -> 0 | CA116: =(1+CA115)^(CA7/12)-1 -> 0 | CB116: =(1+CB115)^(CB7/12)-1 -> 0 | CC116: =(1+CC115)^(CC7/12)-1 -> 0 | CD116: =(1+CD115)^(CD7/12)-1 -> 0 | CE116: =(1+CE115)^(CE7/12)-1 -> 0 | CF116: =(1+CF115)^(CF7/12)-1 -> 0 | CG116: =(1+CG115)^(CG7/12)-1 -> 0 | CH116: =(1+CH115)^(CH7/12)-1 -> 0 | CI116: =(1+CI115)^(CI7/12)-1 -> 0 | CJ116: =(1+CJ115)^(CJ7/12)-1 -> 0 | CK116: =(1+CK115)^(CK7/12)-1 -> 0 | CL116: =(1+CL115)^(CL7/12)-1 -> 0 | CM116: =(1+CM115)^(CM7/12)-1 -> 0 | CN116: =(1+CN115)^(CN7/12)-1 -> 0 | CO116: =(1+CO115)^(CO7/12)-1 -> 0 | CP116: =(1+CP115)^(CP7/12)-1 -> 0 | CQ116: =(1+CQ115)^(CQ7/12)-1 -> 0 | CR116: =(1+CR115)^(CR7/12)-1 -> 0 | CS116: =(1+CS115)^(CS7/12)-1 -> 0 | CT116: =(1+CT115)^(CT7/12)-1 -> 0 | CU116: =(1+CU115)^(CU7/12)-1 -> 0 | CV116: =(1+CV115)^(CV7/12)-1 -> 0 | CW116: =(1+CW115)^(CW7/12)-1 -> 0 | CX116: =(1+CX115)^(CX7/12)-1 -> 0 | CY116: =(1+CY115)^(CY7/12)-1 -> 0 | CZ116: =(1+CZ115)^(CZ7/12)-1 -> 0 | DA116: =(1+DA115)^(DA7/12)-1 -> 0 | DB116: =(1+DB115)^(DB7/12)-1 -> 0 | DC116: =(1+DC115)^(DC7/12)-1 -> 0 | DD116: =(1+DD115)^(DD7/12)-1 -> 0 | DE116: =(1+DE115)^(DE7/12)-1 -> 0 | DF116: =(1+DF115)^(DF7/12)-1 -> 0 | DG116: =(1+DG115)^(DG7/12)-1 -> 0 | DH116: =(1+DH115)^(DH7/12)-1 -> 0 | DI116: =(1+DI115)^(DI7/12)-1 -> 0 | DJ116: =(1+DJ115)^(DJ7/12)-1 -> 0 | DK116: =(1+DK115)^(DK7/12)-1 -> 0 | DL116: =(1+DL115)^(DL7/12)-1 -> 0 | DM116: =(1+DM115)^(DM7/12)-1 -> 0 | DN116: =(1+DN115)^(DN7/12)-1 -> 0 | DO116: =(1+DO115)^(DO7/12)-1 -> 0 | DP116: =(1+DP115)^(DP7/12)-1 -> 0 | DQ116: =(1+DQ115)^(DQ7/12)-1 -> 0 | DR116: =(1+DR115)^(DR7/12)-1 -> 0 | DS116: =(1+DS115)^(DS7/12)-1 -> 0 | DT116: =(1+DT115)^(DT7/12)-1 -> 0 | DU116: =(1+DU115)^(DU7/12)-1 -> 0 | DV116: =(1+DV115)^(DV7/12)-1 -> 0 | DW116: =(1+DW115)^(DW7/12)-1 -> 0 | DX116: =(1+DX115)^(DX7/12)-1 -> 0 | DY116: =(1+DY115)^(DY7/12)-1 -> 0 | DZ116: =(1+DZ115)^(DZ7/12)-1 -> 0 | EA116: =(1+EA115)^(EA7/12)-1 -> 0 | EB116: =(1+EB115)^(EB7/12)-1 -> 0 | EC116: =(1+EC115)^(EC7/12)-1 -> 0 | ED116: =(1+ED115)^(ED7/12)-1 -> 0 | EE116: =(1+EE115)^(EE7/12)-1 -> 0 | EF116: =(1+EF115)^(EF7/12)-1 -> 0 | EG116: =(1+EG115)^(EG7/12)-1 -> 0 | EH116: =(1+EH115)^(EH7/12)-1 -> 0 | EI116: =(1+EI115)^(EI7/12)-1 -> 0 | EJ116: =(1+EJ115)^(EJ7/12)-1 -> 0 | EK116: =(1+EK115)^(EK7/12)-1 -> 0 | EL116: =(1+EL115)^(EL7/12)-1 -> 0 | EM116: =(1+EM115)^(EM7/12)-1 -> 0 | EN116: =(1+EN115)^(EN7/12)-1 -> 0 | EO116: =(1+EO115)^(EO7/12)-1 -> 0 | EP116: =(1+EP115)^(EP7/12)-1 -> 0 | EQ116: =(1+EQ115)^(EQ7/12)-1 -> 0 | ER116: =(1+ER115)^(ER7/12)-1 -> 0 | ES116: =(1+ES115)^(ES7/12)-1 -> 0 | ET116: =(1+ET115)^(ET7/12)-1 -> 0 | EU116: =(1+EU115)^(EU7/12)-1 -> 0 | EV116: =(1+EV115)^(EV7/12)-1 -> 0 | EW116: =(1+EW115)^(EW7/12)-1 -> 0 | EX116: =(1+EX115)^(EX7/12)-1 -> 0 | EY116: =(1+EY115)^(EY7/12)-1 -> 0 | EZ116: =(1+EZ115)^(EZ7/12)-1 -> 0 | FA116: =(1+FA115)^(FA7/12)-1 -> 0 | FB116: =(1+FB115)^(FB7/12)-1 -> 0 | FC116: =(1+FC115)^(FC7/12)-1 -> 0 | FD116: =(1+FD115)^(FD7/12)-1 -> 0 | FE116: =(1+FE115)^(FE7/12)-1 -> 0 | FF116: =(1+FF115)^(FF7/12)-1 -> 0 | FG116: =(1+FG115)^(FG7/12)-1 -> 0 | FH116: =(1+FH115)^(FH7/12)-1 -> 0 | FI116: =(1+FI115)^(FI7/12)-1 -> 0
C117: Inflation Index | G117: 1 | H117: =G117*(1+H116) -> 1 | I117: =H117*(1+I116) -> 1 | J117: 1 | K117: 1 | L117: 1 | M117: 1 | N117: 1 | O117: 1 | P117: 1 | Q117: 1 | R117: 1 | S117: 1 | T117: 1 | U117: 1 | V117: 1 | W117: 1 | X117: 1 | Y117: 1 | Z117: 1 | AA117: 1 | AB117: 1 | AC117: 1 | AD117: 1 | AE117: 1 | AF117: 1 | AG117: 1 | AH117: 1 | AI117: 1 | AJ117: 1 | AK117: 1 | AL117: 1 | AM117: 1 | AN117: 1 | AO117: 1 | AP117: 1 | AQ117: 1 | AR117: 1 | AS117: 1 | AT117: 1 | AU117: 1 | AV117: 1 | AW117: 1 | AX117: 1 | AY117: 1 | AZ117: 1 | BA117: 1 | BB117: 1 | BC117: 1 | BD117: 1 | BE117: 1 | BF117: 1 | BG117: 1 | BH117: 1 | BI117: 1 | BJ117: 1 | BK117: 1 | BL117: 1 | BM117: 1 | BN117: 1 | BO117: 1 | BP117: 1 | BQ117: 1 | BR117: 1 | BS117: 1 | BT117: 1 | BU117: =BT117*(1+BU116) -> 1 | BV117: 1 | BW117: 1 | BX117: 1 | BY117: 1 | BZ117: 1 | CA117: 1 | CB117: 1 | CC117: 1 | CD117: 1 | CE117: 1 | CF117: 1 | CG117: 1 | CH117: 1 | CI117: 1 | CJ117: 1 | CK117: 1 | CL117: 1 | CM117: 1 | CN117: 1 | CO117: 1 | CP117: 1 | CQ117: 1 | CR117: 1 | CS117: 1 | CT117: 1 | CU117: 1 | CV117: 1 | CW117: 1 | CX117: 1 | CY117: 1 | CZ117: 1 | DA117: 1 | DB117: 1 | DC117: 1 | DD117: 1 | DE117: 1 | DF117: 1 | DG117: 1 | DH117: 1 | DI117: 1 | DJ117: 1 | DK117: 1 | DL117: 1 | DM117: 1 | DN117: 1 | DO117: 1 | DP117: 1 | DQ117: 1 | DR117: 1 | DS117: 1 | DT117: 1 | DU117: 1 | DV117: 1 | DW117: 1 | DX117: 1 | DY117: 1 | DZ117: 1 | EA117: 1 | EB117: 1 | EC117: 1 | ED117: 1 | EE117: 1 | EF117: 1 | EG117: =EF117*(1+EG116) -> 1 | EH117: 1 | EI117: 1 | EJ117: 1 | EK117: 1 | EL117: 1 | EM117: 1 | EN117: 1 | EO117: 1 | EP117: 1 | EQ117: 1 | ER117: 1 | ES117: 1 | ET117: 1 | EU117: 1 | EV117: 1 | EW117: 1 | EX117: 1 | EY117: 1 | EZ117: 1 | FA117: 1 | FB117: 1 | FC117: 1 | FD117: 1 | FE117: 1 | FF117: 1 | FG117: 1 | FH117: 1 | FI117: 1
C119: Direct Expenses | F119: Budget
C120: Annual - No Inflation | F120: =-SUM('Budget, CapExp and Passengers'!D24:D28) -> 1535413.188 | H120: =IF(H3,-H28*12/H7,$F$120) -> 1727126.667 | I120: =IF(I3,-I28*12/I7,$F$120) -> 2434531.481 | J120: =IF(J3,-J28*12/J7,$F$120) -> 7024663.333 | K120: =IF(K3,-K28*12/K7,$F$120) -> 8735455.6 | L120: =IF(L3,-L28*12/L7,$F$120) -> 8219259.259 | M120: =IF(M3,-M28*12/M7,$F$120) -> 1535413.188 | N120: =IF(N3,-N28*12/N7,$F$120) -> 1535413.188 | O120: =IF(O3,-O28*12/O7,$F$120) -> 1535413.188 | P120: =IF(P3,-P28*12/P7,$F$120) -> 1535413.188 | Q120: =IF(Q3,-Q28*12/Q7,$F$120) -> 1535413.188 | R120: =IF(R3,-R28*12/R7,$F$120) -> 1535413.188 | S120: =IF(S3,-S28*12/S7,$F$120) -> 1535413.188 | T120: =IF(T3,-T28*12/T7,$F$120) -> 1535413.188 | U120: =IF(U3,-U28*12/U7,$F$120) -> 1535413.188 | V120: =IF(V3,-V28*12/V7,$F$120) -> 1535413.188 | W120: =IF(W3,-W28*12/W7,$F$120) -> 1535413.188 | X120: =IF(X3,-X28*12/X7,$F$120) -> 1535413.188 | Y120: =IF(Y3,-Y28*12/Y7,$F$120) -> 1535413.188 | Z120: =IF(Z3,-Z28*12/Z7,$F$120) -> 1535413.188 | AA120: =IF(AA3,-AA28*12/AA7,$F$120) -> 1535413.188 | AB120: =IF(AB3,-AB28*12/AB7,$F$120) -> 1535413.188 | AC120: =IF(AC3,-AC28*12/AC7,$F$120) -> 1535413.188 | AD120: =IF(AD3,-AD28*12/AD7,$F$120) -> 1535413.188 | AE120: =IF(AE3,-AE28*12/AE7,$F$120) -> 1535413.188 | AF120: =IF(AF3,-AF28*12/AF7,$F$120) -> 1535413.188 | AG120: =IF(AG3,-AG28*12/AG7,$F$120) -> 1535413.188 | AH120: =IF(AH3,-AH28*12/AH7,$F$120) -> 1535413.188 | AI120: =IF(AI3,-AI28*12/AI7,$F$120) -> 1535413.188 | AJ120: =IF(AJ3,-AJ28*12/AJ7,$F$120) -> 1535413.188 | AK120: =IF(AK3,-AK28*12/AK7,$F$120) -> 1535413.188 | AL120: =IF(AL3,-AL28*12/AL7,$F$120) -> 1535413.188 | AM120: =IF(AM3,-AM28*12/AM7,$F$120) -> 1535413.188 | AN120: =IF(AN3,-AN28*12/AN7,$F$120) -> 1535413.188 | AO120: =IF(AO3,-AO28*12/AO7,$F$120) -> 1535413.188 | AP120: =IF(AP3,-AP28*12/AP7,$F$120) -> 1535413.188 | AQ120: =IF(AQ3,-AQ28*12/AQ7,$F$120) -> 1535413.188 | AR120: =IF(AR3,-AR28*12/AR7,$F$120) -> 1535413.188 | AS120: =IF(AS3,-AS28*12/AS7,$F$120) -> 1535413.188 | AT120: =IF(AT3,-AT28*12/AT7,$F$120) -> 1535413.188 | AU120: =IF(AU3,-AU28*12/AU7,$F$120) -> 1535413.188 | AV120: =IF(AV3,-AV28*12/AV7,$F$120) -> 1535413.188 | AW120: =IF(AW3,-AW28*12/AW7,$F$120) -> 1535413.188 | AX120: =IF(AX3,-AX28*12/AX7,$F$120) -> 1535413.188 | AY120: =IF(AY3,-AY28*12/AY7,$F$120) -> 1535413.188 | AZ120: =IF(AZ3,-AZ28*12/AZ7,$F$120) -> 1535413.188 | BA120: =IF(BA3,-BA28*12/BA7,$F$120) -> 1535413.188 | BB120: =IF(BB3,-BB28*12/BB7,$F$120) -> 1535413.188 | BC120: =IF(BC3,-BC28*12/BC7,$F$120) -> 1535413.188 | BD120: =IF(BD3,-BD28*12/BD7,$F$120) -> 1535413.188 | BE120: =IF(BE3,-BE28*12/BE7,$F$120) -> 1535413.188 | BF120: =IF(BF3,-BF28*12/BF7,$F$120) -> 1535413.188 | BG120: =IF(BG3,-BG28*12/BG7,$F$120) -> 1535413.188 | BH120: =IF(BH3,-BH28*12/BH7,$F$120) -> 1535413.188 | BI120: =IF(BI3,-BI28*12/BI7,$F$120) -> 1535413.188 | BJ120: =IF(BJ3,-BJ28*12/BJ7,$F$120) -> 1535413.188 | BK120: =IF(BK3,-BK28*12/BK7,$F$120) -> 1535413.188 | BL120: =IF(BL3,-BL28*12/BL7,$F$120) -> 1535413.188 | BM120: =IF(BM3,-BM28*12/BM7,$F$120) -> 1535413.188 | BN120: =IF(BN3,-BN28*12/BN7,$F$120) -> 1535413.188 | BO120: =IF(BO3,-BO28*12/BO7,$F$120) -> 1535413.188 | BP120: =IF(BP3,-BP28*12/BP7,$F$120) -> 1535413.188 | BQ120: =IF(BQ3,-BQ28*12/BQ7,$F$120) -> 1535413.188 | BR120: =IF(BR3,-BR28*12/BR7,$F$120) -> 1535413.188 | BS120: =IF(BS3,-BS28*12/BS7,$F$120) -> 1535413.188 | BT120: =IF(BT3,-BT28*12/BT7,$F$120) -> 1535413.188 | BU120: =IF(BU3,-BU28*12/BU7,$F$120) -> 1535413.188 | BV120: =IF(BV3,-BV28*12/BV7,$F$120) -> 1535413.188 | BW120: =IF(BW3,-BW28*12/BW7,$F$120) -> 1535413.188 | BX120: =IF(BX3,-BX28*12/BX7,$F$120) -> 1535413.188 | BY120: =IF(BY3,-BY28*12/BY7,$F$120) -> 1535413.188 | BZ120: =IF(BZ3,-BZ28*12/BZ7,$F$120) -> 1535413.188 | CA120: =IF(CA3,-CA28*12/CA7,$F$120) -> 1535413.188 | CB120: =IF(CB3,-CB28*12/CB7,$F$120) -> 1535413.188 | CC120: =IF(CC3,-CC28*12/CC7,$F$120) -> 1535413.188 | CD120: =IF(CD3,-CD28*12/CD7,$F$120) -> 1535413.188 | CE120: =IF(CE3,-CE28*12/CE7,$F$120) -> 1535413.188 | CF120: =IF(CF3,-CF28*12/CF7,$F$120) -> 1535413.188 | CG120: =IF(CG3,-CG28*12/CG7,$F$120) -> 1535413.188 | CH120: =IF(CH3,-CH28*12/CH7,$F$120) -> 1535413.188 | CI120: =IF(CI3,-CI28*12/CI7,$F$120) -> 1535413.188 | CJ120: =IF(CJ3,-CJ28*12/CJ7,$F$120) -> 1535413.188 | CK120: =IF(CK3,-CK28*12/CK7,$F$120) -> 1535413.188 | CL120: =IF(CL3,-CL28*12/CL7,$F$120) -> 1535413.188 | CM120: =IF(CM3,-CM28*12/CM7,$F$120) -> 1535413.188 | CN120: =IF(CN3,-CN28*12/CN7,$F$120) -> 1535413.188 | CO120: =IF(CO3,-CO28*12/CO7,$F$120) -> 1535413.188 | CP120: =IF(CP3,-CP28*12/CP7,$F$120) -> 1535413.188 | CQ120: =IF(CQ3,-CQ28*12/CQ7,$F$120) -> 1535413.188 | CR120: =IF(CR3,-CR28*12/CR7,$F$120) -> 1535413.188 | CS120: =IF(CS3,-CS28*12/CS7,$F$120) -> 1535413.188 | CT120: =IF(CT3,-CT28*12/CT7,$F$120) -> 1535413.188 | CU120: =IF(CU3,-CU28*12/CU7,$F$120) -> 1535413.188 | CV120: =IF(CV3,-CV28*12/CV7,$F$120) -> 1535413.188 | CW120: =IF(CW3,-CW28*12/CW7,$F$120) -> 1535413.188 | CX120: =IF(CX3,-CX28*12/CX7,$F$120) -> 1535413.188 | CY120: =IF(CY3,-CY28*12/CY7,$F$120) -> 1535413.188 | CZ120: =IF(CZ3,-CZ28*12/CZ7,$F$120) -> 1535413.188 | DA120: =IF(DA3,-DA28*12/DA7,$F$120) -> 1535413.188 | DB120: =IF(DB3,-DB28*12/DB7,$F$120) -> 1535413.188 | DC120: =IF(DC3,-DC28*12/DC7,$F$120) -> 1535413.188 | DD120: =IF(DD3,-DD28*12/DD7,$F$120) -> 1535413.188 | DE120: =IF(DE3,-DE28*12/DE7,$F$120) -> 1535413.188 | DF120: =IF(DF3,-DF28*12/DF7,$F$120) -> 1535413.188 | DG120: =IF(DG3,-DG28*12/DG7,$F$120) -> 1535413.188 | DH120: =IF(DH3,-DH28*12/DH7,$F$120) -> 1535413.188 | DI120: =IF(DI3,-DI28*12/DI7,$F$120) -> 1535413.188 | DJ120: =IF(DJ3,-DJ28*12/DJ7,$F$120) -> 1535413.188 | DK120: =IF(DK3,-DK28*12/DK7,$F$120) -> 1535413.188 | DL120: =IF(DL3,-DL28*12/DL7,$F$120) -> 1535413.188 | DM120: =IF(DM3,-DM28*12/DM7,$F$120) -> 1535413.188 | DN120: =IF(DN3,-DN28*12/DN7,$F$120) -> 1535413.188 | DO120: =IF(DO3,-DO28*12/DO7,$F$120) -> 1535413.188 | DP120: =IF(DP3,-DP28*12/DP7,$F$120) -> 1535413.188 | DQ120: =IF(DQ3,-DQ28*12/DQ7,$F$120) -> 1535413.188 | DR120: =IF(DR3,-DR28*12/DR7,$F$120) -> 1535413.188 | DS120: =IF(DS3,-DS28*12/DS7,$F$120) -> 1535413.188 | DT120: =IF(DT3,-DT28*12/DT7,$F$120) -> 1535413.188 | DU120: =IF(DU3,-DU28*12/DU7,$F$120) -> 1535413.188 | DV120: =IF(DV3,-DV28*12/DV7,$F$120) -> 1535413.188 | DW120: =IF(DW3,-DW28*12/DW7,$F$120) -> 1535413.188 | DX120: =IF(DX3,-DX28*12/DX7,$F$120) -> 1535413.188 | DY120: =IF(DY3,-DY28*12/DY7,$F$120) -> 1535413.188 | DZ120: =IF(DZ3,-DZ28*12/DZ7,$F$120) -> 1535413.188 | EA120: =IF(EA3,-EA28*12/EA7,$F$120) -> 1535413.188 | EB120: =IF(EB3,-EB28*12/EB7,$F$120) -> 1535413.188 | EC120: =IF(EC3,-EC28*12/EC7,$F$120) -> 1535413.188 | ED120: =IF(ED3,-ED28*12/ED7,$F$120) -> 1535413.188 | EE120: =IF(EE3,-EE28*12/EE7,$F$120) -> 1535413.188 | EF120: =IF(EF3,-EF28*12/EF7,$F$120) -> 1535413.188 | EG120: =IF(EG3,-EG28*12/EG7,$F$120) -> 1535413.188 | EH120: =IF(EH3,-EH28*12/EH7,$F$120) -> 1535413.188 | EI120: =IF(EI3,-EI28*12/EI7,$F$120) -> 1535413.188 | EJ120: =IF(EJ3,-EJ28*12/EJ7,$F$120) -> 1535413.188 | EK120: =IF(EK3,-EK28*12/EK7,$F$120) -> 1535413.188 | EL120: =IF(EL3,-EL28*12/EL7,$F$120) -> 1535413.188 | EM120: =IF(EM3,-EM28*12/EM7,$F$120) -> 1535413.188 | EN120: =IF(EN3,-EN28*12/EN7,$F$120) -> 1535413.188 | EO120: =IF(EO3,-EO28*12/EO7,$F$120) -> 1535413.188 | EP120: =IF(EP3,-EP28*12/EP7,$F$120) -> 1535413.188 | EQ120: =IF(EQ3,-EQ28*12/EQ7,$F$120) -> 1535413.188 | ER120: =IF(ER3,-ER28*12/ER7,$F$120) -> 1535413.188 | ES120: =IF(ES3,-ES28*12/ES7,$F$120) -> 1535413.188 | ET120: =IF(ET3,-ET28*12/ET7,$F$120) -> 1535413.188 | EU120: =IF(EU3,-EU28*12/EU7,$F$120) -> 1535413.188 | EV120: =IF(EV3,-EV28*12/EV7,$F$120) -> 1535413.188 | EW120: =IF(EW3,-EW28*12/EW7,$F$120) -> 1535413.188 | EX120: =IF(EX3,-EX28*12/EX7,$F$120) -> 1535413.188 | EY120: =IF(EY3,-EY28*12/EY7,$F$120) -> 1535413.188 | EZ120: =IF(EZ3,-EZ28*12/EZ7,$F$120) -> 1535413.188 | FA120: =IF(FA3,-FA28*12/FA7,$F$120) -> 1535413.188 | FB120: =IF(FB3,-FB28*12/FB7,$F$120) -> 1535413.188 | FC120: =IF(FC3,-FC28*12/FC7,$F$120) -> 1535413.188 | FD120: =IF(FD3,-FD28*12/FD7,$F$120) -> 1535413.188 | FE120: =IF(FE3,-FE28*12/FE7,$F$120) -> 1535413.188 | FF120: =IF(FF3,-FF28*12/FF7,$F$120) -> 1535413.188 | FG120: =IF(FG3,-FG28*12/FG7,$F$120) -> 1535413.188 | FH120: =IF(FH3,-FH28*12/FH7,$F$120) -> 1535413.188 | FI120: =IF(FI3,-FI28*12/FI7,$F$120) -> 1535413.188
C121: Periodic - No Inflation | H121: =H120*H7/12 -> 1727126.667 | I121: =I120*I7/12 -> 2434531.481 | J121: =J120*J7/12 -> 7024663.333 | K121: =K120*K7/12 -> 8735455.6 | L121: =L120*L7/12 -> 2054814.815 | M121: =M120*M7/12 -> 127951.099 | N121: =N120*N7/12 -> 127951.099 | O121: =O120*O7/12 -> 127951.099 | P121: =P120*P7/12 -> 127951.099 | Q121: =Q120*Q7/12 -> 127951.099 | R121: =R120*R7/12 -> 127951.099 | S121: =S120*S7/12 -> 127951.099 | T121: =T120*T7/12 -> 127951.099 | U121: =U120*U7/12 -> 127951.099 | V121: =V120*V7/12 -> 127951.099 | W121: =W120*W7/12 -> 127951.099 | X121: =X120*X7/12 -> 127951.099 | Y121: =Y120*Y7/12 -> 127951.099 | Z121: =Z120*Z7/12 -> 127951.099 | AA121: =AA120*AA7/12 -> 127951.099 | AB121: =AB120*AB7/12 -> 127951.099 | AC121: =AC120*AC7/12 -> 127951.099 | AD121: =AD120*AD7/12 -> 127951.099 | AE121: =AE120*AE7/12 -> 127951.099 | AF121: =AF120*AF7/12 -> 127951.099 | AG121: =AG120*AG7/12 -> 127951.099 | AH121: =AH120*AH7/12 -> 127951.099 | AI121: =AI120*AI7/12 -> 127951.099 | AJ121: =AJ120*AJ7/12 -> 127951.099 | AK121: =AK120*AK7/12 -> 127951.099 | AL121: =AL120*AL7/12 -> 127951.099 | AM121: =AM120*AM7/12 -> 127951.099 | AN121: =AN120*AN7/12 -> 127951.099 | AO121: =AO120*AO7/12 -> 127951.099 | AP121: =AP120*AP7/12 -> 127951.099 | AQ121: =AQ120*AQ7/12 -> 127951.099 | AR121: =AR120*AR7/12 -> 127951.099 | AS121: =AS120*AS7/12 -> 127951.099 | AT121: =AT120*AT7/12 -> 127951.099 | AU121: =AU120*AU7/12 -> 127951.099 | AV121: =AV120*AV7/12 -> 127951.099 | AW121: =AW120*AW7/12 -> 127951.099 | AX121: =AX120*AX7/12 -> 127951.099 | AY121: =AY120*AY7/12 -> 127951.099 | AZ121: =AZ120*AZ7/12 -> 127951.099 | BA121: =BA120*BA7/12 -> 127951.099 | BB121: =BB120*BB7/12 -> 127951.099 | BC121: =BC120*BC7/12 -> 127951.099 | BD121: =BD120*BD7/12 -> 127951.099 | BE121: =BE120*BE7/12 -> 127951.099 | BF121: =BF120*BF7/12 -> 127951.099 | BG121: =BG120*BG7/12 -> 127951.099 | BH121: =BH120*BH7/12 -> 127951.099 | BI121: =BI120*BI7/12 -> 127951.099 | BJ121: =BJ120*BJ7/12 -> 127951.099 | BK121: =BK120*BK7/12 -> 127951.099 | BL121: =BL120*BL7/12 -> 127951.099 | BM121: =BM120*BM7/12 -> 127951.099 | BN121: =BN120*BN7/12 -> 127951.099 | BO121: =BO120*BO7/12 -> 127951.099 | BP121: =BP120*BP7/12 -> 127951.099 | BQ121: =BQ120*BQ7/12 -> 127951.099 | BR121: =BR120*BR7/12 -> 127951.099 | BS121: =BS120*BS7/12 -> 127951.099 | BT121: =BT120*BT7/12 -> 127951.099 | BU121: =BU120*BU7/12 -> 127951.099 | BV121: =BV120*BV7/12 -> 127951.099 | BW121: =BW120*BW7/12 -> 127951.099 | BX121: =BX120*BX7/12 -> 127951.099 | BY121: =BY120*BY7/12 -> 127951.099 | BZ121: =BZ120*BZ7/12 -> 127951.099 | CA121: =CA120*CA7/12 -> 127951.099 | CB121: =CB120*CB7/12 -> 127951.099 | CC121: =CC120*CC7/12 -> 127951.099 | CD121: =CD120*CD7/12 -> 127951.099 | CE121: =CE120*CE7/12 -> 127951.099 | CF121: =CF120*CF7/12 -> 127951.099 | CG121: =CG120*CG7/12 -> 127951.099 | CH121: =CH120*CH7/12 -> 127951.099 | CI121: =CI120*CI7/12 -> 127951.099 | CJ121: =CJ120*CJ7/12 -> 127951.099 | CK121: =CK120*CK7/12 -> 127951.099 | CL121: =CL120*CL7/12 -> 127951.099 | CM121: =CM120*CM7/12 -> 127951.099 | CN121: =CN120*CN7/12 -> 127951.099 | CO121: =CO120*CO7/12 -> 127951.099 | CP121: =CP120*CP7/12 -> 127951.099 | CQ121: =CQ120*CQ7/12 -> 127951.099 | CR121: =CR120*CR7/12 -> 127951.099 | CS121: =CS120*CS7/12 -> 127951.099 | CT121: =CT120*CT7/12 -> 127951.099 | CU121: =CU120*CU7/12 -> 127951.099 | CV121: =CV120*CV7/12 -> 127951.099 | CW121: =CW120*CW7/12 -> 127951.099 | CX121: =CX120*CX7/12 -> 127951.099 | CY121: =CY120*CY7/12 -> 127951.099 | CZ121: =CZ120*CZ7/12 -> 127951.099 | DA121: =DA120*DA7/12 -> 127951.099 | DB121: =DB120*DB7/12 -> 127951.099 | DC121: =DC120*DC7/12 -> 127951.099 | DD121: =DD120*DD7/12 -> 127951.099 | DE121: =DE120*DE7/12 -> 127951.099 | DF121: =DF120*DF7/12 -> 127951.099 | DG121: =DG120*DG7/12 -> 127951.099 | DH121: =DH120*DH7/12 -> 127951.099 | DI121: =DI120*DI7/12 -> 127951.099 | DJ121: =DJ120*DJ7/12 -> 127951.099 | DK121: =DK120*DK7/12 -> 127951.099 | DL121: =DL120*DL7/12 -> 127951.099 | DM121: =DM120*DM7/12 -> 127951.099 | DN121: =DN120*DN7/12 -> 127951.099 | DO121: =DO120*DO7/12 -> 127951.099 | DP121: =DP120*DP7/12 -> 127951.099 | DQ121: =DQ120*DQ7/12 -> 127951.099 | DR121: =DR120*DR7/12 -> 127951.099 | DS121: =DS120*DS7/12 -> 127951.099 | DT121: =DT120*DT7/12 -> 127951.099 | DU121: =DU120*DU7/12 -> 127951.099 | DV121: =DV120*DV7/12 -> 127951.099 | DW121: =DW120*DW7/12 -> 127951.099 | DX121: =DX120*DX7/12 -> 127951.099 | DY121: =DY120*DY7/12 -> 127951.099 | DZ121: =DZ120*DZ7/12 -> 127951.099 | EA121: =EA120*EA7/12 -> 127951.099 | EB121: =EB120*EB7/12 -> 127951.099 | EC121: =EC120*EC7/12 -> 127951.099 | ED121: =ED120*ED7/12 -> 127951.099 | EE121: =EE120*EE7/12 -> 127951.099 | EF121: =EF120*EF7/12 -> 127951.099 | EG121: =EG120*EG7/12 -> 127951.099 | EH121: =EH120*EH7/12 -> 127951.099 | EI121: =EI120*EI7/12 -> 127951.099 | EJ121: =EJ120*EJ7/12 -> 127951.099 | EK121: =EK120*EK7/12 -> 127951.099 | EL121: =EL120*EL7/12 -> 127951.099 | EM121: =EM120*EM7/12 -> 127951.099 | EN121: =EN120*EN7/12 -> 127951.099 | EO121: =EO120*EO7/12 -> 127951.099 | EP121: =EP120*EP7/12 -> 127951.099 | EQ121: =EQ120*EQ7/12 -> 127951.099 | ER121: =ER120*ER7/12 -> 127951.099 | ES121: =ES120*ES7/12 -> 127951.099 | ET121: =ET120*ET7/12 -> 127951.099 | EU121: =EU120*EU7/12 -> 127951.099 | EV121: =EV120*EV7/12 -> 127951.099 | EW121: =EW120*EW7/12 -> 127951.099 | EX121: =EX120*EX7/12 -> 127951.099 | EY121: =EY120*EY7/12 -> 127951.099 | EZ121: =EZ120*EZ7/12 -> 127951.099 | FA121: =FA120*FA7/12 -> 127951.099 | FB121: =FB120*FB7/12 -> 127951.099 | FC121: =FC120*FC7/12 -> 127951.099 | FD121: =FD120*FD7/12 -> 127951.099 | FE121: =FE120*FE7/12 -> 127951.099 | FF121: =FF120*FF7/12 -> 127951.099 | FG121: =FG120*FG7/12 -> 127951.099 | FH121: =FH120*FH7/12 -> 127951.099 | FI121: =FI120*FI7/12 -> 127951.099
C122: Periodic with Inflation | H122: =H121*H117 -> 1727126.667 | I122: =I121*I117 -> 2434531.481 | J122: 7024663.333 | K122: 8735455.6 | L122: 2054814.815 | M122: 127951.099 | N122: 127951.099 | O122: 127951.099 | P122: 127951.099 | Q122: 127951.099 | R122: 127951.099 | S122: 127951.099 | T122: 127951.099 | U122: 127951.099 | V122: 127951.099 | W122: 127951.099 | X122: 127951.099 | Y122: 127951.099 | Z122: 127951.099 | AA122: 127951.099 | AB122: 127951.099 | AC122: 127951.099 | AD122: 127951.099 | AE122: 127951.099 | AF122: 127951.099 | AG122: 127951.099 | AH122: 127951.099 | AI122: 127951.099 | AJ122: 127951.099 | AK122: 127951.099 | AL122: 127951.099 | AM122: 127951.099 | AN122: 127951.099 | AO122: 127951.099 | AP122: 127951.099 | AQ122: 127951.099 | AR122: 127951.099 | AS122: 127951.099 | AT122: 127951.099 | AU122: 127951.099 | AV122: 127951.099 | AW122: 127951.099 | AX122: 127951.099 | AY122: 127951.099 | AZ122: 127951.099 | BA122: 127951.099 | BB122: 127951.099 | BC122: 127951.099 | BD122: 127951.099 | BE122: 127951.099 | BF122: 127951.099 | BG122: 127951.099 | BH122: 127951.099 | BI122: 127951.099 | BJ122: 127951.099 | BK122: 127951.099 | BL122: 127951.099 | BM122: 127951.099 | BN122: 127951.099 | BO122: 127951.099 | BP122: 127951.099 | BQ122: 127951.099 | BR122: 127951.099 | BS122: 127951.099 | BT122: 127951.099 | BU122: =BU121*BU117 -> 127951.099 | BV122: 127951.099 | BW122: 127951.099 | BX122: 127951.099 | BY122: 127951.099 | BZ122: 127951.099 | CA122: 127951.099 | CB122: 127951.099 | CC122: 127951.099 | CD122: 127951.099 | CE122: 127951.099 | CF122: 127951.099 | CG122: 127951.099 | CH122: 127951.099 | CI122: 127951.099 | CJ122: 127951.099 | CK122: 127951.099 | CL122: 127951.099 | CM122: 127951.099 | CN122: 127951.099 | CO122: 127951.099 | CP122: 127951.099 | CQ122: 127951.099 | CR122: 127951.099 | CS122: 127951.099 | CT122: 127951.099 | CU122: 127951.099 | CV122: 127951.099 | CW122: 127951.099 | CX122: 127951.099 | CY122: 127951.099 | CZ122: 127951.099 | DA122: 127951.099 | DB122: 127951.099 | DC122: 127951.099 | DD122: 127951.099 | DE122: 127951.099 | DF122: 127951.099 | DG122: 127951.099 | DH122: 127951.099 | DI122: 127951.099 | DJ122: 127951.099 | DK122: 127951.099 | DL122: 127951.099 | DM122: 127951.099 | DN122: 127951.099 | DO122: 127951.099 | DP122: 127951.099 | DQ122: 127951.099 | DR122: 127951.099 | DS122: 127951.099 | DT122: 127951.099 | DU122: 127951.099 | DV122: 127951.099 | DW122: 127951.099 | DX122: 127951.099 | DY122: 127951.099 | DZ122: 127951.099 | EA122: 127951.099 | EB122: 127951.099 | EC122: 127951.099 | ED122: 127951.099 | EE122: 127951.099 | EF122: 127951.099 | EG122: =EG121*EG117 -> 127951.099 | EH122: 127951.099 | EI122: 127951.099 | EJ122: 127951.099 | EK122: 127951.099 | EL122: 127951.099 | EM122: 127951.099 | EN122: 127951.099 | EO122: 127951.099 | EP122: 127951.099 | EQ122: 127951.099 | ER122: 127951.099 | ES122: 127951.099 | ET122: 127951.099 | EU122: 127951.099 | EV122: 127951.099 | EW122: 127951.099 | EX122: 127951.099 | EY122: 127951.099 | EZ122: 127951.099 | FA122: 127951.099 | FB122: 127951.099 | FC122: 127951.099 | FD122: 127951.099 | FE122: 127951.099 | FF122: 127951.099 | FG122: 127951.099 | FH122: 127951.099 | FI122: 127951.099
C124: SG&A Epenses | F124: =F119 -> Budget
C125: Annual - No Inflation | F125: ='Budget, CapExp and Passengers'!D68 -> 11514114.91 | H125: =IF(H3,-H29*12/H7,$F$125) -> 6010884.444 | I125: =IF(I3,-I29*12/I7,$F$125) -> 9451543.333 | J125: =IF(J3,-J29*12/J7,$F$125) -> 9481658.519 | K125: =IF(K3,-K29*12/K7,$F$125) -> 8909674.874 | L125: =IF(L3,-L29*12/L7,$F$125) -> 9777777.778 | M125: =IF(M3,-M29*12/M7,$F$125) -> 11514114.91 | N125: =IF(N3,-N29*12/N7,$F$125) -> 11514114.91 | O125: =IF(O3,-O29*12/O7,$F$125) -> 11514114.91 | P125: =IF(P3,-P29*12/P7,$F$125) -> 11514114.91 | Q125: =IF(Q3,-Q29*12/Q7,$F$125) -> 11514114.91 | R125: =IF(R3,-R29*12/R7,$F$125) -> 11514114.91 | S125: =IF(S3,-S29*12/S7,$F$125) -> 11514114.91 | T125: =IF(T3,-T29*12/T7,$F$125) -> 11514114.91 | U125: =IF(U3,-U29*12/U7,$F$125) -> 11514114.91 | V125: =IF(V3,-V29*12/V7,$F$125) -> 11514114.91 | W125: =IF(W3,-W29*12/W7,$F$125) -> 11514114.91 | X125: =IF(X3,-X29*12/X7,$F$125) -> 11514114.91 | Y125: =IF(Y3,-Y29*12/Y7,$F$125) -> 11514114.91 | Z125: =IF(Z3,-Z29*12/Z7,$F$125) -> 11514114.91 | AA125: =IF(AA3,-AA29*12/AA7,$F$125) -> 11514114.91 | AB125: =IF(AB3,-AB29*12/AB7,$F$125) -> 11514114.91 | AC125: =IF(AC3,-AC29*12/AC7,$F$125) -> 11514114.91 | AD125: =IF(AD3,-AD29*12/AD7,$F$125) -> 11514114.91 | AE125: =IF(AE3,-AE29*12/AE7,$F$125) -> 11514114.91 | AF125: =IF(AF3,-AF29*12/AF7,$F$125) -> 11514114.91 | AG125: =IF(AG3,-AG29*12/AG7,$F$125) -> 11514114.91 | AH125: =IF(AH3,-AH29*12/AH7,$F$125) -> 11514114.91 | AI125: =IF(AI3,-AI29*12/AI7,$F$125) -> 11514114.91 | AJ125: =IF(AJ3,-AJ29*12/AJ7,$F$125) -> 11514114.91 | AK125: =IF(AK3,-AK29*12/AK7,$F$125) -> 11514114.91 | AL125: =IF(AL3,-AL29*12/AL7,$F$125) -> 11514114.91 | AM125: =IF(AM3,-AM29*12/AM7,$F$125) -> 11514114.91 | AN125: =IF(AN3,-AN29*12/AN7,$F$125) -> 11514114.91 | AO125: =IF(AO3,-AO29*12/AO7,$F$125) -> 11514114.91 | AP125: =IF(AP3,-AP29*12/AP7,$F$125) -> 11514114.91 | AQ125: =IF(AQ3,-AQ29*12/AQ7,$F$125) -> 11514114.91 | AR125: =IF(AR3,-AR29*12/AR7,$F$125) -> 11514114.91 | AS125: =IF(AS3,-AS29*12/AS7,$F$125) -> 11514114.91 | AT125: =IF(AT3,-AT29*12/AT7,$F$125) -> 11514114.91 | AU125: =IF(AU3,-AU29*12/AU7,$F$125) -> 11514114.91 | AV125: =IF(AV3,-AV29*12/AV7,$F$125) -> 11514114.91 | AW125: =IF(AW3,-AW29*12/AW7,$F$125) -> 11514114.91 | AX125: =IF(AX3,-AX29*12/AX7,$F$125) -> 11514114.91 | AY125: =IF(AY3,-AY29*12/AY7,$F$125) -> 11514114.91 | AZ125: =IF(AZ3,-AZ29*12/AZ7,$F$125) -> 11514114.91 | BA125: =IF(BA3,-BA29*12/BA7,$F$125) -> 11514114.91 | BB125: =IF(BB3,-BB29*12/BB7,$F$125) -> 11514114.91 | BC125: =IF(BC3,-BC29*12/BC7,$F$125) -> 11514114.91 | BD125: =IF(BD3,-BD29*12/BD7,$F$125) -> 11514114.91 | BE125: =IF(BE3,-BE29*12/BE7,$F$125) -> 11514114.91 | BF125: =IF(BF3,-BF29*12/BF7,$F$125) -> 11514114.91 | BG125: =IF(BG3,-BG29*12/BG7,$F$125) -> 11514114.91 | BH125: =IF(BH3,-BH29*12/BH7,$F$125) -> 11514114.91 | BI125: =IF(BI3,-BI29*12/BI7,$F$125) -> 11514114.91 | BJ125: =IF(BJ3,-BJ29*12/BJ7,$F$125) -> 11514114.91 | BK125: =IF(BK3,-BK29*12/BK7,$F$125) -> 11514114.91 | BL125: =IF(BL3,-BL29*12/BL7,$F$125) -> 11514114.91 | BM125: =IF(BM3,-BM29*12/BM7,$F$125) -> 11514114.91 | BN125: =IF(BN3,-BN29*12/BN7,$F$125) -> 11514114.91 | BO125: =IF(BO3,-BO29*12/BO7,$F$125) -> 11514114.91 | BP125: =IF(BP3,-BP29*12/BP7,$F$125) -> 11514114.91 | BQ125: =IF(BQ3,-BQ29*12/BQ7,$F$125) -> 11514114.91 | BR125: =IF(BR3,-BR29*12/BR7,$F$125) -> 11514114.91 | BS125: =IF(BS3,-BS29*12/BS7,$F$125) -> 11514114.91 | BT125: =IF(BT3,-BT29*12/BT7,$F$125) -> 11514114.91 | BU125: =IF(BU3,-BU29*12/BU7,$F$125) -> 11514114.91 | BV125: =IF(BV3,-BV29*12/BV7,$F$125) -> 11514114.91 | BW125: =IF(BW3,-BW29*12/BW7,$F$125) -> 11514114.91 | BX125: =IF(BX3,-BX29*12/BX7,$F$125) -> 11514114.91 | BY125: =IF(BY3,-BY29*12/BY7,$F$125) -> 11514114.91 | BZ125: =IF(BZ3,-BZ29*12/BZ7,$F$125) -> 11514114.91 | CA125: =IF(CA3,-CA29*12/CA7,$F$125) -> 11514114.91 | CB125: =IF(CB3,-CB29*12/CB7,$F$125) -> 11514114.91 | CC125: =IF(CC3,-CC29*12/CC7,$F$125) -> 11514114.91 | CD125: =IF(CD3,-CD29*12/CD7,$F$125) -> 11514114.91 | CE125: =IF(CE3,-CE29*12/CE7,$F$125) -> 11514114.91 | CF125: =IF(CF3,-CF29*12/CF7,$F$125) -> 11514114.91 | CG125: =IF(CG3,-CG29*12/CG7,$F$125) -> 11514114.91 | CH125: =IF(CH3,-CH29*12/CH7,$F$125) -> 11514114.91 | CI125: =IF(CI3,-CI29*12/CI7,$F$125) -> 11514114.91 | CJ125: =IF(CJ3,-CJ29*12/CJ7,$F$125) -> 11514114.91 | CK125: =IF(CK3,-CK29*12/CK7,$F$125) -> 11514114.91 | CL125: =IF(CL3,-CL29*12/CL7,$F$125) -> 11514114.91 | CM125: =IF(CM3,-CM29*12/CM7,$F$125) -> 11514114.91 | CN125: =IF(CN3,-CN29*12/CN7,$F$125) -> 11514114.91 | CO125: =IF(CO3,-CO29*12/CO7,$F$125) -> 11514114.91 | CP125: =IF(CP3,-CP29*12/CP7,$F$125) -> 11514114.91 | CQ125: =IF(CQ3,-CQ29*12/CQ7,$F$125) -> 11514114.91 | CR125: =IF(CR3,-CR29*12/CR7,$F$125) -> 11514114.91 | CS125: =IF(CS3,-CS29*12/CS7,$F$125) -> 11514114.91 | CT125: =IF(CT3,-CT29*12/CT7,$F$125) -> 11514114.91 | CU125: =IF(CU3,-CU29*12/CU7,$F$125) -> 11514114.91 | CV125: =IF(CV3,-CV29*12/CV7,$F$125) -> 11514114.91 | CW125: =IF(CW3,-CW29*12/CW7,$F$125) -> 11514114.91 | CX125: =IF(CX3,-CX29*12/CX7,$F$125) -> 11514114.91 | CY125: =IF(CY3,-CY29*12/CY7,$F$125) -> 11514114.91 | CZ125: =IF(CZ3,-CZ29*12/CZ7,$F$125) -> 11514114.91 | DA125: =IF(DA3,-DA29*12/DA7,$F$125) -> 11514114.91 | DB125: =IF(DB3,-DB29*12/DB7,$F$125) -> 11514114.91 | DC125: =IF(DC3,-DC29*12/DC7,$F$125) -> 11514114.91 | DD125: =IF(DD3,-DD29*12/DD7,$F$125) -> 11514114.91 | DE125: =IF(DE3,-DE29*12/DE7,$F$125) -> 11514114.91 | DF125: =IF(DF3,-DF29*12/DF7,$F$125) -> 11514114.91 | DG125: =IF(DG3,-DG29*12/DG7,$F$125) -> 11514114.91 | DH125: =IF(DH3,-DH29*12/DH7,$F$125) -> 11514114.91 | DI125: =IF(DI3,-DI29*12/DI7,$F$125) -> 11514114.91 | DJ125: =IF(DJ3,-DJ29*12/DJ7,$F$125) -> 11514114.91 | DK125: =IF(DK3,-DK29*12/DK7,$F$125) -> 11514114.91 | DL125: =IF(DL3,-DL29*12/DL7,$F$125) -> 11514114.91 | DM125: =IF(DM3,-DM29*12/DM7,$F$125) -> 11514114.91 | DN125: =IF(DN3,-DN29*12/DN7,$F$125) -> 11514114.91 | DO125: =IF(DO3,-DO29*12/DO7,$F$125) -> 11514114.91 | DP125: =IF(DP3,-DP29*12/DP7,$F$125) -> 11514114.91 | DQ125: =IF(DQ3,-DQ29*12/DQ7,$F$125) -> 11514114.91 | DR125: =IF(DR3,-DR29*12/DR7,$F$125) -> 11514114.91 | DS125: =IF(DS3,-DS29*12/DS7,$F$125) -> 11514114.91 | DT125: =IF(DT3,-DT29*12/DT7,$F$125) -> 11514114.91 | DU125: =IF(DU3,-DU29*12/DU7,$F$125) -> 11514114.91 | DV125: =IF(DV3,-DV29*12/DV7,$F$125) -> 11514114.91 | DW125: =IF(DW3,-DW29*12/DW7,$F$125) -> 11514114.91 | DX125: =IF(DX3,-DX29*12/DX7,$F$125) -> 11514114.91 | DY125: =IF(DY3,-DY29*12/DY7,$F$125) -> 11514114.91 | DZ125: =IF(DZ3,-DZ29*12/DZ7,$F$125) -> 11514114.91 | EA125: =IF(EA3,-EA29*12/EA7,$F$125) -> 11514114.91 | EB125: =IF(EB3,-EB29*12/EB7,$F$125) -> 11514114.91 | EC125: =IF(EC3,-EC29*12/EC7,$F$125) -> 11514114.91 | ED125: =IF(ED3,-ED29*12/ED7,$F$125) -> 11514114.91 | EE125: =IF(EE3,-EE29*12/EE7,$F$125) -> 11514114.91 | EF125: =IF(EF3,-EF29*12/EF7,$F$125) -> 11514114.91 | EG125: =IF(EG3,-EG29*12/EG7,$F$125) -> 11514114.91 | EH125: =IF(EH3,-EH29*12/EH7,$F$125) -> 11514114.91 | EI125: =IF(EI3,-EI29*12/EI7,$F$125) -> 11514114.91 | EJ125: =IF(EJ3,-EJ29*12/EJ7,$F$125) -> 11514114.91 | EK125: =IF(EK3,-EK29*12/EK7,$F$125) -> 11514114.91 | EL125: =IF(EL3,-EL29*12/EL7,$F$125) -> 11514114.91 | EM125: =IF(EM3,-EM29*12/EM7,$F$125) -> 11514114.91 | EN125: =IF(EN3,-EN29*12/EN7,$F$125) -> 11514114.91 | EO125: =IF(EO3,-EO29*12/EO7,$F$125) -> 11514114.91 | EP125: =IF(EP3,-EP29*12/EP7,$F$125) -> 11514114.91 | EQ125: =IF(EQ3,-EQ29*12/EQ7,$F$125) -> 11514114.91 | ER125: =IF(ER3,-ER29*12/ER7,$F$125) -> 11514114.91 | ES125: =IF(ES3,-ES29*12/ES7,$F$125) -> 11514114.91 | ET125: =IF(ET3,-ET29*12/ET7,$F$125) -> 11514114.91 | EU125: =IF(EU3,-EU29*12/EU7,$F$125) -> 11514114.91 | EV125: =IF(EV3,-EV29*12/EV7,$F$125) -> 11514114.91 | EW125: =IF(EW3,-EW29*12/EW7,$F$125) -> 11514114.91 | EX125: =IF(EX3,-EX29*12/EX7,$F$125) -> 11514114.91 | EY125: =IF(EY3,-EY29*12/EY7,$F$125) -> 11514114.91 | EZ125: =IF(EZ3,-EZ29*12/EZ7,$F$125) -> 11514114.91 | FA125: =IF(FA3,-FA29*12/FA7,$F$125) -> 11514114.91 | FB125: =IF(FB3,-FB29*12/FB7,$F$125) -> 11514114.91 | FC125: =IF(FC3,-FC29*12/FC7,$F$125) -> 11514114.91 | FD125: =IF(FD3,-FD29*12/FD7,$F$125) -> 11514114.91 | FE125: =IF(FE3,-FE29*12/FE7,$F$125) -> 11514114.91 | FF125: =IF(FF3,-FF29*12/FF7,$F$125) -> 11514114.91 | FG125: =IF(FG3,-FG29*12/FG7,$F$125) -> 11514114.91 | FH125: =IF(FH3,-FH29*12/FH7,$F$125) -> 11514114.91 | FI125: =IF(FI3,-FI29*12/FI7,$F$125) -> 11514114.91
C126: Periodic - No Inflation | H126: =H125/12*H7 -> 6010884.444 | I126: =I125/12*I7 -> 9451543.333 | J126: =J125/12*J7 -> 9481658.519 | K126: =K125/12*K7 -> 8909674.874 | L126: =L125/12*L7 -> 2444444.444 | M126: =M125/12*M7 -> 959509.5759 | N126: =N125/12*N7 -> 959509.5759 | O126: =O125/12*O7 -> 959509.5759 | P126: =P125/12*P7 -> 959509.5759 | Q126: =Q125/12*Q7 -> 959509.5759 | R126: =R125/12*R7 -> 959509.5759 | S126: =S125/12*S7 -> 959509.5759 | T126: =T125/12*T7 -> 959509.5759 | U126: =U125/12*U7 -> 959509.5759 | V126: =V125/12*V7 -> 959509.5759 | W126: =W125/12*W7 -> 959509.5759 | X126: =X125/12*X7 -> 959509.5759 | Y126: =Y125/12*Y7 -> 959509.5759 | Z126: =Z125/12*Z7 -> 959509.5759 | AA126: =AA125/12*AA7 -> 959509.5759 | AB126: =AB125/12*AB7 -> 959509.5759 | AC126: =AC125/12*AC7 -> 959509.5759 | AD126: =AD125/12*AD7 -> 959509.5759 | AE126: =AE125/12*AE7 -> 959509.5759 | AF126: =AF125/12*AF7 -> 959509.5759 | AG126: =AG125/12*AG7 -> 959509.5759 | AH126: =AH125/12*AH7 -> 959509.5759 | AI126: =AI125/12*AI7 -> 959509.5759 | AJ126: =AJ125/12*AJ7 -> 959509.5759 | AK126: =AK125/12*AK7 -> 959509.5759 | AL126: =AL125/12*AL7 -> 959509.5759 | AM126: =AM125/12*AM7 -> 959509.5759 | AN126: =AN125/12*AN7 -> 959509.5759 | AO126: =AO125/12*AO7 -> 959509.5759 | AP126: =AP125/12*AP7 -> 959509.5759 | AQ126: =AQ125/12*AQ7 -> 959509.5759 | AR126: =AR125/12*AR7 -> 959509.5759 | AS126: =AS125/12*AS7 -> 959509.5759 | AT126: =AT125/12*AT7 -> 959509.5759 | AU126: =AU125/12*AU7 -> 959509.5759 | AV126: =AV125/12*AV7 -> 959509.5759 | AW126: =AW125/12*AW7 -> 959509.5759 | AX126: =AX125/12*AX7 -> 959509.5759 | AY126: =AY125/12*AY7 -> 959509.5759 | AZ126: =AZ125/12*AZ7 -> 959509.5759 | BA126: =BA125/12*BA7 -> 959509.5759 | BB126: =BB125/12*BB7 -> 959509.5759 | BC126: =BC125/12*BC7 -> 959509.5759 | BD126: =BD125/12*BD7 -> 959509.5759 | BE126: =BE125/12*BE7 -> 959509.5759 | BF126: =BF125/12*BF7 -> 959509.5759 | BG126: =BG125/12*BG7 -> 959509.5759 | BH126: =BH125/12*BH7 -> 959509.5759 | BI126: =BI125/12*BI7 -> 959509.5759 | BJ126: =BJ125/12*BJ7 -> 959509.5759 | BK126: =BK125/12*BK7 -> 959509.5759 | BL126: =BL125/12*BL7 -> 959509.5759 | BM126: =BM125/12*BM7 -> 959509.5759 | BN126: =BN125/12*BN7 -> 959509.5759 | BO126: =BO125/12*BO7 -> 959509.5759 | BP126: =BP125/12*BP7 -> 959509.5759 | BQ126: =BQ125/12*BQ7 -> 959509.5759 | BR126: =BR125/12*BR7 -> 959509.5759 | BS126: =BS125/12*BS7 -> 959509.5759 | BT126: =BT125/12*BT7 -> 959509.5759 | BU126: =BU125/12*BU7 -> 959509.5759 | BV126: =BV125/12*BV7 -> 959509.5759 | BW126: =BW125/12*BW7 -> 959509.5759 | BX126: =BX125/12*BX7 -> 959509.5759 | BY126: =BY125/12*BY7 -> 959509.5759 | BZ126: =BZ125/12*BZ7 -> 959509.5759 | CA126: =CA125/12*CA7 -> 959509.5759 | CB126: =CB125/12*CB7 -> 959509.5759 | CC126: =CC125/12*CC7 -> 959509.5759 | CD126: =CD125/12*CD7 -> 959509.5759 | CE126: =CE125/12*CE7 -> 959509.5759 | CF126: =CF125/12*CF7 -> 959509.5759 | CG126: =CG125/12*CG7 -> 959509.5759 | CH126: =CH125/12*CH7 -> 959509.5759 | CI126: =CI125/12*CI7 -> 959509.5759 | CJ126: =CJ125/12*CJ7 -> 959509.5759 | CK126: =CK125/12*CK7 -> 959509.5759 | CL126: =CL125/12*CL7 -> 959509.5759 | CM126: =CM125/12*CM7 -> 959509.5759 | CN126: =CN125/12*CN7 -> 959509.5759 | CO126: =CO125/12*CO7 -> 959509.5759 | CP126: =CP125/12*CP7 -> 959509.5759 | CQ126: =CQ125/12*CQ7 -> 959509.5759 | CR126: =CR125/12*CR7 -> 959509.5759 | CS126: =CS125/12*CS7 -> 959509.5759 | CT126: =CT125/12*CT7 -> 959509.5759 | CU126: =CU125/12*CU7 -> 959509.5759 | CV126: =CV125/12*CV7 -> 959509.5759 | CW126: =CW125/12*CW7 -> 959509.5759 | CX126: =CX125/12*CX7 -> 959509.5759 | CY126: =CY125/12*CY7 -> 959509.5759 | CZ126: =CZ125/12*CZ7 -> 959509.5759 | DA126: =DA125/12*DA7 -> 959509.5759 | DB126: =DB125/12*DB7 -> 959509.5759 | DC126: =DC125/12*DC7 -> 959509.5759 | DD126: =DD125/12*DD7 -> 959509.5759 | DE126: =DE125/12*DE7 -> 959509.5759 | DF126: =DF125/12*DF7 -> 959509.5759 | DG126: =DG125/12*DG7 -> 959509.5759 | DH126: =DH125/12*DH7 -> 959509.5759 | DI126: =DI125/12*DI7 -> 959509.5759 | DJ126: =DJ125/12*DJ7 -> 959509.5759 | DK126: =DK125/12*DK7 -> 959509.5759 | DL126: =DL125/12*DL7 -> 959509.5759 | DM126: =DM125/12*DM7 -> 959509.5759 | DN126: =DN125/12*DN7 -> 959509.5759 | DO126: =DO125/12*DO7 -> 959509.5759 | DP126: =DP125/12*DP7 -> 959509.5759 | DQ126: =DQ125/12*DQ7 -> 959509.5759 | DR126: =DR125/12*DR7 -> 959509.5759 | DS126: =DS125/12*DS7 -> 959509.5759 | DT126: =DT125/12*DT7 -> 959509.5759 | DU126: =DU125/12*DU7 -> 959509.5759 | DV126: =DV125/12*DV7 -> 959509.5759 | DW126: =DW125/12*DW7 -> 959509.5759 | DX126: =DX125/12*DX7 -> 959509.5759 | DY126: =DY125/12*DY7 -> 959509.5759 | DZ126: =DZ125/12*DZ7 -> 959509.5759 | EA126: =EA125/12*EA7 -> 959509.5759 | EB126: =EB125/12*EB7 -> 959509.5759 | EC126: =EC125/12*EC7 -> 959509.5759 | ED126: =ED125/12*ED7 -> 959509.5759 | EE126: =EE125/12*EE7 -> 959509.5759 | EF126: =EF125/12*EF7 -> 959509.5759 | EG126: =EG125/12*EG7 -> 959509.5759 | EH126: =EH125/12*EH7 -> 959509.5759 | EI126: =EI125/12*EI7 -> 959509.5759 | EJ126: =EJ125/12*EJ7 -> 959509.5759 | EK126: =EK125/12*EK7 -> 959509.5759 | EL126: =EL125/12*EL7 -> 959509.5759 | EM126: =EM125/12*EM7 -> 959509.5759 | EN126: =EN125/12*EN7 -> 959509.5759 | EO126: =EO125/12*EO7 -> 959509.5759 | EP126: =EP125/12*EP7 -> 959509.5759 | EQ126: =EQ125/12*EQ7 -> 959509.5759 | ER126: =ER125/12*ER7 -> 959509.5759 | ES126: =ES125/12*ES7 -> 959509.5759 | ET126: =ET125/12*ET7 -> 959509.5759 | EU126: =EU125/12*EU7 -> 959509.5759 | EV126: =EV125/12*EV7 -> 959509.5759 | EW126: =EW125/12*EW7 -> 959509.5759 | EX126: =EX125/12*EX7 -> 959509.5759 | EY126: =EY125/12*EY7 -> 959509.5759 | EZ126: =EZ125/12*EZ7 -> 959509.5759 | FA126: =FA125/12*FA7 -> 959509.5759 | FB126: =FB125/12*FB7 -> 959509.5759 | FC126: =FC125/12*FC7 -> 959509.5759 | FD126: =FD125/12*FD7 -> 959509.5759 | FE126: =FE125/12*FE7 -> 959509.5759 | FF126: =FF125/12*FF7 -> 959509.5759 | FG126: =FG125/12*FG7 -> 959509.5759 | FH126: =FH125/12*FH7 -> 959509.5759 | FI126: =FI125/12*FI7 -> 959509.5759
C127: Periodic with Inflation | H127: =H126*H117 -> 6010884.444 | I127: =I126*I117 -> 9451543.333 | J127: 9481658.519 | K127: 8909674.874 | L127: 2444444.444 | M127: 959509.5759 | N127: 959509.5759 | O127: 959509.5759 | P127: 959509.5759 | Q127: 959509.5759 | R127: 959509.5759 | S127: 959509.5759 | T127: 959509.5759 | U127: 959509.5759 | V127: 959509.5759 | W127: 959509.5759 | X127: 959509.5759 | Y127: 959509.5759 | Z127: 959509.5759 | AA127: 959509.5759 | AB127: 959509.5759 | AC127: 959509.5759 | AD127: 959509.5759 | AE127: 959509.5759 | AF127: 959509.5759 | AG127: 959509.5759 | AH127: 959509.5759 | AI127: 959509.5759 | AJ127: 959509.5759 | AK127: 959509.5759 | AL127: 959509.5759 | AM127: 959509.5759 | AN127: 959509.5759 | AO127: 959509.5759 | AP127: 959509.5759 | AQ127: 959509.5759 | AR127: 959509.5759 | AS127: 959509.5759 | AT127: 959509.5759 | AU127: 959509.5759 | AV127: 959509.5759 | AW127: 959509.5759 | AX127: 959509.5759 | AY127: 959509.5759 | AZ127: 959509.5759 | BA127: 959509.5759 | BB127: 959509.5759 | BC127: 959509.5759 | BD127: 959509.5759 | BE127: 959509.5759 | BF127: 959509.5759 | BG127: 959509.5759 | BH127: 959509.5759 | BI127: 959509.5759 | BJ127: 959509.5759 | BK127: 959509.5759 | BL127: 959509.5759 | BM127: 959509.5759 | BN127: 959509.5759 | BO127: 959509.5759 | BP127: 959509.5759 | BQ127: 959509.5759 | BR127: 959509.5759 | BS127: 959509.5759 | BT127: 959509.5759 | BU127: =BU126*BU117 -> 959509.5759 | BV127: 959509.5759 | BW127: 959509.5759 | BX127: 959509.5759 | BY127: 959509.5759 | BZ127: 959509.5759 | CA127: 959509.5759 | CB127: 959509.5759 | CC127: 959509.5759 | CD127: 959509.5759 | CE127: 959509.5759 | CF127: 959509.5759 | CG127: 959509.5759 | CH127: 959509.5759 | CI127: 959509.5759 | CJ127: 959509.5759 | CK127: 959509.5759 | CL127: 959509.5759 | CM127: 959509.5759 | CN127: 959509.5759 | CO127: 959509.5759 | CP127: 959509.5759 | CQ127: 959509.5759 | CR127: 959509.5759 | CS127: 959509.5759 | CT127: 959509.5759 | CU127: 959509.5759 | CV127: 959509.5759 | CW127: 959509.5759 | CX127: 959509.5759 | CY127: 959509.5759 | CZ127: 959509.5759 | DA127: 959509.5759 | DB127: 959509.5759 | DC127: 959509.5759 | DD127: 959509.5759 | DE127: 959509.5759 | DF127: 959509.5759 | DG127: 959509.5759 | DH127: 959509.5759 | DI127: 959509.5759 | DJ127: 959509.5759 | DK127: 959509.5759 | DL127: 959509.5759 | DM127: 959509.5759 | DN127: 959509.5759 | DO127: 959509.5759 | DP127: 959509.5759 | DQ127: 959509.5759 | DR127: 959509.5759 | DS127: 959509.5759 | DT127: 959509.5759 | DU127: 959509.5759 | DV127: 959509.5759 | DW127: 959509.5759 | DX127: 959509.5759 | DY127: 959509.5759 | DZ127: 959509.5759 | EA127: 959509.5759 | EB127: 959509.5759 | EC127: 959509.5759 | ED127: 959509.5759 | EE127: 959509.5759 | EF127: 959509.5759 | EG127: =EG126*EG117 -> 959509.5759 | EH127: 959509.5759 | EI127: 959509.5759 | EJ127: 959509.5759 | EK127: 959509.5759 | EL127: 959509.5759 | EM127: 959509.5759 | EN127: 959509.5759 | EO127: 959509.5759 | EP127: 959509.5759 | EQ127: 959509.5759 | ER127: 959509.5759 | ES127: 959509.5759 | ET127: 959509.5759 | EU127: 959509.5759 | EV127: 959509.5759 | EW127: 959509.5759 | EX127: 959509.5759 | EY127: 959509.5759 | EZ127: 959509.5759 | FA127: 959509.5759 | FB127: 959509.5759 | FC127: 959509.5759 | FD127: 959509.5759 | FE127: 959509.5759 | FF127: 959509.5759 | FG127: 959509.5759 | FH127: 959509.5759 | FI127: 959509.5759
C129: Total Direct and SG&A | H129: =H127+H122 -> 7738011.111 | I129: =I127+I122 -> 11886074.81 | J129: 16506321.85 | K129: 17645130.47 | L129: 4499259.259 | M129: 1087460.675 | N129: 1087460.675 | O129: 1087460.675 | P129: 1087460.675 | Q129: 1087460.675 | R129: 1087460.675 | S129: 1087460.675 | T129: 1087460.675 | U129: 1087460.675 | V129: 1087460.675 | W129: 1087460.675 | X129: 1087460.675 | Y129: 1087460.675 | Z129: 1087460.675 | AA129: 1087460.675 | AB129: 1087460.675 | AC129: 1087460.675 | AD129: 1087460.675 | AE129: 1087460.675 | AF129: 1087460.675 | AG129: 1087460.675 | AH129: 1087460.675 | AI129: 1087460.675 | AJ129: 1087460.675 | AK129: 1087460.675 | AL129: 1087460.675 | AM129: 1087460.675 | AN129: 1087460.675 | AO129: 1087460.675 | AP129: 1087460.675 | AQ129: 1087460.675 | AR129: 1087460.675 | AS129: 1087460.675 | AT129: 1087460.675 | AU129: 1087460.675 | AV129: 1087460.675 | AW129: 1087460.675 | AX129: 1087460.675 | AY129: 1087460.675 | AZ129: 1087460.675 | BA129: 1087460.675 | BB129: 1087460.675 | BC129: 1087460.675 | BD129: 1087460.675 | BE129: 1087460.675 | BF129: 1087460.675 | BG129: 1087460.675 | BH129: 1087460.675 | BI129: 1087460.675 | BJ129: 1087460.675 | BK129: 1087460.675 | BL129: 1087460.675 | BM129: 1087460.675 | BN129: 1087460.675 | BO129: 1087460.675 | BP129: 1087460.675 | BQ129: 1087460.675 | BR129: 1087460.675 | BS129: 1087460.675 | BT129: 1087460.675 | BU129: =BU127+BU122 -> 1087460.675 | BV129: 1087460.675 | BW129: 1087460.675 | BX129: 1087460.675 | BY129: 1087460.675 | BZ129: 1087460.675 | CA129: 1087460.675 | CB129: 1087460.675 | CC129: 1087460.675 | CD129: 1087460.675 | CE129: 1087460.675 | CF129: 1087460.675 | CG129: 1087460.675 | CH129: 1087460.675 | CI129: 1087460.675 | CJ129: 1087460.675 | CK129: 1087460.675 | CL129: 1087460.675 | CM129: 1087460.675 | CN129: 1087460.675 | CO129: 1087460.675 | CP129: 1087460.675 | CQ129: 1087460.675 | CR129: 1087460.675 | CS129: 1087460.675 | CT129: 1087460.675 | CU129: 1087460.675 | CV129: 1087460.675 | CW129: 1087460.675 | CX129: 1087460.675 | CY129: 1087460.675 | CZ129: 1087460.675 | DA129: 1087460.675 | DB129: 1087460.675 | DC129: 1087460.675 | DD129: 1087460.675 | DE129: 1087460.675 | DF129: 1087460.675 | DG129: 1087460.675 | DH129: 1087460.675 | DI129: 1087460.675 | DJ129: 1087460.675 | DK129: 1087460.675 | DL129: 1087460.675 | DM129: 1087460.675 | DN129: 1087460.675 | DO129: 1087460.675 | DP129: 1087460.675 | DQ129: 1087460.675 | DR129: 1087460.675 | DS129: 1087460.675 | DT129: 1087460.675 | DU129: 1087460.675 | DV129: 1087460.675 | DW129: 1087460.675 | DX129: 1087460.675 | DY129: 1087460.675 | DZ129: 1087460.675 | EA129: 1087460.675 | EB129: 1087460.675 | EC129: 1087460.675 | ED129: 1087460.675 | EE129: 1087460.675 | EF129: 1087460.675 | EG129: =EG127+EG122 -> 1087460.675 | EH129: 1087460.675 | EI129: 1087460.675 | EJ129: 1087460.675 | EK129: 1087460.675 | EL129: 1087460.675 | EM129: 1087460.675 | EN129: 1087460.675 | EO129: 1087460.675 | EP129: 1087460.675 | EQ129: 1087460.675 | ER129: 1087460.675 | ES129: 1087460.675 | ET129: 1087460.675 | EU129: 1087460.675 | EV129: 1087460.675 | EW129: 1087460.675 | EX129: 1087460.675 | EY129: 1087460.675 | EZ129: 1087460.675 | FA129: 1087460.675 | FB129: 1087460.675 | FC129: 1087460.675 | FD129: 1087460.675 | FE129: 1087460.675 | FF129: 1087460.675 | FG129: 1087460.675 | FH129: 1087460.675 | FI129: 1087460.675
B131: Plant and Depreciation
C132: Net PP&E + CWIP from Historic Balance Sheet | H132: =H47+H46 -> 68928617.41 | I132: =I47+I46 -> 84548067.78 | J132: =J47+J46 -> 78046043.33 | K132: =K47+K46 -> 80278148.15 | L132: =L47+L46 -> 0 | M132: =M47+M46 -> 0 | N132: =N47+N46 -> 0 | O132: =O47+O46 -> 0 | P132: =P47+P46 -> 0 | Q132: =Q47+Q46 -> 0 | R132: =R47+R46 -> 0 | S132: =S47+S46 -> 0 | T132: =T47+T46 -> 0 | U132: =U47+U46 -> 0 | V132: =V47+V46 -> 0 | W132: =W47+W46 -> 0 | X132: =X47+X46 -> 0 | Y132: =Y47+Y46 -> 0 | Z132: =Z47+Z46 -> 0 | AA132: =AA47+AA46 -> 0 | AB132: =AB47+AB46 -> 0 | AC132: =AC47+AC46 -> 0 | AD132: =AD47+AD46 -> 0 | AE132: =AE47+AE46 -> 0 | AF132: =AF47+AF46 -> 0 | AG132: =AG47+AG46 -> 0 | AH132: =AH47+AH46 -> 0 | AI132: =AI47+AI46 -> 0 | AJ132: =AJ47+AJ46 -> 0 | AK132: =AK47+AK46 -> 0 | AL132: =AL47+AL46 -> 0 | AM132: =AM47+AM46 -> 0 | AN132: =AN47+AN46 -> 0 | AO132: =AO47+AO46 -> 0 | AP132: =AP47+AP46 -> 0 | AQ132: =AQ47+AQ46 -> 0 | AR132: =AR47+AR46 -> 0 | AS132: =AS47+AS46 -> 0 | AT132: =AT47+AT46 -> 0 | AU132: =AU47+AU46 -> 0 | AV132: =AV47+AV46 -> 0 | AW132: =AW47+AW46 -> 0 | AX132: =AX47+AX46 -> 0 | AY132: =AY47+AY46 -> 0 | AZ132: =AZ47+AZ46 -> 0 | BA132: =BA47+BA46 -> 0 | BB132: =BB47+BB46 -> 0 | BC132: =BC47+BC46 -> 0 | BD132: =BD47+BD46 -> 0 | BE132: =BE47+BE46 -> 0 | BF132: =BF47+BF46 -> 0 | BG132: =BG47+BG46 -> 0 | BH132: =BH47+BH46 -> 0 | BI132: =BI47+BI46 -> 0 | BJ132: =BJ47+BJ46 -> 0 | BK132: =BK47+BK46 -> 0 | BL132: =BL47+BL46 -> 0 | BM132: =BM47+BM46 -> 0 | BN132: =BN47+BN46 -> 0 | BO132: =BO47+BO46 -> 0 | BP132: =BP47+BP46 -> 0 | BQ132: =BQ47+BQ46 -> 0 | BR132: =BR47+BR46 -> 0 | BS132: =BS47+BS46 -> 0 | BT132: =BT47+BT46 -> 0 | BU132: =BU47+BU46 -> 0 | BV132: =BV47+BV46 -> 0 | BW132: =BW47+BW46 -> 0 | BX132: =BX47+BX46 -> 0 | BY132: =BY47+BY46 -> 0 | BZ132: =BZ47+BZ46 -> 0 | CA132: =CA47+CA46 -> 0 | CB132: =CB47+CB46 -> 0 | CC132: =CC47+CC46 -> 0 | CD132: =CD47+CD46 -> 0 | CE132: =CE47+CE46 -> 0 | CF132: =CF47+CF46 -> 0 | CG132: =CG47+CG46 -> 0 | CH132: =CH47+CH46 -> 0 | CI132: =CI47+CI46 -> 0 | CJ132: =CJ47+CJ46 -> 0 | CK132: =CK47+CK46 -> 0 | CL132: =CL47+CL46 -> 0 | CM132: =CM47+CM46 -> 0 | CN132: =CN47+CN46 -> 0 | CO132: =CO47+CO46 -> 0 | CP132: =CP47+CP46 -> 0 | CQ132: =CQ47+CQ46 -> 0 | CR132: =CR47+CR46 -> 0 | CS132: =CS47+CS46 -> 0 | CT132: =CT47+CT46 -> 0 | CU132: =CU47+CU46 -> 0 | CV132: =CV47+CV46 -> 0 | CW132: =CW47+CW46 -> 0 | CX132: =CX47+CX46 -> 0 | CY132: =CY47+CY46 -> 0 | CZ132: =CZ47+CZ46 -> 0 | DA132: =DA47+DA46 -> 0 | DB132: =DB47+DB46 -> 0 | DC132: =DC47+DC46 -> 0 | DD132: =DD47+DD46 -> 0 | DE132: =DE47+DE46 -> 0 | DF132: =DF47+DF46 -> 0 | DG132: =DG47+DG46 -> 0 | DH132: =DH47+DH46 -> 0 | DI132: =DI47+DI46 -> 0 | DJ132: =DJ47+DJ46 -> 0 | DK132: =DK47+DK46 -> 0 | DL132: =DL47+DL46 -> 0 | DM132: =DM47+DM46 -> 0 | DN132: =DN47+DN46 -> 0 | DO132: =DO47+DO46 -> 0 | DP132: =DP47+DP46 -> 0 | DQ132: =DQ47+DQ46 -> 0 | DR132: =DR47+DR46 -> 0 | DS132: =DS47+DS46 -> 0 | DT132: =DT47+DT46 -> 0 | DU132: =DU47+DU46 -> 0 | DV132: =DV47+DV46 -> 0 | DW132: =DW47+DW46 -> 0 | DX132: =DX47+DX46 -> 0 | DY132: =DY47+DY46 -> 0 | DZ132: =DZ47+DZ46 -> 0 | EA132: =EA47+EA46 -> 0 | EB132: =EB47+EB46 -> 0 | EC132: =EC47+EC46 -> 0 | ED132: =ED47+ED46 -> 0 | EE132: =EE47+EE46 -> 0 | EF132: =EF47+EF46 -> 0 | EG132: =EG47+EG46 -> 0 | EH132: =EH47+EH46 -> 0 | EI132: =EI47+EI46 -> 0 | EJ132: =EJ47+EJ46 -> 0 | EK132: =EK47+EK46 -> 0 | EL132: =EL47+EL46 -> 0 | EM132: =EM47+EM46 -> 0 | EN132: =EN47+EN46 -> 0 | EO132: =EO47+EO46 -> 0 | EP132: =EP47+EP46 -> 0 | EQ132: =EQ47+EQ46 -> 0 | ER132: =ER47+ER46 -> 0 | ES132: =ES47+ES46 -> 0 | ET132: =ET47+ET46 -> 0 | EU132: =EU47+EU46 -> 0 | EV132: =EV47+EV46 -> 0 | EW132: =EW47+EW46 -> 0 | EX132: =EX47+EX46 -> 0 | EY132: =EY47+EY46 -> 0 | EZ132: =EZ47+EZ46 -> 0 | FA132: =FA47+FA46 -> 0 | FB132: =FB47+FB46 -> 0 | FC132: =FC47+FC46 -> 0 | FD132: =FD47+FD46 -> 0 | FE132: =FE47+FE46 -> 0 | FF132: =FF47+FF46 -> 0 | FG132: =FG47+FG46 -> 0 | FH132: =FH47+FH46 -> 0 | FI132: =FI47+FI46 -> 0
C133: Depreciation from Income Statement | H133: =H31 -> 1564929.63 | I133: =I31 -> 1585570.37 | J133: =J31 -> 6998428.889 | K133: =K31 -> 7407407.407
C134: Net PP&E Plus Depreciation | H134: =H132+H133 -> 70493547.04 | I134: =I132+I133 -> 86133638.15 | J134: 85044472.22 | K134: 87685555.56
C135: Change in Net PP&E with Depreciation | I135: =I134-H134 -> 15640091.11 | J135: =J134-I134 -> -1089165.926 | K135: 2641083.333
C137: Projected Cap Exp | H137: =LOOKUP(H2,'Budget, CapExp and Passengers'!174:174,'Budget, CapExp and Passengers'!176:176) -> 0 | I137: =LOOKUP(I2,'Budget, CapExp and Passengers'!174:174,'Budget, CapExp and Passengers'!176:176) -> 0 | J137: =LOOKUP(J2,'Budget, CapExp and Passengers'!174:174,'Budget, CapExp and Passengers'!176:176) -> 0 | K137: =LOOKUP(K2,'Budget, CapExp and Passengers'!174:174,'Budget, CapExp and Passengers'!176:176) -> 0 | L137: =LOOKUP(L2,'Budget, CapExp and Passengers'!174:174,'Budget, CapExp and Passengers'!176:176) -> 0 | M137: =LOOKUP(M2,'Budget, CapExp and Passengers'!174:174,'Budget, CapExp and Passengers'!176:176) -> 0 | N137: =LOOKUP(N2,'Budget, CapExp and Passengers'!174:174,'Budget, CapExp and Passengers'!176:176) -> 0 | O137: =LOOKUP(O2,'Budget, CapExp and Passengers'!174:174,'Budget, CapExp and Passengers'!176:176) -> 146296.2963 | P137: =LOOKUP(P2,'Budget, CapExp and Passengers'!174:174,'Budget, CapExp and Passengers'!176:176) -> 158814.8148 | Q137: =LOOKUP(Q2,'Budget, CapExp and Passengers'!174:174,'Budget, CapExp and Passengers'!176:176) -> 66666.66667 | R137: =LOOKUP(R2,'Budget, CapExp and Passengers'!174:174,'Budget, CapExp and Passengers'!176:176) -> 200000 | S137: =LOOKUP(S2,'Budget, CapExp and Passengers'!174:174,'Budget, CapExp and Passengers'!176:176) -> 255940.7407 | T137: =LOOKUP(T2,'Budget, CapExp and Passengers'!174:174,'Budget, CapExp and Passengers'!176:176) -> 69950 | U137: =LOOKUP(U2,'Budget, CapExp and Passengers'!174:174,'Budget, CapExp and Passengers'!176:176) -> 0 | V137: =LOOKUP(V2,'Budget, CapExp and Passengers'!174:174,'Budget, CapExp and Passengers'!176:176) -> 150000 | W137: =LOOKUP(W2,'Budget, CapExp and Passengers'!174:174,'Budget, CapExp and Passengers'!176:176) -> 74074.07407 | X137: =LOOKUP(X2,'Budget, CapExp and Passengers'!174:174,'Budget, CapExp and Passengers'!176:176) -> 922222.2222 | Y137: =LOOKUP(Y2,'Budget, CapExp and Passengers'!174:174,'Budget, CapExp and Passengers'!176:176) -> 246296.2963 | Z137: =LOOKUP(Z2,'Budget, CapExp and Passengers'!174:174,'Budget, CapExp and Passengers'!176:176) -> 146554.4444 | AA137: =LOOKUP(AA2,'Budget, CapExp and Passengers'!174:174,'Budget, CapExp and Passengers'!176:176) -> 50000 | AB137: =LOOKUP(AB2,'Budget, CapExp and Passengers'!174:174,'Budget, CapExp and Passengers'!176:176) -> 86666.66667 | AC137: =LOOKUP(AC2,'Budget, CapExp and Passengers'!174:174,'Budget, CapExp and Passengers'!176:176) -> 0 | AD137: =LOOKUP(AD2,'Budget, CapExp and Passengers'!174:174,'Budget, CapExp and Passengers'!176:176) -> 33333.33333 | AE137: =LOOKUP(AE2,'Budget, CapExp and Passengers'!174:174,'Budget, CapExp and Passengers'!176:176) -> 0 | AF137: =LOOKUP(AF2,'Budget, CapExp and Passengers'!174:174,'Budget, CapExp and Passengers'!176:176) -> 0 | AG137: =LOOKUP(AG2,'Budget, CapExp and Passengers'!174:174,'Budget, CapExp and Passengers'!176:176) -> 0 | AH137: =LOOKUP(AH2,'Budget, CapExp and Passengers'!174:174,'Budget, CapExp and Passengers'!176:176) -> 33333.33333 | AI137: =LOOKUP(AI2,'Budget, CapExp and Passengers'!174:174,'Budget, CapExp and Passengers'!176:176) -> 270000 | AJ137: =LOOKUP(AJ2,'Budget, CapExp and Passengers'!174:174,'Budget, CapExp and Passengers'!176:176) -> 277777.7778 | AK137: =LOOKUP(AK2,'Budget, CapExp and Passengers'!174:174,'Budget, CapExp and Passengers'!176:176) -> 351851.8519 | AL137: =LOOKUP(AL2,'Budget, CapExp and Passengers'!174:174,'Budget, CapExp and Passengers'!176:176) -> 191851.8519 | AM137: =LOOKUP(AM2,'Budget, CapExp and Passengers'!174:174,'Budget, CapExp and Passengers'!176:176) -> 106666.6667 | AN137: =LOOKUP(AN2,'Budget, CapExp and Passengers'!174:174,'Budget, CapExp and Passengers'!176:176) -> 21851.85185 | AO137: =LOOKUP(AO2,'Budget, CapExp and Passengers'!174:174,'Budget, CapExp and Passengers'!176:176) -> 0 | AP137: =LOOKUP(AP2,'Budget, CapExp and Passengers'!174:174,'Budget, CapExp and Passengers'!176:176) -> 0 | AQ137: =LOOKUP(AQ2,'Budget, CapExp and Passengers'!174:174,'Budget, CapExp and Passengers'!176:176) -> 592592.5926 | AR137: =LOOKUP(AR2,'Budget, CapExp and Passengers'!174:174,'Budget, CapExp and Passengers'!176:176) -> 0 | AS137: =LOOKUP(AS2,'Budget, CapExp and Passengers'!174:174,'Budget, CapExp and Passengers'!176:176) -> 0 | AT137: =LOOKUP(AT2,'Budget, CapExp and Passengers'!174:174,'Budget, CapExp and Passengers'!176:176) -> 100000 | AU137: =LOOKUP(AU2,'Budget, CapExp and Passengers'!174:174,'Budget, CapExp and Passengers'!176:176) -> 37037.03704 | AV137: =LOOKUP(AV2,'Budget, CapExp and Passengers'!174:174,'Budget, CapExp and Passengers'!176:176) -> 277777.7778 | AW137: =LOOKUP(AW2,'Budget, CapExp and Passengers'!174:174,'Budget, CapExp and Passengers'!176:176) -> 314814.8148 | AX137: =LOOKUP(AX2,'Budget, CapExp and Passengers'!174:174,'Budget, CapExp and Passengers'!176:176) -> 191851.8519 | AY137: =LOOKUP(AY2,'Budget, CapExp and Passengers'!174:174,'Budget, CapExp and Passengers'!176:176) -> 106666.6667 | AZ137: =LOOKUP(AZ2,'Budget, CapExp and Passengers'!174:174,'Budget, CapExp and Passengers'!176:176) -> 0 | BA137: =LOOKUP(BA2,'Budget, CapExp and Passengers'!174:174,'Budget, CapExp and Passengers'!176:176) -> 44444.44444 | BB137: =LOOKUP(BB2,'Budget, CapExp and Passengers'!174:174,'Budget, CapExp and Passengers'!176:176) -> 0 | BC137: =LOOKUP(BC2,'Budget, CapExp and Passengers'!174:174,'Budget, CapExp and Passengers'!176:176) -> 444444.4444 | BD137: =LOOKUP(BD2,'Budget, CapExp and Passengers'!174:174,'Budget, CapExp and Passengers'!176:176) -> 0 | BE137: =LOOKUP(BE2,'Budget, CapExp and Passengers'!174:174,'Budget, CapExp and Passengers'!176:176) -> 0 | BF137: =LOOKUP(BF2,'Budget, CapExp and Passengers'!174:174,'Budget, CapExp and Passengers'!176:176) -> 74074.07407 | BG137: =LOOKUP(BG2,'Budget, CapExp and Passengers'!174:174,'Budget, CapExp and Passengers'!176:176) -> 191851.8519 | BH137: =LOOKUP(BH2,'Budget, CapExp and Passengers'!174:174,'Budget, CapExp and Passengers'!176:176) -> 106666.6667 | BI137: =LOOKUP(BI2,'Budget, CapExp and Passengers'!174:174,'Budget, CapExp and Passengers'!176:176) -> 0 | BJ137: =LOOKUP(BJ2,'Budget, CapExp and Passengers'!174:174,'Budget, CapExp and Passengers'!176:176) -> 0 | BK137: =LOOKUP(BK2,'Budget, CapExp and Passengers'!174:174,'Budget, CapExp and Passengers'!176:176) -> 0 | BL137: =LOOKUP(BL2,'Budget, CapExp and Passengers'!174:174,'Budget, CapExp and Passengers'!176:176) -> 0 | BM137: =LOOKUP(BM2,'Budget, CapExp and Passengers'!174:174,'Budget, CapExp and Passengers'!176:176) -> 0 | BN137: =LOOKUP(BN2,'Budget, CapExp and Passengers'!174:174,'Budget, CapExp and Passengers'!176:176) -> 0 | BO137: =LOOKUP(BO2,'Budget, CapExp and Passengers'!174:174,'Budget, CapExp and Passengers'!176:176) -> 444444.4444 | BP137: =LOOKUP(BP2,'Budget, CapExp and Passengers'!174:174,'Budget, CapExp and Passengers'!176:176) -> 0 | BQ137: =LOOKUP(BQ2,'Budget, CapExp and Passengers'!174:174,'Budget, CapExp and Passengers'!176:176) -> 0 | BR137: =LOOKUP(BR2,'Budget, CapExp and Passengers'!174:174,'Budget, CapExp and Passengers'!176:176) -> 97253.08642 | BS137: =LOOKUP(BS2,'Budget, CapExp and Passengers'!174:174,'Budget, CapExp and Passengers'!176:176) -> 97253.08642 | BT137: =LOOKUP(BT2,'Budget, CapExp and Passengers'!174:174,'Budget, CapExp and Passengers'!176:176) -> 97253.08642 | BU137: =LOOKUP(BU2,'Budget, CapExp and Passengers'!174:174,'Budget, CapExp and Passengers'!176:176) -> 97253.08642 | BV137: =LOOKUP(BV2,'Budget, CapExp and Passengers'!174:174,'Budget, CapExp and Passengers'!176:176) -> 97253.08642 | BW137: =LOOKUP(BW2,'Budget, CapExp and Passengers'!174:174,'Budget, CapExp and Passengers'!176:176) -> 97253.08642 | BX137: =LOOKUP(BX2,'Budget, CapExp and Passengers'!174:174,'Budget, CapExp and Passengers'!176:176) -> 97253.08642 | BY137: =LOOKUP(BY2,'Budget, CapExp and Passengers'!174:174,'Budget, CapExp and Passengers'!176:176) -> 97253.08642 | BZ137: =LOOKUP(BZ2,'Budget, CapExp and Passengers'!174:174,'Budget, CapExp and Passengers'!176:176) -> 97253.08642 | CA137: =LOOKUP(CA2,'Budget, CapExp and Passengers'!174:174,'Budget, CapExp and Passengers'!176:176) -> 97253.08642 | CB137: =LOOKUP(CB2,'Budget, CapExp and Passengers'!174:174,'Budget, CapExp and Passengers'!176:176) -> 97253.08642 | CC137: =LOOKUP(CC2,'Budget, CapExp and Passengers'!174:174,'Budget, CapExp and Passengers'!176:176) -> 97253.08642 | CD137: =LOOKUP(CD2,'Budget, CapExp and Passengers'!174:174,'Budget, CapExp and Passengers'!176:176) -> 97253.08642 | CE137: =LOOKUP(CE2,'Budget, CapExp and Passengers'!174:174,'Budget, CapExp and Passengers'!176:176) -> 97253.08642 | CF137: =LOOKUP(CF2,'Budget, CapExp and Passengers'!174:174,'Budget, CapExp and Passengers'!176:176) -> 97253.08642 | CG137: =LOOKUP(CG2,'Budget, CapExp and Passengers'!174:174,'Budget, CapExp and Passengers'!176:176) -> 97253.08642 | CH137: =LOOKUP(CH2,'Budget, CapExp and Passengers'!174:174,'Budget, CapExp and Passengers'!176:176) -> 97253.08642 | CI137: =LOOKUP(CI2,'Budget, CapExp and Passengers'!174:174,'Budget, CapExp and Passengers'!176:176) -> 97253.08642 | CJ137: =LOOKUP(CJ2,'Budget, CapExp and Passengers'!174:174,'Budget, CapExp and Passengers'!176:176) -> 97253.08642 | CK137: =LOOKUP(CK2,'Budget, CapExp and Passengers'!174:174,'Budget, CapExp and Passengers'!176:176) -> 97253.08642 | CL137: =LOOKUP(CL2,'Budget, CapExp and Passengers'!174:174,'Budget, CapExp and Passengers'!176:176) -> 97253.08642 | CM137: =LOOKUP(CM2,'Budget, CapExp and Passengers'!174:174,'Budget, CapExp and Passengers'!176:176) -> 97253.08642 | CN137: =LOOKUP(CN2,'Budget, CapExp and Passengers'!174:174,'Budget, CapExp and Passengers'!176:176) -> 97253.08642 | CO137: =LOOKUP(CO2,'Budget, CapExp and Passengers'!174:174,'Budget, CapExp and Passengers'!176:176) -> 97253.08642 | CP137: =LOOKUP(CP2,'Budget, CapExp and Passengers'!174:174,'Budget, CapExp and Passengers'!176:176) -> 97253.08642 | CQ137: =LOOKUP(CQ2,'Budget, CapExp and Passengers'!174:174,'Budget, CapExp and Passengers'!176:176) -> 97253.08642 | CR137: =LOOKUP(CR2,'Budget, CapExp and Passengers'!174:174,'Budget, CapExp and Passengers'!176:176) -> 97253.08642 | CS137: =LOOKUP(CS2,'Budget, CapExp and Passengers'!174:174,'Budget, CapExp and Passengers'!176:176) -> 97253.08642 | CT137: =LOOKUP(CT2,'Budget, CapExp and Passengers'!174:174,'Budget, CapExp and Passengers'!176:176) -> 97253.08642 | CU137: =LOOKUP(CU2,'Budget, CapExp and Passengers'!174:174,'Budget, CapExp and Passengers'!176:176) -> 97253.08642 | CV137: =LOOKUP(CV2,'Budget, CapExp and Passengers'!174:174,'Budget, CapExp and Passengers'!176:176) -> 97253.08642 | CW137: =LOOKUP(CW2,'Budget, CapExp and Passengers'!174:174,'Budget, CapExp and Passengers'!176:176) -> 97253.08642 | CX137: =LOOKUP(CX2,'Budget, CapExp and Passengers'!174:174,'Budget, CapExp and Passengers'!176:176) -> 97253.08642 | CY137: =LOOKUP(CY2,'Budget, CapExp and Passengers'!174:174,'Budget, CapExp and Passengers'!176:176) -> 97253.08642 | CZ137: =LOOKUP(CZ2,'Budget, CapExp and Passengers'!174:174,'Budget, CapExp and Passengers'!176:176) -> 97253.08642 | DA137: =LOOKUP(DA2,'Budget, CapExp and Passengers'!174:174,'Budget, CapExp and Passengers'!176:176) -> 97253.08642 | DB137: =LOOKUP(DB2,'Budget, CapExp and Passengers'!174:174,'Budget, CapExp and Passengers'!176:176) -> 97253.08642 | DC137: =LOOKUP(DC2,'Budget, CapExp and Passengers'!174:174,'Budget, CapExp and Passengers'!176:176) -> 97253.08642 | DD137: =LOOKUP(DD2,'Budget, CapExp and Passengers'!174:174,'Budget, CapExp and Passengers'!176:176) -> 97253.08642 | DE137: =LOOKUP(DE2,'Budget, CapExp and Passengers'!174:174,'Budget, CapExp and Passengers'!176:176) -> 97253.08642 | DF137: =LOOKUP(DF2,'Budget, CapExp and Passengers'!174:174,'Budget, CapExp and Passengers'!176:176) -> 97253.08642 | DG137: =LOOKUP(DG2,'Budget, CapExp and Passengers'!174:174,'Budget, CapExp and Passengers'!176:176) -> 97253.08642 | DH137: =LOOKUP(DH2,'Budget, CapExp and Passengers'!174:174,'Budget, CapExp and Passengers'!176:176) -> 97253.08642 | DI137: =LOOKUP(DI2,'Budget, CapExp and Passengers'!174:174,'Budget, CapExp and Passengers'!176:176) -> 97253.08642 | DJ137: =LOOKUP(DJ2,'Budget, CapExp and Passengers'!174:174,'Budget, CapExp and Passengers'!176:176) -> 97253.08642 | DK137: =LOOKUP(DK2,'Budget, CapExp and Passengers'!174:174,'Budget, CapExp and Passengers'!176:176) -> 97253.08642 | DL137: =LOOKUP(DL2,'Budget, CapExp and Passengers'!174:174,'Budget, CapExp and Passengers'!176:176) -> 97253.08642 | DM137: =LOOKUP(DM2,'Budget, CapExp and Passengers'!174:174,'Budget, CapExp and Passengers'!176:176) -> 97253.08642 | DN137: =LOOKUP(DN2,'Budget, CapExp and Passengers'!174:174,'Budget, CapExp and Passengers'!176:176) -> 97253.08642 | DO137: =LOOKUP(DO2,'Budget, CapExp and Passengers'!174:174,'Budget, CapExp and Passengers'!176:176) -> 97253.08642 | DP137: =LOOKUP(DP2,'Budget, CapExp and Passengers'!174:174,'Budget, CapExp and Passengers'!176:176) -> 97253.08642 | DQ137: =LOOKUP(DQ2,'Budget, CapExp and Passengers'!174:174,'Budget, CapExp and Passengers'!176:176) -> 97253.08642 | DR137: =LOOKUP(DR2,'Budget, CapExp and Passengers'!174:174,'Budget, CapExp and Passengers'!176:176) -> 97253.08642 | DS137: =LOOKUP(DS2,'Budget, CapExp and Passengers'!174:174,'Budget, CapExp and Passengers'!176:176) -> 97253.08642 | DT137: =LOOKUP(DT2,'Budget, CapExp and Passengers'!174:174,'Budget, CapExp and Passengers'!176:176) -> 97253.08642 | DU137: =LOOKUP(DU2,'Budget, CapExp and Passengers'!174:174,'Budget, CapExp and Passengers'!176:176) -> 97253.08642 | DV137: =LOOKUP(DV2,'Budget, CapExp and Passengers'!174:174,'Budget, CapExp and Passengers'!176:176) -> 97253.08642 | DW137: =LOOKUP(DW2,'Budget, CapExp and Passengers'!174:174,'Budget, CapExp and Passengers'!176:176) -> 97253.08642 | DX137: =LOOKUP(DX2,'Budget, CapExp and Passengers'!174:174,'Budget, CapExp and Passengers'!176:176) -> 97253.08642 | DY137: =LOOKUP(DY2,'Budget, CapExp and Passengers'!174:174,'Budget, CapExp and Passengers'!176:176) -> 97253.08642 | DZ137: =LOOKUP(DZ2,'Budget, CapExp and Passengers'!174:174,'Budget, CapExp and Passengers'!176:176) -> 97253.08642 | EA137: =LOOKUP(EA2,'Budget, CapExp and Passengers'!174:174,'Budget, CapExp and Passengers'!176:176) -> 97253.08642 | EB137: =LOOKUP(EB2,'Budget, CapExp and Passengers'!174:174,'Budget, CapExp and Passengers'!176:176) -> 97253.08642 | EC137: =LOOKUP(EC2,'Budget, CapExp and Passengers'!174:174,'Budget, CapExp and Passengers'!176:176) -> 97253.08642 | ED137: =LOOKUP(ED2,'Budget, CapExp and Passengers'!174:174,'Budget, CapExp and Passengers'!176:176) -> 97253.08642 | EE137: =LOOKUP(EE2,'Budget, CapExp and Passengers'!174:174,'Budget, CapExp and Passengers'!176:176) -> 97253.08642 | EF137: =LOOKUP(EF2,'Budget, CapExp and Passengers'!174:174,'Budget, CapExp and Passengers'!176:176) -> 97253.08642 | EG137: =LOOKUP(EG2,'Budget, CapExp and Passengers'!174:174,'Budget, CapExp and Passengers'!176:176) -> 97253.08642 | EH137: =LOOKUP(EH2,'Budget, CapExp and Passengers'!174:174,'Budget, CapExp and Passengers'!176:176) -> 97253.08642 | EI137: =LOOKUP(EI2,'Budget, CapExp and Passengers'!174:174,'Budget, CapExp and Passengers'!176:176) -> 97253.08642 | EJ137: =LOOKUP(EJ2,'Budget, CapExp and Passengers'!174:174,'Budget, CapExp and Passengers'!176:176) -> 97253.08642 | EK137: =LOOKUP(EK2,'Budget, CapExp and Passengers'!174:174,'Budget, CapExp and Passengers'!176:176) -> 97253.08642 | EL137: =LOOKUP(EL2,'Budget, CapExp and Passengers'!174:174,'Budget, CapExp and Passengers'!176:176) -> 97253.08642 | EM137: =LOOKUP(EM2,'Budget, CapExp and Passengers'!174:174,'Budget, CapExp and Passengers'!176:176) -> 97253.08642 | EN137: =LOOKUP(EN2,'Budget, CapExp and Passengers'!174:174,'Budget, CapExp and Passengers'!176:176) -> 97253.08642 | EO137: =LOOKUP(EO2,'Budget, CapExp and Passengers'!174:174,'Budget, CapExp and Passengers'!176:176) -> 97253.08642 | EP137: =LOOKUP(EP2,'Budget, CapExp and Passengers'!174:174,'Budget, CapExp and Passengers'!176:176) -> 97253.08642 | EQ137: =LOOKUP(EQ2,'Budget, CapExp and Passengers'!174:174,'Budget, CapExp and Passengers'!176:176) -> 97253.08642 | ER137: =LOOKUP(ER2,'Budget, CapExp and Passengers'!174:174,'Budget, CapExp and Passengers'!176:176) -> 97253.08642 | ES137: =LOOKUP(ES2,'Budget, CapExp and Passengers'!174:174,'Budget, CapExp and Passengers'!176:176) -> 97253.08642 | ET137: =LOOKUP(ET2,'Budget, CapExp and Passengers'!174:174,'Budget, CapExp and Passengers'!176:176) -> 97253.08642 | EU137: =LOOKUP(EU2,'Budget, CapExp and Passengers'!174:174,'Budget, CapExp and Passengers'!176:176) -> 97253.08642 | EV137: =LOOKUP(EV2,'Budget, CapExp and Passengers'!174:174,'Budget, CapExp and Passengers'!176:176) -> 97253.08642 | EW137: =LOOKUP(EW2,'Budget, CapExp and Passengers'!174:174,'Budget, CapExp and Passengers'!176:176) -> 97253.08642 | EX137: =LOOKUP(EX2,'Budget, CapExp and Passengers'!174:174,'Budget, CapExp and Passengers'!176:176) -> 97253.08642 | EY137: =LOOKUP(EY2,'Budget, CapExp and Passengers'!174:174,'Budget, CapExp and Passengers'!176:176) -> 97253.08642 | EZ137: =LOOKUP(EZ2,'Budget, CapExp and Passengers'!174:174,'Budget, CapExp and Passengers'!176:176) -> 97253.08642 | FA137: =LOOKUP(FA2,'Budget, CapExp and Passengers'!174:174,'Budget, CapExp and Passengers'!176:176) -> 97253.08642 | FB137: =LOOKUP(FB2,'Budget, CapExp and Passengers'!174:174,'Budget, CapExp and Passengers'!176:176) -> 97253.08642 | FC137: =LOOKUP(FC2,'Budget, CapExp and Passengers'!174:174,'Budget, CapExp and Passengers'!176:176) -> 97253.08642 | FD137: =LOOKUP(FD2,'Budget, CapExp and Passengers'!174:174,'Budget, CapExp and Passengers'!176:176) -> 97253.08642 | FE137: =LOOKUP(FE2,'Budget, CapExp and Passengers'!174:174,'Budget, CapExp and Passengers'!176:176) -> 97253.08642 | FF137: =LOOKUP(FF2,'Budget, CapExp and Passengers'!174:174,'Budget, CapExp and Passengers'!176:176) -> 97253.08642 | FG137: =LOOKUP(FG2,'Budget, CapExp and Passengers'!174:174,'Budget, CapExp and Passengers'!176:176) -> 97253.08642 | FH137: =LOOKUP(FH2,'Budget, CapExp and Passengers'!174:174,'Budget, CapExp and Passengers'!176:176) -> 97253.08642 | FI137: =LOOKUP(FI2,'Budget, CapExp and Passengers'!174:174,'Budget, CapExp and Passengers'!176:176) -> 97253.08642
C138: Modelled Cap Exp | H138: =IF(H3,H135,H137) -> 0 | I138: =IF(I3,I135,I137) -> 15640091.11 | J138: =IF(J3,J135,J137) -> -1089165.926 | K138: =IF(K3,K135,K137) -> 2641083.333 | L138: =IF(L3,L135,L137) -> 0 | M138: =IF(M3,M135,M137) -> 0 | N138: =IF(N3,N135,N137) -> 0 | O138: =IF(O3,O135,O137) -> 146296.2963 | P138: =IF(P3,P135,P137) -> 158814.8148 | Q138: =IF(Q3,Q135,Q137) -> 66666.66667 | R138: =IF(R3,R135,R137) -> 200000 | S138: =IF(S3,S135,S137) -> 255940.7407 | T138: =IF(T3,T135,T137) -> 69950 | U138: =IF(U3,U135,U137) -> 0 | V138: =IF(V3,V135,V137) -> 150000 | W138: =IF(W3,W135,W137) -> 74074.07407 | X138: =IF(X3,X135,X137) -> 922222.2222 | Y138: =IF(Y3,Y135,Y137) -> 246296.2963 | Z138: =IF(Z3,Z135,Z137) -> 146554.4444 | AA138: =IF(AA3,AA135,AA137) -> 50000 | AB138: =IF(AB3,AB135,AB137) -> 86666.66667 | AC138: =IF(AC3,AC135,AC137) -> 0 | AD138: =IF(AD3,AD135,AD137) -> 33333.33333 | AE138: =IF(AE3,AE135,AE137) -> 0 | AF138: =IF(AF3,AF135,AF137) -> 0 | AG138: =IF(AG3,AG135,AG137) -> 0 | AH138: =IF(AH3,AH135,AH137) -> 33333.33333 | AI138: =IF(AI3,AI135,AI137) -> 270000 | AJ138: =IF(AJ3,AJ135,AJ137) -> 277777.7778 | AK138: =IF(AK3,AK135,AK137) -> 351851.8519 | AL138: =IF(AL3,AL135,AL137) -> 191851.8519 | AM138: =IF(AM3,AM135,AM137) -> 106666.6667 | AN138: =IF(AN3,AN135,AN137) -> 21851.85185 | AO138: =IF(AO3,AO135,AO137) -> 0 | AP138: =IF(AP3,AP135,AP137) -> 0 | AQ138: =IF(AQ3,AQ135,AQ137) -> 592592.5926 | AR138: =IF(AR3,AR135,AR137) -> 0 | AS138: =IF(AS3,AS135,AS137) -> 0 | AT138: =IF(AT3,AT135,AT137) -> 100000 | AU138: =IF(AU3,AU135,AU137) -> 37037.03704 | AV138: =IF(AV3,AV135,AV137) -> 277777.7778 | AW138: =IF(AW3,AW135,AW137) -> 314814.8148 | AX138: =IF(AX3,AX135,AX137) -> 191851.8519 | AY138: =IF(AY3,AY135,AY137) -> 106666.6667 | AZ138: =IF(AZ3,AZ135,AZ137) -> 0 | BA138: =IF(BA3,BA135,BA137) -> 44444.44444 | BB138: =IF(BB3,BB135,BB137) -> 0 | BC138: =IF(BC3,BC135,BC137) -> 444444.4444 | BD138: =IF(BD3,BD135,BD137) -> 0 | BE138: =IF(BE3,BE135,BE137) -> 0 | BF138: =IF(BF3,BF135,BF137) -> 74074.07407 | BG138: =IF(BG3,BG135,BG137) -> 191851.8519 | BH138: =IF(BH3,BH135,BH137) -> 106666.6667 | BI138: =IF(BI3,BI135,BI137) -> 0 | BJ138: =IF(BJ3,BJ135,BJ137) -> 0 | BK138: =IF(BK3,BK135,BK137) -> 0 | BL138: =IF(BL3,BL135,BL137) -> 0 | BM138: =IF(BM3,BM135,BM137) -> 0 | BN138: =IF(BN3,BN135,BN137) -> 0 | BO138: =IF(BO3,BO135,BO137) -> 444444.4444 | BP138: =IF(BP3,BP135,BP137) -> 0 | BQ138: =IF(BQ3,BQ135,BQ137) -> 0 | BR138: =IF(BR3,BR135,BR137) -> 97253.08642 | BS138: =IF(BS3,BS135,BS137) -> 97253.08642 | BT138: =IF(BT3,BT135,BT137) -> 97253.08642 | BU138: =IF(BU3,BU135,BU137) -> 97253.08642 | BV138: =IF(BV3,BV135,BV137) -> 97253.08642 | BW138: =IF(BW3,BW135,BW137) -> 97253.08642 | BX138: =IF(BX3,BX135,BX137) -> 97253.08642 | BY138: =IF(BY3,BY135,BY137) -> 97253.08642 | BZ138: =IF(BZ3,BZ135,BZ137) -> 97253.08642 | CA138: =IF(CA3,CA135,CA137) -> 97253.08642 | CB138: =IF(CB3,CB135,CB137) -> 97253.08642 | CC138: =IF(CC3,CC135,CC137) -> 97253.08642 | CD138: =IF(CD3,CD135,CD137) -> 97253.08642 | CE138: =IF(CE3,CE135,CE137) -> 97253.08642 | CF138: =IF(CF3,CF135,CF137) -> 97253.08642 | CG138: =IF(CG3,CG135,CG137) -> 97253.08642 | CH138: =IF(CH3,CH135,CH137) -> 97253.08642 | CI138: =IF(CI3,CI135,CI137) -> 97253.08642 | CJ138: =IF(CJ3,CJ135,CJ137) -> 97253.08642 | CK138: =IF(CK3,CK135,CK137) -> 97253.08642 | CL138: =IF(CL3,CL135,CL137) -> 97253.08642 | CM138: =IF(CM3,CM135,CM137) -> 97253.08642 | CN138: =IF(CN3,CN135,CN137) -> 97253.08642 | CO138: =IF(CO3,CO135,CO137) -> 97253.08642 | CP138: =IF(CP3,CP135,CP137) -> 97253.08642 | CQ138: =IF(CQ3,CQ135,CQ137) -> 97253.08642 | CR138: =IF(CR3,CR135,CR137) -> 97253.08642 | CS138: =IF(CS3,CS135,CS137) -> 97253.08642 | CT138: =IF(CT3,CT135,CT137) -> 97253.08642 | CU138: =IF(CU3,CU135,CU137) -> 97253.08642 | CV138: =IF(CV3,CV135,CV137) -> 97253.08642 | CW138: =IF(CW3,CW135,CW137) -> 97253.08642 | CX138: =IF(CX3,CX135,CX137) -> 97253.08642 | CY138: =IF(CY3,CY135,CY137) -> 97253.08642 | CZ138: =IF(CZ3,CZ135,CZ137) -> 97253.08642 | DA138: =IF(DA3,DA135,DA137) -> 97253.08642 | DB138: =IF(DB3,DB135,DB137) -> 97253.08642 | DC138: =IF(DC3,DC135,DC137) -> 97253.08642 | DD138: =IF(DD3,DD135,DD137) -> 97253.08642 | DE138: =IF(DE3,DE135,DE137) -> 97253.08642 | DF138: =IF(DF3,DF135,DF137) -> 97253.08642 | DG138: =IF(DG3,DG135,DG137) -> 97253.08642 | DH138: =IF(DH3,DH135,DH137) -> 97253.08642 | DI138: =IF(DI3,DI135,DI137) -> 97253.08642 | DJ138: =IF(DJ3,DJ135,DJ137) -> 97253.08642 | DK138: =IF(DK3,DK135,DK137) -> 97253.08642 | DL138: =IF(DL3,DL135,DL137) -> 97253.08642 | DM138: =IF(DM3,DM135,DM137) -> 97253.08642 | DN138: =IF(DN3,DN135,DN137) -> 97253.08642 | DO138: =IF(DO3,DO135,DO137) -> 97253.08642 | DP138: =IF(DP3,DP135,DP137) -> 97253.08642 | DQ138: =IF(DQ3,DQ135,DQ137) -> 97253.08642 | DR138: =IF(DR3,DR135,DR137) -> 97253.08642 | DS138: =IF(DS3,DS135,DS137) -> 97253.08642 | DT138: =IF(DT3,DT135,DT137) -> 97253.08642 | DU138: =IF(DU3,DU135,DU137) -> 97253.08642 | DV138: =IF(DV3,DV135,DV137) -> 97253.08642 | DW138: =IF(DW3,DW135,DW137) -> 97253.08642 | DX138: =IF(DX3,DX135,DX137) -> 97253.08642 | DY138: =IF(DY3,DY135,DY137) -> 97253.08642 | DZ138: =IF(DZ3,DZ135,DZ137) -> 97253.08642 | EA138: =IF(EA3,EA135,EA137) -> 97253.08642 | EB138: =IF(EB3,EB135,EB137) -> 97253.08642 | EC138: =IF(EC3,EC135,EC137) -> 97253.08642 | ED138: =IF(ED3,ED135,ED137) -> 97253.08642 | EE138: =IF(EE3,EE135,EE137) -> 97253.08642 | EF138: =IF(EF3,EF135,EF137) -> 97253.08642 | EG138: =IF(EG3,EG135,EG137) -> 97253.08642 | EH138: =IF(EH3,EH135,EH137) -> 97253.08642 | EI138: =IF(EI3,EI135,EI137) -> 97253.08642 | EJ138: =IF(EJ3,EJ135,EJ137) -> 97253.08642 | EK138: =IF(EK3,EK135,EK137) -> 97253.08642 | EL138: =IF(EL3,EL135,EL137) -> 97253.08642 | EM138: =IF(EM3,EM135,EM137) -> 97253.08642 | EN138: =IF(EN3,EN135,EN137) -> 97253.08642 | EO138: =IF(EO3,EO135,EO137) -> 97253.08642 | EP138: =IF(EP3,EP135,EP137) -> 97253.08642 | EQ138: =IF(EQ3,EQ135,EQ137) -> 97253.08642 | ER138: =IF(ER3,ER135,ER137) -> 97253.08642 | ES138: =IF(ES3,ES135,ES137) -> 97253.08642 | ET138: =IF(ET3,ET135,ET137) -> 97253.08642 | EU138: =IF(EU3,EU135,EU137) -> 97253.08642 | EV138: =IF(EV3,EV135,EV137) -> 97253.08642 | EW138: =IF(EW3,EW135,EW137) -> 97253.08642 | EX138: =IF(EX3,EX135,EX137) -> 97253.08642 | EY138: =IF(EY3,EY135,EY137) -> 97253.08642 | EZ138: =IF(EZ3,EZ135,EZ137) -> 97253.08642 | FA138: =IF(FA3,FA135,FA137) -> 97253.08642 | FB138: =IF(FB3,FB135,FB137) -> 97253.08642 | FC138: =IF(FC3,FC135,FC137) -> 97253.08642 | FD138: =IF(FD3,FD135,FD137) -> 97253.08642 | FE138: =IF(FE3,FE135,FE137) -> 97253.08642 | FF138: =IF(FF3,FF135,FF137) -> 97253.08642 | FG138: =IF(FG3,FG135,FG137) -> 97253.08642 | FH138: =IF(FH3,FH135,FH137) -> 97253.08642 | FI138: =IF(FI3,FI135,FI137) -> 97253.08642
A140: Working Capital, Other Income and Depreciation
E141: Average | F141: Last | G141: Modelled
C142: Periodic Other Income | E142: =AVERAGEIF(3:3,1,142:142) -> 3828399.633 | F142: =LOOKUP(E3,2:2,142:142)/LOOKUP(E3,2:2,7:7) -> 341358.0247 | G142: =F142*Scenarios!M36 -> 341358.0247 | H142: =IF(H3,H34,$G$142) -> 1564772.222 | I142: =IF(I3,I34,$G$142) -> 1584701.111 | J142: =IF(J3,J34,$G$142) -> 6998428.889 | K142: =IF(K3,K34,$G$142) -> 7970021.87 | L142: =IF(L3,L34,$G$142) -> 1024074.074 | M142: =IF(M3,M34,$G$142) -> 341358.0247 | N142: =IF(N3,N34,$G$142) -> 341358.0247 | O142: =IF(O3,O34,$G$142) -> 341358.0247 | P142: =IF(P3,P34,$G$142) -> 341358.0247 | Q142: =IF(Q3,Q34,$G$142) -> 341358.0247 | R142: =IF(R3,R34,$G$142) -> 341358.0247 | S142: =IF(S3,S34,$G$142) -> 341358.0247 | T142: =IF(T3,T34,$G$142) -> 341358.0247 | U142: =IF(U3,U34,$G$142) -> 341358.0247 | V142: =IF(V3,V34,$G$142) -> 341358.0247 | W142: =IF(W3,W34,$G$142) -> 341358.0247 | X142: =IF(X3,X34,$G$142) -> 341358.0247 | Y142: =IF(Y3,Y34,$G$142) -> 341358.0247 | Z142: =IF(Z3,Z34,$G$142) -> 341358.0247 | AA142: =IF(AA3,AA34,$G$142) -> 341358.0247 | AB142: =IF(AB3,AB34,$G$142) -> 341358.0247 | AC142: =IF(AC3,AC34,$G$142) -> 341358.0247 | AD142: =IF(AD3,AD34,$G$142) -> 341358.0247 | AE142: =IF(AE3,AE34,$G$142) -> 341358.0247 | AF142: =IF(AF3,AF34,$G$142) -> 341358.0247 | AG142: =IF(AG3,AG34,$G$142) -> 341358.0247 | AH142: =IF(AH3,AH34,$G$142) -> 341358.0247 | AI142: =IF(AI3,AI34,$G$142) -> 341358.0247 | AJ142: =IF(AJ3,AJ34,$G$142) -> 341358.0247 | AK142: =IF(AK3,AK34,$G$142) -> 341358.0247 | AL142: =IF(AL3,AL34,$G$142) -> 341358.0247 | AM142: =IF(AM3,AM34,$G$142) -> 341358.0247 | AN142: =IF(AN3,AN34,$G$142) -> 341358.0247 | AO142: =IF(AO3,AO34,$G$142) -> 341358.0247 | AP142: =IF(AP3,AP34,$G$142) -> 341358.0247 | AQ142: =IF(AQ3,AQ34,$G$142) -> 341358.0247 | AR142: =IF(AR3,AR34,$G$142) -> 341358.0247 | AS142: =IF(AS3,AS34,$G$142) -> 341358.0247 | AT142: =IF(AT3,AT34,$G$142) -> 341358.0247 | AU142: =IF(AU3,AU34,$G$142) -> 341358.0247 | AV142: =IF(AV3,AV34,$G$142) -> 341358.0247 | AW142: =IF(AW3,AW34,$G$142) -> 341358.0247 | AX142: =IF(AX3,AX34,$G$142) -> 341358.0247 | AY142: =IF(AY3,AY34,$G$142) -> 341358.0247 | AZ142: =IF(AZ3,AZ34,$G$142) -> 341358.0247 | BA142: =IF(BA3,BA34,$G$142) -> 341358.0247 | BB142: =IF(BB3,BB34,$G$142) -> 341358.0247 | BC142: =IF(BC3,BC34,$G$142) -> 341358.0247 | BD142: =IF(BD3,BD34,$G$142) -> 341358.0247 | BE142: =IF(BE3,BE34,$G$142) -> 341358.0247 | BF142: =IF(BF3,BF34,$G$142) -> 341358.0247 | BG142: =IF(BG3,BG34,$G$142) -> 341358.0247 | BH142: =IF(BH3,BH34,$G$142) -> 341358.0247 | BI142: =IF(BI3,BI34,$G$142) -> 341358.0247 | BJ142: =IF(BJ3,BJ34,$G$142) -> 341358.0247 | BK142: =IF(BK3,BK34,$G$142) -> 341358.0247 | BL142: =IF(BL3,BL34,$G$142) -> 341358.0247 | BM142: =IF(BM3,BM34,$G$142) -> 341358.0247 | BN142: =IF(BN3,BN34,$G$142) -> 341358.0247 | BO142: =IF(BO3,BO34,$G$142) -> 341358.0247 | BP142: =IF(BP3,BP34,$G$142) -> 341358.0247 | BQ142: =IF(BQ3,BQ34,$G$142) -> 341358.0247 | BR142: =IF(BR3,BR34,$G$142) -> 341358.0247 | BS142: =IF(BS3,BS34,$G$142) -> 341358.0247 | BT142: =IF(BT3,BT34,$G$142) -> 341358.0247 | BU142: =IF(BU3,BU34,$G$142) -> 341358.0247 | BV142: =IF(BV3,BV34,$G$142) -> 341358.0247 | BW142: =IF(BW3,BW34,$G$142) -> 341358.0247 | BX142: =IF(BX3,BX34,$G$142) -> 341358.0247 | BY142: =IF(BY3,BY34,$G$142) -> 341358.0247 | BZ142: =IF(BZ3,BZ34,$G$142) -> 341358.0247 | CA142: =IF(CA3,CA34,$G$142) -> 341358.0247 | CB142: =IF(CB3,CB34,$G$142) -> 341358.0247 | CC142: =IF(CC3,CC34,$G$142) -> 341358.0247 | CD142: =IF(CD3,CD34,$G$142) -> 341358.0247 | CE142: =IF(CE3,CE34,$G$142) -> 341358.0247 | CF142: =IF(CF3,CF34,$G$142) -> 341358.0247 | CG142: =IF(CG3,CG34,$G$142) -> 341358.0247 | CH142: =IF(CH3,CH34,$G$142) -> 341358.0247 | CI142: =IF(CI3,CI34,$G$142) -> 341358.0247 | CJ142: =IF(CJ3,CJ34,$G$142) -> 341358.0247 | CK142: =IF(CK3,CK34,$G$142) -> 341358.0247 | CL142: =IF(CL3,CL34,$G$142) -> 341358.0247 | CM142: =IF(CM3,CM34,$G$142) -> 341358.0247 | CN142: =IF(CN3,CN34,$G$142) -> 341358.0247 | CO142: =IF(CO3,CO34,$G$142) -> 341358.0247 | CP142: =IF(CP3,CP34,$G$142) -> 341358.0247 | CQ142: =IF(CQ3,CQ34,$G$142) -> 341358.0247 | CR142: =IF(CR3,CR34,$G$142) -> 341358.0247 | CS142: =IF(CS3,CS34,$G$142) -> 341358.0247 | CT142: =IF(CT3,CT34,$G$142) -> 341358.0247 | CU142: =IF(CU3,CU34,$G$142) -> 341358.0247 | CV142: =IF(CV3,CV34,$G$142) -> 341358.0247 | CW142: =IF(CW3,CW34,$G$142) -> 341358.0247 | CX142: =IF(CX3,CX34,$G$142) -> 341358.0247 | CY142: =IF(CY3,CY34,$G$142) -> 341358.0247 | CZ142: =IF(CZ3,CZ34,$G$142) -> 341358.0247 | DA142: =IF(DA3,DA34,$G$142) -> 341358.0247 | DB142: =IF(DB3,DB34,$G$142) -> 341358.0247 | DC142: =IF(DC3,DC34,$G$142) -> 341358.0247 | DD142: =IF(DD3,DD34,$G$142) -> 341358.0247 | DE142: =IF(DE3,DE34,$G$142) -> 341358.0247 | DF142: =IF(DF3,DF34,$G$142) -> 341358.0247 | DG142: =IF(DG3,DG34,$G$142) -> 341358.0247 | DH142: =IF(DH3,DH34,$G$142) -> 341358.0247 | DI142: =IF(DI3,DI34,$G$142) -> 341358.0247 | DJ142: =IF(DJ3,DJ34,$G$142) -> 341358.0247 | DK142: =IF(DK3,DK34,$G$142) -> 341358.0247 | DL142: =IF(DL3,DL34,$G$142) -> 341358.0247 | DM142: =IF(DM3,DM34,$G$142) -> 341358.0247 | DN142: =IF(DN3,DN34,$G$142) -> 341358.0247 | DO142: =IF(DO3,DO34,$G$142) -> 341358.0247 | DP142: =IF(DP3,DP34,$G$142) -> 341358.0247 | DQ142: =IF(DQ3,DQ34,$G$142) -> 341358.0247 | DR142: =IF(DR3,DR34,$G$142) -> 341358.0247 | DS142: =IF(DS3,DS34,$G$142) -> 341358.0247 | DT142: =IF(DT3,DT34,$G$142) -> 341358.0247 | DU142: =IF(DU3,DU34,$G$142) -> 341358.0247 | DV142: =IF(DV3,DV34,$G$142) -> 341358.0247 | DW142: =IF(DW3,DW34,$G$142) -> 341358.0247 | DX142: =IF(DX3,DX34,$G$142) -> 341358.0247 | DY142: =IF(DY3,DY34,$G$142) -> 341358.0247 | DZ142: =IF(DZ3,DZ34,$G$142) -> 341358.0247 | EA142: =IF(EA3,EA34,$G$142) -> 341358.0247 | EB142: =IF(EB3,EB34,$G$142) -> 341358.0247 | EC142: =IF(EC3,EC34,$G$142) -> 341358.0247 | ED142: =IF(ED3,ED34,$G$142) -> 341358.0247 | EE142: =IF(EE3,EE34,$G$142) -> 341358.0247 | EF142: =IF(EF3,EF34,$G$142) -> 341358.0247 | EG142: =IF(EG3,EG34,$G$142) -> 341358.0247 | EH142: =IF(EH3,EH34,$G$142) -> 341358.0247 | EI142: =IF(EI3,EI34,$G$142) -> 341358.0247 | EJ142: =IF(EJ3,EJ34,$G$142) -> 341358.0247 | EK142: =IF(EK3,EK34,$G$142) -> 341358.0247 | EL142: =IF(EL3,EL34,$G$142) -> 341358.0247 | EM142: =IF(EM3,EM34,$G$142) -> 341358.0247 | EN142: =IF(EN3,EN34,$G$142) -> 341358.0247 | EO142: =IF(EO3,EO34,$G$142) -> 341358.0247 | EP142: =IF(EP3,EP34,$G$142) -> 341358.0247 | EQ142: =IF(EQ3,EQ34,$G$142) -> 341358.0247 | ER142: =IF(ER3,ER34,$G$142) -> 341358.0247 | ES142: =IF(ES3,ES34,$G$142) -> 341358.0247 | ET142: =IF(ET3,ET34,$G$142) -> 341358.0247 | EU142: =IF(EU3,EU34,$G$142) -> 341358.0247 | EV142: =IF(EV3,EV34,$G$142) -> 341358.0247 | EW142: =IF(EW3,EW34,$G$142) -> 341358.0247 | EX142: =IF(EX3,EX34,$G$142) -> 341358.0247 | EY142: =IF(EY3,EY34,$G$142) -> 341358.0247 | EZ142: =IF(EZ3,EZ34,$G$142) -> 341358.0247 | FA142: =IF(FA3,FA34,$G$142) -> 341358.0247 | FB142: =IF(FB3,FB34,$G$142) -> 341358.0247 | FC142: =IF(FC3,FC34,$G$142) -> 341358.0247 | FD142: =IF(FD3,FD34,$G$142) -> 341358.0247 | FE142: =IF(FE3,FE34,$G$142) -> 341358.0247 | FF142: =IF(FF3,FF34,$G$142) -> 341358.0247 | FG142: =IF(FG3,FG34,$G$142) -> 341358.0247 | FH142: =IF(FH3,FH34,$G$142) -> 341358.0247 | FI142: =IF(FI3,FI34,$G$142) -> 341358.0247
C144: Annual Depreciation Rate (Closing Plant) | H144: =IFERROR(H31/H47*12/H7,0) -> 0.2144435208 | I144: =IFERROR(I31/I47*12/I7,0) -> 0.1972303879 | J144: =IFERROR(J31/J47*12/J7,0) -> 0.08989013331 | K144: =IFERROR(K31/K47*12/K7,0) -> 0.09227177729 | L144: =IFERROR(L31/L47*12/L7,0) -> 0 | M144: =IFERROR(M31/M47*12/M7,0) -> 0 | N144: =IFERROR(N31/N47*12/N7,0) -> 0 | O144: =IFERROR(O31/O47*12/O7,0) -> 0 | P144: =IFERROR(P31/P47*12/P7,0) -> 0 | Q144: =IFERROR(Q31/Q47*12/Q7,0) -> 0 | R144: =IFERROR(R31/R47*12/R7,0) -> 0 | S144: =IFERROR(S31/S47*12/S7,0) -> 0 | T144: =IFERROR(T31/T47*12/T7,0) -> 0 | U144: =IFERROR(U31/U47*12/U7,0) -> 0 | V144: =IFERROR(V31/V47*12/V7,0) -> 0 | W144: =IFERROR(W31/W47*12/W7,0) -> 0 | X144: =IFERROR(X31/X47*12/X7,0) -> 0 | Y144: =IFERROR(Y31/Y47*12/Y7,0) -> 0 | Z144: =IFERROR(Z31/Z47*12/Z7,0) -> 0 | AA144: =IFERROR(AA31/AA47*12/AA7,0) -> 0 | AB144: =IFERROR(AB31/AB47*12/AB7,0) -> 0 | AC144: =IFERROR(AC31/AC47*12/AC7,0) -> 0 | AD144: =IFERROR(AD31/AD47*12/AD7,0) -> 0 | AE144: =IFERROR(AE31/AE47*12/AE7,0) -> 0 | AF144: =IFERROR(AF31/AF47*12/AF7,0) -> 0 | AG144: =IFERROR(AG31/AG47*12/AG7,0) -> 0 | AH144: =IFERROR(AH31/AH47*12/AH7,0) -> 0 | AI144: =IFERROR(AI31/AI47*12/AI7,0) -> 0 | AJ144: =IFERROR(AJ31/AJ47*12/AJ7,0) -> 0 | AK144: =IFERROR(AK31/AK47*12/AK7,0) -> 0 | AL144: =IFERROR(AL31/AL47*12/AL7,0) -> 0 | AM144: =IFERROR(AM31/AM47*12/AM7,0) -> 0 | AN144: =IFERROR(AN31/AN47*12/AN7,0) -> 0 | AO144: =IFERROR(AO31/AO47*12/AO7,0) -> 0 | AP144: =IFERROR(AP31/AP47*12/AP7,0) -> 0 | AQ144: =IFERROR(AQ31/AQ47*12/AQ7,0) -> 0 | AR144: =IFERROR(AR31/AR47*12/AR7,0) -> 0 | AS144: =IFERROR(AS31/AS47*12/AS7,0) -> 0 | AT144: =IFERROR(AT31/AT47*12/AT7,0) -> 0 | AU144: =IFERROR(AU31/AU47*12/AU7,0) -> 0 | AV144: =IFERROR(AV31/AV47*12/AV7,0) -> 0 | AW144: =IFERROR(AW31/AW47*12/AW7,0) -> 0 | AX144: =IFERROR(AX31/AX47*12/AX7,0) -> 0 | AY144: =IFERROR(AY31/AY47*12/AY7,0) -> 0 | AZ144: =IFERROR(AZ31/AZ47*12/AZ7,0) -> 0 | BA144: =IFERROR(BA31/BA47*12/BA7,0) -> 0 | BB144: =IFERROR(BB31/BB47*12/BB7,0) -> 0 | BC144: =IFERROR(BC31/BC47*12/BC7,0) -> 0 | BD144: =IFERROR(BD31/BD47*12/BD7,0) -> 0 | BE144: =IFERROR(BE31/BE47*12/BE7,0) -> 0 | BF144: =IFERROR(BF31/BF47*12/BF7,0) -> 0 | BG144: =IFERROR(BG31/BG47*12/BG7,0) -> 0 | BH144: =IFERROR(BH31/BH47*12/BH7,0) -> 0 | BI144: =IFERROR(BI31/BI47*12/BI7,0) -> 0 | BJ144: =IFERROR(BJ31/BJ47*12/BJ7,0) -> 0 | BK144: =IFERROR(BK31/BK47*12/BK7,0) -> 0 | BL144: =IFERROR(BL31/BL47*12/BL7,0) -> 0 | BM144: =IFERROR(BM31/BM47*12/BM7,0) -> 0 | BN144: =IFERROR(BN31/BN47*12/BN7,0) -> 0 | BO144: =IFERROR(BO31/BO47*12/BO7,0) -> 0 | BP144: =IFERROR(BP31/BP47*12/BP7,0) -> 0 | BQ144: =IFERROR(BQ31/BQ47*12/BQ7,0) -> 0 | BR144: =IFERROR(BR31/BR47*12/BR7,0) -> 0 | BS144: =IFERROR(BS31/BS47*12/BS7,0) -> 0 | BT144: =IFERROR(BT31/BT47*12/BT7,0) -> 0 | BU144: =IFERROR(BU31/BU47*12/BU7,0) -> 0 | BV144: =IFERROR(BV31/BV47*12/BV7,0) -> 0 | BW144: =IFERROR(BW31/BW47*12/BW7,0) -> 0 | BX144: =IFERROR(BX31/BX47*12/BX7,0) -> 0 | BY144: =IFERROR(BY31/BY47*12/BY7,0) -> 0 | BZ144: =IFERROR(BZ31/BZ47*12/BZ7,0) -> 0 | CA144: =IFERROR(CA31/CA47*12/CA7,0) -> 0 | CB144: =IFERROR(CB31/CB47*12/CB7,0) -> 0 | CC144: =IFERROR(CC31/CC47*12/CC7,0) -> 0 | CD144: =IFERROR(CD31/CD47*12/CD7,0) -> 0 | CE144: =IFERROR(CE31/CE47*12/CE7,0) -> 0 | CF144: =IFERROR(CF31/CF47*12/CF7,0) -> 0 | CG144: =IFERROR(CG31/CG47*12/CG7,0) -> 0 | CH144: =IFERROR(CH31/CH47*12/CH7,0) -> 0 | CI144: =IFERROR(CI31/CI47*12/CI7,0) -> 0 | CJ144: =IFERROR(CJ31/CJ47*12/CJ7,0) -> 0 | CK144: =IFERROR(CK31/CK47*12/CK7,0) -> 0 | CL144: =IFERROR(CL31/CL47*12/CL7,0) -> 0 | CM144: =IFERROR(CM31/CM47*12/CM7,0) -> 0 | CN144: =IFERROR(CN31/CN47*12/CN7,0) -> 0 | CO144: =IFERROR(CO31/CO47*12/CO7,0) -> 0 | CP144: =IFERROR(CP31/CP47*12/CP7,0) -> 0 | CQ144: =IFERROR(CQ31/CQ47*12/CQ7,0) -> 0 | CR144: =IFERROR(CR31/CR47*12/CR7,0) -> 0 | CS144: =IFERROR(CS31/CS47*12/CS7,0) -> 0 | CT144: =IFERROR(CT31/CT47*12/CT7,0) -> 0 | CU144: =IFERROR(CU31/CU47*12/CU7,0) -> 0 | CV144: =IFERROR(CV31/CV47*12/CV7,0) -> 0 | CW144: =IFERROR(CW31/CW47*12/CW7,0) -> 0 | CX144: =IFERROR(CX31/CX47*12/CX7,0) -> 0 | CY144: =IFERROR(CY31/CY47*12/CY7,0) -> 0 | CZ144: =IFERROR(CZ31/CZ47*12/CZ7,0) -> 0 | DA144: =IFERROR(DA31/DA47*12/DA7,0) -> 0 | DB144: =IFERROR(DB31/DB47*12/DB7,0) -> 0 | DC144: =IFERROR(DC31/DC47*12/DC7,0) -> 0 | DD144: =IFERROR(DD31/DD47*12/DD7,0) -> 0 | DE144: =IFERROR(DE31/DE47*12/DE7,0) -> 0 | DF144: =IFERROR(DF31/DF47*12/DF7,0) -> 0 | DG144: =IFERROR(DG31/DG47*12/DG7,0) -> 0 | DH144: =IFERROR(DH31/DH47*12/DH7,0) -> 0 | DI144: =IFERROR(DI31/DI47*12/DI7,0) -> 0 | DJ144: =IFERROR(DJ31/DJ47*12/DJ7,0) -> 0 | DK144: =IFERROR(DK31/DK47*12/DK7,0) -> 0 | DL144: =IFERROR(DL31/DL47*12/DL7,0) -> 0 | DM144: =IFERROR(DM31/DM47*12/DM7,0) -> 0 | DN144: =IFERROR(DN31/DN47*12/DN7,0) -> 0 | DO144: =IFERROR(DO31/DO47*12/DO7,0) -> 0 | DP144: =IFERROR(DP31/DP47*12/DP7,0) -> 0 | DQ144: =IFERROR(DQ31/DQ47*12/DQ7,0) -> 0 | DR144: =IFERROR(DR31/DR47*12/DR7,0) -> 0 | DS144: =IFERROR(DS31/DS47*12/DS7,0) -> 0 | DT144: =IFERROR(DT31/DT47*12/DT7,0) -> 0 | DU144: =IFERROR(DU31/DU47*12/DU7,0) -> 0 | DV144: =IFERROR(DV31/DV47*12/DV7,0) -> 0 | DW144: =IFERROR(DW31/DW47*12/DW7,0) -> 0 | DX144: =IFERROR(DX31/DX47*12/DX7,0) -> 0 | DY144: =IFERROR(DY31/DY47*12/DY7,0) -> 0 | DZ144: =IFERROR(DZ31/DZ47*12/DZ7,0) -> 0 | EA144: =IFERROR(EA31/EA47*12/EA7,0) -> 0 | EB144: =IFERROR(EB31/EB47*12/EB7,0) -> 0 | EC144: =IFERROR(EC31/EC47*12/EC7,0) -> 0 | ED144: =IFERROR(ED31/ED47*12/ED7,0) -> 0 | EE144: =IFERROR(EE31/EE47*12/EE7,0) -> 0 | EF144: =IFERROR(EF31/EF47*12/EF7,0) -> 0 | EG144: =IFERROR(EG31/EG47*12/EG7,0) -> 0 | EH144: =IFERROR(EH31/EH47*12/EH7,0) -> 0 | EI144: =IFERROR(EI31/EI47*12/EI7,0) -> 0 | EJ144: =IFERROR(EJ31/EJ47*12/EJ7,0) -> 0 | EK144: =IFERROR(EK31/EK47*12/EK7,0) -> 0 | EL144: =IFERROR(EL31/EL47*12/EL7,0) -> 0 | EM144: =IFERROR(EM31/EM47*12/EM7,0) -> 0 | EN144: =IFERROR(EN31/EN47*12/EN7,0) -> 0 | EO144: =IFERROR(EO31/EO47*12/EO7,0) -> 0 | EP144: =IFERROR(EP31/EP47*12/EP7,0) -> 0 | EQ144: =IFERROR(EQ31/EQ47*12/EQ7,0) -> 0 | ER144: =IFERROR(ER31/ER47*12/ER7,0) -> 0 | ES144: =IFERROR(ES31/ES47*12/ES7,0) -> 0 | ET144: =IFERROR(ET31/ET47*12/ET7,0) -> 0 | EU144: =IFERROR(EU31/EU47*12/EU7,0) -> 0 | EV144: =IFERROR(EV31/EV47*12/EV7,0) -> 0 | EW144: =IFERROR(EW31/EW47*12/EW7,0) -> 0 | EX144: =IFERROR(EX31/EX47*12/EX7,0) -> 0 | EY144: =IFERROR(EY31/EY47*12/EY7,0) -> 0 | EZ144: =IFERROR(EZ31/EZ47*12/EZ7,0) -> 0 | FA144: =IFERROR(FA31/FA47*12/FA7,0) -> 0 | FB144: =IFERROR(FB31/FB47*12/FB7,0) -> 0 | FC144: =IFERROR(FC31/FC47*12/FC7,0) -> 0 | FD144: =IFERROR(FD31/FD47*12/FD7,0) -> 0 | FE144: =IFERROR(FE31/FE47*12/FE7,0) -> 0 | FF144: =IFERROR(FF31/FF47*12/FF7,0) -> 0 | FG144: =IFERROR(FG31/FG47*12/FG7,0) -> 0 | FH144: =IFERROR(FH31/FH47*12/FH7,0) -> 0 | FI144: =IFERROR(FI31/FI47*12/FI7,0) -> 0
